Workbook

Sheet Data
A1: Material | B1: ECO2 (EU or Flower & Sanjayan) | C1: ECO2 (ICE) | D1: ECO2eq (ICE) | E1: EE | F1: EE (ICE) | G1: E H2O | H1: Price
A2: CEM I | B2: =(-1.2241+885.107)/1000 -> 0.8838829 | C2: 0.93 | D2: 0.95 | F2: 5.5 | G2: =529.265-1302.59+0.0347726+1078.14+85.568-217.977 -> 172.4407726 | H2: 0.095 | I2: =H2-(B2*0.004) -> 0.0914644684 | J2: http://elcd.jrc.ec.europa.eu/ELCD3/resource/processes/600573dd-dfa5-44e5-b458-8727e793ffd7?format=html&version=03.00.000
A3: PFA | B3: 0.027 | C3: 0.008 | D3: - | F3: 0.1 | H3: 0.045
A4: crushed CA | B4: =-0.000207908+0.0130605 -> 0.012852592 | C4: 0.0048 | D4: 0.0052 | F4: 0.083 | H4: 0.02 | J4: http://elcd.jrc.ec.europa.eu/ELCD3/resource/processes/898618b3-3306-11dd-bd11-0800200c9a66?format=html&version=03.00.000
A5: rounded CA | B5: =-0.0000463838+0.0032336 -> 0.0031872162 | C5: 0.0048 | D5: 0.0052 | F5: 0.083 | H5: 0.02 | J5: http://elcd.jrc.ec.europa.eu/ELCD3/resource/processes/898618b2-3306-11dd-bd11-0800200c9a66?format=html&version=03.00.000
A6: FA | B6: =-0.0000284193+0.00233987 -> 0.0023114507 | C6: 0.0048 | D6: 0.0051 | F6: 0.081 | G6: =0.00285238-0.0115009+0.0000137322+0.0128153+0.0000165527-1.0261 -> -1.021902935 | H6: 0.016 | J6: http://elcd.jrc.ec.europa.eu/ELCD3/resource/processes/898618b1-3306-11dd-bd11-0800200c9a66?format=html&version=03.00.000
A7: SP | B7: 5.2e-06 | E7: 0.0037 | H7: 1.5
A8: Water | B8: =-0.00000032811+0.000554906 -> 0.00055457789 | C8: 0.001 | F8: 0.0007 | H8: 0.0025 | J8: http://elcd.jrc.ec.europa.eu/ELCD3/resource/processes/db009013-338f-11dd-bd11-0800200c9a66?format=html&version=03.00.000
A9: ggbs | C9: 0.083 | D9: - | F9: 1.6
A10: timber (pine, at mill 40% water content) | B10: =0.0239392-1.12184 -> -1.0979008 | G10: =0.833067+0.0926075+0.000141705-0.0302247 -> 0.895591505 | J10: http://elcd.jrc.ec.europa.eu/ELCD3/resource/processes/621e64d0-f471-4023-9ebc-a52cd8ee573f?format=html&version=03.00.000
A11: steel (sections including recycling) | G11: =1.03749-2.53943+4.89143+0.000000000000202228+0.386212+0.010902+0.206613+0.0000817738-0.00000305328-5.00064+0.348773-0.07712-0.972615 -> -1.708306279 | J11: http://elcd.jrc.ec.europa.eu/ELCD3/showProcess.xhtml?uuid=9c0c2f04-fd6a-4d3c-950c-f9dead3639fe&version=03.00.000

Sheet c design-col
B3: MIX DESIGN | C3: Input | F3: Output | H3: kg | I3: MJ | L3: MJ/kg | N3: Derived parameters
B4: f-ck (cyl) | C4: 25 | E4: w/b ratio | F4: 0.5 | H4: CO2 | I4: Energy | J4: E parameters | K4: CO2 | L4: Energy | M4: Ref | N4: FA-a0.2 | O4: =INDEX($C$40:$F$42, (LOOKUP($C$9, $B$40:$B$42,$G$40:$G$42)), (LOOKUP($C$8, $C$39:$F$39,$C$43:$F$43))) -> 45.65 | R4: CEM I | T4: 5.5
B5: Margin (1.64SD) | C5: 6.6 | E5: Water content | F5: =IF(C7=D21, O16*(INDEX(D28:G30, (LOOKUP(C9,C28:C30,B28:B30)), (LOOKUP(C8, D27:G27,D31:G31)))-$O$15), O16*(INDEX(H28:K30, (LOOKUP(C9,C28:C30,B28:B30)), (LOOKUP(C8, H27:K27,H31:K31)))-$O$15)) -> 190 | G5: kg/m3 | H5: =$F5*K6 -> 0.19 | I5: =$F5*L6 -> 0.133 | N5: FA-b0.2 | O5: =INDEX($C$46:$F$48, (LOOKUP($C$9, $B$46:$B$48,$G$46:$G$48)), (LOOKUP($C$8, $C$45:$F$45,$C$49:$F$49))) -> -0.008522 | R5: PFA | T5: 0.1
B6: Cement strength class | C6: 52.5 | D6: 35 | E6: Cement content | F6: =((100-$C$13)*$F$5)/((100-(1-$C$14)*$C$13)*$F$4) -> 266 | G6: kg/m3 | H6: 235.1128514 | I6: 1463 | J6: Water | K6: 0.001 | L6: 0.0007 | M6: EU | N6: FA-a0.8 | O6: =INDEX($C$52:$F$54, (LOOKUP($C$9, $B$52:$B$54,$G$52:$G$54)), (LOOKUP($C$8, $C$51:$F$51,$C$55:$F$55))) -> 65.9 | R6: crushed CA | T6: 0.083
B7: Aggregate type | C7: Crushed | E7: PFA content | F7: =($C$13*$F$6)/(100-$C$13) -> 114 | G7: kg/m3 | H7: 3.078 | I7: 11.4 | J7: Cement | K7: 0.8838829 | L7: 5.5 | M7: EU | N7: FA-b0.8 | O7: =INDEX($C$58:$F$60, (LOOKUP($C$9, $B$58:$B$60,$G$58:$G$60)), (LOOKUP($C$8, $C$57:$F$57,$C$61:$F$61))) -> -0.009142 | R7: rounded CA | T7: 0.083
B8: Slump (mm) | C8: c: 30 - 60 | E8: Fine Agg | F8: =($O$10/100)*$O$14 -> 627.6167743 | G8: kg/m3 | H8: 1.450705232 | I8: 50.83695872 | J8: PFA | K8: 0.027 | L8: 0.1 | M8: F&S | N8: FA0.2 | O8: =$O$4*EXP($O$5*$C$11) -> 29.81177969 | R8: FA | T8: 0.081
B9: Max aggregate size (mm) | C9: 20 | E9: Coarse Agg | F9: =O14-F8 -> 1127.115501 | G9: kg/m3 | H9: 14.48635567 | I9: 93.55058656 | J9: FA | K9: 0.0023114507 | L9: 0.081 | M9: EU | N9: FA0.8 | O9: =$O$6*EXP($O$7*$C$11) -> 41.72241196 | R9: SP | S9: 0.0037
B10: Aggregate rel. density | C10: 2.54 | E10: Plasticiser dosage | F10: =LOOKUP(C12,B74:B76,D74:D76)*(F6+F7) -> 0 | G10: ltr/m3 | H10: 0 | I10: 0 | J10: CA | K10: =-0.000207908+0.0130605 -> 0.012852592 | L10: 0.083 | M10: EU | N10: %FA | O10: =(($F$4-0.2)*($O$9-$O$8))/0.6+$O$8 -> 35.76709583 | R10: Water | T10: 0.0007
B11: % passing 600 micron | C11: 50 | E11: Concrete | F11: =($D$35+F5*$B$35)*C10+($E$35+$C$35*F5) -> 2324.732275 | G11: kg/m3 | J11: SP | K11: 5.2e-06 | L11: 0.0037 | M11: F&S | N11: Fm | O11: =LOOKUP(C4,J34:J49,I34:I49)+C5 -> 36.6
B12: Plasticiser type | C12: a: None | G12: per m3 | H12: =SUM(H5:H10) -> 254.3179123 | I12: =SUM(I5:I10) -> 1618.920545 | N12: WC-a | O12: =IF(C7="Crushed", (LOOKUP(C6,B23:B24,C23:C24)), (LOOKUP(C6,B23:B24,E23:E24))) -> 169.753567
B13: PFA as % of binder | C13: 30 | G13: per kg | H13: =H12/F11 -> 0.1093966454 | I13: =I12/F11 -> 0.6963901016 | N13: WC-b | O13: =IF(C7="Crushed", (LOOKUP(C6,B23:B24,D23:D24)), (LOOKUP(C6,B23:B24,F23:F24))) -> -2.354449456
B14: PFA k-factor | C14: 1 | N14: AGG | O14: =F11-(F6+F7)-F5 -> 1754.732275
N15: PFA -water | O15: =INDEX(C65:F70, (LOOKUP(C13,B65:B70,G65:G70)), (LOOKUP(C8,C64:F64,C71:F71))) -> 20
B16: Target Mean | C16: =O11 -> 36.6 | N16: SP -water | O16: =LOOKUP(C12,B74:B76,C74:C76) -> 1 | T16: 0.095
B17: Max cement content | T17: 0.045
B18: Min cement content | E18: Binder | F18: =F6+F7 -> 380 | T18: 0.02
B19: Max w/c | C19: 0.4 | T19: 0.02
T20: 0.016
B21: W/C RATIO | C21: Crushed | D21: Crushed | E21: Uncrushed | F21: Uncrushed | G21: ='bre charts'!N32 -> fm = a.exp(b.w/c) | T21: 1.5
B22: Cement class | C22: a | D22: b | E22: a | F22: b | T22: 0.0025
B23: 42.5 | C23: ='bre charts'!P33 -> 166.178377 | D23: ='bre charts'!Q33 -> -2.501739938 | E23: ='bre charts'!P34 -> 163.17012 | F23: ='bre charts'!Q34 -> -2.69829747
B24: 52.5 | C24: ='bre charts'!P35 -> 169.753567 | D24: ='bre charts'!Q35 -> -2.354449456 | E24: ='bre charts'!P36 -> 165.73206 | F24: ='bre charts'!Q36 -> -2.528031591
B26: WATER CONTENT | D26: Slump: Crushed | H26: Slump: Uncrushed
B27: index | C27: max agg size | D27: a: 0 - 10 | E27: b: 10 - 30 | F27: c: 30 - 60 | G27: d: 60 - 180 | H27: a: 0 - 10 | I27: b: 10 - 30 | J27: c: 30 - 60 | K27: d: 60 - 180
B28: 1 | C28: 10 | D28: 180 | E28: 205 | F28: 230 | G28: 250 | H28: 150 | I28: 180 | J28: 205 | K28: 225
B29: 2 | C29: 20 | D29: 170 | E29: 190 | F29: 210 | G29: 225 | H29: 135 | I29: 160 | J29: 180 | K29: 195
B30: 3 | C30: 40 | D30: 155 | E30: 175 | F30: 190 | G30: 205 | H30: 115 | I30: 140 | J30: 160 | K30: 175
C31: index | D31: 1 | E31: 2 | F31: 3 | G31: 4 | H31: 1 | I31: 2 | J31: 3 | K31: 4
B33: DENSITY | I33: fck cube | J33: fck cyl | K33: TMS cube | M33: TMScube | N33: fck cyl
B34: ='bre charts'!B89 -> da/dw | C34: ='bre charts'!C89 -> db/dw | D34: ='bre charts'!D89 -> a0 | E34: ='bre charts'!E89 -> b0 | I34: 10 | J34: 8 | K34: =I34+$C$5 -> 16.6 | M34: 20 | N34: =((K35-M34)/(K35-K34))*(J35-J34)+J34 -> 9.28
B35: ='bre charts'!B90 -> -1.66225 | C35: ='bre charts'!C90 -> 3.0745625 | D35: ='bre charts'!D90 -> 1000.025 | E35: ='bre charts'!E90 -> 2.70375 | I35: 15 | J35: 12 | K35: =I35+$C$5 -> 21.6 | M35: 25 | N35: =((K36-M35)/(K36-K35))*(J36-J35)+J35 -> 13.28
I36: 20 | J36: 16 | K36: 26.6 | M36: 30 | N36: 17.28
B37: FINE AGG FRACTION | I37: 25 | J37: 20 | K37: 31.6 | M37: 35 | N37: 21.6
B38: a0.2 | C38: Slump | I38: 30 | J38: 25 | K38: 36.6 | M38: 40 | N38: 27.57142857
B39: Max Agg size | C39: a: 0 - 10 | D39: b: 10 - 30 | E39: c: 30 - 60 | F39: d: 60 - 180 | G39: index | I39: 37 | J39: 30 | K39: 43.6 | M39: 50 | N39: 31
B40: 10 | C40: ='bre charts'!K100 -> 53.75 | D40: ='bre charts'!K102 -> 55.55 | E40: ='bre charts'!K104 -> 61.45 | F40: ='bre charts'!K106 -> 68.53 | G40: 1 | I40: 45 | J40: 35 | K40: 51.6 | M40: 55 | N40: 36.6
B41: 20 | C41: ='bre charts'!K108 -> 38.94 | D41: ='bre charts'!K110 -> 41.39 | E41: ='bre charts'!K112 -> 45.65 | F41: ='bre charts'!K114 -> 53.8 | G41: 2 | I41: 50 | J41: 40 | K41: 56.6 | M41: 60 | N41: 41.6
B42: 40 | C42: ='bre charts'!K116 -> 31.63 | D42: ='bre charts'!K118 -> 32.82 | E42: ='bre charts'!K120 -> 39.14 | F42: ='bre charts'!K122 -> 46.31 | G42: 3 | I42: 55 | J42: 45 | K42: 61.6 | M42: 65 | N42: 46.6
B43: index | C43: 1 | D43: 2 | E43: 3 | F43: 4 | I43: 60 | J43: 50 | K43: 66.6 | M43: 70 | N43: 52.57142857
B44: b0.2 | C44: Slump | I44: 67 | J44: 55 | K44: 73.6 | M44: 75 | N44: 59.125
B45: Max Agg size | C45: a: 0 - 10 | D45: b: 10 - 30 | E45: c: 30 - 60 | F45: d: 60 - 180 | G45: index | I45: 75 | J45: 60 | K45: 81.6 | M45: 90 | N45: 61.6
B46: 10 | C46: ='bre charts'!J100 -> -0.008806 | D46: ='bre charts'!J102 -> -0.00868 | E46: ='bre charts'!J104 -> -0.009017 | F46: ='bre charts'!J106 -> -0.008971 | G46: 1 | I46: 85 | J46: 70 | K46: 91.6 | M46: 100 | N46: 71.6
B47: 20 | C47: ='bre charts'!J108 -> -0.008846 | D47: ='bre charts'!J110 -> -0.008683 | E47: ='bre charts'!J112 -> -0.008522 | F47: ='bre charts'!J114 -> -0.008986 | G47: 2 | I47: 95 | J47: 80 | K47: 101.6 | M47: 110 | N47: 81.6
B48: 40 | C48: ='bre charts'!J116 -> -0.009204 | D48: ='bre charts'!J118 -> -0.00824 | E48: ='bre charts'!J120 -> -0.008548 | F48: ='bre charts'!J122 -> -0.00886 | G48: 3 | I48: 105 | J48: 90 | K48: 111.6 | M48: 120 | N48: 91.6
B49: index | C49: 1 | D49: 2 | E49: 3 | F49: 4 | I49: 115 | J49: 100 | K49: 121.6
B50: a0.8 | C50: Slump
B51: Max Agg size | C51: a: 0 - 10 | D51: b: 10 - 30 | E51: c: 30 - 60 | F51: d: 60 - 180 | G51: index
B52: 10 | C52: ='bre charts'!K101 -> 73.86 | D52: ='bre charts'!K103 -> 76.45 | E52: ='bre charts'!K105 -> 78.95 | F52: ='bre charts'!K107 -> 89.14 | G52: 1
B53: 20 | C53: ='bre charts'!K109 -> 58.34 | D53: ='bre charts'!K111 -> 60.77 | E53: ='bre charts'!K113 -> 65.9 | F53: ='bre charts'!K115 -> 73.05 | G53: 2
B54: 40 | C54: ='bre charts'!K117 -> 51.2 | D54: ='bre charts'!K119 -> 53.45 | E54: ='bre charts'!K121 -> 58.19 | F54: ='bre charts'!K123 -> 65.67 | G54: 3
B55: index | C55: 1 | D55: 2 | E55: 3 | F55: 4
B56: b0.8 | C56: Slump
B57: Max Agg size | C57: a: 0 - 10 | D57: b: 10 - 30 | E57: c: 30 - 60 | F57: d: 60 - 180 | G57: index
B58: 10 | C58: ='bre charts'!J101 -> -0.009336 | D58: ='bre charts'!J103 -> -0.009302 | E58: ='bre charts'!J105 -> -0.008889 | F58: ='bre charts'!J107 -> -0.009281 | G58: 1
B59: 20 | C59: ='bre charts'!J109 -> -0.009231 | D59: ='bre charts'!J111 -> -0.008856 | E59: ='bre charts'!J113 -> -0.009142 | F59: ='bre charts'!J115 -> -0.008842 | G59: 2
B60: 40 | C60: ='bre charts'!J117 -> -0.009529 | D60: ='bre charts'!J119 -> -0.009455 | E60: ='bre charts'!J121 -> -0.009418 | F60: ='bre charts'!J123 -> -0.009082 | G60: 3
B61: index | C61: 1 | D61: 2 | E61: 3 | F61: 4
B63: PFA - FREE WATER
B64: PFA as % of binder | C64: a: 0 - 10 | D64: b: 10 - 30 | E64: c: 30 - 60 | F64: d: 60 - 180 | G64: index
B65: 0 | C65: 0 | D65: 0 | E65: 0 | F65: 0 | G65: 1
B66: 10 | C66: 5 | D66: 5 | E66: 5 | F66: 10 | G66: 2
B67: 20 | C67: 10 | D67: 10 | E67: 10 | F67: 15 | G67: 3
B68: 30 | C68: 15 | D68: 15 | E68: 20 | F68: 20 | G68: 4
B69: 40 | C69: 20 | D69: 20 | E69: 25 | F69: 25 | G69: 5
B70: 50 | C70: 25 | D70: 25 | E70: 30 | F70: 30 | G70: 6
B71: index | C71: 1 | D71: 2 | E71: 3 | F71: 4
B73: PLASTICISER | C73: Effect | D73: Dosage
B74: a: None | C74: 1 | D74: 0
B75: b: Normal (LS) | C75: 0.9 | D75: 0.004
B76: c: High (PCE) | C76: 0.8 | D76: 0.01

Sheet bre charts
A1: Strength
B2: =10/19 -> 0.5263157895
C3: line 70 | D3: line 60 | E3: line 50 | F3: line 40 | G3: line 30 | H3: line 25 | I3: line 20 | J3: line 15
B4: 0.3 | D4: 169.5 | E4: 152 | F4: 132 | G4: 114 | H4: 101 | I4: 87 | J4: 69
B5: 0.4 | C5: 162 | D5: 141 | E5: 122 | F5: 101 | G5: 81.5 | H5: 70 | I5: 58 | J5: 44
B6: 0.5 | C6: 133.5 | D6: 115 | E6: 95.5 | F6: 76.5 | G6: 56.5 | H6: 48 | I6: 38 | J6: 28
B7: 0.6 | C7: 108.5 | D7: 90.5 | E7: 71.5 | F7: 57 | G7: 40.5 | H7: 33 | I7: 26 | J7: 18.5
B8: 0.7 | C8: 88 | D8: 72.5 | E8: 57 | F8: 43.5 | G8: 30 | H8: 24 | I8: 19 | J8: 13
B9: 0.8 | C9: 71 | D9: 58.5 | E9: 45.5 | F9: 33 | G9: 23.5 | H9: 18.5 | I9: 14.5 | J9: 10
B10: DATA | K10: power: fm@0.5
A11: fck at 0.5 | C11: 70 | D11: 60 | E11: 50 | F11: 40 | G11: 30 | H11: 25 | I11: 20 | J11: 15 | K11: g | L11: h
A12: w/c | B12: 0.3 | D12: =D4*$B$2 -> 89.21052632 | E12: =E4*$B$2 -> 80 | F12: 69.47368421 | G12: 60 | H12: 53.15789474 | I12: 45.78947368 | J12: =J4*$B$2 -> 36.31578947 | K12: 6.7958 | L12: 0.6322
B13: 0.4 | C13: =C5*$B$2 -> 85.26315789 | D13: =D5*$B$2 -> 74.21052632 | E13: 64.21052632 | F13: 53.15789474 | G13: 42.89473684 | H13: 36.84210526 | I13: 30.52631579 | J13: =J5*$B$2 -> 23.15789474 | K13: 2.5167 | L13: 0.8289
B14: 0.5 | C14: 70 | D14: 60 | E14: 50 | F14: 40 | G14: 30 | H14: 25 | I14: 20 | J14: 15 | K14: 1 | L14: 1
B15: 0.6 | C15: =C7*$B$2 -> 57.10526316 | D15: =D7*$B$2 -> 47.63157895 | E15: 37.63157895 | F15: 30 | G15: 21.31578947 | H15: 17.36842105 | I15: 13.68421053 | J15: =J7*$B$2 -> 9.736842105 | K15: 0.4433 | L15: 1.1409
B16: 0.7 | C16: =C8*$B$2 -> 46.31578947 | D16: =D8*$B$2 -> 38.15789474 | E16: 30 | F16: 22.89473684 | G16: 15.78947368 | H16: 12.63157895 | I16: 10 | J16: =J8*$B$2 -> 6.842105263 | K16: 0.2403 | L16: 1.236
B17: 0.8 | C17: =C9*$B$2 -> 37.36842105 | D17: =D9*$B$2 -> 30.78947368 | E17: 23.94736842 | F17: 17.36842105 | G17: 12.36842105 | H17: 9.736842105 | I17: 7.631578947 | J17: =J9*$B$2 -> 5.263157895 | K17: 0.1657 | L17: 1.2716
B18: 0.38
A19: exp: w/c | B19: a | C19: 195.74 | D19: 173.56 | E19: 168.67 | F19: 160.75 | G19: 152.99 | H19: 144.47 | I19: 128.83 | J19: 111.13
B20: b | C20: -2.063 | D20: -2.156 | E20: -2.457 | F20: -2.785 | G20: -3.21 | H20: -3.446 | I20: -3.625 | J20: -3.928
B21: fck@50 | C21: a | D21: b | K21: w/c | L21: g | M21: h
B22: 70 | C22: 195.74 | D22: -2.063 | K22: 0.3 | L22: 6.7958 | M22: 0.6322
B23: 60 | C23: 173.56 | D23: -2.156 | K23: 0.4 | L23: 2.5167 | M23: 0.8289
B24: 50 | C24: 168.67 | D24: -2.457 | K24: 0.5 | L24: 1 | M24: 1
B25: 40 | C25: 160.75 | D25: -2.785 | K25: 0.6 | L25: 0.4433 | M25: 1.1409
B26: 30 | C26: 152.99 | D26: -3.21 | K26: 0.7 | L26: 0.2403 | M26: 1.236
B27: 25 | C27: 144.47 | D27: -3.446 | K27: 0.8 | L27: 0.1657 | M27: 1.2716
B28: 20 | C28: 128.83 | D28: -3.625 | K28: i | L28: 0.06446 | M28: -1.9812
B29: 15 | C29: 111.13 | D29: -3.928 | K29: j | L29: -3.90686 | M29: 3.482
B30: c | C30: 0.001431 | D30: 1.2751 | K30: k | M30: -0.2397
B31: d | C31: -0.196148 | D31: -7.4642 | K31: 0.6 | L31: =$L$28*$K$31^$L$29 -> 0.4742663449 | M31: =$M$28*$K$31^2+$M$29*$K$31+$M$30 -> 1.136268
B32: e | C32: 9.374106 | N32: fm = a.exp(b.w/c) | O32: 28d-fm@0.5 | P32: a | Q32: b
A33: calc | B33: f | C33: 9.442812 | N33: 42.5c | O33: 49 | P33: =$C$30*$O33^3+$C$31*$O33^2+$C$32*$O33+$C$33 -> 166.178377 | Q33: =$D$30*LN($O33)+$D$31 -> -2.501739938
N34: 42.5u | O34: 42 | P34: =$C$30*$O34^3+$C$31*$O34^2+$C$32*$O34+$C$33 -> 163.17012 | Q34: =$D$30*LN($O34)+$D$31 -> -2.69829747
N35: 52.5c | O35: 55 | P35: 169.753567 | Q35: -2.354449456
N36: 52.5u | O36: 48 | P36: 165.73206 | Q36: -2.528031591
B38: Prediction on w/c | K38: calc | L38: Prediction on strength@50
B39: w/c | C39: 70 | D39: 60 | E39: 50 | F39: 40 | G39: 30 | H39: 25 | I39: 20 | J39: 15 | K39: 42 | L39: g | M39: h | N39: w/c | O39: 70 | P39: 60 | Q39: 50 | R39: 40 | S39: 30 | T39: 25 | U39: 20 | V39: 15
B40: 0.3 | C40: =C$46*EXP($B40*C$47) -> 105.704603 | D40: =D$46*EXP($B40*D$47) -> 89.20094687 | E40: 79.2906836 | F40: 70.8379669 | G40: 59.78364899 | H40: 52.3957727 | I40: 43.53512558 | J40: 33.2459321 | K40: =K$46*EXP($B40*K$47) -> 72.62462827 | L40: =$L$28*$B40^$L$29 -> 7.113844306 | M40: =$M$28*$B40^2+$M$29*$B40+$M$30 -> 0.626592 | N40: 0.3 | O40: =($L40*O$39^$M40) -> 101.9126342 | P40: 92.5293911 | Q40: 82.54017188 | R40: 71.76989817 | S40: 59.9317166 | T40: 53.46165289 | U40: 46.48569656 | V40: 38.81805135
B41: 0.4 | C41: =C$46*EXP($B41*C$47) -> 86.13829348 | D41: 71.27470742 | E41: 61.90015552 | F41: 53.75002498 | G41: 43.72844796 | H41: 37.44393587 | I41: 30.23904345 | J41: 22.26054653 | K41: 55.44959166 | L41: =$L$28*$B41^$L$29 -> 2.311991342 | M41: =$M$28*$B41^2+$M$29*$B41+$M$30 -> 0.836108 | N41: 0.4 | O41: 80.66542671 | P41: 70.91084965 | Q41: 60.88476244 | R41: 50.5220982 | S41: 39.72090195 | T41: 34.1047624 | U41: 28.30008833 | V41: 22.24976938
B42: 0.5 | C42: 70.19377956 | D42: 56.95100888 | E42: 48.32382671 | F42: 40.78413473 | G42: 31.9849523 | H42: 26.75880631 | I42: 21.0037237 | J42: 14.90503953 | K42: 42.33628851 | L42: 0.9668794949 | M42: 1.006 | N42: 0.5 | O42: 69.42901091 | P42: 59.45556464 | Q42: 49.49213335 | R42: 39.54073167 | S42: 29.60440469 | T42: 24.64336439 | U42: 19.68831393 | V42: 14.74076955
B43: 0.6 | C43: 57.20065361 | D43: 45.50586779 | E43: 37.72514314 | F43: 30.94595111 | G43: 23.39523174 | H43: 19.12282186 | I43: 14.58896708 | J43: 9.979997702 | K43: 32.32415733 | L43: 0.4742663449 | M43: 1.136268 | N43: 0.6 | O43: 59.23087752 | P43: 49.71399589 | Q43: 40.41174054 | R43: 31.3611377 | S43: 22.61663145 | T43: 18.3847109 | U43: 14.26727585 | V43: 10.28909483
B44: 0.7 | C44: 46.61260292 | D44: 36.36079578 | E44: 29.45102907 | F44: 23.48099075 | G44: 17.11232404 | H44: 13.66586804 | I44: 10.13334413 | J44: 6.682327408 | K44: 24.67980033 | L44: 0.2596991765 | M44: 1.226912 | N44: 0.7 | O44: 47.66981857 | P44: 39.45532994 | Q44: 31.54694136 | R44: 23.99148889 | S44: 16.85653728 | T44: 13.47782908 | U44: 10.2499061 | V44: 7.20163409
B45: 0.8 | C45: 37.98443922 | D45: 29.05356021 | E45: 22.99164539 | F45: 17.81677107 | G45: 12.51672295 | H45: 9.766129213 | I45: 7.038514981 | J45: 4.474299586 | K45: 18.84326135 | L45: 0.1541360249 | M45: 1.277932 | N45: 0.8 | O45: 35.14098925 | P45: 28.85762186 | Q45: 22.85979283 | R45: 17.18810046 | S45: 11.90048535 | T45: 9.427063354 | U45: 7.088135629 | V45: 4.907596064
B46: a | C46: =$C$30*C$39^3+$C$31*C$39^2+$C$32*C$39+$C$33 -> 195.338032 | D46: =$C$30*D$39^3+$C$31*D$39^2+$C$32*D$39+$C$33 -> 174.852372 | E46: 166.653112 | F46: 162.154252 | G46: 152.769792 | H46: 143.562337 | I46: 129.913732 | J46: 110.750727 | K46: 163.17012
B47: b | C47: =$D$30*LN(C$39)+$D$31 -> -2.046943717 | D47: =$D$30*LN(D$39)+$D$31 -> -2.243501249 | E47: -2.475979466 | F47: -2.760509808 | G47: -3.127333219 | H47: -3.359811436 | I47: -3.644341778 | J47: -4.011165189 | K47: -2.69829747
B48: error | M48: error
B49: w/c | C49: 70 | D49: 60 | E49: 50 | F49: 40 | G49: 30 | H49: 25 | I49: 20 | J49: 15 | N49: w/c | O49: 70 | P49: 60 | Q49: 50 | R49: 40 | S49: 30 | T49: 25 | U49: 20 | V49: 15
B50: 0.3 | D50: =D40-D12 -> -0.009579441002 | E50: -0.709316404 | F50: 1.36428269 | G50: -0.2163510128 | H50: -0.7621220404 | I50: -2.254348107 | J50: =J40-J12 -> -3.069857377 | N50: 0.3 | P50: =P40-D12 -> 3.318864782 | Q50: 2.540171882 | R50: 2.296213961 | S50: -0.06828339957 | T50: 0.3037581575 | U50: 0.6962228781 | V50: 2.502261873
B51: 0.4 | C51: 0.8751355902 | D51: -2.935818896 | E51: -2.310370795 | F51: 0.5921302468 | G51: 0.833711119 | H51: 0.6018306051 | I51: -0.2872723361 | J51: =J41-J13 -> -0.8973482035 | N51: 0.4 | O51: =O41-C13 -> -4.597731187 | P51: =P41-D13 -> -3.299676664 | Q51: =Q41-E13 -> -3.325763877 | R51: =R41-F13 -> -2.635796533 | S51: =S41-G13 -> -3.173834896 | T51: =T41-H13 -> -2.737342865 | U51: =U41-I13 -> -2.226227458 | V51: =V41-J13 -> -0.9081253554
B52: 0.5 | C52: 0.1937795562 | D52: -3.048991117 | E52: -1.676173294 | F52: 0.7841347253 | G52: 1.984952299 | H52: 1.758806315 | I52: 1.003723703 | J52: -0.09496047456 | N52: 0.5 | O52: -0.5709890938 | P52: -0.544435356 | Q52: -0.5078666507 | R52: -0.4592683315 | S52: -0.3955953146 | T52: -0.356635612 | U52: -0.3116860654 | V52: -0.2592304518
B53: 0.6 | C53: 0.09539045443 | D53: -2.125711155 | E53: 0.09356419384 | F53: 0.9459511097 | G53: 2.079442263 | H53: 1.754400809 | I53: 0.9047565506 | J53: 0.243155597 | N53: 0.6 | O53: 2.125614357 | P53: 2.082416942 | Q53: 2.780161594 | R53: 1.361137697 | S53: 1.300841973 | T53: 1.016289843 | U53: 0.5830653252 | V53: 0.5522527225
B54: 0.7 | C54: 0.296813443 | D54: -1.797098956 | E54: -0.5489709312 | F54: 0.5862539043 | G54: 1.322850352 | H54: 1.03428909 | I54: 0.1333441338 | J54: -0.1597778552 | N54: 0.7 | O54: 1.354029098 | P54: 1.297435204 | Q54: 1.546941361 | R54: 1.096752044 | S54: 1.067063598 | T54: 0.8462501311 | U54: 0.2499060951 | V54: 0.3595288268
B55: 0.8 | C55: 0.6160181707 | D55: -1.735913474 | E55: -0.9557230357 | F55: 0.4483500163 | G55: 0.1483018941 | H55: 0.02928710804 | I55: -0.5930639659 | J55: -0.7888583088 | N55: 0.8 | O55: -2.227431806 | P55: -1.931851822 | Q55: -1.087575593 | R55: -0.1803205896 | S55: -0.467935707 | T55: -0.3097787509 | U55: -0.5434433186 | V55: -0.3555618309
J56: =(SQRT(SUMSQ(C50:J55)))/41 -> 0.2200072493 | V56: =(SQRT(SUMSQ(O50:V55)))/41 -> 0.2948252043
J57: =AVERAGE(C50:J55) -> -0.1330419413 | V57: =AVERAGE(O50:V55) -> -0.04691932303
B60: Prediction mean
B61: w/c | C61: 70 | D61: 60 | E61: 50 | F61: 40 | G61: 30 | H61: 25 | I61: 20 | J61: 15
B62: 0.3 | C62: =AVERAGE(C40,O40) -> 103.8086186 | D62: =AVERAGE(D40,P40) -> 90.86516899 | E62: 80.91542774 | F62: 71.30393254 | G62: 59.85768279 | H62: 52.9287128 | I62: 45.01041107 | J62: 36.03199172
B63: 0.4 | C63: =AVERAGE(C41,O41) -> 83.4018601 | D63: =AVERAGE(D41,P41) -> 71.09277854 | E63: =AVERAGE(E41,Q41) -> 61.39245898 | F63: =AVERAGE(F41,R41) -> 52.13606159 | G63: =AVERAGE(G41,S41) -> 41.72467495 | H63: =AVERAGE(H41,T41) -> 35.77434913 | I63: =AVERAGE(I41,U41) -> 29.26956589 | J63: =AVERAGE(J41,V41) -> 22.25515796
B64: 0.5 | C64: 69.81139523 | D64: 58.20328676 | E64: 48.90798003 | F64: 40.1624332 | G64: 30.79467849 | H64: 25.70108535 | I64: 20.34601882 | J64: 14.82290454
B65: 0.6 | C65: 58.21576556 | D65: 47.60993184 | E65: 39.06844184 | F65: 31.1535444 | G65: 23.00593159 | H65: 18.75376638 | I65: 14.42812146 | J65: 10.13454627
B66: 0.7 | C66: 47.14121074 | D66: 37.90806286 | E66: 30.49898521 | F66: 23.73623982 | G66: 16.98443066 | H66: 13.57184856 | I66: 10.19162511 | J66: 6.941980749
B67: 0.8 | C67: 36.56271424 | D67: 28.95559104 | E67: 22.92571911 | F67: 17.50243577 | G67: 12.20860415 | H67: 9.596596284 | I67: 7.063325305 | J67: 4.690947825
B69: error
D70: =D62-D12 -> 1.65464267 | E70: 0.915427739 | F70: 1.830248326 | G70: -0.1423172062 | H70: -0.2291819415 | I70: -0.7790626146 | J70: -0.2837977521
C71: =C63-C13 -> -1.861297799 | D71: -3.11774778 | E71: -2.818067336 | F71: -1.021833143 | G71: -1.170061889 | H71: -1.06775613 | I71: -1.256749897 | J71: -0.9027367795
C72: =C64-C14 -> -0.1886047688 | D72: -1.796713237 | E72: -1.092019973 | F72: 0.1624331969 | G72: 0.794678492 | H72: 0.7010853515 | I72: 0.3460188187 | J72: -0.1770954632
C73: =C65-C15 -> 1.110502406 | D73: -0.02164710646 | E73: 1.436862894 | F73: 1.153544404 | G73: 1.690142118 | H73: 1.385345326 | I73: 0.7439109379 | J73: 0.3977041598
C74: =C66-C16 -> 0.8254212707 | D74: -0.2498318758 | E74: 0.4989852149 | F74: 0.8415029739 | G74: 1.194956975 | H74: 0.9402696107 | I74: 0.1916251145 | J74: 0.09987548584
C75: =C67-C17 -> -0.8057068175 | D75: -1.833882648 | E75: -1.021649315 | F75: 0.1340147134 | G75: -0.1598169065 | H75: -0.1402458214 | I75: -0.5682536423 | J75: -0.5722100698
J76: =(SQRT(SUMSQ(C70:J75)))/41 -> 0.1896520042
J77: =AVERAGE(C70:J75) -> -0.08998063217
A78: =40/7 -> 5.714285714
B79: Density
A80: Water content | B80: 2.4 | C80: 2.5 | D80: 2.6 | E80: 2.7 | F80: 2.8 | G80: 2.9
A81: 100 | B81: 37.3 | C81: 51.5 | D81: 65.8 | E81: 80.4 | F81: 95.7 | G81: 110
A82: 260 | B82: 11.5 | C82: 21.3 | D82: 31.2 | E82: 40.8 | F82: 51.2 | G82: 61.2
B84: Density
A85: w | B85: 2.4 | C85: 2.5 | D85: 2.6 | E85: 2.7 | F85: 2.8 | G85: 2.9 | H85: a | I85: b
A86: 100 | B86: =2100+$A$78*B81 -> 2313.142857 | C86: 2394.285714 | D86: 2476 | E86: 2559.428571 | F86: 2646.857143 | G86: 2728.571429 | H86: 833.8 | I86: 310.16
A87: 260 | B87: 2165.714286 | C87: 2221.714286 | D87: 2278.285714 | E87: 2333.142857 | F87: 2392.571429 | G87: 2449.714286 | H87: 567.84 | I87: 802.09
A88: a = a0+da/dw
A89: dw | B89: da/dw | C89: db/dw | D89: a0 | E89: b0 | H89: da | I89: db
A90: =A87-A86 -> 160 | B90: =H90/A90 -> -1.66225 | C90: =I90/A90 -> 3.0745625 | D90: =FORECAST(0,H86:H87,$A$86:$A$87) -> 1000.025 | E90: =FORECAST(0,I86:I87,$A$86:$A$87) -> 2.70375 | H90: =H87-H86 -> -265.96 | I90: =I87-I86 -> 491.93
A92: w | B92: rd-agg | C92: density
A93: 180 | B93: 2.5 | C93: =($D$90+A93*$B$90)*B93+($E$90+$C$90*A93) -> 2308.175
A97: Scale
A98: =20/19 -> 1.052631579 | E98: % <600micron
B99: Max Agg | C99: Slump | D99: w/c | E99: 15 | F99: 40 | G99: 60 | H99: 80 | I99: 100 | J99: b | K99: a
A100: fraction fa | B100: 10 | C100: <10 | D100: 0.2 | E100: =10+P100*$A$98 -> 48.31578947 | F100: =10+Q100*$A$98 -> 36.73684211 | G100: 31.78947368 | H100: 25.78947368 | I100: 22.94736842 | J100: -0.008806 | K100: 53.75 | P100: 36.4 | Q100: 25.4 | R100: 20.7 | S100: 15 | T100: 12.3
D101: 0.8 | E101: =10+P101*$A$98 -> 64.52631579 | F101: =10+Q101*$A$98 -> 51.47368421 | G101: =10+R101*$A$98 -> 41.26315789 | H101: =10+S101*$A$98 -> 34.52631579 | I101: =10+T101*$A$98 -> 29.57894737 | J101: -0.009336 | K101: 73.86 | P101: 51.8 | Q101: 39.4 | R101: 29.7 | S101: 23.3 | T101: 18.6
C102: <30 | D102: 0.2 | E102: 50 | F102: 38.21052632 | G102: 32.63157895 | H102: 27.68421053 | I102: 23.68421053 | J102: -0.00868 | K102: 55.55 | P102: 38 | Q102: 26.8 | R102: 21.5 | S102: 16.8 | T102: 13
D103: 0.8 | E103: 66.31578947 | F103: 53.57894737 | G103: 43.36842105 | H103: 35.57894737 | I103: 30.63157895 | J103: -0.009302 | K103: 76.45 | P103: 53.5 | Q103: 41.4 | R103: 31.7 | S103: 24.3 | T103: 19.6
C104: <60 | D104: 0.2 | E104: 54.42105263 | F104: 41.78947368 | G104: 36.10526316 | H104: 29.78947368 | I104: 25.05263158 | J104: -0.009017 | K104: 61.45 | P104: 42.2 | Q104: 30.2 | R104: 24.8 | S104: 18.8 | T104: 14.3
D105: 0.8 | E105: 70 | F105: 55.26315789 | G105: 45.47368421 | H105: 38.21052632 | I105: 33.15789474 | J105: -0.008889 | K105: 78.95 | P105: 57 | Q105: 43 | R105: 33.7 | S105: 26.8 | T105: 22
C106: <180 | D106: 0.2 | E106: 60.84210526 | F106: 47.26315789 | G106: 39.68421053 | H106: 33.05263158 | I106: 28.42105263 | J106: -0.008971 | K106: 68.53 | P106: 48.3 | Q106: 35.4 | R106: 28.2 | S106: 21.9 | T106: 17.5
D107: 0.8 | E107: 78 | F107: 62.10526316 | G107: 50.21052632 | H107: 41.57894737 | I107: 36 | J107: -0.009281 | K107: 89.14 | P107: 64.6 | Q107: 49.5 | R107: 38.2 | S107: 30 | T107: 24.7
B108: 20 | C108: <10 | D108: 0.2 | E108: 34.84210526 | F108: 26.63157895 | G108: 22.84210526 | H108: 19.05263158 | I108: 16.31578947 | J108: -0.008846 | K108: 38.94 | P108: 23.6 | Q108: 15.8 | R108: 12.2 | S108: 8.6 | T108: 6
D109: 0.8 | E109: 51.05263158 | F109: 40.10526316 | G109: 33.68421053 | H109: 27.57894737 | I109: 23.36842105 | J109: -0.009231 | K109: 58.34 | P109: 39 | Q109: 28.6 | R109: 22.5 | S109: 16.7 | T109: 12.7
C110: <30 | D110: 0.2 | E110: 37.15789474 | F110: 29.05263158 | G110: 24 | H110: 20.10526316 | I110: 18 | J110: -0.008683 | K110: 41.39 | P110: 25.8 | Q110: 18.1 | R110: 13.3 | S110: 9.6 | T110: 7.6
D111: 0.8 | E111: 53.68421053 | F111: 42.63157895 | G111: 35.15789474 | H111: 29.78947368 | I111: 25.36842105 | J111: -0.008856 | K111: 60.77 | P111: 41.5 | Q111: 31 | R111: 23.9 | S111: 18.8 | T111: 14.6
C112: <60 | D112: 0.2 | E112: 40.94736842 | F112: 31.78947368 | G112: 27.26315789 | H112: 22.84210526 | I112: 19.78947368 | J112: -0.008522 | K112: 45.65 | P112: 29.4 | Q112: 20.7 | R112: 16.4 | S112: 12.2 | T112: 9.3
D113: 0.8 | E113: 58.10526316 | F113: 45.36842105 | G113: 37.89473684 | H113: 31.26315789 | I113: 26.84210526 | J113: -0.009142 | K113: 65.9 | P113: 45.7 | Q113: 33.6 | R113: 26.5 | S113: 20.2 | T113: 16
C114: <180 | D114: 0.2 | E114: 47.68421053 | F114: 37.89473684 | G114: 30.42105263 | H114: 25.57894737 | I114: 22.63157895 | J114: -0.008986 | K114: 53.8 | P114: 35.8 | Q114: 26.5 | R114: 19.4 | S114: 14.8 | T114: 12
D115: 0.8 | E115: 64.52631579 | F115: 51.47368421 | G115: 42.42105263 | H115: 35.26315789 | I115: 30.84210526 | J115: -0.008842 | K115: 73.05 | P115: 51.8 | Q115: 39.4 | R115: 30.8 | S115: 24 | T115: 19.8
B116: 40 | C116: <10 | D116: 0.2 | E116: 28.21052632 | F116: 21.36842105 | G116: 17.89473684 | H116: 15.26315789 | I116: 12.73684211 | J116: -0.009204 | K116: 31.63 | P116: 17.3 | Q116: 10.8 | R116: 7.5 | S116: 5 | T116: 2.6
D117: 0.8 | E117: 44 | F117: 35.89473684 | G117: 28.42105263 | H117: 23.68421053 | I117: 19.89473684 | J117: -0.009529 | K117: 51.2 | P117: 32.3 | Q117: 24.6 | R117: 17.5 | S117: 13 | T117: 9.4
C118: <30 | D118: 0.2 | E118: 29.68421053 | F118: 23.47368421 | G118: 19.36842105 | H118: 16.73684211 | I118: 14.84210526 | J118: -0.00824 | K118: 32.82 | P118: 18.7 | Q118: 12.8 | R118: 8.9 | S118: 6.4 | T118: 4.6
D119: 0.8 | E119: 46.42105263 | F119: 37.47368421 | G119: 29.57894737 | H119: 24.52631579 | I119: 21.26315789 | J119: -0.009455 | K119: 53.45 | P119: 34.6 | Q119: 26.1 | R119: 18.6 | S119: 13.8 | T119: 10.7
C120: <60 | D120: 0.2 | E120: 34.42105263 | F120: 28.42105263 | G120: 22.84210526 | H120: 19.47368421 | I120: 16.94736842 | J120: -0.008548 | K120: 39.14 | P120: 23.2 | Q120: 17.5 | R120: 12.2 | S120: 9 | T120: 6.6
D121: 0.8 | E121: 50.73684211 | F121: 40.42105263 | G121: 32.63157895 | H121: 26.63157895 | I121: 23.26315789 | J121: -0.009418 | K121: 58.19 | P121: 38.7 | Q121: 28.9 | R121: 21.5 | S121: 15.8 | T121: 12.6
C122: <180 | D122: 0.2 | E122: 41.05263158 | F122: 32.63157895 | G122: 26.42105263 | H122: 22.63157895 | I122: 19.47368421 | J122: -0.00886 | K122: 46.31 | P122: 29.5 | Q122: 21.5 | R122: 15.6 | S122: 12 | T122: 9
D123: 0.8 | E123: 57.78947368 | F123: 45.78947368 | G123: 37.36842105 | H123: 31.57894737 | I123: 26.84210526 | J123: -0.009082 | K123: 65.67 | P123: 45.4 | Q123: 34 | R123: 26 | S123: 20.5 | T123: 16

Sheet 52.5 (0 SP + 0 PFA)
A1: 0-10 | B1: 8 | C1: 12 | D1: 16 | E1: 20 | F1: 25 | G1: 30 | H1: 35 | I1: 40 | J1: 45 | K1: 50 | L1: 55 | M1: 60 | N1: 70 | O1: 80 | P1: 90 | Q1: 100
A2: Water content | B2: 135 | C2: 135 | D2: 135 | E2: 135 | F2: 135 | G2: 135 | H2: 135 | I2: 135 | J2: 135 | K2: 135 | L2: 135 | M2: 135 | N2: 135 | O2: 135 | P2: 135 | Q2: 135
A3: Cement content | B3: 148 | C3: 167 | D3: 187 | E3: 206 | F3: 226 | G3: 256 | H3: 292 | I3: 318 | J3: 345 | K3: 374 | L3: 420 | M3: 482 | N3: 576 | O3: 697 | P3: 863 | Q3: 1102
A4: PFA content | B4: 0 | C4: 0 | D4: 0 | E4: 0 | F4: 0 | G4: 0 | H4: 0 | I4: 0 | J4: 0 | K4: 0 | L4: 0 | M4: 0 | N4: 0 | O4: 0 | P4: 0 | Q4: 0
A5: Fine Agg | B5: 819 | C5: 796 | D5: 729 | E5: 695 | F5: 665 | G5: 628 | H5: 591 | I5: 569 | J5: 549 | K5: 529 | L5: 502 | M5: 471 | N5: 431 | O5: 387 | P5: 336 | Q5: 270
A6: Coarse Agg | B6: 1285 | C6: 1316 | D6: 1337 | E6: 1352 | F6: 1362 | G6: 1369 | H6: 1369 | I6: 1366 | J6: 1359 | K6: 1349 | L6: 1330 | M6: 1300 | N6: 1246 | O6: 1168 | P6: 1054 | Q6: 880
A7: Plasticiser dosage | B7: 0 | C7: 0 | D7: 0 | E7: 0 | F7: 0 | G7: 0 | H7: 0 | I7: 0 | J7: 0 | K7: 0 | L7: 0 | M7: 0 | N7: 0 | O7: 0 | P7: 0 | Q7: 0
A8: Concrete | B8: =SUM(B2:B7) -> 2387 | C8: =SUM(C2:C7) -> 2414 | D8: 2388 | E8: 2388 | F8: 2388 | G8: 2388 | H8: 2387 | I8: 2388 | J8: 2388 | K8: 2387 | L8: =SUM(L2:L7) -> 2387 | M8: =SUM(M2:M7) -> 2388 | N8: =SUM(N2:N7) -> 2388 | O8: =SUM(O2:O7) -> 2387 | P8: =SUM(P2:P7) -> 2388 | Q8: =SUM(Q2:Q7) -> 2387
A9: ECO2 | B9: =(B2*'c design-col'!$K$6)+(B3*'c design-col'!$K$7)+B4*'c design-col'!$K$8+B5*'c design-col'!$K$9+B6*'c design-col'!$K$10 -> 149.358328 | C9: =(C2*'c design-col'!$K$6)+(C3*'c design-col'!$K$7)+C4*'c design-col'!$K$8+C5*'c design-col'!$K$9+C6*'c design-col'!$K$10 -> 166.4973701 | D9: =(D2*'c design-col'!$K$6)+(D3*'c design-col'!$K$7)+D4*'c design-col'!$K$8+D5*'c design-col'!$K$9+D6*'c design-col'!$K$10 -> 184.2900654 | E9: =(E2*'c design-col'!$K$6)+(E3*'c design-col'!$K$7)+E4*'c design-col'!$K$8+E5*'c design-col'!$K$9+E6*'c design-col'!$K$10 -> 201.19804 | F9: =(F2*'c design-col'!$K$6)+(F3*'c design-col'!$K$7)+F4*'c design-col'!$K$8+F5*'c design-col'!$K$9+F6*'c design-col'!$K$10 -> 218.9348804 | G9: =(G2*'c design-col'!$K$6)+(G3*'c design-col'!$K$7)+G4*'c design-col'!$K$8+G5*'c design-col'!$K$9+G6*'c design-col'!$K$10 -> 245.4558119 | H9: =(H2*'c design-col'!$K$6)+(H3*'c design-col'!$K$7)+H4*'c design-col'!$K$8+H5*'c design-col'!$K$9+H6*'c design-col'!$K$10 -> 277.1900726 | I9: =(I2*'c design-col'!$K$6)+(I3*'c design-col'!$K$7)+I4*'c design-col'!$K$8+I5*'c design-col'!$K$9+I6*'c design-col'!$K$10 -> 300.0816183 | J9: =(J2*'c design-col'!$K$6)+(J3*'c design-col'!$K$7)+J4*'c design-col'!$K$8+J5*'c design-col'!$K$9+J6*'c design-col'!$K$10 -> 323.8102595 | K9: =(K2*'c design-col'!$K$6)+(K3*'c design-col'!$K$7)+K4*'c design-col'!$K$8+K5*'c design-col'!$K$9+K6*'c design-col'!$K$10 -> 349.2681086 | L9: =(L2*'c design-col'!$K$6)+(L3*'c design-col'!$K$7)+L4*'c design-col'!$K$8+L5*'c design-col'!$K$9+L6*'c design-col'!$K$10 -> 389.6201136 | M9: =(M2*'c design-col'!$K$6)+(M3*'c design-col'!$K$7)+M4*'c design-col'!$K$8+M5*'c design-col'!$K$9+M6*'c design-col'!$K$10 -> 443.9636207 | N9: =(N2*'c design-col'!$K$6)+(N3*'c design-col'!$K$7)+N4*'c design-col'!$K$8+N5*'c design-col'!$K$9+N6*'c design-col'!$K$10 -> 526.2621153 | O9: =(O2*'c design-col'!$K$6)+(O3*'c design-col'!$K$7)+O4*'c design-col'!$K$8+O5*'c design-col'!$K$9+O6*'c design-col'!$K$10 -> 632.1077402 | P9: =(P2*'c design-col'!$K$6)+(P3*'c design-col'!$K$7)+P4*'c design-col'!$K$8+P5*'c design-col'!$K$9+P6*'c design-col'!$K$10 -> 777.2492221 | Q9: =(Q2*'c design-col'!$K$6)+(Q3*'c design-col'!$K$7)+Q4*'c design-col'!$K$8+Q5*'c design-col'!$K$9+Q6*'c design-col'!$K$10 -> 986.1083284
A10: ECO2/Mpa | B10: =B9/B1 -> 18.66979101 | C10: =C9/C1 -> 13.87478084 | D10: 11.51812909 | E10: 10.059902 | F10: 8.757395217 | G10: 8.181860396 | H10: 7.91971636 | I10: 7.502040458 | J10: 7.195783544 | K10: 6.985362173 | L10: 7.084002066 | M10: 7.399393678 | N10: 7.518030218 | O10: 7.901346752 | P10: 8.636102468 | Q10: 9.861083284
A12: 1930-10-01 | B12: 8 | C12: 12 | D12: 16 | E12: 20 | F12: 25 | G12: 30 | H12: 35 | I12: 40 | J12: 45 | K12: 50 | L12: 55 | M12: 60 | N12: 70 | O12: 80 | P12: 90 | Q12: 100
A13: Water content | B13: 160 | C13: 160 | D13: 160 | E13: 160 | F13: 160 | G13: 160 | H13: 160 | I13: 160 | J13: 160 | K13: 160 | L13: 160 | M13: 160 | N13: 160 | O13: 160 | P13: 160 | Q13: 160
A14: Cement content | B14: 176 | C14: 199 | D14: 221 | E14: 244 | F14: 268 | G14: 303 | H14: 347 | I14: 376 | J14: 409 | K14: 444 | L14: 498 | M14: 571 | N14: 682 | O14: 827 | P14: 1023 | Q14: 1306
A15: PFA content | B15: 0 | C15: 0 | D15: 0 | E15: 0 | F15: 0 | G15: 0 | H15: 0 | I15: 0 | J15: 0 | K15: 0 | L15: 0 | M15: 0 | N15: 0 | O15: 0 | P15: 0 | Q15: 0
A16: Fine Agg | B16: 835 | C16: 783 | D16: 741 | E16: 706 | F16: 674 | G16: 635 | H16: 595 | I16: 572 | J16: 550 | K16: 528 | L16: 498 | M16: 463 | N16: 417 | O16: 366 | P16: 305 | Q16: 225
A17: Coarse Agg | B17: 1188 | C17: 1217 | D17: 1237 | E17: 1250 | F17: 1258 | G17: 1261 | H17: 1257 | I17: 1250 | J17: 1241 | K17: 1227 | L17: 1203 | M17: 1165 | N17: 1100 | O17: 1006 | P17: 871 | Q17: 668
A18: Plasticiser dosage | B18: 0 | C18: 0 | D18: 0 | E18: 0 | F18: 0 | G18: 0 | H18: 0 | I18: 0 | J18: 0 | K18: 0 | L18: 0 | M18: 0 | N18: 0 | O18: 0 | P18: 0 | Q18: 0
A19: Concrete | B19: =SUM(B13:B18) -> 2359 | C19: =SUM(C13:C18) -> 2359 | D19: 2359 | E19: 2360 | F19: 2360 | G19: 2359 | H19: 2359 | I19: 2358 | J19: 2360 | K19: 2359 | L19: 2359 | M19: 2359 | N19: 2359 | O19: 2359 | P19: 2359 | Q19: 2359
A20: ECO2 | B20: =(B13*'c design-col'!$K$6)+(B14*'c design-col'!$K$7)+B15*'c design-col'!$K$8+B16*'c design-col'!$K$9+B17*'c design-col'!$K$10 -> 172.922331 | C20: =(C13*'c design-col'!$K$6)+(C14*'c design-col'!$K$7)+C15*'c design-col'!$K$8+C16*'c design-col'!$K$9+C17*'c design-col'!$K$10 -> 193.5041675 | D20: =(D13*'c design-col'!$K$6)+(D14*'c design-col'!$K$7)+D15*'c design-col'!$K$8+D16*'c design-col'!$K$9+D17*'c design-col'!$K$10 -> 213.1095622 | E20: =(E13*'c design-col'!$K$6)+(E14*'c design-col'!$K$7)+E15*'c design-col'!$K$8+E16*'c design-col'!$K$9+E17*'c design-col'!$K$10 -> 233.5250518 | F20: =(F13*'c design-col'!$K$6)+(F14*'c design-col'!$K$7)+F15*'c design-col'!$K$8+F16*'c design-col'!$K$9+F17*'c design-col'!$K$10 -> 254.7670957 | G20: =(G13*'c design-col'!$K$6)+(G14*'c design-col'!$K$7)+G15*'c design-col'!$K$8+G16*'c design-col'!$K$9+G17*'c design-col'!$K$10 -> 285.6514084 | H20: =(H13*'c design-col'!$K$6)+(H14*'c design-col'!$K$7)+H15*'c design-col'!$K$8+H16*'c design-col'!$K$9+H17*'c design-col'!$K$10 -> 324.3983876 | I20: =(I13*'c design-col'!$K$6)+(I14*'c design-col'!$K$7)+I15*'c design-col'!$K$8+I16*'c design-col'!$K$9+I17*'c design-col'!$K$10 -> 349.8878602 | J20: =(J13*'c design-col'!$K$6)+(J14*'c design-col'!$K$7)+J15*'c design-col'!$K$8+J16*'c design-col'!$K$9+J17*'c design-col'!$K$10 -> 378.8894707 | K20: =(K13*'c design-col'!$K$6)+(K14*'c design-col'!$K$7)+K15*'c design-col'!$K$8+K16*'c design-col'!$K$9+K17*'c design-col'!$K$10 -> 409.594584 | L20: =(L13*'c design-col'!$K$6)+(L14*'c design-col'!$K$7)+L15*'c design-col'!$K$8+L16*'c design-col'!$K$9+L17*'c design-col'!$K$10 -> 456.9464548 | M20: =(M13*'c design-col'!$K$6)+(M14*'c design-col'!$K$7)+M15*'c design-col'!$K$8+M16*'c design-col'!$K$9+M17*'c design-col'!$K$10 -> 520.9006073 | N20: =(N13*'c design-col'!$K$6)+(N14*'c design-col'!$K$7)+N15*'c design-col'!$K$8+N16*'c design-col'!$K$9+N17*'c design-col'!$K$10 -> 618.0698639 | O20: =(O13*'c design-col'!$K$6)+(O14*'c design-col'!$K$7)+O15*'c design-col'!$K$8+O16*'c design-col'!$K$9+O17*'c design-col'!$K$10 -> 744.9068568 | P20: =(P13*'c design-col'!$K$6)+(P14*'c design-col'!$K$7)+P15*'c design-col'!$K$8+P16*'c design-col'!$K$9+P17*'c design-col'!$K$10 -> 916.2718068 | Q20: =(Q13*'c design-col'!$K$6)+(Q14*'c design-col'!$K$7)+Q15*'c design-col'!$K$8+Q16*'c design-col'!$K$9+Q17*'c design-col'!$K$10 -> 1163.616675
A21: ECO2/Mpa | B21: =B20/B12 -> 21.61529138 | C21: =C20/C12 -> 16.12534729 | D21: 13.31934764 | E21: 11.67625259 | F21: 10.19068383 | G21: 9.521713614 | H21: 9.26852536 | I21: 8.747196505 | J21: 8.419766015 | K21: 8.191891679 | L21: 8.30811736 | M21: 8.681676788 | N21: 8.829569485 | O21: 9.31133571 | P21: 10.18079785 | Q21: 11.63616675
A23: 30-60 | B23: 8 | C23: 12 | D23: 16 | E23: 20 | F23: 25 | G23: 30 | H23: 35 | I23: 40 | J23: 45 | K23: 50 | L23: 55 | M23: 60 | N23: 70 | O23: 80 | P23: 90 | Q23: 100
A24: Water content | B24: 180 | C24: 180 | D24: 180 | E24: 180 | F24: 180 | G24: 180 | H24: 180 | I24: 180 | J24: 180 | K24: 180 | L24: 180 | M24: 180 | N24: 180 | O24: 180 | P24: 180 | Q24: 180
A25: Cement content | B25: 198 | C25: 223 | D25: 249 | E25: 275 | F25: 301 | G25: 341 | H25: 390 | I25: 424 | J25: 460 | K25: 499 | L25: 561 | M25: 642 | N25: 767 | O25: 930 | P25: 1151 | Q25: 1470
A26: PFA content | B26: 0 | C26: 0 | D26: 0 | E26: 0 | F26: 0 | G26: 0 | H26: 0 | I26: 0 | J26: 0 | K26: 0 | L26: 0 | M26: 0 | N26: 0 | O26: 0 | P26: 0 | Q26: 0
A27: Fine Agg | B27: 860 | C27: 809 | D27: 767 | E27: 731 | F27: 699 | G27: 659 | H27: 618 | I27: 594 | J27: 570 | K27: 547 | L27: 514 | M27: 475 | N27: 424 | O27: 364 | P27: 251 | Q27: 194
A28: Coarse Agg | B28: 1098 | C28: 1124 | D28: 1141 | E28: 1151 | F28: 1156 | G28: 1156 | H28: 1148 | I28: 1139 | J28: 1126 | K28: 1110 | L28: 1082 | M28: 1039 | N28: 965 | O28: 862 | P28: 714 | Q28: 492
A29: Plasticiser dosage | B29: 0 | C29: 0 | D29: 0 | E29: 0 | F29: 0 | G29: 0 | H29: 0 | I29: 0 | J29: 0 | K29: 0 | L29: 0 | M29: 0 | N29: 0 | O29: 0 | P29: 0 | Q29: 0
A30: Concrete | B30: =SUM(B24:B29) -> 2336 | C30: =SUM(C24:C29) -> 2336 | D30: 2337 | E30: 2337 | F30: 2336 | G30: 2336 | H30: 2336 | I30: 2337 | J30: 2336 | K30: 2336 | L30: 2337 | M30: 2336 | N30: 2336 | O30: 2336 | P30: 2296 | Q30: 2336
A31: ECO2 | B31: =(B24*'c design-col'!$K$6)+(B25*'c design-col'!$K$7)+B26*'c design-col'!$K$8+B27*'c design-col'!$K$9+B28*'c design-col'!$K$10 -> 191.2888078 | C31: =(C24*'c design-col'!$K$6)+(C25*'c design-col'!$K$7)+C26*'c design-col'!$K$8+C27*'c design-col'!$K$9+C28*'c design-col'!$K$10 -> 213.6021637 | D31: =(D24*'c design-col'!$K$6)+(D25*'c design-col'!$K$7)+D26*'c design-col'!$K$8+D27*'c design-col'!$K$9+D28*'c design-col'!$K$10 -> 236.7045323 | E31: =(E24*'c design-col'!$K$6)+(E25*'c design-col'!$K$7)+E26*'c design-col'!$K$8+E27*'c design-col'!$K$9+E28*'c design-col'!$K$10 -> 259.7308014 | F31: =(F24*'c design-col'!$K$6)+(F25*'c design-col'!$K$7)+F26*'c design-col'!$K$8+F27*'c design-col'!$K$9+F28*'c design-col'!$K$10 -> 282.7020533 | G31: =(G24*'c design-col'!$K$6)+(G25*'c design-col'!$K$7)+G26*'c design-col'!$K$8+G27*'c design-col'!$K$9+G28*'c design-col'!$K$10 -> 317.9649113 | H31: =(H24*'c design-col'!$K$6)+(H25*'c design-col'!$K$7)+H26*'c design-col'!$K$8+H27*'c design-col'!$K$9+H28*'c design-col'!$K$10 -> 361.0775831 | I31: =(I24*'c design-col'!$K$6)+(I25*'c design-col'!$K$7)+I26*'c design-col'!$K$8+I27*'c design-col'!$K$9+I28*'c design-col'!$K$10 -> 390.9584536 | J31: =(J24*'c design-col'!$K$6)+(J25*'c design-col'!$K$7)+J26*'c design-col'!$K$8+J27*'c design-col'!$K$9+J28*'c design-col'!$K$10 -> 422.5556795 | K31: =(K24*'c design-col'!$K$6)+(K25*'c design-col'!$K$7)+K26*'c design-col'!$K$8+K27*'c design-col'!$K$9+K28*'c design-col'!$K$10 -> 456.7683078 | L31: =(L24*'c design-col'!$K$6)+(L25*'c design-col'!$K$7)+L26*'c design-col'!$K$8+L27*'c design-col'!$K$9+L28*'c design-col'!$K$10 -> 511.1328971 | M31: =(M24*'c design-col'!$K$6)+(M25*'c design-col'!$K$7)+M26*'c design-col'!$K$8+M27*'c design-col'!$K$9+M28*'c design-col'!$K$10 -> 582.084604 | N31: =(N24*'c design-col'!$K$6)+(N25*'c design-col'!$K$7)+N26*'c design-col'!$K$8+N27*'c design-col'!$K$9+N28*'c design-col'!$K$10 -> 691.5009907 | O31: =(O24*'c design-col'!$K$6)+(O25*'c design-col'!$K$7)+O26*'c design-col'!$K$8+O27*'c design-col'!$K$9+O28*'c design-col'!$K$10 -> 834.1113994 | P31: =(P24*'c design-col'!$K$6)+(P25*'c design-col'!$K$7)+P26*'c design-col'!$K$8+P27*'c design-col'!$K$9+P28*'c design-col'!$K$10 -> 1027.286143 | Q31: =(Q24*'c design-col'!$K$6)+(Q25*'c design-col'!$K$7)+Q26*'c design-col'!$K$8+Q27*'c design-col'!$K$9+Q28*'c design-col'!$K$10 -> 1306.25976
A32: ECO2/Mpa | B32: =B31/B23 -> 23.91110098 | C32: =C31/C23 -> 17.80018031 | D32: 14.79403327 | E32: 12.98654007 | F32: 11.30808213 | G32: 10.59883038 | H32: 10.31650238 | I32: 9.77396134 | J32: 9.390126211 | K32: 9.135366155 | L32: 9.293325402 | M32: 9.701410066 | N32: 9.878585581 | O32: 10.42639249 | P32: 11.41429047 | Q32: 13.0625976
A35: 60-180 | B35: 8 | C35: 12 | D35: 16 | E35: 20 | F35: 25 | G35: 30 | H35: 35 | I35: 40 | J35: 45 | K35: 50 | L35: 55 | M35: 60 | N35: 70 | O35: 80 | P35: 90 | Q35: 100
A36: Water content | B36: 195 | C36: 195 | D36: 195 | E36: 195 | F36: 195 | G36: 195 | H36: 195 | I36: 195 | J36: 195 | K36: 195 | L36: 195 | M36: 195 | N36: 195 | O36: 195 | P36: 195 | Q36: 195
A37: Cement content | B37: 214 | C37: 242 | D37: 269 | E37: 297 | F37: 326 | G37: 369 | H37: 422 | I37: 459 | J37: 498 | K37: 541 | L37: 607 | M37: 696 | N37: 831 | O37: 1007 | P37: 1247 | Q37: 1592
A38: PFA content | B38: 0 | C38: 0 | D38: 0 | E38: 0 | F38: 0 | G38: 0 | H38: 0 | I38: 0 | J38: 0 | K38: 0 | L38: 0 | M38: 0 | N38: 0 | O38: 0 | P38: 0 | Q38: 0
A39: Fine Agg | B39: 941 | C39: 886 | D39: 841 | E39: 802 | F39: 727 | G39: 724 | H39: 678 | I39: 650 | J39: 628 | K39: 597 | L39: 559 | M39: 514 | N39: 453 | O39: 382 | P39: 293 | Q39: 174
A40: Coarse Agg | B40: 969 | C40: 996 | D40: 1014 | E40: 1025 | F40: 1030 | G40: 1031 | H40: 1024 | I40: 1015 | J40: 1002 | K40: 986 | L40: 957 | M40: 914 | N40: 839 | O40: 735 | P40: 584 | Q40: 358
A41: Plasticiser dosage | B41: 0 | C41: 0 | D41: 0 | E41: 0 | F41: 0 | G41: 0 | H41: 0 | I41: 0 | J41: 0 | K41: 0 | L41: 0 | M41: 0 | N41: 0 | O41: 0 | P41: 0 | Q41: 0
A42: Concrete | B42: =SUM(B36:B41) -> 2319 | C42: =SUM(C36:C41) -> 2319 | D42: 2319 | E42: 2319 | F42: 2278 | G42: 2319 | H42: 2319 | I42: 2319 | J42: 2323 | K42: 2319 | L42: 2318 | M42: 2319 | N42: 2318 | O42: 2319 | P42: 2319 | Q42: 2319
A43: ECO2 | B43: =(B36*'c design-col'!$K$6)+(B37*'c design-col'!$K$7)+B38*'c design-col'!$K$8+B39*'c design-col'!$K$9+B40*'c design-col'!$K$10 -> 203.9751774 | C43: =(C36*'c design-col'!$K$6)+(C37*'c design-col'!$K$7)+C38*'c design-col'!$K$8+C39*'c design-col'!$K$9+C40*'c design-col'!$K$10 -> 228.9437888 | D43: =(D36*'c design-col'!$K$6)+(D37*'c design-col'!$K$7)+D38*'c design-col'!$K$8+D39*'c design-col'!$K$9+D40*'c design-col'!$K$10 -> 252.9359584 | E43: =(E36*'c design-col'!$K$6)+(E37*'c design-col'!$K$7)+E38*'c design-col'!$K$8+E39*'c design-col'!$K$9+E40*'c design-col'!$K$10 -> 277.7359116 | F43: =(F36*'c design-col'!$K$6)+(F37*'c design-col'!$K$7)+F38*'c design-col'!$K$8+F39*'c design-col'!$K$9+F40*'c design-col'!$K$10 -> 303.2594198 | G43: =(G36*'c design-col'!$K$6)+(G37*'c design-col'!$K$7)+G38*'c design-col'!$K$8+G39*'c design-col'!$K$9+G40*'c design-col'!$K$10 -> 341.2723028 | H43: =(H36*'c design-col'!$K$6)+(H37*'c design-col'!$K$7)+H38*'c design-col'!$K$8+H39*'c design-col'!$K$9+H40*'c design-col'!$K$10 -> 387.9218016 | I43: =(I36*'c design-col'!$K$6)+(I37*'c design-col'!$K$7)+I38*'c design-col'!$K$8+I39*'c design-col'!$K$9+I40*'c design-col'!$K$10 -> 420.4450749 | J43: =(J36*'c design-col'!$K$6)+(J37*'c design-col'!$K$7)+J38*'c design-col'!$K$8+J39*'c design-col'!$K$9+J40*'c design-col'!$K$10 -> 454.6985724 | K43: =(K36*'c design-col'!$K$6)+(K37*'c design-col'!$K$7)+K38*'c design-col'!$K$8+K39*'c design-col'!$K$9+K40*'c design-col'!$K$10 -> 492.4282407 | L43: =(L36*'c design-col'!$K$6)+(L37*'c design-col'!$K$7)+L38*'c design-col'!$K$8+L39*'c design-col'!$K$9+L40*'c design-col'!$K$10 -> 550.3039518 | M43: =(M36*'c design-col'!$K$6)+(M37*'c design-col'!$K$7)+M38*'c design-col'!$K$8+M39*'c design-col'!$K$9+M40*'c design-col'!$K$10 -> 628.3128531 | N43: =(N36*'c design-col'!$K$6)+(N37*'c design-col'!$K$7)+N38*'c design-col'!$K$8+N39*'c design-col'!$K$9+N40*'c design-col'!$K$10 -> 746.5321018 | O43: =(O36*'c design-col'!$K$6)+(O37*'c design-col'!$K$7)+O38*'c design-col'!$K$8+O39*'c design-col'!$K$9+O40*'c design-col'!$K$10 -> 900.5947096 | P43: =(P36*'c design-col'!$K$6)+(P37*'c design-col'!$K$7)+P38*'c design-col'!$K$8+P39*'c design-col'!$K$9+P40*'c design-col'!$K$10 -> 1110.580145 | Q43: =(Q36*'c design-col'!$K$6)+(Q37*'c design-col'!$K$7)+Q38*'c design-col'!$K$8+Q39*'c design-col'!$K$9+Q40*'c design-col'!$K$10 -> 1412.339997
A44: ECO2/Mpa | B44: =B43/B35 -> 25.49689717 | C44: =C43/C35 -> 19.07864906 | D44: 15.8084974 | E44: 13.88679558 | F44: 12.13037679 | G44: 11.37574343 | H44: 11.08348005 | I44: 10.51112687 | J44: 10.10441272 | K44: 9.848564814 | L44: 10.0055264 | M44: 10.47188089 | N44: 10.66474431 | O44: 11.25743387 | P44: 12.33977939 | Q44: 14.12339997

Sheet 52.5 (SP, NO PFA)
A2: 0-10 | B2: 8 | C2: 12 | D2: 16 | E2: 20 | F2: 25 | G2: 30 | H2: 35 | I2: 40 | J2: 45 | K2: 50 | L2: 55 | M2: 60 | N2: 70 | O2: 80 | P2: 90 | Q2: 100
A3: Water content | B3: 121.5 | C3: 121.5 | D3: 121.5 | E3: 121.5 | F3: 121.5 | G3: 121.5 | H3: 121.5 | I3: 121.5 | J3: 121.5 | K3: 121.5 | L3: 121.5 | M3: 121.5 | N3: 121.5 | O3: 121.5 | P3: 121.5 | Q3: 121.5
A4: Cement content | B4: 133 | C4: 151 | D4: 168 | E4: 185 | F4: 203 | G4: 230 | H4: 263 | I4: 286 | J4: 310 | K4: 337 | L4: 378 | M4: 434 | N4: 518 | O4: 628 | P4: 777 | Q4: 999
A5: PFA content | B5: 0 | C5: 0 | D5: 0 | E5: 0 | F5: 0 | G5: 0 | H5: 0 | I5: 0 | J5: 0 | K5: 0 | L5: 0 | M5: 0 | N5: 0 | O5: 0 | P5: 0 | Q5: 0
A6: Fine Agg | B6: 836 | C6: 786 | D6: 746 | E6: 712 | F6: 682 | G6: 645 | H6: 608 | I6: 587 | J6: 567 | K6: 548 | L6: 521 | M6: 492 | N6: 453 | O6: 412 | P6: 364 | Q6: 302
A7: Coarse Agg | B7: 1312 | C7: 1345 | D7: 1368 | E7: 1385 | F7: 1397 | G7: 1407 | H7: 1410 | I7: 1409 | J7: 1404 | K7: 1397 | L7: 1382 | M7: 1357 | N7: 1311 | O7: 1242 | P7: 1141 | Q7: 987
A8: Plasticiser dosage | B8: 0.5 | C8: 0.6 | D8: 0.7 | E8: 0.7 | F8: 0.8 | G8: 0.9 | H8: 1.1 | I8: 1.1 | J8: 1.2 | K8: 1.3 | L8: 1.5 | M8: 1.7 | N8: 2.1 | O8: 2.5 | P8: 3.1 | Q8: 4
A9: Concrete | B9: =B3+B4+B6+B7+B8 -> 2403 | C9: =C3+C4+C6+C7+C8 -> 2404.1 | D9: 2404.2 | E9: 2404.2 | F9: 2404.3 | G9: 2404.4 | H9: 2403.6 | I9: 2404.6 | J9: 2403.7 | K9: 2404.8 | L9: 2404 | M9: 2406.2 | N9: 2405.6 | O9: 2406 | P9: 2406.6 | Q9: 2413.5
A10: ECO2 | B10: =(B3*'c design-col'!$K$6)+(B4*'c design-col'!$K$7)+B5*'c design-col'!$K$8+B6*'c design-col'!$K$9+B7*'c design-col'!$K$10+B8*'c design-col'!$K$11 -> 136.4729018 | C10: =(C3*'c design-col'!$K$6)+(C4*'c design-col'!$K$7)+C5*'c design-col'!$K$8+C6*'c design-col'!$K$9+C7*'c design-col'!$K$10+C8*'c design-col'!$K$11 -> 152.6913575 | D10: =(D3*'c design-col'!$K$6)+(D4*'c design-col'!$K$7)+D5*'c design-col'!$K$8+D6*'c design-col'!$K$9+D7*'c design-col'!$K$10+D8*'c design-col'!$K$11 -> 167.9205189 | E10: =(E3*'c design-col'!$K$6)+(E4*'c design-col'!$K$7)+E5*'c design-col'!$K$8+E6*'c design-col'!$K$9+E7*'c design-col'!$K$10+E8*'c design-col'!$K$11 -> 183.086433 | F10: =(F3*'c design-col'!$K$6)+(F4*'c design-col'!$K$7)+F5*'c design-col'!$K$8+F6*'c design-col'!$K$9+F7*'c design-col'!$K$10+F8*'c design-col'!$K$11 -> 199.0812133 | G10: =(G3*'c design-col'!$K$6)+(G4*'c design-col'!$K$7)+G5*'c design-col'!$K$8+G6*'c design-col'!$K$9+G7*'c design-col'!$K$10+G8*'c design-col'!$K$11 -> 222.9890543 | H10: =(H3*'c design-col'!$K$6)+(H4*'c design-col'!$K$7)+H5*'c design-col'!$K$8+H6*'c design-col'!$K$9+H7*'c design-col'!$K$10+H8*'c design-col'!$K$11 -> 252.1102252 | I10: =(I3*'c design-col'!$K$6)+(I4*'c design-col'!$K$7)+I5*'c design-col'!$K$8+I6*'c design-col'!$K$9+I7*'c design-col'!$K$10+I8*'c design-col'!$K$11 -> 272.3781388 | J10: =(J3*'c design-col'!$K$6)+(J4*'c design-col'!$K$7)+J5*'c design-col'!$K$8+J6*'c design-col'!$K$9+J7*'c design-col'!$K$10+J8*'c design-col'!$K$11 -> 293.480837 | K10: =(K3*'c design-col'!$K$6)+(K4*'c design-col'!$K$7)+K5*'c design-col'!$K$8+K6*'c design-col'!$K$9+K7*'c design-col'!$K$10+K8*'c design-col'!$K$11 -> 317.2117901 | L10: =(L3*'c design-col'!$K$6)+(L4*'c design-col'!$K$7)+L5*'c design-col'!$K$8+L6*'c design-col'!$K$9+L7*'c design-col'!$K$10+L8*'c design-col'!$K$11 -> 353.195792 | M10: =(M3*'c design-col'!$K$6)+(M4*'c design-col'!$K$7)+M5*'c design-col'!$K$8+M6*'c design-col'!$K$9+M7*'c design-col'!$K$10+M8*'c design-col'!$K$11 -> 402.3048885 | N10: =(N3*'c design-col'!$K$6)+(N4*'c design-col'!$K$7)+N5*'c design-col'!$K$8+N6*'c design-col'!$K$9+N7*'c design-col'!$K$10+N8*'c design-col'!$K$11 -> 475.8696884 | O10: =(O3*'c design-col'!$K$6)+(O4*'c design-col'!$K$7)+O5*'c design-col'!$K$8+O6*'c design-col'!$K$9+O7*'c design-col'!$K$10+O8*'c design-col'!$K$11 -> 572.1152112 | P10: =(P3*'c design-col'!$K$6)+(P4*'c design-col'!$K$7)+P5*'c design-col'!$K$8+P6*'c design-col'!$K$9+P7*'c design-col'!$K$10+P8*'c design-col'!$K$11 -> 702.4047049 | Q10: =(Q3*'c design-col'!$K$6)+(Q4*'c design-col'!$K$7)+Q5*'c design-col'!$K$8+Q6*'c design-col'!$K$9+Q7*'c design-col'!$K$10+Q8*'c design-col'!$K$11 -> 896.5041043
A11: ECO2/Mpa | B11: =B10/B2 -> 17.05911272 | C11: =C10/C2 -> 12.72427979 | D11: 10.49503243 | E11: 9.154321648 | F11: 7.96324853 | G11: 7.432968478 | H11: 7.20314929 | I11: 6.80945347 | J11: 6.521796377 | K11: 6.344235801 | L11: 6.421741672 | M11: 6.705081475 | N11: 6.798138406 | O11: 7.151440139 | P11: 7.804496722 | Q11: 8.965041043
A15: 1930-10-01 | B15: 8 | C15: 12 | D15: 16 | E15: 20 | F15: 25 | G15: 30 | H15: 35 | I15: 40 | J15: 45 | K15: 50 | L15: 55 | M15: 60 | N15: 70 | O15: 80 | P15: 90 | Q15: 100
A16: Water content | B16: 144 | C16: 144 | D16: 144 | E16: 144 | F16: 144 | G16: 144 | H16: 144 | I16: 144 | J16: 144 | K16: 144 | L16: 144 | M16: 144 | N16: 144 | O16: 144 | P16: 144 | Q16: 144
A17: Cement content | B17: 158 | C17: 179 | D17: 199 | E17: 220 | F17: 241 | G17: 273 | H17: 312 | I17: 339 | J17: 368 | K17: 399 | L17: 448 | M17: 514 | N17: 614 | O17: 744 | P17: 921 | Q17: 1176
A18: PFA content | B18: 0 | C18: 0 | D18: 0 | E18: 0 | F18: 0 | G18: 0 | H18: 0 | I18: 0 | J18: 0 | K18: 0 | L18: 0 | M18: 0 | N18: 0 | O18: 0 | P18: 0 | Q18: 0
A19: Fine Agg | B19: 857 | C19: 805 | D19: 762 | E19: 727 | F19: 695 | G19: 657 | H19: 618 | I19: 595 | J19: 573 | K19: 552 | L19: 523 | M19: 489 | N19: 446 | O19: 397 | P19: 340 | Q19: 267
A20: Coarse Agg | B20: 1219 | C20: 1250 | D20: 1272 | E20: 1287 | F20: 1297 | G20: 1304 | H20: 1304 | I20: 1300 | J20: 1293 | K20: 1282 | L20: 1262 | M20: 1231 | N20: 1174 | O20: 1092 | P20: 973 | Q20: 791
A21: Plasticiser dosage | B21: 0.6 | C21: 0.7 | D21: 0.8 | E21: 0.9 | F21: 1 | G21: 1.1 | H21: 1.2 | I21: 1.4 | J21: 1.5 | K21: 1.6 | L21: 1.8 | M21: 2.1 | N21: 2.5 | O21: 3 | P21: 3.7 | Q21: 4.7
A22: Concrete | B22: =B16+B17+B18+B19+B20+B21 -> 2378.6 | C22: 2378.7 | D22: 2377.8 | E22: 2378.9 | F22: 2378 | G22: 2379.1 | H22: 2379.2 | I22: 2379.4 | J22: 2379.5 | K22: 2378.6 | L22: 2378.8 | M22: 2380.1 | N22: 2380.5 | O22: 2380 | P22: 2381.7 | Q22: 2382.7
A23: ECO2 | B23: =(B16*'c design-col'!$K$6)+(B17*'c design-col'!$K$7)+B18*'c design-col'!$K$8+B19*'c design-col'!$K$9+B20*'c design-col'!$K$10+B21*'c design-col'!$K$11 -> 157.4457242 | C23: =(C16*'c design-col'!$K$6)+(C17*'c design-col'!$K$7)+C18*'c design-col'!$K$8+C19*'c design-col'!$K$9+C20*'c design-col'!$K$10+C21*'c design-col'!$K$11 -> 176.2855006 | D23: =(D16*'c design-col'!$K$6)+(D17*'c design-col'!$K$7)+D18*'c design-col'!$K$8+D19*'c design-col'!$K$9+D20*'c design-col'!$K$10+D21*'c design-col'!$K$11 -> 194.1465237 | E23: =(E16*'c design-col'!$K$6)+(E17*'c design-col'!$K$7)+E18*'c design-col'!$K$8+E19*'c design-col'!$K$9+E20*'c design-col'!$K$10+E21*'c design-col'!$K$11 -> 212.8199532 | F23: =(F16*'c design-col'!$K$6)+(F17*'c design-col'!$K$7)+F18*'c design-col'!$K$8+F19*'c design-col'!$K$9+F20*'c design-col'!$K$10+F21*'c design-col'!$K$11 -> 231.4360542 | G23: =(G16*'c design-col'!$K$6)+(G17*'c design-col'!$K$7)+G18*'c design-col'!$K$8+G19*'c design-col'!$K$9+G20*'c design-col'!$K$10+G21*'c design-col'!$K$11 -> 259.7224405 | H23: =(H16*'c design-col'!$K$6)+(H17*'c design-col'!$K$7)+H18*'c design-col'!$K$8+H19*'c design-col'!$K$9+H20*'c design-col'!$K$10+H21*'c design-col'!$K$11 -> 294.1037275 | I23: =(I16*'c design-col'!$K$6)+(I17*'c design-col'!$K$7)+I18*'c design-col'!$K$8+I19*'c design-col'!$K$9+I20*'c design-col'!$K$10+I21*'c design-col'!$K$11 -> 317.8639931 | J23: =(J16*'c design-col'!$K$6)+(J17*'c design-col'!$K$7)+J18*'c design-col'!$K$8+J19*'c design-col'!$K$9+J20*'c design-col'!$K$10+J21*'c design-col'!$K$11 -> 343.3557777 | K23: =(K16*'c design-col'!$K$6)+(K17*'c design-col'!$K$7)+K18*'c design-col'!$K$8+K19*'c design-col'!$K$9+K20*'c design-col'!$K$10+K21*'c design-col'!$K$11 -> 370.5662292 | L23: =(L16*'c design-col'!$K$6)+(L17*'c design-col'!$K$7)+L18*'c design-col'!$K$8+L19*'c design-col'!$K$9+L20*'c design-col'!$K$10+L21*'c design-col'!$K$11 -> 413.5524084 | M23: =(M16*'c design-col'!$K$6)+(M17*'c design-col'!$K$7)+M18*'c design-col'!$K$8+M19*'c design-col'!$K$9+M20*'c design-col'!$K$10+M21*'c design-col'!$K$11 -> 471.4116617 | N23: =(N16*'c design-col'!$K$6)+(N17*'c design-col'!$K$7)+N18*'c design-col'!$K$8+N19*'c design-col'!$K$9+N20*'c design-col'!$K$10+N21*'c design-col'!$K$11 -> 558.9679636 | O23: =(O16*'c design-col'!$K$6)+(O17*'c design-col'!$K$7)+O18*'c design-col'!$K$8+O19*'c design-col'!$K$9+O20*'c design-col'!$K$10+O21*'c design-col'!$K$11 -> 672.7055696 | P23: =(P16*'c design-col'!$K$6)+(P17*'c design-col'!$K$7)+P18*'c design-col'!$K$8+P19*'c design-col'!$K$9+P20*'c design-col'!$K$10+P21*'c design-col'!$K$11 -> 827.4916354 | Q23: =(Q16*'c design-col'!$K$6)+(Q17*'c design-col'!$K$7)+Q18*'c design-col'!$K$8+Q19*'c design-col'!$K$9+Q20*'c design-col'!$K$10+Q21*'c design-col'!$K$11 -> 1050.373872
A24: ECO2/Mpa | B24: =B23/B15 -> 19.68071553 | C24: 14.69045838 | D24: 12.13415773 | E24: 10.64099766 | F24: 9.257442166 | G24: 8.657414683 | H24: 8.402963644 | I24: 7.946599829 | J24: 7.630128393 | K24: 7.411324583 | L24: 7.519134698 | M24: 7.856861028 | N24: 7.985256623 | O24: 8.40881962 | P24: 9.194351504 | Q24: 10.50373872
A28: 30-60 | B28: 8 | C28: 12 | D28: 16 | E28: 20 | F28: 25 | G28: 30 | H28: 35 | I28: 40 | J28: 45 | K28: 50 | L28: 55 | M28: 60 | N28: 70 | O28: 80 | P28: 90 | Q28: 100
A29: Water content | B29: 162 | C29: 162 | D29: 162 | E29: 162 | F29: 162 | G29: 162 | H29: 162 | I29: 162 | J29: 162 | K29: 162 | L29: 162 | M29: 162 | N29: 162 | O29: 162 | P29: 162 | Q29: 162
A30: Cement content | B30: 178 | C30: 201 | D30: 224 | E30: 247 | F30: 271 | G30: 307 | H30: 351 | I30: 381 | J30: 414 | K30: 449 | L30: 505 | M30: 578 | N30: 691 | O30: 837 | P30: 1036 | Q30: 1323
A31: PFA content | B31: 0 | C31: 0 | D31: 0 | E31: 0 | F31: 0 | G31: 0 | H31: 0 | I31: 0 | J31: 0 | K31: 0 | L31: 0 | M31: 0 | N31: 0 | O31: 0 | P31: 0 | Q31: 0
A32: Fine Agg | B32: 886 | C32: 834 | D32: 792 | E32: 757 | F32: 725 | G32: 686 | H32: 645 | I32: 622 | J32: 592 | K32: 576 | L32: 545 | M32: 508 | N32: 459 | O32: 403 | P32: 336 | Q32: 247
A33: Coarse Agg | B33: 1131 | C33: 1160 | D33: 1179 | E33: 1191 | F33: 1198 | G33: 1202 | H33: 1198 | I33: 1192 | J33: 1182 | K33: 1170 | L33: 1146 | M33: 1109 | N33: 1045 | O33: 955 | P33: 824 | Q33: 626
A34: Plasticiser dosage | B34: 0.7 | C34: 0.8 | D34: 0.9 | E34: 1 | F34: 1.1 | G34: 1.2 | H34: 1.4 | I34: 1.5 | J34: 1.7 | K34: 1.8 | L34: 2 | M34: 2.3 | N34: 2.8 | O34: 3.3 | P34: 4.1 | Q34: 5.3
A35: Concrete | B35: =B29+B30+B31+B32+B33+B34 -> 2357.7 | C35: 2357.8 | D35: 2357.9 | E35: 2358 | F35: 2357.1 | G35: 2358.2 | H35: 2357.4 | I35: 2358.5 | J35: 2351.7 | K35: 2358.8 | L35: 2360 | M35: 2359.3 | N35: 2359.8 | O35: 2360.3 | P35: 2362.1 | Q35: 2363.3
A36: ECO2 | B36: =(B29*'c design-col'!$K$6)+(B30*'c design-col'!$K$7)+B31*'c design-col'!$K$8+B32*'c design-col'!$K$9+B33*'c design-col'!$K$10+B34*'c design-col'!$K$11 -> 174.0773867 | C36: =(C29*'c design-col'!$K$6)+(C30*'c design-col'!$K$7)+C31*'c design-col'!$K$8+C32*'c design-col'!$K$9+C33*'c design-col'!$K$10+C34*'c design-col'!$K$11 -> 194.6592237 | D36: =(D29*'c design-col'!$K$6)+(D30*'c design-col'!$K$7)+D31*'c design-col'!$K$8+D32*'c design-col'!$K$9+D33*'c design-col'!$K$10+D34*'c design-col'!$K$11 -> 215.1356492 | E36: =(E29*'c design-col'!$K$6)+(E30*'c design-col'!$K$7)+E31*'c design-col'!$K$8+E32*'c design-col'!$K$9+E33*'c design-col'!$K$10+E34*'c design-col'!$K$11 -> 235.5382868 | F36: =(F29*'c design-col'!$K$6)+(F30*'c design-col'!$K$7)+F31*'c design-col'!$K$8+F32*'c design-col'!$K$9+F33*'c design-col'!$K$10+F34*'c design-col'!$K$11 -> 256.7674786 | G36: =(G29*'c design-col'!$K$6)+(G30*'c design-col'!$K$7)+G31*'c design-col'!$K$8+G32*'c design-col'!$K$9+G33*'c design-col'!$K$10+G34*'c design-col'!$K$11 -> 288.5485273 | H36: =(H29*'c design-col'!$K$6)+(H30*'c design-col'!$K$7)+H31*'c design-col'!$K$8+H32*'c design-col'!$K$9+H33*'c design-col'!$K$10+H34*'c design-col'!$K$11 -> 327.2931961 | I36: =(I29*'c design-col'!$K$6)+(I30*'c design-col'!$K$7)+I31*'c design-col'!$K$8+I32*'c design-col'!$K$9+I33*'c design-col'!$K$10+I34*'c design-col'!$K$11 -> 353.6794047 | J36: =(J29*'c design-col'!$K$6)+(J30*'c design-col'!$K$7)+J31*'c design-col'!$K$8+J32*'c design-col'!$K$9+J33*'c design-col'!$K$10+J34*'c design-col'!$K$11 -> 382.649672 | K36: =(K29*'c design-col'!$K$6)+(K30*'c design-col'!$K$7)+K31*'c design-col'!$K$8+K32*'c design-col'!$K$9+K33*'c design-col'!$K$10+K34*'c design-col'!$K$11 -> 413.3943597 | L36: =(L29*'c design-col'!$K$6)+(L30*'c design-col'!$K$7)+L31*'c design-col'!$K$8+L32*'c design-col'!$K$9+L33*'c design-col'!$K$10+L34*'c design-col'!$K$11 -> 462.511686 | M36: =(M29*'c design-col'!$K$6)+(M30*'c design-col'!$K$7)+M31*'c design-col'!$K$8+M32*'c design-col'!$K$9+M33*'c design-col'!$K$10+M34*'c design-col'!$K$11 -> 526.4740696 | N36: =(N29*'c design-col'!$K$6)+(N30*'c design-col'!$K$7)+N31*'c design-col'!$K$8+N32*'c design-col'!$K$9+N33*'c design-col'!$K$10+N34*'c design-col'!$K$11 -> 625.417013 | O36: =(O29*'c design-col'!$K$6)+(O30*'c design-col'!$K$7)+O31*'c design-col'!$K$8+O32*'c design-col'!$K$9+O33*'c design-col'!$K$10+O34*'c design-col'!$K$11 -> 753.1777445 | P36: =(P29*'c design-col'!$K$6)+(P30*'c design-col'!$K$7)+P31*'c design-col'!$K$8+P32*'c design-col'!$K$9+P33*'c design-col'!$K$10+P34*'c design-col'!$K$11 -> 927.231889 | Q36: =(Q29*'c design-col'!$K$6)+(Q30*'c design-col'!$K$7)+Q31*'c design-col'!$K$8+Q32*'c design-col'!$K$9+Q33*'c design-col'!$K$10+Q34*'c design-col'!$K$11 -> 1178.155755
A37: ECO2/Mpa | B37: =B36/B28 -> 21.75967334 | C37: 16.22160197 | D37: 13.44597808 | E37: 11.77691434 | F37: 10.27069914 | G37: 9.618284243 | H37: 9.351234174 | I37: 8.841985117 | J37: 8.503326044 | K37: 8.267887194 | L37: 8.409303381 | M37: 8.774567827 | N37: 8.934528757 | O37: 9.414721806 | P37: 10.30257654 | Q37: 11.78155755
A41: 60-180 | B41: 8 | C41: 12 | D41: 16 | E41: 20 | F41: 25 | G41: 30 | H41: 35 | I41: 40 | J41: 45 | K41: 50 | L41: 55 | M41: 60 | N41: 70 | O41: 80 | P41: 90 | Q41: 100
A42: Water content | B42: 175.5 | C42: 175.5 | D42: 175.5 | E42: 175.5 | F42: 175.5 | G42: 175.5 | H42: 175.5 | I42: 175.5 | J42: 175.5 | K42: 175.5 | L42: 175.5 | M42: 175.5 | N42: 175.5 | O42: 175.5 | P42: 175.5 | Q42: 175.5
A43: Cement content | B43: 193 | C43: 218 | D43: 243 | E43: 268 | F43: 294 | G43: 332 | H43: 380 | I43: 413 | J43: 448 | K43: 487 | L43: 547 | M43: 626 | N43: 748 | O43: 907 | P43: 1122 | Q43: 1433
A44: PFA content | B44: 0 | C44: 0 | D44: 0 | E44: 0 | F44: 0 | G44: 0 | H44: 0 | I44: 0 | J44: 0 | K44: 0 | L44: 0 | M44: 0 | N44: 0 | O44: 0 | P44: 0 | Q44: 0
A45: Fine Agg | B45: 972 | C45: 917 | D45: 872 | E45: 833 | F45: 799 | G45: 756 | H45: 711 | I45: 685 | J45: 659 | K45: 633 | L45: 597 | M45: 555 | N45: 497 | O45: 431 | P45: 349 | Q45: 240
A46: Coarse Agg | B46: 1001 | C46: 1031 | D46: 1051 | E46: 1065 | F46: 1073 | G46: 1078 | H46: 1074 | I46: 1068 | J46: 1059 | K46: 1046 | L46: 1022 | M46: 985 | N46: 921 | O46: 829 | P46: 695 | Q46: 493
A47: Plasticiser dosage | B47: 0.8 | C47: 0.9 | D47: 1 | E47: 1.1 | F47: 1.2 | G47: 1.3 | H47: 1.5 | I47: 1.7 | J47: 1.8 | K47: 1.9 | L47: 2.2 | M47: 2.5 | N47: 3 | O47: 3.6 | P47: 4.5 | Q47: 5.7
A48: Concrete | B48: =B42+B43+B44+B45+B46+B47 -> 2342.3 | C48: 2342.4 | D48: 2342.5 | E48: 2342.6 | F48: 2342.7 | G48: 2342.8 | H48: 2342 | I48: 2343.2 | J48: 2343.3 | K48: 2343.4 | L48: 2343.7 | M48: 2344 | N48: 2344.5 | O48: 2346.1 | P48: 2346 | Q48: 2347.2
A49: ECO2 | B49: =(B42*'c design-col'!$K$6)+(B43*'c design-col'!$K$7)+B44*'c design-col'!$K$8+B45*'c design-col'!$K$9+B46*'c design-col'!$K$10+B47*'c design-col'!$K$11 -> 185.8770785 | C49: =(C42*'c design-col'!$K$6)+(C43*'c design-col'!$K$7)+C44*'c design-col'!$K$8+C45*'c design-col'!$K$9+C46*'c design-col'!$K$10+C47*'c design-col'!$K$11 -> 208.2325995 | D49: =(D42*'c design-col'!$K$6)+(D43*'c design-col'!$K$7)+D44*'c design-col'!$K$8+D45*'c design-col'!$K$9+D46*'c design-col'!$K$10+D47*'c design-col'!$K$11 -> 230.4827091 | E49: =(E42*'c design-col'!$K$6)+(E43*'c design-col'!$K$7)+E44*'c design-col'!$K$8+E45*'c design-col'!$K$9+E46*'c design-col'!$K$10+E47*'c design-col'!$K$11 -> 252.6695718 | F49: =(F42*'c design-col'!$K$6)+(F43*'c design-col'!$K$7)+F44*'c design-col'!$K$8+F45*'c design-col'!$K$9+F46*'c design-col'!$K$10+F47*'c design-col'!$K$11 -> 275.6747592 | G49: =(G42*'c design-col'!$K$6)+(G43*'c design-col'!$K$7)+G44*'c design-col'!$K$8+G45*'c design-col'!$K$9+G46*'c design-col'!$K$10+G47*'c design-col'!$K$11 -> 309.2271805 | H49: =(H42*'c design-col'!$K$6)+(H43*'c design-col'!$K$7)+H44*'c design-col'!$K$8+H45*'c design-col'!$K$9+H46*'c design-col'!$K$10+H47*'c design-col'!$K$11 -> 351.4981351 | I49: =(I42*'c design-col'!$K$6)+(I43*'c design-col'!$K$7)+I44*'c design-col'!$K$8+I45*'c design-col'!$K$9+I46*'c design-col'!$K$10+I47*'c design-col'!$K$11 -> 380.5290585 | J49: =(J42*'c design-col'!$K$6)+(J43*'c design-col'!$K$7)+J44*'c design-col'!$K$8+J45*'c design-col'!$K$9+J46*'c design-col'!$K$10+J47*'c design-col'!$K$11 -> 411.2891895 | K49: =(K42*'c design-col'!$K$6)+(K43*'c design-col'!$K$7)+K44*'c design-col'!$K$8+K45*'c design-col'!$K$9+K46*'c design-col'!$K$10+K47*'c design-col'!$K$11 -> 445.5334417 | L49: =(L42*'c design-col'!$K$6)+(L43*'c design-col'!$K$7)+L44*'c design-col'!$K$8+L45*'c design-col'!$K$9+L46*'c design-col'!$K$10+L47*'c design-col'!$K$11 -> 498.1747428 | M49: =(M42*'c design-col'!$K$6)+(M43*'c design-col'!$K$7)+M44*'c design-col'!$K$8+M45*'c design-col'!$K$9+M46*'c design-col'!$K$10+M47*'c design-col'!$K$11 -> 567.4288667 | N49: =(N42*'c design-col'!$K$6)+(N43*'c design-col'!$K$7)+N44*'c design-col'!$K$8+N45*'c design-col'!$K$9+N46*'c design-col'!$K$10+N47*'c design-col'!$K$11 -> 674.305953 | O49: =(O42*'c design-col'!$K$6)+(O43*'c design-col'!$K$7)+O44*'c design-col'!$K$8+O45*'c design-col'!$K$9+O46*'c design-col'!$K$10+O47*'c design-col'!$K$11 -> 813.508343 | P49: =(P42*'c design-col'!$K$6)+(P43*'c design-col'!$K$7)+P44*'c design-col'!$K$8+P45*'c design-col'!$K$9+P46*'c design-col'!$K$10+P47*'c design-col'!$K$11 -> 1001.631385 | Q49: =(Q42*'c design-col'!$K$6)+(Q43*'c design-col'!$K$7)+Q44*'c design-col'!$K$8+Q45*'c design-col'!$K$9+Q46*'c design-col'!$K$10+Q47*'c design-col'!$K$11 -> 1273.670801
A50: ECO2/Mpa | B50: =B49/B41 -> 23.23463482 | C50: 17.35271663 | D50: 14.40516932 | E50: 12.63347859 | F50: 11.02699037 | G50: 10.30757268 | H50: 10.04280386 | I50: 9.513226463 | J50: 9.139759767 | K50: 8.910668834 | L50: 9.057722597 | M50: 9.457147778 | N50: 9.632942186 | O50: 10.16885429 | P50: 11.12923761 | Q50: 12.73670801

Sheet 52.5 (20% PFA, 0SP)
A2: 0-10 | B2: 8 | C2: 12 | D2: 16 | E2: 20 | F2: 25 | G2: 30 | H2: 35 | I2: 40 | J2: 45 | K2: 50 | L2: 55 | M2: 60 | N2: 70 | O2: 80 | P2: 90 | Q2: 100
A3: Water content | B3: 125 | C3: 125 | D3: 125 | E3: 125 | F3: 125 | G3: 125 | H3: 125 | I3: 125 | J3: 125 | K3: 125 | L3: 125 | M3: 125 | N3: 125 | O3: 125 | P3: 125 | Q3: 125
A4: Cement content | B4: 128 | C4: 144 | D4: 161 | E4: 177 | F4: 195 | G4: 220 | H4: 252 | I4: 274 | J4: 297 | K4: 322 | L4: 362 | M4: 415 | N4: 496 | O4: 601 | P4: 743 | Q4: 949
A5: PFA content | B5: 32 | C5: 36 | D5: 40 | E5: 44 | F5: 49 | G5: 55 | H5: 63 | I5: 68 | J5: 74 | K5: 81 | L5: 91 | M5: 104 | N5: 124 | O5: 150 | P5: 186 | Q5: 237
A6: Fine Agg | B6: 823 | C6: 772 | D6: 731 | E6: 697 | F6: 666 | G6: 629 | H6: 591 | I6: 569 | J6: 548 | K6: 527 | L6: 499 | M6: 467 | N6: 425 | O6: 379 | P6: 325 | Q6: 256
A7: Coarse Agg | B7: 1291 | C7: 1322 | D7: 1342 | E7: 1356 | F7: 1365 | G7: 1370 | H7: 1369 | I7: 1364 | J7: 1356 | K7: 1344 | L7: 1323 | M7: 1289 | N7: 1229 | O7: 1144 | P7: 1020 | Q7: 832
A8: Plasticiser dosage | B8: 0 | C8: 0 | D8: 0 | E8: 0 | F8: 0 | G8: 0 | H8: 0 | I8: 0 | J8: 0 | K8: 0 | L8: 0 | M8: 0 | N8: 0 | O8: 0 | P8: 0 | Q8: 0
A9: Concrete | B9: =B3+B4+B5+B6+B7+B8 -> 2399 | C9: =C3+C4+C5+C6+C7+C8 -> 2399 | D9: 2399 | E9: 2399 | F9: 2400 | G9: 2399 | H9: 2400 | I9: 2400 | J9: 2400 | K9: 2399 | L9: 2400 | M9: 2400 | N9: 2399 | O9: 2399 | P9: 2399 | Q9: 2399
A10: ECO2 | B10: =(B3*'c design-col'!$K$6)+(B4*'c design-col'!$K$7)+B5*'c design-col'!$K$8+B6*'c design-col'!$K$9+B7*'c design-col'!$K$10+B8*'c design-col'!$K$11 -> 132.6210314 | C10: =(C3*'c design-col'!$K$6)+(C4*'c design-col'!$K$7)+C5*'c design-col'!$K$8+C6*'c design-col'!$K$9+C7*'c design-col'!$K$10+C8*'c design-col'!$K$11 -> 147.1517042 | D10: =(D3*'c design-col'!$K$6)+(D4*'c design-col'!$K$7)+D5*'c design-col'!$K$8+D6*'c design-col'!$K$9+D7*'c design-col'!$K$10+D8*'c design-col'!$K$11 -> 162.4479958 | E10: =(E3*'c design-col'!$K$6)+(E4*'c design-col'!$K$7)+E5*'c design-col'!$K$8+E6*'c design-col'!$K$9+E7*'c design-col'!$K$10+E8*'c design-col'!$K$11 -> 176.7994692 | F10: =(F3*'c design-col'!$K$6)+(F4*'c design-col'!$K$7)+F5*'c design-col'!$K$8+F6*'c design-col'!$K$9+F7*'c design-col'!$K$10+F8*'c design-col'!$K$11 -> 192.8883797 | G10: =(G3*'c design-col'!$K$6)+(G4*'c design-col'!$K$7)+G5*'c design-col'!$K$8+G6*'c design-col'!$K$9+G7*'c design-col'!$K$10+G8*'c design-col'!$K$11 -> 215.1261915 | H10: =(H3*'c design-col'!$K$6)+(H4*'c design-col'!$K$7)+H5*'c design-col'!$K$8+H6*'c design-col'!$K$9+H7*'c design-col'!$K$10+H8*'c design-col'!$K$11 -> 243.5257566 | I10: =(I3*'c design-col'!$K$6)+(I4*'c design-col'!$K$7)+I5*'c design-col'!$K$8+I6*'c design-col'!$K$9+I7*'c design-col'!$K$10+I8*'c design-col'!$K$11 -> 262.9910655 | J10: =(J3*'c design-col'!$K$6)+(J4*'c design-col'!$K$7)+J5*'c design-col'!$K$8+J6*'c design-col'!$K$9+J7*'c design-col'!$K$10+J8*'c design-col'!$K$11 -> 283.331011 | K10: =(K3*'c design-col'!$K$6)+(K4*'c design-col'!$K$7)+K5*'c design-col'!$K$8+K6*'c design-col'!$K$9+K7*'c design-col'!$K$10+K8*'c design-col'!$K$11 -> 305.414312 | L10: =(L3*'c design-col'!$K$6)+(L4*'c design-col'!$K$7)+L5*'c design-col'!$K$8+L6*'c design-col'!$K$9+L7*'c design-col'!$K$10+L8*'c design-col'!$K$11 -> 340.7050029 | M10: =(M3*'c design-col'!$K$6)+(M4*'c design-col'!$K$7)+M5*'c design-col'!$K$8+M6*'c design-col'!$K$9+M7*'c design-col'!$K$10+M8*'c design-col'!$K$11 -> 387.3908421 | N10: =(N3*'c design-col'!$K$6)+(N4*'c design-col'!$K$7)+N5*'c design-col'!$K$8+N6*'c design-col'!$K$9+N7*'c design-col'!$K$10+N8*'c design-col'!$K$11 -> 458.6571205 | O10: =(O3*'c design-col'!$K$6)+(O4*'c design-col'!$K$7)+O5*'c design-col'!$K$8+O6*'c design-col'!$K$9+O7*'c design-col'!$K$10+O8*'c design-col'!$K$11 -> 550.968028 | P10: =(P3*'c design-col'!$K$6)+(P4*'c design-col'!$K$7)+P5*'c design-col'!$K$8+P6*'c design-col'!$K$9+P7*'c design-col'!$K$10+P8*'c design-col'!$K$11 -> 675.73286 | Q10: =(Q3*'c design-col'!$K$6)+(Q4*'c design-col'!$K$7)+Q5*'c design-col'!$K$8+Q6*'c design-col'!$K$9+Q7*'c design-col'!$K$10+Q8*'c design-col'!$K$11 -> 856.61396
A11: ECO2/Mpa | B11: =B10/B2 -> 16.57762892 | C11: =C10/C2 -> 12.26264201 | D11: 10.15299974 | E11: 8.839973459 | F11: 7.71553519 | G11: 7.170873051 | H11: 6.95787876 | I11: 6.574776638 | J11: 6.29624469 | K11: 6.108286239 | L11: 6.194636417 | M11: 6.456514034 | N11: 6.552244579 | O11: 6.88710035 | P11: 7.508142889 | Q11: 8.5661396
A15: 0-10 | B15: 8 | C15: 12 | D15: 16 | E15: 20 | F15: 25 | G15: 30 | H15: 35 | I15: 40 | J15: 45 | K15: 50 | L15: 55 | M15: 60 | N15: 70 | O15: 80 | P15: 90 | Q15: 100
A16: Water content | B16: 150 | C16: 150 | D16: 150 | E16: 150 | F16: 150 | G16: 150 | H16: 150 | I16: 150 | J16: 150 | K16: 150 | L16: 150 | M16: 150 | N16: 150 | O16: 150 | P16: 150 | Q16: 150
A17: Cement content | B17: 153 | C17: 173 | D17: 193 | E17: 213 | F17: 234 | G17: 264 | H17: 302 | I17: 328 | J17: 356 | K17: 387 | L17: 435 | M17: 498 | N17: 595 | O17: 721 | P17: 892 | Q17: 1139
A18: PFA content | B18: 38 | C18: 43 | D18: 48 | E18: 53 | F18: 58 | G18: 66 | H18: 76 | I18: 82 | J18: 89 | K18: 97 | L18: 109 | M18: 124 | N18: 149 | O18: 180 | P18: 223 | Q18: 285
A19: Fine Agg | B19: 837 | C19: 785 | D19: 742 | E19: 705 | F19: 673 | G19: 633 | H19: 592 | I19: 568 | J19: 545 | K19: 523 | L19: 491 | M19: 455 | N19: 406 | O19: 352 | P19: 287 | Q19: 201
A20: Coarse Agg | B20: 1192 | C20: 1220 | D20: 1238 | E20: 1249 | F20: 1255 | G20: 1257 | H20: 1251 | I20: 1242 | J20: 1230 | K20: 1214 | L20: 1186 | M20: 1144 | N20: 1071 | O20: 967 | P20: 819 | Q20: 596
A21: Plasticiser dosage
A22: Concrete | B22: =B16+B17+B18+B19+B20 -> 2370 | C22: =C16+C17+C18+C19+C20 -> 2371 | D22: 2371 | E22: 2370 | F22: 2370 | G22: 2370 | H22: 2371 | I22: 2370 | J22: 2370 | K22: 2371 | L22: 2371 | M22: 2371 | N22: 2371 | O22: 2370 | P22: 2371 | Q22: 2371
A23: ECO2 | B23: =(B16*'c design-col'!$K$6)+(B17*'c design-col'!$K$7)+B18*'c design-col'!$K$8+B19*'c design-col'!$K$9+B20*'c design-col'!$K$10+B21*'c design-col'!$K$11 -> 153.6650576 | C23: =(C16*'c design-col'!$K$6)+(C17*'c design-col'!$K$7)+C18*'c design-col'!$K$8+C19*'c design-col'!$K$9+C20*'c design-col'!$K$10+C21*'c design-col'!$K$11 -> 171.7173927 | D23: =(D16*'c design-col'!$K$6)+(D17*'c design-col'!$K$7)+D18*'c design-col'!$K$8+D19*'c design-col'!$K$9+D20*'c design-col'!$K$10+D21*'c design-col'!$K$11 -> 189.662005 | E23: =(E16*'c design-col'!$K$6)+(E17*'c design-col'!$K$7)+E18*'c design-col'!$K$8+E19*'c design-col'!$K$9+E20*'c design-col'!$K$10+E21*'c design-col'!$K$11 -> 207.5305179 | F23: =(F16*'c design-col'!$K$6)+(F17*'c design-col'!$K$7)+F18*'c design-col'!$K$8+F19*'c design-col'!$K$9+F20*'c design-col'!$K$10+F21*'c design-col'!$K$11 -> 226.2302079 | G23: =(G16*'c design-col'!$K$6)+(G17*'c design-col'!$K$7)+G18*'c design-col'!$K$8+G19*'c design-col'!$K$9+G20*'c design-col'!$K$10+G21*'c design-col'!$K$11 -> 252.895942 | H23: =(H16*'c design-col'!$K$6)+(H17*'c design-col'!$K$7)+H18*'c design-col'!$K$8+H19*'c design-col'!$K$9+H20*'c design-col'!$K$10+H21*'c design-col'!$K$11 -> 286.5816072 | I23: =(I16*'c design-col'!$K$6)+(I17*'c design-col'!$K$7)+I18*'c design-col'!$K$8+I19*'c design-col'!$K$9+I20*'c design-col'!$K$10+I21*'c design-col'!$K$11 -> 309.5534145 | J23: =(J16*'c design-col'!$K$6)+(J17*'c design-col'!$K$7)+J18*'c design-col'!$K$8+J19*'c design-col'!$K$9+J20*'c design-col'!$K$10+J21*'c design-col'!$K$11 -> 334.2837412 | K23: =(K16*'c design-col'!$K$6)+(K17*'c design-col'!$K$7)+K18*'c design-col'!$K$8+K19*'c design-col'!$K$9+K20*'c design-col'!$K$10+K21*'c design-col'!$K$11 -> 361.6436177 | L23: =(L16*'c design-col'!$K$6)+(L17*'c design-col'!$K$7)+L18*'c design-col'!$K$8+L19*'c design-col'!$K$9+L20*'c design-col'!$K$10+L21*'c design-col'!$K$11 -> 403.9601579 | M23: =(M16*'c design-col'!$K$6)+(M17*'c design-col'!$K$7)+M18*'c design-col'!$K$8+M19*'c design-col'!$K$9+M20*'c design-col'!$K$10+M21*'c design-col'!$K$11 -> 459.4267595 | N23: =(N16*'c design-col'!$K$6)+(N17*'c design-col'!$K$7)+N18*'c design-col'!$K$8+N19*'c design-col'!$K$9+N20*'c design-col'!$K$10+N21*'c design-col'!$K$11 -> 544.7869005 | O23: =(O16*'c design-col'!$K$6)+(O17*'c design-col'!$K$7)+O18*'c design-col'!$K$8+O19*'c design-col'!$K$9+O20*'c design-col'!$K$10+O21*'c design-col'!$K$11 -> 655.531658 | P23: =(P16*'c design-col'!$K$6)+(P17*'c design-col'!$K$7)+P18*'c design-col'!$K$8+P19*'c design-col'!$K$9+P20*'c design-col'!$K$10+P21*'c design-col'!$K$11 -> 805.784206 | Q23: =(Q16*'c design-col'!$K$6)+(Q17*'c design-col'!$K$7)+Q18*'c design-col'!$K$8+Q19*'c design-col'!$K$9+Q20*'c design-col'!$K$10+Q21*'c design-col'!$K$11 -> 1022.71237
A24: ECO2/Mpa | B24: =B23/B15 -> 19.2081322 | C24: =C23/C15 -> 14.30978273 | D24: 11.85387531 | E24: 10.37652589 | F24: 9.049208315 | G24: 8.429864735 | H24: 8.18804592 | I24: 7.738835362 | J24: 7.428527582 | K24: 7.232872354 | L24: 7.344730144 | M24: 7.657112659 | N24: 7.782670007 | O24: 8.194145725 | P24: 8.953157844 | Q24: 10.2271237
A29: 30-60 | B29: 8 | C29: 12 | D29: 16 | E29: 20 | F29: 25 | G29: 30 | H29: 35 | I29: 40 | J29: 45 | K29: 50 | L29: 55 | M29: 60 | N29: 70 | O29: 80 | P29: 90 | Q29: 100
A30: Water content | B30: 170 | C30: 170 | D30: 170 | E30: 170 | F30: 170 | G30: 170 | H30: 170 | I30: 170 | J30: 170 | K30: 170 | L30: 170 | M30: 170 | N30: 170 | O30: 170 | P30: 170 | Q30: 170
A31: Cement content | B31: 174 | C31: 196 | D31: 219 | E31: 241 | F31: 265 | G31: 299 | H31: 343 | I31: 372 | J31: 404 | K31: 439 | L31: 493 | M31: 564 | N31: 674 | O31: 817 | P31: 1011 | Q31: 1291
A32: PFA content | B32: 43 | C32: 49 | D32: 55 | E32: 60 | F32: 66 | G32: 75 | H32: 86 | I32: 93 | J32: 101 | K32: 110 | L32: 123 | M32: 141 | N32: 169 | O32: 204 | P32: 253 | Q32: 323
A33: Fine Agg | B33: 861 | C33: 809 | D33: 766 | E33: 729 | F33: 696 | G33: 655 | H33: 612 | I33: 587 | J33: 562 | K33: 538 | L33: 503 | M33: 464 | N33: 407 | O33: 343 | P33: 265 | Q33: 159
A34: Coarse Agg | B34: 1100 | C34: 1124 | D34: 1139 | E34: 1147 | F34: 1151 | G34: 1148 | H34: 1137 | I34: 1126 | J34: 1110 | K34: 1092 | L34: 1059 | M34: 1010 | N34: 928 | O34: 813 | P34: 649 | Q34: 404
A35: Plasticiser dosage
A36: Concrete | B36: =B30+B31+B32+B33+B34 -> 2348 | C36: =C30+C31+C32+C33+C34 -> 2348 | D36: 2349 | E36: 2347 | F36: 2348 | G36: 2347 | H36: 2348 | I36: 2348 | J36: 2347 | K36: 2349 | L36: 2348 | M36: 2349 | N36: 2348 | O36: 2347 | P36: 2348 | Q36: 2347
A37: ECO2 | B37: =(B30*'c design-col'!$K$6)+(B31*'c design-col'!$K$7)+B32*'c design-col'!$K$8+B33*'c design-col'!$K$9+B34*'c design-col'!$K$10+B35*'c design-col'!$K$11 -> 171.2546349 | C37: =(C30*'c design-col'!$K$6)+(C31*'c design-col'!$K$7)+C32*'c design-col'!$K$8+C33*'c design-col'!$K$9+C34*'c design-col'!$K$10+C35*'c design-col'!$K$11 -> 191.0503254 | D37: =(D30*'c design-col'!$K$6)+(D31*'c design-col'!$K$7)+D32*'c design-col'!$K$8+D33*'c design-col'!$K$9+D34*'c design-col'!$K$10+D35*'c design-col'!$K$11 -> 211.6350286 | E37: =(E30*'c design-col'!$K$6)+(E31*'c design-col'!$K$7)+E32*'c design-col'!$K$8+E33*'c design-col'!$K$9+E34*'c design-col'!$K$10+E35*'c design-col'!$K$11 -> 231.2327495 | F37: =(F30*'c design-col'!$K$6)+(F31*'c design-col'!$K$7)+F32*'c design-col'!$K$8+F33*'c design-col'!$K$9+F34*'c design-col'!$K$10+F35*'c design-col'!$K$11 -> 252.5830716 | G37: =(G30*'c design-col'!$K$6)+(G31*'c design-col'!$K$7)+G32*'c design-col'!$K$8+G33*'c design-col'!$K$9+G34*'c design-col'!$K$10+G35*'c design-col'!$K$11 -> 282.7447629 | H37: =(H30*'c design-col'!$K$6)+(H31*'c design-col'!$K$7)+H32*'c design-col'!$K$8+H33*'c design-col'!$K$9+H34*'c design-col'!$K$10+H35*'c design-col'!$K$11 -> 321.6918396 | I37: =(I30*'c design-col'!$K$6)+(I31*'c design-col'!$K$7)+I32*'c design-col'!$K$8+I33*'c design-col'!$K$9+I34*'c design-col'!$K$10+I35*'c design-col'!$K$11 -> 347.314279 | J37: =(J30*'c design-col'!$K$6)+(J31*'c design-col'!$K$7)+J32*'c design-col'!$K$8+J33*'c design-col'!$K$9+J34*'c design-col'!$K$10+J35*'c design-col'!$K$11 -> 375.551104 | K37: =(K30*'c design-col'!$K$6)+(K31*'c design-col'!$K$7)+K32*'c design-col'!$K$8+K33*'c design-col'!$K$9+K34*'c design-col'!$K$10+K35*'c design-col'!$K$11 -> 406.443184 | L37: =(L30*'c design-col'!$K$6)+(L31*'c design-col'!$K$7)+L32*'c design-col'!$K$8+L33*'c design-col'!$K$9+L34*'c design-col'!$K$10+L35*'c design-col'!$K$11 -> 454.0188243 | M37: =(M30*'c design-col'!$K$6)+(M31*'c design-col'!$K$7)+M32*'c design-col'!$K$8+M33*'c design-col'!$K$9+M34*'c design-col'!$K$10+M35*'c design-col'!$K$11 -> 516.5405866 | N37: =(N30*'c design-col'!$K$6)+(N31*'c design-col'!$K$7)+N32*'c design-col'!$K$8+N33*'c design-col'!$K$9+N34*'c design-col'!$K$10+N35*'c design-col'!$K$11 -> 613.3380404 | O37: =(O30*'c design-col'!$K$6)+(O31*'c design-col'!$K$7)+O32*'c design-col'!$K$8+O33*'c design-col'!$K$9+O34*'c design-col'!$K$10+O35*'c design-col'!$K$11 -> 739.0523142 | P37: =(P30*'c design-col'!$K$6)+(P31*'c design-col'!$K$7)+P32*'c design-col'!$K$8+P33*'c design-col'!$K$9+P34*'c design-col'!$K$10+P35*'c design-col'!$K$11 -> 909.5604785 | Q37: =(Q30*'c design-col'!$K$6)+(Q31*'c design-col'!$K$7)+Q32*'c design-col'!$K$8+Q33*'c design-col'!$K$9+Q34*'c design-col'!$K$10+Q35*'c design-col'!$K$11 -> 1155.543792
A38: ECO2/Mpa | B38: =B37/B29 -> 21.40682936 | C38: =C37/C29 -> 15.92086045 | D38: 13.22718929 | E38: 11.56163747 | F38: 10.10332286 | G38: 9.424825431 | H38: 9.191195418 | I38: 8.682856974 | J38: 8.345580089 | K38: 8.128863681 | L38: 8.254887715 | M38: 8.609009777 | N38: 8.761972006 | O38: 9.238153927 | P38: 10.10622754 | Q38: 11.55543792
A42: 30-60 | B42: 8 | C42: 12 | D42: 16 | E42: 20 | F42: 25 | G42: 30 | H42: 35 | I42: 40 | J42: 45 | K42: 50 | L42: 55 | M42: 60 | N42: 70 | O42: 80 | P42: 90 | Q42: 100
A43: Water content | B43: 180 | C43: 180 | D43: 180 | E43: 180 | F43: 180 | G43: 180 | H43: 180 | I43: 180 | J43: 180 | K43: 180 | L43: 180 | M43: 180 | N43: 180 | O43: 180 | P43: 180 | Q43: 180
A44: Cement content | B44: 184 | C44: 208 | D44: 231 | E44: 255 | F44: 280 | G44: 317 | H44: 363 | I44: 394 | J44: 428 | K44: 464 | L44: 521 | M44: 597 | N44: 714 | O44: 865 | P44: 1070 | Q44: 1367
A45: PFA content | B45: 46 | C45: 52 | D45: 58 | E45: 64 | F45: 70 | G45: 79 | H45: 91 | I45: 98 | J45: 107 | K45: 116 | L45: 130 | M45: 149 | N45: 178 | O45: 216 | P45: 268 | Q45: 342
A46: Fine Agg | B46: 949 | C46: 893 | D46: 847 | E46: 807 | F46: 771 | G46: 726 | H46: 678 | I46: 650 | J46: 622 | K46: 594 | L46: 555 | M46: 508 | N46: 443 | O46: 368 | P46: 273 | Q46: 146
A47: Coarse Agg | B47: 977 | C47: 1004 | D47: 1020 | E47: 1030 | F47: 1035 | G47: 1034 | H47: 1025 | I47: 1014 | J47: 1000 | K47: 982 | L47: 950 | M47: 902 | N47: 821 | O47: 707 | P47: 545 | Q47: 301
A48: Plasticiser dosage
A49: Concrete | B49: =B43+B44+B45+B46+B47 -> 2336 | C49: =C43+C44+C45+C46+C47 -> 2337 | D49: 2336 | E49: 2336 | F49: 2336 | G49: 2336 | H49: 2337 | I49: 2336 | J49: 2337 | K49: 2336 | L49: 2336 | M49: 2336 | N49: 2336 | O49: 2336 | P49: 2336 | Q49: 2336
A50: ECO2 | B50: =(B43*'c design-col'!$K$6)+(B44*'c design-col'!$K$7)+B45*'c design-col'!$K$8+B46*'c design-col'!$K$9+B47*'c design-col'!$K$10+B48*'c design-col'!$K$11 -> 178.8070027 | C50: =(C43*'c design-col'!$K$6)+(C44*'c design-col'!$K$7)+C45*'c design-col'!$K$8+C46*'c design-col'!$K$9+C47*'c design-col'!$K$10+C48*'c design-col'!$K$11 -> 200.399771 | D50: =(D43*'c design-col'!$K$6)+(D44*'c design-col'!$K$7)+D45*'c design-col'!$K$8+D46*'c design-col'!$K$9+D47*'c design-col'!$K$10+D48*'c design-col'!$K$11 -> 220.9903925 | E50: =(E43*'c design-col'!$K$6)+(E44*'c design-col'!$K$7)+E45*'c design-col'!$K$8+E46*'c design-col'!$K$9+E47*'c design-col'!$K$10+E48*'c design-col'!$K$11 -> 242.40165 | F50: =(F43*'c design-col'!$K$6)+(F44*'c design-col'!$K$7)+F45*'c design-col'!$K$8+F46*'c design-col'!$K$9+F47*'c design-col'!$K$10+F48*'c design-col'!$K$11 -> 264.6417732 | G50: =(G43*'c design-col'!$K$6)+(G44*'c design-col'!$K$7)+G45*'c design-col'!$K$8+G46*'c design-col'!$K$9+G47*'c design-col'!$K$10+G48*'c design-col'!$K$11 -> 297.4715726 | H50: =(H43*'c design-col'!$K$6)+(H44*'c design-col'!$K$7)+H45*'c design-col'!$K$8+H46*'c design-col'!$K$9+H47*'c design-col'!$K$10+H48*'c design-col'!$K$11 -> 338.2275631 | I50: =(I43*'c design-col'!$K$6)+(I44*'c design-col'!$K$7)+I45*'c design-col'!$K$8+I46*'c design-col'!$K$9+I47*'c design-col'!$K$10+I48*'c design-col'!$K$11 -> 365.6108338 | J50: =(J43*'c design-col'!$K$6)+(J44*'c design-col'!$K$7)+J45*'c design-col'!$K$8+J46*'c design-col'!$K$9+J47*'c design-col'!$K$10+J48*'c design-col'!$K$11 -> 395.6611955 | K50: =(K43*'c design-col'!$K$6)+(K44*'c design-col'!$K$7)+K45*'c design-col'!$K$8+K46*'c design-col'!$K$9+K47*'c design-col'!$K$10+K48*'c design-col'!$K$11 -> 427.4279127 | L50: =(L43*'c design-col'!$K$6)+(L44*'c design-col'!$K$7)+L45*'c design-col'!$K$8+L46*'c design-col'!$K$9+L47*'c design-col'!$K$10+L48*'c design-col'!$K$11 -> 477.6858084 | M50: =(M43*'c design-col'!$K$6)+(M44*'c design-col'!$K$7)+M45*'c design-col'!$K$8+M46*'c design-col'!$K$9+M47*'c design-col'!$K$10+M48*'c design-col'!$K$11 -> 544.6483462 | N50: =(N43*'c design-col'!$K$6)+(N44*'c design-col'!$K$7)+N45*'c design-col'!$K$8+N46*'c design-col'!$K$9+N47*'c design-col'!$K$10+N48*'c design-col'!$K$11 -> 647.6543413 | O50: =(O43*'c design-col'!$K$6)+(O44*'c design-col'!$K$7)+O45*'c design-col'!$K$8+O46*'c design-col'!$K$9+O47*'c design-col'!$K$10+O48*'c design-col'!$K$11 -> 780.5081049 | P50: =(P43*'c design-col'!$K$6)+(P44*'c design-col'!$K$7)+P45*'c design-col'!$K$8+P46*'c design-col'!$K$9+P47*'c design-col'!$K$10+P48*'c design-col'!$K$11 -> 960.8063917 | Q50: =(Q43*'c design-col'!$K$6)+(Q44*'c design-col'!$K$7)+Q45*'c design-col'!$K$8+Q46*'c design-col'!$K$9+Q47*'c design-col'!$K$10+Q48*'c design-col'!$K$11 -> 1221.888026
A51: ECO2/Mpa | B51: =B50/B42 -> 22.35087534 | C51: =C50/C42 -> 16.69998092 | D51: 13.81189953 | E51: 12.1200825 | F51: 10.58567093 | G51: 9.915719088 | H51: 9.663644659 | I51: 9.140270846 | J51: 8.792471012 | K51: 8.548558253 | L51: 8.685196517 | M51: 9.077472437 | N51: 9.252204876 | O51: 9.756351311 | P51: 10.67562657 | Q51: 12.21888026

Sheet 52.5 (20%PFA + SP)
A2: 0-10 | B2: 8 | C2: 12 | D2: 16 | E2: 20 | F2: 25 | G2: 30 | H2: 35 | I2: 40 | J2: 45 | K2: 50 | L2: 55 | M2: 60 | N2: 70 | O2: 80 | P2: 90 | Q2: 100
A3: Water content | B3: 112.5 | C3: 112.5 | D3: 112.5 | E3: 112.5 | F3: 112.5 | G3: 112.5 | H3: 112.5 | I3: 112.5 | J3: 112.5 | K3: 112.5 | L3: 112.5 | M3: 112.5 | N3: 112.5 | O3: 112.5 | P3: 112.5 | Q3: 112.5
A4: Cement content | B4: 115 | C4: 130 | D4: 145 | E4: 160 | F4: 175 | G4: 198 | H4: 227 | I4: 246 | J4: 267 | K4: 290 | L4: 326 | M4: 373 | N4: 446 | O4: 541 | P4: 669 | Q4: 854
A5: PFA content | B5: 29 | C5: 32 | D5: 36 | E5: 40 | F5: 44 | G5: 50 | H5: 57 | I5: 62 | J5: 67 | K5: 73 | L5: 81 | M5: 93 | N5: 112 | O5: 135 | P5: 167 | Q5: 214
A6: Fine Agg | B6: 840 | C6: 789 | D6: 748 | E6: 713 | F6: 683 | G6: 646 | H6: 608 | I6: 587 | J6: 566 | K6: 546 | L6: 519 | M6: 488 | N6: 448 | O6: 405 | P6: 354 | Q6: 290
A7: Coarse Agg | B7: 1318 | C7: 1350 | D7: 1372 | E7: 1388 | F7: 1399 | G7: 1408 | H7: 1410 | I7: 1407 | J7: 1401 | K7: 1392 | L7: 1375 | M7: 1347 | N7: 1295 | O7: 1221 | P7: 1111 | Q7: 943
A8: Plasticiser dosage | B8: 0.6 | C8: 0.6 | D8: 0.7 | E8: 0.8 | F8: 0.9 | G8: 1 | H8: 1.1 | I8: 1.2 | J8: 1.3 | K8: 1.5 | L8: 1.6 | M8: 1.9 | N8: 2.2 | O8: 2.7 | P8: 3.3 | Q8: 4.3
A9: Concrete | B9: =B3+B4+B5+B6+B7+B8 -> 2415.1 | C9: =C3+C4+C5+C6+C7+C8 -> 2414.1 | D9: 2414.2 | E9: 2414.3 | F9: 2414.4 | G9: 2415.5 | H9: 2415.6 | I9: 2415.7 | J9: 2414.8 | K9: 2415 | L9: 2415.1 | M9: 2415.4 | N9: 2415.7 | O9: 2417.2 | P9: 2416.8 | Q9: 2417.8
A10: ECO2 | B10: =(B3*'c design-col'!$K$6)+(B4*'c design-col'!$K$7)+B5*'c design-col'!$K$8+B6*'c design-col'!$K$9+B7*'c design-col'!$K$10+B8*'c design-col'!$K$11 -> 121.4233715 | C10: =(C3*'c design-col'!$K$6)+(C4*'c design-col'!$K$7)+C5*'c design-col'!$K$8+C6*'c design-col'!$K$9+C7*'c design-col'!$K$10+C8*'c design-col'!$K$11 -> 135.0560139 | D10: =(D3*'c design-col'!$K$6)+(D4*'c design-col'!$K$7)+D5*'c design-col'!$K$8+D6*'c design-col'!$K$9+D7*'c design-col'!$K$10+D8*'c design-col'!$K$11 -> 148.6102455 | E10: =(E3*'c design-col'!$K$6)+(E4*'c design-col'!$K$7)+E5*'c design-col'!$K$8+E6*'c design-col'!$K$9+E7*'c design-col'!$K$10+E8*'c design-col'!$K$11 -> 162.1012302 | F10: =(F3*'c design-col'!$K$6)+(F4*'c design-col'!$K$7)+F5*'c design-col'!$K$8+F6*'c design-col'!$K$9+F7*'c design-col'!$K$10+F8*'c design-col'!$K$11 -> 175.5395092 | G10: =(G3*'c design-col'!$K$6)+(G4*'c design-col'!$K$7)+G5*'c design-col'!$K$8+G6*'c design-col'!$K$9+G7*'c design-col'!$K$10+G8*'c design-col'!$K$11 -> 196.0609661 | H10: =(H3*'c design-col'!$K$6)+(H4*'c design-col'!$K$7)+H5*'c design-col'!$K$8+H6*'c design-col'!$K$9+H7*'c design-col'!$K$10+H8*'c design-col'!$K$11 -> 221.8204408 | I10: =(I3*'c design-col'!$K$6)+(I4*'c design-col'!$K$7)+I5*'c design-col'!$K$8+I6*'c design-col'!$K$9+I7*'c design-col'!$K$10+I8*'c design-col'!$K$11 -> 238.6621181 | J10: =(J3*'c design-col'!$K$6)+(J4*'c design-col'!$K$7)+J5*'c design-col'!$K$8+J6*'c design-col'!$K$9+J7*'c design-col'!$K$10+J8*'c design-col'!$K$11 -> 257.2330035 | K10: =(K3*'c design-col'!$K$6)+(K4*'c design-col'!$K$7)+K5*'c design-col'!$K$8+K6*'c design-col'!$K$9+K7*'c design-col'!$K$10+K8*'c design-col'!$K$11 -> 277.5624089 | L10: =(L3*'c design-col'!$K$6)+(L4*'c design-col'!$K$7)+L5*'c design-col'!$K$8+L6*'c design-col'!$K$9+L7*'c design-col'!$K$10+L8*'c design-col'!$K$11 -> 309.3172906 | M10: =(M3*'c design-col'!$K$6)+(M4*'c design-col'!$K$7)+M5*'c design-col'!$K$8+M6*'c design-col'!$K$9+M7*'c design-col'!$K$10+M8*'c design-col'!$K$11 -> 350.7522609 | N10: =(N3*'c design-col'!$K$6)+(N4*'c design-col'!$K$7)+N5*'c design-col'!$K$8+N6*'c design-col'!$K$9+N7*'c design-col'!$K$10+N8*'c design-col'!$K$11 -> 415.0279214 | O10: =(O3*'c design-col'!$K$6)+(O4*'c design-col'!$K$7)+O5*'c design-col'!$K$8+O6*'c design-col'!$K$9+O7*'c design-col'!$K$10+O8*'c design-col'!$K$11 -> 498.5673153 | P10: =(P3*'c design-col'!$K$6)+(P4*'c design-col'!$K$7)+P5*'c design-col'!$K$8+P6*'c design-col'!$K$9+P7*'c design-col'!$K$10+P8*'c design-col'!$K$11 -> 611.0366605 | Q10: =(Q3*'c design-col'!$K$6)+(Q4*'c design-col'!$K$7)+Q5*'c design-col'!$K$8+Q6*'c design-col'!$K$9+Q7*'c design-col'!$K$10+Q8*'c design-col'!$K$11 -> 773.5168339
A11: ECO2/Mpa | B11: =B10/B2 -> 15.17792143 | C11: =C10/C2 -> 11.25466783 | D11: 9.288140343 | E11: 8.10506151 | F11: 7.021580369 | G11: 6.535365536 | H11: 6.337726879 | I11: 5.966552954 | J11: 5.716288968 | K11: 5.551248179 | L11: 5.623950739 | M11: 5.845871016 | N11: 5.928970306 | O11: 6.232091441 | P11: 6.789296228 | Q11: 7.735168339
A16: 1930-10-01 | B16: 8 | C16: 12 | D16: 16 | E16: 20 | F16: 25 | G16: 30 | H16: 35 | I16: 40 | J16: 45 | K16: 50 | L16: 55 | M16: 60 | N16: 70 | O16: 80 | P16: 90 | Q16: 100
A17: Water content | B17: 135 | C17: 135 | D17: 135 | E17: 135 | F17: 135 | G17: 135 | H17: 135 | I17: 135 | J17: 135 | K17: 135 | L17: 135 | M17: 135 | N17: 135 | O17: 135 | P17: 135 | Q17: 135
A18: Cement content | B18: 138 | C18: 156 | D18: 174 | E18: 192 | F18: 210 | G18: 238 | H18: 272 | I18: 295 | J18: 321 | K18: 348 | L18: 391 | M18: 448 | N18: 535 | O18: 649 | P18: 803 | Q18: 1025
A19: PFA content | B19: 34 | C19: 39 | D19: 43 | E19: 48 | F19: 53 | G19: 59 | H19: 68 | I19: 74 | J19: 80 | K19: 87 | L19: 98 | M19: 112 | N19: 134 | O19: 162 | P19: 201 | Q19: 256
A20: Fine Agg | B20: 859 | C20: 806 | D20: 763 | E20: 727 | F20: 695 | G20: 655 | H20: 615 | I20: 591 | J20: 569 | K20: 547 | L20: 516 | M20: 482 | N20: 436 | O20: 385 | P20: 324 | Q20: 245
A21: Coarse Agg | B21: 1222 | C21: 1252 | D21: 1273 | E21: 1287 | F21: 1295 | G21: 1301 | H21: 1298 | I21: 1292 | J21: 1283 | K21: 1271 | L21: 1248 | M21: 1211 | N21: 1148 | O21: 1057 | P21: 925 | Q21: 726
A22: Plasticiser dosage | B22: 0.7 | C22: 0.8 | D22: 0.9 | E22: 1 | F22: 1.1 | G22: 1.2 | H22: 1.4 | I22: 1.5 | J22: 1.6 | K22: 1.7 | L22: 2 | M22: 2.2 | N22: 2.7 | O22: 3.2 | P22: 4 | Q22: 5.1
A23: Concrete | B23: =SUM(B17:B22) -> 2388.7 | C23: =SUM(C17:C22) -> 2388.8 | D23: 2388.9 | E23: 2390 | F23: 2389.1 | G23: 2389.2 | H23: 2389.4 | I23: 2388.5 | J23: 2389.6 | K23: 2389.7 | L23: 2390 | M23: 2390.2 | N23: 2390.7 | O23: 2391.2 | P23: 2392 | Q23: 2392.1
A24: ECO2 | B24: =(B17*'c design-col'!$K$6)+(B18*'c design-col'!$K$7)+B19*'c design-col'!$K$8+B20*'c design-col'!$K$9+B21*'c design-col'!$K$10+B22*'c design-col'!$K$11 -> 140.7202474 | C24: =(C17*'c design-col'!$K$6)+(C18*'c design-col'!$K$7)+C19*'c design-col'!$K$8+C20*'c design-col'!$K$9+C21*'c design-col'!$K$10+C22*'c design-col'!$K$11 -> 157.028211 | D24: =(D17*'c design-col'!$K$6)+(D18*'c design-col'!$K$7)+D19*'c design-col'!$K$8+D20*'c design-col'!$K$9+D21*'c design-col'!$K$10+D22*'c design-col'!$K$11 -> 173.2166158 | E24: =(E17*'c design-col'!$K$6)+(E18*'c design-col'!$K$7)+E19*'c design-col'!$K$8+E20*'c design-col'!$K$9+E21*'c design-col'!$K$10+E22*'c design-col'!$K$11 -> 189.3582326 | F24: =(F17*'c design-col'!$K$6)+(F18*'c design-col'!$K$7)+F19*'c design-col'!$K$8+F20*'c design-col'!$K$9+F21*'c design-col'!$K$10+F22*'c design-col'!$K$11 -> 205.4319796 | G24: =(G17*'c design-col'!$K$6)+(G18*'c design-col'!$K$7)+G19*'c design-col'!$K$8+G20*'c design-col'!$K$9+G21*'c design-col'!$K$10+G22*'c design-col'!$K$11 -> 230.3273588 | H24: =(H17*'c design-col'!$K$6)+(H18*'c design-col'!$K$7)+H19*'c design-col'!$K$8+H20*'c design-col'!$K$9+H21*'c design-col'!$K$10+H22*'c design-col'!$K$11 -> 260.4913627 | I24: =(I17*'c design-col'!$K$6)+(I18*'c design-col'!$K$7)+I19*'c design-col'!$K$8+I20*'c design-col'!$K$9+I21*'c design-col'!$K$10+I22*'c design-col'!$K$11 -> 280.8500795 | J24: =(J17*'c design-col'!$K$6)+(J18*'c design-col'!$K$7)+J19*'c design-col'!$K$8+J20*'c design-col'!$K$9+J21*'c design-col'!$K$10+J22*'c design-col'!$K$11 -> 303.8265102 | K24: =(K17*'c design-col'!$K$6)+(K18*'c design-col'!$K$7)+K19*'c design-col'!$K$8+K20*'c design-col'!$K$9+K21*'c design-col'!$K$10+K22*'c design-col'!$K$11 -> 327.675266 | L24: =(L17*'c design-col'!$K$6)+(L18*'c design-col'!$K$7)+L19*'c design-col'!$K$8+L20*'c design-col'!$K$9+L21*'c design-col'!$K$10+L22*'c design-col'!$K$11 -> 365.6119677 | M24: =(M17*'c design-col'!$K$6)+(M18*'c design-col'!$K$7)+M19*'c design-col'!$K$8+M20*'c design-col'!$K$9+M21*'c design-col'!$K$10+M22*'c design-col'!$K$11 -> 415.8171588 | N24: =(N17*'c design-col'!$K$6)+(N18*'c design-col'!$K$7)+N19*'c design-col'!$K$8+N20*'c design-col'!$K$9+N21*'c design-col'!$K$10+N22*'c design-col'!$K$11 -> 492.3929337 | O24: =(O17*'c design-col'!$K$6)+(O18*'c design-col'!$K$7)+O19*'c design-col'!$K$8+O20*'c design-col'!$K$9+O21*'c design-col'!$K$10+O22*'c design-col'!$K$11 -> 592.624117 | P24: =(P17*'c design-col'!$K$6)+(P18*'c design-col'!$K$7)+P19*'c design-col'!$K$8+P20*'c design-col'!$K$9+P21*'c design-col'!$K$10+P22*'c design-col'!$K$11 -> 727.9575471 | Q24: =(Q17*'c design-col'!$K$6)+(Q18*'c design-col'!$K$7)+Q19*'c design-col'!$K$8+Q20*'c design-col'!$K$9+Q21*'c design-col'!$K$10+Q22*'c design-col'!$K$11 -> 922.9242862
A25: ECO2/Mpa | B25: =B24/B16 -> 17.59003093 | C25: =C24/C16 -> 13.08568425 | D25: 10.82603849 | E25: 9.467911628 | F25: 8.217279184 | G25: 7.677578628 | H25: 7.442610362 | I25: 7.021251988 | J25: 6.751700227 | K25: 6.55350532 | L25: 6.647490321 | M25: 6.93028598 | N25: 7.034184767 | O25: 7.407801463 | P25: 8.08841719 | Q25: 9.229242862
A30: 30-60 | B30: 8 | C30: 12 | D30: 16 | E30: 20 | F30: 25 | G30: 30 | H30: 35 | I30: 40 | J30: 45 | K30: 50 | L30: 55 | M30: 60 | N30: 70 | O30: 80 | P30: 90 | Q30: 100
A31: Water content | B31: 153 | C31: 153 | D31: 153 | E31: 153 | F31: 153 | G31: 153 | H31: 153 | I31: 153 | J31: 153 | K31: 153 | L31: 153 | M31: 153 | N31: 153 | O31: 153 | P31: 153 | Q31: 153
A32: Cement content | B32: 156 | C32: 177 | D32: 197 | E32: 217 | F32: 238 | G32: 269 | H32: 308 | I32: 335 | J32: 364 | K32: 395 | L32: 443 | M32: 508 | N32: 607 | O32: 735 | P32: 910 | Q32: 1162
A33: PFA content | B33: 39 | C33: 44 | D33: 49 | E33: 54 | F33: 60 | G33: 67 | H33: 77 | I33: 84 | J33: 91 | K33: 99 | L33: 111 | M33: 127 | N33: 152 | O33: 184 | P33: 227 | Q33: 291
A34: Fine Agg | B34: 886 | C34: 834 | D34: 791 | E34: 755 | F34: 723 | G34: 682 | H34: 640 | I34: 615 | J34: 592 | K34: 568 | L34: 535 | M34: 496 | N34: 444 | O34: 384 | P34: 312 | Q34: 215
A35: Coarse Agg | B35: 1132 | C35: 1159 | D35: 1177 | E35: 1188 | F35: 1194 | G35: 1195 | H35: 1189 | I35: 1180 | J35: 1168 | K35: 1153 | L35: 1125 | M35: 1083 | N35: 1012 | O35: 911 | P35: 765 | Q35: 546
A36: Plasticiser dosage | B36: 0.88 | C36: 0.9 | D36: 1 | E36: 1.1 | F36: 1.2 | G36: 1.3 | H36: 1.5 | I36: 1.7 | J36: 1.8 | K36: 2 | L36: 2.2 | M36: 2.5 | N36: 3 | O36: 3.7 | P36: 4.5 | Q36: 5.8
A37: Concrete | B37: =B31+B32+B33+B34+B35+B36 -> 2366.88 | C37: =C31+C32+C33+C34+C35+C36 -> 2367.9 | D37: 2368 | E37: 2368.1 | F37: 2369.2 | G37: 2367.3 | H37: 2368.5 | I37: 2368.7 | J37: 2369.8 | K37: 2370 | L37: 2369.2 | M37: 2369.5 | N37: 2371 | O37: 2370.7 | P37: 2371.5 | Q37: 2372.8
A38: ECO2 | B38: =(B31*'c design-col'!$K$6)+(B32*'c design-col'!$K$7)+B33*'c design-col'!$K$8+B34*'c design-col'!$K$9+B35*'c design-col'!$K$10+B36*'c design-col'!$K$11 -> 155.6888164 | C38: =(C31*'c design-col'!$K$6)+(C32*'c design-col'!$K$7)+C33*'c design-col'!$K$8+C34*'c design-col'!$K$9+C35*'c design-col'!$K$10+C36*'c design-col'!$K$11 -> 174.612182 | D38: =(D31*'c design-col'!$K$6)+(D32*'c design-col'!$K$7)+D33*'c design-col'!$K$8+D34*'c design-col'!$K$9+D35*'c design-col'!$K$10+D36*'c design-col'!$K$11 -> 192.5567948 | E38: =(E31*'c design-col'!$K$6)+(E32*'c design-col'!$K$7)+E33*'c design-col'!$K$8+E34*'c design-col'!$K$9+E35*'c design-col'!$K$10+E36*'c design-col'!$K$11 -> 210.4276196 | F38: =(F31*'c design-col'!$K$6)+(F32*'c design-col'!$K$7)+F33*'c design-col'!$K$8+F34*'c design-col'!$K$9+F35*'c design-col'!$K$10+F36*'c design-col'!$K$11 -> 229.1543101 | G38: =(G31*'c design-col'!$K$6)+(G32*'c design-col'!$K$7)+G33*'c design-col'!$K$8+G34*'c design-col'!$K$9+G35*'c design-col'!$K$10+G36*'c design-col'!$K$11 -> 256.6617637 | H38: =(H31*'c design-col'!$K$6)+(H32*'c design-col'!$K$7)+H33*'c design-col'!$K$8+H34*'c design-col'!$K$9+H35*'c design-col'!$K$10+H36*'c design-col'!$K$11 -> 291.2290013 | I38: =(I31*'c design-col'!$K$6)+(I32*'c design-col'!$K$7)+I33*'c design-col'!$K$8+I34*'c design-col'!$K$9+I35*'c design-col'!$K$10+I36*'c design-col'!$K$11 -> 315.1093811 | J38: =(J31*'c design-col'!$K$6)+(J32*'c design-col'!$K$7)+J33*'c design-col'!$K$8+J34*'c design-col'!$K$9+J35*'c design-col'!$K$10+J36*'c design-col'!$K$11 -> 340.7235912 | K38: =(K31*'c design-col'!$K$6)+(K32*'c design-col'!$K$7)+K33*'c design-col'!$K$8+K34*'c design-col'!$K$9+K35*'c design-col'!$K$10+K36*'c design-col'!$K$11 -> 368.0916985 | L38: =(L31*'c design-col'!$K$6)+(L32*'c design-col'!$K$7)+L33*'c design-col'!$K$8+L34*'c design-col'!$K$9+L35*'c design-col'!$K$10+L36*'c design-col'!$K$11 -> 410.4059283 | M38: =(M31*'c design-col'!$K$6)+(M32*'c design-col'!$K$7)+M33*'c design-col'!$K$8+M34*'c design-col'!$K$9+M35*'c design-col'!$K$10+M36*'c design-col'!$K$11 -> 467.6603629 | N38: =(N31*'c design-col'!$K$6)+(N32*'c design-col'!$K$7)+N33*'c design-col'!$K$8+N34*'c design-col'!$K$9+N35*'c design-col'!$K$10+N36*'c design-col'!$K$11 -> 554.8070431 | O38: =(O31*'c design-col'!$K$6)+(O32*'c design-col'!$K$7)+O33*'c design-col'!$K$8+O34*'c design-col'!$K$9+O35*'c design-col'!$K$10+O36*'c design-col'!$K$11 -> 667.3712591 | P38: =(P31*'c design-col'!$K$6)+(P32*'c design-col'!$K$7)+P33*'c design-col'!$K$8+P34*'c design-col'!$K$9+P35*'c design-col'!$K$10+P36*'c design-col'!$K$11 -> 821.1688679 | Q38: =(Q31*'c design-col'!$K$6)+(Q32*'c design-col'!$K$7)+Q33*'c design-col'!$K$8+Q34*'c design-col'!$K$9+Q35*'c design-col'!$K$10+Q36*'c design-col'!$K$11 -> 1042.596437
A39: ECO2/Mpa | B39: =B38/B30 -> 19.46110206 | C39: =C38/C30 -> 14.55101517 | D39: 12.03479967 | E39: 10.52138098 | F39: 9.166172406 | G39: 8.555392123 | H39: 8.32082861 | I39: 7.877734527 | J39: 7.571635361 | K39: 7.361833969 | L39: 7.461925968 | M39: 7.794339381 | N39: 7.925814902 | O39: 8.342140739 | P39: 9.124098532 | Q39: 10.42596437
A44: 60-180 | B44: 8 | C44: 12 | D44: 16 | E44: 20 | F44: 25 | G44: 30 | H44: 35 | I44: 40 | J44: 45 | K44: 50 | L44: 55 | M44: 60 | N44: 70 | O44: 80 | P44: 90 | Q44: 100
A45: Water content | B45: 162 | C45: 162 | D45: 162 | E45: 162 | F45: 162 | G45: 162 | H45: 162 | I45: 162 | J45: 162 | K45: 162 | L45: 162 | M45: 162 | N45: 162 | O45: 162 | P45: 162 | Q45: 162
A46: Cement content | B46: 166 | C46: 187 | D46: 208 | E46: 230 | F46: 252 | G46: 285 | H46: 326 | I46: 355 | J46: 385 | K46: 418 | L46: 469 | M46: 538 | N46: 643 | O46: 779 | P46: 963 | Q46: 1230
A47: PFA content | B47: 41 | C47: 47 | D47: 52 | E47: 57 | F47: 63 | G47: 71 | H47: 82 | I47: 89 | J47: 96 | K47: 104 | L47: 117 | M47: 134 | N47: 161 | O47: 195 | P47: 241 | Q47: 308
A48: Fine Agg | B48: 979 | C48: 923 | D48: 877 | E48: 838 | F48: 802 | G48: 758 | H48: 712 | I48: 684 | J48: 657 | K48: 631 | L48: 593 | M48: 548 | N48: 488 | O48: 418 | P48: 331 | Q48: 215
A49: Coarse Agg | B49: 1009 | C49: 1038 | D49: 1057 | E49: 1070 | F49: 1077 | G49: 1080 | H49: 1075 | I49: 1067 | J49: 1056 | K49: 1042 | L49: 1015 | M49: 974 | N49: 902 | O49: 804 | P49: 660 | Q49: 442
A50: Plasticiser dosage | B50: 0.8 | C50: 0.9 | D50: 1 | E50: 1.1 | F50: 1.3 | G50: 1.4 | H50: 1.6 | I50: 1.8 | J50: 1.9 | K50: 2.1 | L50: 2.3 | M50: 2.7 | N50: 3.2 | O50: 3.9 | P50: 4.8 | Q50: 6.2
A51: Concrete | B51: =B45+B46+B47+B48+B49+B50 -> 2357.8 | C51: =C45+C46+C47+C48+C49+C50 -> 2357.9 | D51: 2357 | E51: 2358.1 | F51: 2357.3 | G51: 2357.4 | H51: 2358.6 | I51: 2358.8 | J51: 2357.9 | K51: 2359.1 | L51: 2358.3 | M51: 2358.7 | N51: 2359.2 | O51: 2361.9 | P51: 2361.8 | Q51: 2363.2
A52: ECO2 | B52: =(B45*'c design-col'!$K$6)+(B46*'c design-col'!$K$7)+B47*'c design-col'!$K$8+B48*'c design-col'!$K$9+B49*'c design-col'!$K$10+B50*'c design-col'!$K$11 -> 163.2247411 | C52: =(C45*'c design-col'!$K$6)+(C46*'c design-col'!$K$7)+C47*'c design-col'!$K$8+C48*'c design-col'!$K$9+C49*'c design-col'!$K$10+C50*'c design-col'!$K$11 -> 182.1915665 | D52: =(D45*'c design-col'!$K$6)+(D46*'c design-col'!$K$7)+D47*'c design-col'!$K$8+D48*'c design-col'!$K$9+D49*'c design-col'!$K$10+D50*'c design-col'!$K$11 -> 201.0259804 | E52: =(E45*'c design-col'!$K$6)+(E46*'c design-col'!$K$7)+E47*'c design-col'!$K$8+E48*'c design-col'!$K$9+E49*'c design-col'!$K$10+E50*'c design-col'!$K$11 -> 220.6833418 | F52: =(F45*'c design-col'!$K$6)+(F46*'c design-col'!$K$7)+F47*'c design-col'!$K$8+F48*'c design-col'!$K$9+F49*'c design-col'!$K$10+F50*'c design-col'!$K$11 -> 240.2975226 | G52: =(G45*'c design-col'!$K$6)+(G46*'c design-col'!$K$7)+G47*'c design-col'!$K$8+G48*'c design-col'!$K$9+G49*'c design-col'!$K$10+G50*'c design-col'!$K$11 -> 269.6185128 | H52: =(H45*'c design-col'!$K$6)+(H46*'c design-col'!$K$7)+H47*'c design-col'!$K$8+H48*'c design-col'!$K$9+H49*'c design-col'!$K$10+H50*'c design-col'!$K$11 -> 305.984123 | I52: =(I45*'c design-col'!$K$6)+(I46*'c design-col'!$K$7)+I47*'c design-col'!$K$8+I48*'c design-col'!$K$9+I49*'c design-col'!$K$10+I50*'c design-col'!$K$11 -> 331.6381868 | J52: =(J45*'c design-col'!$K$6)+(J46*'c design-col'!$K$7)+J47*'c design-col'!$K$8+J48*'c design-col'!$K$9+J49*'c design-col'!$K$10+J50*'c design-col'!$K$11 -> 358.1398866 | K52: =(K45*'c design-col'!$K$6)+(K46*'c design-col'!$K$7)+K47*'c design-col'!$K$8+K48*'c design-col'!$K$9+K49*'c design-col'!$K$10+K50*'c design-col'!$K$11 -> 387.2839894 | L52: =(L45*'c design-col'!$K$6)+(L46*'c design-col'!$K$7)+L47*'c design-col'!$K$8+L48*'c design-col'!$K$9+L49*'c design-col'!$K$10+L50*'c design-col'!$K$11 -> 432.2781632 | M52: =(M45*'c design-col'!$K$6)+(M46*'c design-col'!$K$7)+M47*'c design-col'!$K$8+M48*'c design-col'!$K$9+M49*'c design-col'!$K$10+M50*'c design-col'!$K$11 -> 493.0941138 | N52: =(N45*'c design-col'!$K$6)+(N46*'c design-col'!$K$7)+N47*'c design-col'!$K$8+N48*'c design-col'!$K$9+N49*'c design-col'!$K$10+N50*'c design-col'!$K$11 -> 585.5667473 | O52: =(O45*'c design-col'!$K$6)+(O46*'c design-col'!$K$7)+O47*'c design-col'!$K$8+O48*'c design-col'!$K$9+O49*'c design-col'!$K$10+O50*'c design-col'!$K$11 -> 705.2714697 | P52: =(P45*'c design-col'!$K$6)+(P46*'c design-col'!$K$7)+P47*'c design-col'!$K$8+P48*'c design-col'!$K$9+P49*'c design-col'!$K$10+P50*'c design-col'!$K$11 -> 867.0960586 | Q52: =(Q45*'c design-col'!$K$6)+(Q46*'c design-col'!$K$7)+Q47*'c design-col'!$K$8+Q48*'c design-col'!$K$9+Q49*'c design-col'!$K$10+Q50*'c design-col'!$K$11 -> 1101.831807
A53: ECO2/Mpa | B53: =B52/B44 -> 20.40309264 | C53: =C52/C44 -> 15.18263054 | D53: 12.56412378 | E53: 11.03416709 | F53: 9.611900904 | G53: 8.987283759 | H53: 8.742403515 | I53: 8.29095467 | J53: 7.958664148 | K53: 7.745679788 | L53: 7.859602967 | M53: 8.218235231 | N53: 8.365239247 | O53: 8.815893372 | P53: 9.634400651 | Q53: 11.01831807

Sheet 52.5 (40% PFA, 0SP)
A2: 0-10 | B2: 8 | C2: 12 | D2: 16 | E2: 20 | F2: 25 | G2: 30 | H2: 35 | I2: 40 | J2: 45 | K2: 50 | L2: 55 | M2: 60 | N2: 70 | O2: 80 | P2: 90 | Q2: 100
A3: Water content | B3: 115 | C3: 115 | D3: 115 | E3: 115 | F3: 115 | G3: 115 | H3: 115 | I3: 115 | J3: 115 | K3: 115 | L3: 115 | M3: 115 | N3: 115 | O3: 115 | P3: 115 | Q3: 115
A4: Cement content | B4: 105 | C4: 119 | D4: 132 | E4: 146 | F4: 160 | G4: 181 | H4: 208 | I4: 226 | J4: 245 | K4: 266 | L4: 298 | M4: 342 | N4: 409 | O4: 495 | P4: 613 | Q4: 782
A5: PFA content | B5: 70 | C5: 79 | D5: 88 | E5: 97 | F5: 107 | G5: 121 | H5: 138 | I5: 150 | J5: 163 | K5: 177 | L5: 199 | M5: 228 | N5: 272 | O5: 330 | P5: 408 | Q5: 522
A6: Fine Agg | B6: 825 | C6: 774 | D6: 732 | E6: 697 | F6: 665 | G6: 627 | H6: 588 | I6: 565 | J6: 543 | K6: 522 | L6: 493 | M6: 459 | N6: 415 | O6: 366 | P6: 308 | Q6: 233
A7: Coarse Agg | B7: 1295 | C7: 1324 | D7: 1343 | E7: 1356 | F7: 1363 | G7: 1367 | H7: 1362 | I7: 1355 | J7: 1345 | K7: 1331 | L7: 1306 | M7: 1267 | N7: 1200 | O7: 1105 | P7: 967 | Q7: 759
A8: Plasticiser dosage
A9: Concrete | B9: =B3+B4+B5+B6+B7 -> 2410 | C9: =C3+C4+C5+C6+C7 -> 2411 | D9: 2410 | E9: 2411 | F9: 2410 | G9: 2411 | H9: 2411 | I9: 2411 | J9: 2411 | K9: 2411 | L9: 2411 | M9: 2411 | N9: 2411 | O9: 2411 | P9: 2411 | Q9: 2411
A10: ECO2 | B10: =(B3*'c design-col'!$K$6)+(B4*'c design-col'!$K$7)+B5*'c design-col'!$K$8+B6*'c design-col'!$K$9+B7*'c design-col'!$K$10+B8*'c design-col'!$K$11 -> 113.363758 | C10: =(C3*'c design-col'!$K$6)+(C4*'c design-col'!$K$7)+C5*'c design-col'!$K$8+C6*'c design-col'!$K$9+C7*'c design-col'!$K$10+C8*'c design-col'!$K$11 -> 126.2359597 | D10: =(D3*'c design-col'!$K$6)+(D4*'c design-col'!$K$7)+D5*'c design-col'!$K$8+D6*'c design-col'!$K$9+D7*'c design-col'!$K$10+D8*'c design-col'!$K$11 -> 138.1165558 | E10: =(E3*'c design-col'!$K$6)+(E4*'c design-col'!$K$7)+E5*'c design-col'!$K$8+E6*'c design-col'!$K$9+E7*'c design-col'!$K$10+E8*'c design-col'!$K$11 -> 150.8200993 | F10: =(F3*'c design-col'!$K$6)+(F4*'c design-col'!$K$7)+F5*'c design-col'!$K$8+F6*'c design-col'!$K$9+F7*'c design-col'!$K$10+F8*'c design-col'!$K$11 -> 163.4804616 | G10: =(G3*'c design-col'!$K$6)+(G4*'c design-col'!$K$7)+G5*'c design-col'!$K$8+G6*'c design-col'!$K$9+G7*'c design-col'!$K$10+G8*'c design-col'!$K$11 -> 182.3835778 | H10: =(H3*'c design-col'!$K$6)+(H4*'c design-col'!$K$7)+H5*'c design-col'!$K$8+H6*'c design-col'!$K$9+H7*'c design-col'!$K$10+H8*'c design-col'!$K$11 -> 206.5530065 | I10: =(I3*'c design-col'!$K$6)+(I4*'c design-col'!$K$7)+I5*'c design-col'!$K$8+I6*'c design-col'!$K$9+I7*'c design-col'!$K$10+I8*'c design-col'!$K$11 -> 222.6437672 | J10: =(J3*'c design-col'!$K$6)+(J4*'c design-col'!$K$7)+J5*'c design-col'!$K$8+J6*'c design-col'!$K$9+J7*'c design-col'!$K$10+J8*'c design-col'!$K$11 -> 239.6091645 | K10: =(K3*'c design-col'!$K$6)+(K4*'c design-col'!$K$7)+K5*'c design-col'!$K$8+K6*'c design-col'!$K$9+K7*'c design-col'!$K$10+K8*'c design-col'!$K$11 -> 258.3202286 | L10: =(L3*'c design-col'!$K$6)+(L4*'c design-col'!$K$7)+L5*'c design-col'!$K$8+L6*'c design-col'!$K$9+L7*'c design-col'!$K$10+L8*'c design-col'!$K$11 -> 286.8101345 | M10: =(M3*'c design-col'!$K$6)+(M4*'c design-col'!$K$7)+M5*'c design-col'!$K$8+M6*'c design-col'!$K$9+M7*'c design-col'!$K$10+M8*'c design-col'!$K$11 -> 325.9041417 | N10: =(N3*'c design-col'!$K$6)+(N4*'c design-col'!$K$7)+N5*'c design-col'!$K$8+N6*'c design-col'!$K$9+N7*'c design-col'!$K$10+N8*'c design-col'!$K$11 -> 385.3494685 | O10: =(O3*'c design-col'!$K$6)+(O4*'c design-col'!$K$7)+O5*'c design-col'!$K$8+O6*'c design-col'!$K$9+O7*'c design-col'!$K$10+O8*'c design-col'!$K$11 -> 461.5951406 | P10: =(P3*'c design-col'!$K$6)+(P4*'c design-col'!$K$7)+P5*'c design-col'!$K$8+P6*'c design-col'!$K$9+P7*'c design-col'!$K$10+P8*'c design-col'!$K$11 -> 566.091601 | Q10: =(Q3*'c design-col'!$K$6)+(Q4*'c design-col'!$K$7)+Q5*'c design-col'!$K$8+Q6*'c design-col'!$K$9+Q7*'c design-col'!$K$10+Q8*'c design-col'!$K$11 -> 715.6991131
A11: ECO2/Mpa | B11: =B10/B2 -> 14.17046975 | C11: =C10/C2 -> 10.51966331 | D11: 8.632284736 | E11: 7.541004964 | F11: 6.539218464 | G11: 6.079452592 | H11: 5.901514472 | I11: 5.56609418 | J11: 5.324648099 | K11: 5.166404572 | L11: 5.214729719 | M11: 5.431735696 | N11: 5.504992408 | O11: 5.769939258 | P11: 6.289906678 | Q11: 7.156991131
A15: 10--30 | B15: 8 | C15: 12 | D15: 16 | E15: 20 | F15: 25 | G15: 30 | H15: 35 | I15: 40 | J15: 45 | K15: 50 | L15: 55 | M15: 60 | N15: 70 | O15: 80 | P15: 90 | Q15: 100
A16: Water content | B16: 140 | C16: 140 | D16: 140 | E16: 140 | F16: 140 | G16: 140 | H16: 140 | I16: 140 | J16: 140 | K16: 140 | L16: 140 | M16: 140 | N16: 140 | O16: 140 | P16: 140 | Q16: 140
A17: Cement content | B17: 128 | C17: 145 | D17: 161 | E17: 178 | F17: 195 | G17: 221 | H17: 253 | I17: 275 | J17: 298 | K17: 324 | L17: 363 | M17: 416 | N17: 497 | O17: 603 | P17: 746 | Q17: 953
A18: PFA content | B18: 85 | C18: 96 | D18: 107 | E18: 119 | F18: 130 | G18: 147 | H18: 169 | I18: 183 | J18: 199 | K18: 216 | L18: 242 | M18: 278 | N18: 332 | O18: 402 | P18: 497 | Q18: 635
A19: Fine Agg | B19: 837 | C19: 783 | D19: 740 | E19: 702 | F19: 669 | G19: 628 | H19: 585 | I19: 560 | J19: 536 | K19: 512 | L19: 479 | M19: 440 | N19: 389 | O19: 330 | P19: 259 | Q19: 165
A20: Coarse Agg | B20: 1191 | C20: 1218 | D20: 1234 | E20: 1243 | F20: 1248 | G20: 1246 | H20: 1236 | I20: 1224 | J20: 1209 | K20: 1191 | L20: 1157 | M20: 1108 | N20: 1024 | O20: 907 | P20: 740 | Q20: 489
A21: Plasticiser dosage
A22: Concrete | B22: =B16+B17+B18+B19+B20 -> 2381 | C22: =C16+C17+C18+C19+C20 -> 2382 | D22: 2382 | E22: 2382 | F22: 2382 | G22: 2382 | H22: 2383 | I22: 2382 | J22: 2382 | K22: 2383 | L22: 2381 | M22: 2382 | N22: 2382 | O22: 2382 | P22: 2382 | Q22: 2382
A23: ECO2 | B23: =(B16*'c design-col'!$K$6)+(B17*'c design-col'!$K$7)+B18*'c design-col'!$K$8+B19*'c design-col'!$K$9+B20*'c design-col'!$K$10+B21*'c design-col'!$K$11 -> 132.8141325 | C23: =(C16*'c design-col'!$K$6)+(C17*'c design-col'!$K$7)+C18*'c design-col'!$K$8+C19*'c design-col'!$K$9+C20*'c design-col'!$K$10+C21*'c design-col'!$K$11 -> 148.3593435 | D23: =(D16*'c design-col'!$K$6)+(D17*'c design-col'!$K$7)+D18*'c design-col'!$K$8+D19*'c design-col'!$K$9+D20*'c design-col'!$K$10+D21*'c design-col'!$K$11 -> 162.9047189 | E23: =(E16*'c design-col'!$K$6)+(E17*'c design-col'!$K$7)+E18*'c design-col'!$K$8+E19*'c design-col'!$K$9+E20*'c design-col'!$K$10+E21*'c design-col'!$K$11 -> 178.2825664 | F23: =(F16*'c design-col'!$K$6)+(F17*'c design-col'!$K$7)+F18*'c design-col'!$K$8+F19*'c design-col'!$K$9+F20*'c design-col'!$K$10+F21*'c design-col'!$K$11 -> 193.5935608 | G23: =(G16*'c design-col'!$K$6)+(G17*'c design-col'!$K$7)+G18*'c design-col'!$K$8+G19*'c design-col'!$K$9+G20*'c design-col'!$K$10+G21*'c design-col'!$K$11 -> 216.9130416 | H23: =(H16*'c design-col'!$K$6)+(H17*'c design-col'!$K$7)+H18*'c design-col'!$K$8+H19*'c design-col'!$K$9+H20*'c design-col'!$K$10+H21*'c design-col'!$K$11 -> 245.5633761 | I23: =(I16*'c design-col'!$K$6)+(I17*'c design-col'!$K$7)+I18*'c design-col'!$K$8+I19*'c design-col'!$K$9+I20*'c design-col'!$K$10+I21*'c design-col'!$K$11 -> 265.1747825 | J23: =(J16*'c design-col'!$K$6)+(J17*'c design-col'!$K$7)+J18*'c design-col'!$K$8+J19*'c design-col'!$K$9+J20*'c design-col'!$K$10+J21*'c design-col'!$K$11 -> 285.6878255 | K23: =(K16*'c design-col'!$K$6)+(K17*'c design-col'!$K$7)+K18*'c design-col'!$K$8+K19*'c design-col'!$K$9+K20*'c design-col'!$K$10+K21*'c design-col'!$K$11 -> 308.8409594 | L23: =(L16*'c design-col'!$K$6)+(L17*'c design-col'!$K$7)+L18*'c design-col'!$K$8+L19*'c design-col'!$K$9+L20*'c design-col'!$K$10+L21*'c design-col'!$K$11 -> 343.5011265 | M23: =(M16*'c design-col'!$K$6)+(M17*'c design-col'!$K$7)+M18*'c design-col'!$K$8+M19*'c design-col'!$K$9+M20*'c design-col'!$K$10+M21*'c design-col'!$K$11 -> 390.5989966 | N23: =(N16*'c design-col'!$K$6)+(N17*'c design-col'!$K$7)+N18*'c design-col'!$K$8+N19*'c design-col'!$K$9+N20*'c design-col'!$K$10+N21*'c design-col'!$K$11 -> 462.4540098 | O23: =(O16*'c design-col'!$K$6)+(O17*'c design-col'!$K$7)+O18*'c design-col'!$K$8+O19*'c design-col'!$K$9+O20*'c design-col'!$K$10+O21*'c design-col'!$K$11 -> 556.3954684 | P23: =(P16*'c design-col'!$K$6)+(P17*'c design-col'!$K$7)+P18*'c design-col'!$K$8+P19*'c design-col'!$K$9+P20*'c design-col'!$K$10+P21*'c design-col'!$K$11 -> 683.0452272 | Q23: =(Q16*'c design-col'!$K$6)+(Q17*'c design-col'!$K$7)+Q18*'c design-col'!$K$8+Q19*'c design-col'!$K$9+Q20*'c design-col'!$K$10+Q21*'c design-col'!$K$11 -> 866.2917106
A24: ECO2/Mpa | B24: =B23/B15 -> 16.60176656 | C24: =C23/C15 -> 12.36327862 | D24: 10.18154493 | E24: 8.914128322 | F24: 7.743742433 | G24: 7.230434719 | H24: 7.016096459 | I24: 6.629369562 | J24: 6.348618345 | K24: 6.176819189 | L24: 6.245475028 | M24: 6.509983277 | N24: 6.606485855 | O24: 6.954943355 | P24: 7.589391413 | Q24: 8.662917106
A29: 30--60 | B29: 8 | C29: 12 | D29: 16 | E29: 20 | F29: 25 | G29: 30 | H29: 35 | I29: 40 | J29: 45 | K29: 50 | L29: 55 | M29: 60 | N29: 70 | O29: 80 | P29: 90 | Q29: 100
A30: Water content | B30: 155 | C30: 155 | D30: 155 | E30: 155 | F30: 155 | G30: 155 | H30: 155 | I30: 155 | J30: 155 | K30: 155 | L30: 155 | M30: 155 | N30: 155 | O30: 155 | P30: 155 | Q30: 155
A31: Cement content | B31: 142 | C31: 160 | D31: 178 | E31: 197 | F31: 216 | G31: 245 | H31: 280 | I31: 304 | J31: 330 | K31: 358 | L31: 402 | M31: 461 | N31: 551 | O31: 667 | P31: 826 | Q31: 1055
A32: PFA content | B32: 95 | C32: 107 | D32: 119 | E32: 131 | F32: 144 | G32: 163 | H32: 187 | I32: 203 | J32: 220 | K32: 239 | L32: 268 | M32: 307 | N32: 367 | O32: 445 | P32: 550 | Q32: 703
A33: Fine Agg | B33: 867 | C33: 813 | D33: 769 | E33: 731 | F33: 697 | G33: 655 | H33: 610 | I33: 584 | J33: 558 | K33: 532 | L33: 496 | M33: 453 | N33: 394 | O33: 326 | P33: 241 | Q33: 128
A34: Coarse Agg | B34: 1107 | C34: 1130 | D34: 1143 | E34: 1150 | F34: 1152 | G34: 1148 | H34: 1133 | I34: 1119 | J34: 1102 | K34: 1081 | L34: 1043 | M34: 989 | N34: 898 | O34: 772 | P34: 592 | Q34: 324
A35: Plasticiser dosage
A36: Concrete | B36: =B30+B31+B32+B33+B34 -> 2366 | C36: =C30+C31+C32+C33+C34 -> 2365 | D36: 2364 | E36: 2364 | F36: 2364 | G36: 2366 | H36: 2365 | I36: 2365 | J36: 2365 | K36: 2365 | L36: 2364 | M36: 2365 | N36: 2365 | O36: 2365 | P36: 2364 | Q36: 2365
A37: ECO2 | B37: =(B30*'c design-col'!$K$6)+(B31*'c design-col'!$K$7)+B32*'c design-col'!$K$8+B33*'c design-col'!$K$9+B34*'c design-col'!$K$10+B35*'c design-col'!$K$11 -> 144.4632189 | C37: =(C30*'c design-col'!$K$6)+(C31*'c design-col'!$K$7)+C32*'c design-col'!$K$8+C33*'c design-col'!$K$9+C34*'c design-col'!$K$10+C35*'c design-col'!$K$11 -> 160.8679024 | D37: =(D30*'c design-col'!$K$6)+(D31*'c design-col'!$K$7)+D32*'c design-col'!$K$8+D33*'c design-col'!$K$9+D34*'c design-col'!$K$10+D35*'c design-col'!$K$11 -> 177.1671744 | E37: =(E30*'c design-col'!$K$6)+(E31*'c design-col'!$K$7)+E32*'c design-col'!$K$8+E33*'c design-col'!$K$9+E34*'c design-col'!$K$10+E35*'c design-col'!$K$11 -> 194.2870826 | F37: =(F30*'c design-col'!$K$6)+(F31*'c design-col'!$K$7)+F32*'c design-col'!$K$8+F33*'c design-col'!$K$9+F34*'c design-col'!$K$10+F35*'c design-col'!$K$11 -> 211.3789735 | G37: =(G30*'c design-col'!$K$6)+(G31*'c design-col'!$K$7)+G32*'c design-col'!$K$8+G33*'c design-col'!$K$9+G34*'c design-col'!$K$10+G35*'c design-col'!$K$11 -> 237.3760863 | H37: =(H30*'c design-col'!$K$6)+(H31*'c design-col'!$K$7)+H32*'c design-col'!$K$8+H33*'c design-col'!$K$9+H34*'c design-col'!$K$10+H35*'c design-col'!$K$11 -> 268.6631837 | I37: =(I30*'c design-col'!$K$6)+(I31*'c design-col'!$K$7)+I32*'c design-col'!$K$8+I33*'c design-col'!$K$9+I34*'c design-col'!$K$10+I35*'c design-col'!$K$11 -> 290.0683393 | J37: =(J30*'c design-col'!$K$6)+(J31*'c design-col'!$K$7)+J32*'c design-col'!$K$8+J33*'c design-col'!$K$9+J34*'c design-col'!$K$10+J35*'c design-col'!$K$11 -> 313.2297029 | K37: =(K30*'c design-col'!$K$6)+(K31*'c design-col'!$K$7)+K32*'c design-col'!$K$8+K33*'c design-col'!$K$9+K34*'c design-col'!$K$10+K35*'c design-col'!$K$11 -> 338.1614219 | L37: =(L30*'c design-col'!$K$6)+(L31*'c design-col'!$K$7)+L32*'c design-col'!$K$8+L33*'c design-col'!$K$9+L34*'c design-col'!$K$10+L35*'c design-col'!$K$11 -> 377.2636588 | M37: =(M30*'c design-col'!$K$6)+(M31*'c design-col'!$K$7)+M32*'c design-col'!$K$8+M33*'c design-col'!$K$9+M34*'c design-col'!$K$10+M35*'c design-col'!$K$11 -> 429.6723176 | N37: =(N30*'c design-col'!$K$6)+(N31*'c design-col'!$K$7)+N32*'c design-col'!$K$8+N33*'c design-col'!$K$9+N34*'c design-col'!$K$10+N35*'c design-col'!$K$11 -> 509.5358171 | O37: =(O30*'c design-col'!$K$6)+(O31*'c design-col'!$K$7)+O32*'c design-col'!$K$8+O33*'c design-col'!$K$9+O34*'c design-col'!$K$10+O35*'c design-col'!$K$11 -> 612.3956283 | P37: =(P30*'c design-col'!$K$6)+(P31*'c design-col'!$K$7)+P32*'c design-col'!$K$8+P33*'c design-col'!$K$9+P34*'c design-col'!$K$10+P35*'c design-col'!$K$11 -> 753.2580695 | Q37: =(Q30*'c design-col'!$K$6)+(Q31*'c design-col'!$K$7)+Q32*'c design-col'!$K$8+Q33*'c design-col'!$K$9+Q34*'c design-col'!$K$10+Q35*'c design-col'!$K$11 -> 956.092565
A38: ECO2/Mpa | B38: =B37/B29 -> 18.05790236 | C38: =C37/C29 -> 13.40565853 | D38: 11.0729484 | E38: 9.714354128 | F38: 8.455158941 | G38: 7.912536211 | H38: 7.676090962 | I38: 7.251708481 | J38: 6.960660064 | K38: 6.763228438 | L38: 6.859339251 | M38: 7.161205293 | N38: 7.279083101 | O38: 7.654945353 | P38: 8.369534105 | Q38: 9.56092565
A43: 60--180 | B43: 8 | C43: 12 | D43: 16 | E43: 20 | F43: 25 | G43: 30 | H43: 35 | I43: 40 | J43: 45 | K43: 50 | L43: 55 | M43: 60 | N43: 70 | O43: 80 | P43: 90 | Q43: 100
A44: Water content | B44: 170 | C44: 170 | D44: 170 | E44: 170 | F44: 170 | G44: 170 | H44: 170 | I44: 170 | J44: 170 | K44: 170 | L44: 170 | M44: 170 | N44: 170 | O44: 170 | P44: 170 | Q44: 170
A45: Cement content | B45: 156 | C45: 176 | D45: 196 | E45: 216 | F45: 237 | G45: 268 | H45: 307 | I45: 333 | J45: 362 | K45: 393 | L45: 441 | M45: 505 | N45: 604 | O45: 732 | P45: 906 | Q45: 1157
A46: PFA content | B46: 104 | C46: 117 | D46: 131 | E46: 144 | F46: 158 | G46: 179 | H46: 205 | I46: 222 | J46: 241 | K46: 262 | L46: 294 | M46: 337 | N46: 403 | O46: 488 | P46: 604 | Q46: 771
A47: Fine Agg | B47: 945 | C47: 887 | D47: 839 | E47: 798 | F47: 761 | G47: 714 | H47: 664 | I47: 634 | J47: 604 | K47: 574 | L47: 532 | M47: 481 | N47: 410 | O47: 328 | P47: 223 | Q47: 82
A48: Coarse Agg | B48: 973 | C48: 998 | D48: 1012 | E48: 1019 | F48: 1022 | G48: 1017 | H48: 1003 | I48: 989 | J48: 971 | K48: 949 | L48: 910 | M48: 854 | N48: 761 | O48: 630 | P48: 445 | Q48: 168
A49: Plasticiser dosage
A50: Concrete | B50: =B44+B45+B46+B47+B48 -> 2348 | C50: =C44+C45+C46+C47+C48 -> 2348 | D50: 2348 | E50: 2347 | F50: 2348 | G50: 2348 | H50: 2349 | I50: 2348 | J50: 2348 | K50: 2348 | L50: 2347 | M50: 2347 | N50: 2348 | O50: 2348 | P50: 2348 | Q50: 2348
A51: ECO2 | B51: =(B44*'c design-col'!$K$6)+(B45*'c design-col'!$K$7)+B46*'c design-col'!$K$8+B47*'c design-col'!$K$9+B48*'c design-col'!$K$10+B49*'c design-col'!$K$11 -> 155.5536253 | C51: =(C44*'c design-col'!$K$6)+(C45*'c design-col'!$K$7)+C46*'c design-col'!$K$8+C47*'c design-col'!$K$9+C48*'c design-col'!$K$10+C49*'c design-col'!$K$11 -> 173.769534 | D51: =(D44*'c design-col'!$K$6)+(D45*'c design-col'!$K$7)+D46*'c design-col'!$K$8+D47*'c design-col'!$K$9+D48*'c design-col'!$K$10+D49*'c design-col'!$K$11 -> 191.8941786 | E51: =(E44*'c design-col'!$K$6)+(E45*'c design-col'!$K$7)+E46*'c design-col'!$K$8+E47*'c design-col'!$K$9+E48*'c design-col'!$K$10+E49*'c design-col'!$K$11 -> 209.9180353 | F51: =(F44*'c design-col'!$K$6)+(F45*'c design-col'!$K$7)+F46*'c design-col'!$K$8+F47*'c design-col'!$K$9+F48*'c design-col'!$K$10+F49*'c design-col'!$K$11 -> 228.8106103 | G51: =(G44*'c design-col'!$K$6)+(G45*'c design-col'!$K$7)+G46*'c design-col'!$K$8+G47*'c design-col'!$K$9+G48*'c design-col'!$K$10+G49*'c design-col'!$K$11 -> 256.6050791 | H51: =(H44*'c design-col'!$K$6)+(H45*'c design-col'!$K$7)+H46*'c design-col'!$K$8+H47*'c design-col'!$K$9+H48*'c design-col'!$K$10+H49*'c design-col'!$K$11 -> 291.4830033 | I51: =(I44*'c design-col'!$K$6)+(I45*'c design-col'!$K$7)+I46*'c design-col'!$K$8+I47*'c design-col'!$K$9+I48*'c design-col'!$K$10+I49*'c design-col'!$K$11 -> 314.6736789 | J51: =(J44*'c design-col'!$K$6)+(J45*'c design-col'!$K$7)+J46*'c design-col'!$K$8+J47*'c design-col'!$K$9+J48*'c design-col'!$K$10+J49*'c design-col'!$K$11 -> 340.5185929 | K51: =(K44*'c design-col'!$K$6)+(K45*'c design-col'!$K$7)+K46*'c design-col'!$K$8+K47*'c design-col'!$K$9+K48*'c design-col'!$K$10+K49*'c design-col'!$K$11 -> 368.1338622 | L51: =(L44*'c design-col'!$K$6)+(L45*'c design-col'!$K$7)+L46*'c design-col'!$K$8+L47*'c design-col'!$K$9+L48*'c design-col'!$K$10+L49*'c design-col'!$K$11 -> 410.8259094 | M51: =(M44*'c design-col'!$K$6)+(M45*'c design-col'!$K$7)+M46*'c design-col'!$K$8+M47*'c design-col'!$K$9+M48*'c design-col'!$K$10+M49*'c design-col'!$K$11 -> 467.7177859 | N51: =(N44*'c design-col'!$K$6)+(N45*'c design-col'!$K$7)+N46*'c design-col'!$K$8+N47*'c design-col'!$K$9+N48*'c design-col'!$K$10+N49*'c design-col'!$K$11 -> 555.6447889 | O51: =(O44*'c design-col'!$K$6)+(O45*'c design-col'!$K$7)+O46*'c design-col'!$K$8+O47*'c design-col'!$K$9+O48*'c design-col'!$K$10+O49*'c design-col'!$K$11 -> 669.2035716 | P51: =(P44*'c design-col'!$K$6)+(P45*'c design-col'!$K$7)+P46*'c design-col'!$K$8+P47*'c design-col'!$K$9+P48*'c design-col'!$K$10+P49*'c design-col'!$K$11 -> 823.5107643 | Q51: =(Q44*'c design-col'!$K$6)+(Q45*'c design-col'!$K$7)+Q46*'c design-col'!$K$8+Q47*'c design-col'!$K$9+Q48*'c design-col'!$K$10+Q49*'c design-col'!$K$11 -> 1045.98829
A52: ECO2/Mpa | B52: =B51/B43 -> 19.44420317 | C52: =C51/C43 -> 14.4807945 | D52: 11.99338617 | E52: 10.49590177 | F52: 9.152424412 | G52: 8.553502635 | H52: 8.32808581 | I52: 7.866841973 | J52: 7.567079841 | K52: 7.362677244 | L52: 7.469561989 | M52: 7.795296431 | N52: 7.937782699 | O52: 8.365044645 | P52: 9.150119604 | Q52: 10.4598829

Sheet Sheet2 (2)
A1: 0% PFA, No SP
A2: 0-10 | B2: 8 | C2: 12 | D2: 16 | E2: 20 | F2: 25 | G2: 30 | H2: 35 | I2: 40 | J2: 45 | K2: 50 | L2: 55 | M2: 60 | N2: 70 | O2: 80 | P2: 90 | Q2: 100
A3: Water content | B3: 135 | C3: 135 | D3: 135 | E3: 135 | F3: 135 | G3: 135 | H3: 135 | I3: 135 | J3: 135 | K3: 135 | L3: 135 | M3: 135 | N3: 135 | O3: 135 | P3: 135 | Q3: 135
A4: Cement content | B4: 148 | C4: 167 | D4: 187 | E4: 206 | F4: 226 | G4: 256 | H4: 292 | I4: 318 | J4: 345 | K4: 374 | L4: 420 | M4: 482 | N4: 576 | O4: 697 | P4: 863 | Q4: 1102
A5: PFA content | B5: 0 | C5: 0 | D5: 0 | E5: 0 | F5: 0 | G5: 0 | H5: 0 | I5: 0 | J5: 0 | K5: 0 | L5: 0 | M5: 0 | N5: 0 | O5: 0 | P5: 0 | Q5: 0
A6: Fine Agg | B6: 819 | C6: 796 | D6: 729 | E6: 695 | F6: 665 | G6: 628 | H6: 591 | I6: 569 | J6: 549 | K6: 529 | L6: 502 | M6: 471 | N6: 431 | O6: 387 | P6: 336 | Q6: 270
A7: Coarse Agg | B7: 1285 | C7: 1316 | D7: 1337 | E7: 1352 | F7: 1362 | G7: 1369 | H7: 1369 | I7: 1366 | J7: 1359 | K7: 1349 | L7: 1330 | M7: 1300 | N7: 1246 | O7: 1168 | P7: 1054 | Q7: 880
A8: Plasticiser dosage | B8: 0 | C8: 0 | D8: 0 | E8: 0 | F8: 0 | G8: 0 | H8: 0 | I8: 0 | J8: 0 | K8: 0 | L8: 0 | M8: 0 | N8: 0 | O8: 0 | P8: 0 | Q8: 0
A9: Concrete | B9: =SUM(B3:B8) -> 2387 | C9: =SUM(C3:C8) -> 2414 | D9: 2388 | E9: 2388 | F9: 2388 | G9: 2388 | H9: 2387 | I9: 2388 | J9: 2388 | K9: 2387 | L9: =SUM(L3:L8) -> 2387 | M9: =SUM(M3:M8) -> 2388 | N9: 2388 | O9: 2387 | P9: 2388 | Q9: 2387
A10: ECO2 / m3 | B10: =(B3*'c design-col'!$K$6)+(B4*'c design-col'!$K$7)+B5*'c design-col'!$K$8+B6*'c design-col'!$K$9+B7*'c design-col'!$K$10+B8*'c design-col'!$K$11 -> 149.358328 | C10: =(C3*'c design-col'!$K$6)+(C4*'c design-col'!$K$7)+C5*'c design-col'!$K$8+C6*'c design-col'!$K$9+C7*'c design-col'!$K$10+C8*'c design-col'!$K$11 -> 166.4973701 | D10: =(D3*'c design-col'!$K$6)+(D4*'c design-col'!$K$7)+D5*'c design-col'!$K$8+D6*'c design-col'!$K$9+D7*'c design-col'!$K$10+D8*'c design-col'!$K$11 -> 184.2900654 | E10: =(E3*'c design-col'!$K$6)+(E4*'c design-col'!$K$7)+E5*'c design-col'!$K$8+E6*'c design-col'!$K$9+E7*'c design-col'!$K$10+E8*'c design-col'!$K$11 -> 201.19804 | F10: =(F3*'c design-col'!$K$6)+(F4*'c design-col'!$K$7)+F5*'c design-col'!$K$8+F6*'c design-col'!$K$9+F7*'c design-col'!$K$10+F8*'c design-col'!$K$11 -> 218.9348804 | G10: =(G3*'c design-col'!$K$6)+(G4*'c design-col'!$K$7)+G5*'c design-col'!$K$8+G6*'c design-col'!$K$9+G7*'c design-col'!$K$10+G8*'c design-col'!$K$11 -> 245.4558119 | H10: =(H3*'c design-col'!$K$6)+(H4*'c design-col'!$K$7)+H5*'c design-col'!$K$8+H6*'c design-col'!$K$9+H7*'c design-col'!$K$10+H8*'c design-col'!$K$11 -> 277.1900726 | I10: =(I3*'c design-col'!$K$6)+(I4*'c design-col'!$K$7)+I5*'c design-col'!$K$8+I6*'c design-col'!$K$9+I7*'c design-col'!$K$10+I8*'c design-col'!$K$11 -> 300.0816183 | J10: =(J3*'c design-col'!$K$6)+(J4*'c design-col'!$K$7)+J5*'c design-col'!$K$8+J6*'c design-col'!$K$9+J7*'c design-col'!$K$10+J8*'c design-col'!$K$11 -> 323.8102595 | K10: =(K3*'c design-col'!$K$6)+(K4*'c design-col'!$K$7)+K5*'c design-col'!$K$8+K6*'c design-col'!$K$9+K7*'c design-col'!$K$10+K8*'c design-col'!$K$11 -> 349.2681086 | L10: =(L3*'c design-col'!$K$6)+(L4*'c design-col'!$K$7)+L5*'c design-col'!$K$8+L6*'c design-col'!$K$9+L7*'c design-col'!$K$10+L8*'c design-col'!$K$11 -> 389.6201136 | M10: =(M3*'c design-col'!$K$6)+(M4*'c design-col'!$K$7)+M5*'c design-col'!$K$8+M6*'c design-col'!$K$9+M7*'c design-col'!$K$10+M8*'c design-col'!$K$11 -> 443.9636207 | N10: =(N3*'c design-col'!$K$6)+(N4*'c design-col'!$K$7)+N5*'c design-col'!$K$8+N6*'c design-col'!$K$9+N7*'c design-col'!$K$10+N8*'c design-col'!$K$11 -> 526.2621153 | O10: =(O3*'c design-col'!$K$6)+(O4*'c design-col'!$K$7)+O5*'c design-col'!$K$8+O6*'c design-col'!$K$9+O7*'c design-col'!$K$10+O8*'c design-col'!$K$11 -> 632.1077402 | P10: =(P3*'c design-col'!$K$6)+(P4*'c design-col'!$K$7)+P5*'c design-col'!$K$8+P6*'c design-col'!$K$9+P7*'c design-col'!$K$10+P8*'c design-col'!$K$11 -> 777.2492221 | Q10: =(Q3*'c design-col'!$K$6)+(Q4*'c design-col'!$K$7)+Q5*'c design-col'!$K$8+Q6*'c design-col'!$K$9+Q7*'c design-col'!$K$10+Q8*'c design-col'!$K$11 -> 986.1083284
A11: ECO2/tonne | B11: =B10/B9 -> 0.062571566 | C11: =C10/C9 -> 0.06897157006 | D11: 0.07717339421 | E11: 0.0842537856 | F11: 0.09168127321 | G11: 0.1027871909 | H11: 0.1161248733 | I11: 0.1256623192 | J11: 0.1355989361 | K11: 0.1463209504 | L11: 0.163225854 | M11: 0.185914414 | N11: 0.2203777702 | O11: 0.2648126268 | P11: 0.3254812488 | Q11: 0.4131161828
A12: ECO2 / m3 / Mpa | B12: =B10/B2 -> 18.66979101 | C12: =C10/C2 -> 13.87478084 | D12: 11.51812909 | E12: 10.059902 | F12: 8.757395217 | G12: 8.181860396 | H12: 7.91971636 | I12: 7.502040458 | J12: 7.195783544 | K12: 6.985362173 | L12: 7.084002066 | M12: 7.399393678 | N12: 7.518030218 | O12: 7.901346752 | P12: 8.636102468 | Q12: 9.861083284
A13: ECO2 / tonne / Mpa | B13: =B11/B2 -> 0.00782144575 | C13: =C11/C2 -> 0.005747630838 | D13: 0.004823337138 | E13: 0.00421268928 | F13: 0.003667250928 | G13: 0.003426239697 | H13: 0.003317853523 | I13: 0.003141557981 | J13: 0.003013309692 | K13: 0.002926419008 | L13: 0.002967742801 | M13: 0.003098573567 | N13: 0.00314825386 | O13: 0.003310157835 | P13: 0.00361645832 | Q13: 0.004131161828
A15: 0% PFA, SP
A16: 0-10 | B16: 8 | C16: 12 | D16: 16 | E16: 20 | F16: 25 | G16: 30 | H16: 35 | I16: 40 | J16: 45 | K16: 50 | L16: 55 | M16: 60 | N16: 70 | O16: 80 | P16: 90 | Q16: 100
A17: Water content | B17: 121.5 | C17: 121.5 | D17: 121.5 | E17: 121.5 | F17: 121.5 | G17: 121.5 | H17: 121.5 | I17: 121.5 | J17: 121.5 | K17: 121.5 | L17: 121.5 | M17: 121.5 | N17: 121.5 | O17: 121.5 | P17: 121.5 | Q17: 121.5
A18: Cement content | B18: 133 | C18: 151 | D18: 168 | E18: 185 | F18: 203 | G18: 230 | H18: 263 | I18: 286 | J18: 310 | K18: 337 | L18: 378 | M18: 434 | N18: 518 | O18: 628 | P18: 777 | Q18: 999
A19: PFA content | B19: 0 | C19: 0 | D19: 0 | E19: 0 | F19: 0 | G19: 0 | H19: 0 | I19: 0 | J19: 0 | K19: 0 | L19: 0 | M19: 0 | N19: 0 | O19: 0 | P19: 0 | Q19: 0
A20: Fine Agg | B20: 836 | C20: 786 | D20: 746 | E20: 712 | F20: 682 | G20: 645 | H20: 608 | I20: 587 | J20: 567 | K20: 548 | L20: 521 | M20: 492 | N20: 453 | O20: 412 | P20: 364 | Q20: 302
A21: Coarse Agg | B21: 1312 | C21: 1345 | D21: 1368 | E21: 1385 | F21: 1397 | G21: 1407 | H21: 1410 | I21: 1409 | J21: 1404 | K21: 1397 | L21: 1382 | M21: 1357 | N21: 1311 | O21: 1242 | P21: 1141 | Q21: 987
A22: Plasticiser dosage | B22: 0.5 | C22: 0.6 | D22: 0.7 | E22: 0.7 | F22: 0.8 | G22: 0.9 | H22: 1.1 | I22: 1.1 | J22: 1.2 | K22: 1.3 | L22: 1.5 | M22: 1.7 | N22: 2.1 | O22: 2.5 | P22: 3.1 | Q22: 4
A23: Concrete | B23: =B17+B18+B20+B21+B22 -> 2403 | C23: =C17+C18+C20+C21+C22 -> 2404.1 | D23: 2404.2 | E23: 2404.2 | F23: 2404.3 | G23: 2404.4 | H23: 2403.6 | I23: 2404.6 | J23: 2403.7 | K23: 2404.8 | L23: 2404 | M23: 2406.2 | N23: 2405.6 | O23: 2406 | P23: 2406.6 | Q23: 2413.5
A24: ECO2 / m3 | B24: =(B17*'c design-col'!$K$6)+(B18*'c design-col'!$K$7)+B19*'c design-col'!$K$8+B20*'c design-col'!$K$9+B21*'c design-col'!$K$10+B22*'c design-col'!$K$11 -> 136.4729018 | C24: =(C17*'c design-col'!$K$6)+(C18*'c design-col'!$K$7)+C19*'c design-col'!$K$8+C20*'c design-col'!$K$9+C21*'c design-col'!$K$10+C22*'c design-col'!$K$11 -> 152.6913575 | D24: =(D17*'c design-col'!$K$6)+(D18*'c design-col'!$K$7)+D19*'c design-col'!$K$8+D20*'c design-col'!$K$9+D21*'c design-col'!$K$10+D22*'c design-col'!$K$11 -> 167.9205189 | E24: =(E17*'c design-col'!$K$6)+(E18*'c design-col'!$K$7)+E19*'c design-col'!$K$8+E20*'c design-col'!$K$9+E21*'c design-col'!$K$10+E22*'c design-col'!$K$11 -> 183.086433 | F24: =(F17*'c design-col'!$K$6)+(F18*'c design-col'!$K$7)+F19*'c design-col'!$K$8+F20*'c design-col'!$K$9+F21*'c design-col'!$K$10+F22*'c design-col'!$K$11 -> 199.0812133 | G24: =(G17*'c design-col'!$K$6)+(G18*'c design-col'!$K$7)+G19*'c design-col'!$K$8+G20*'c design-col'!$K$9+G21*'c design-col'!$K$10+G22*'c design-col'!$K$11 -> 222.9890543 | H24: =(H17*'c design-col'!$K$6)+(H18*'c design-col'!$K$7)+H19*'c design-col'!$K$8+H20*'c design-col'!$K$9+H21*'c design-col'!$K$10+H22*'c design-col'!$K$11 -> 252.1102252 | I24: =(I17*'c design-col'!$K$6)+(I18*'c design-col'!$K$7)+I19*'c design-col'!$K$8+I20*'c design-col'!$K$9+I21*'c design-col'!$K$10+I22*'c design-col'!$K$11 -> 272.3781388 | J24: =(J17*'c design-col'!$K$6)+(J18*'c design-col'!$K$7)+J19*'c design-col'!$K$8+J20*'c design-col'!$K$9+J21*'c design-col'!$K$10+J22*'c design-col'!$K$11 -> 293.480837 | K24: =(K17*'c design-col'!$K$6)+(K18*'c design-col'!$K$7)+K19*'c design-col'!$K$8+K20*'c design-col'!$K$9+K21*'c design-col'!$K$10+K22*'c design-col'!$K$11 -> 317.2117901 | L24: =(L17*'c design-col'!$K$6)+(L18*'c design-col'!$K$7)+L19*'c design-col'!$K$8+L20*'c design-col'!$K$9+L21*'c design-col'!$K$10+L22*'c design-col'!$K$11 -> 353.195792 | M24: =(M17*'c design-col'!$K$6)+(M18*'c design-col'!$K$7)+M19*'c design-col'!$K$8+M20*'c design-col'!$K$9+M21*'c design-col'!$K$10+M22*'c design-col'!$K$11 -> 402.3048885 | N24: =(N17*'c design-col'!$K$6)+(N18*'c design-col'!$K$7)+N19*'c design-col'!$K$8+N20*'c design-col'!$K$9+N21*'c design-col'!$K$10+N22*'c design-col'!$K$11 -> 475.8696884 | O24: =(O17*'c design-col'!$K$6)+(O18*'c design-col'!$K$7)+O19*'c design-col'!$K$8+O20*'c design-col'!$K$9+O21*'c design-col'!$K$10+O22*'c design-col'!$K$11 -> 572.1152112 | P24: =(P17*'c design-col'!$K$6)+(P18*'c design-col'!$K$7)+P19*'c design-col'!$K$8+P20*'c design-col'!$K$9+P21*'c design-col'!$K$10+P22*'c design-col'!$K$11 -> 702.4047049 | Q24: =(Q17*'c design-col'!$K$6)+(Q18*'c design-col'!$K$7)+Q19*'c design-col'!$K$8+Q20*'c design-col'!$K$9+Q21*'c design-col'!$K$10+Q22*'c design-col'!$K$11 -> 896.5041043
A25: ECO2/tonne | B25: =B24/B23 -> 0.05679271818 | C25: =C24/C23 -> 0.06351289776 | D25: =D24/D23 -> 0.06984465474 | E25: =E24/E23 -> 0.07615274643 | F25: =F24/F23 -> 0.08280215167 | G25: =G24/G23 -> 0.09274207882 | H25: =H24/H23 -> 0.1048885943 | I25: =I24/I23 -> 0.1132737831 | J25: =J24/J23 -> 0.1220954516 | K25: =K24/K23 -> 0.1319077637 | L25: =L24/L23 -> 0.1469200466 | M25: =M24/M23 -> 0.1671951162 | N25: =N24/N23 -> 0.1978174628 | O25: =O24/O23 -> 0.2377868708 | P25: =P24/P23 -> 0.2918659956 | Q25: =Q24/Q23 -> 0.3714539483
A26: ECO2 / m3 / Mpa | B26: =B24/B16 -> 17.05911272 | C26: =C24/C16 -> 12.72427979 | D26: 10.49503243 | E26: 9.154321648 | F26: 7.96324853 | G26: 7.432968478 | H26: 7.20314929 | I26: 6.80945347 | J26: 6.521796377 | K26: 6.344235801 | L26: 6.421741672 | M26: 6.705081475 | N26: 6.798138406 | O26: 7.151440139 | P26: 7.804496722 | Q26: 8.965041043
A27: ECO2 / tonne / Mpa | B27: =B25/B16 -> 0.007099089773 | C27: =C25/C16 -> 0.00529274148 | D27: 0.004365290921 | E27: 0.003807637321 | F27: 0.003312086067 | G27: 0.003091402627 | H27: 0.002996816979 | I27: 0.002831844577 | J27: 0.002713232257 | K27: 0.002638155273 | L27: 0.002671273574 | M27: 0.00278658527 | N27: 0.002825963754 | O27: 0.002972335885 | P27: 0.003242955506 | Q27: 0.003714539483
A28: 20% PFA, No SP
A29: 0-10 | B29: 8 | C29: 12 | D29: 16 | E29: 20 | F29: 25 | G29: 30 | H29: 35 | I29: 40 | J29: 45 | K29: 50 | L29: 55 | M29: 60 | N29: 70 | O29: 80 | P29: 90 | Q29: 100
A30: Water content | B30: 125 | C30: 125 | D30: 125 | E30: 125 | F30: 125 | G30: 125 | H30: 125 | I30: 125 | J30: 125 | K30: 125 | L30: 125 | M30: 125 | N30: 125 | O30: 125 | P30: 125 | Q30: 125
A31: Cement content | B31: 128 | C31: 144 | D31: 161 | E31: 177 | F31: 195 | G31: 220 | H31: 252 | I31: 274 | J31: 297 | K31: 322 | L31: 362 | M31: 415 | N31: 496 | O31: 601 | P31: 743 | Q31: 949
A32: PFA content | B32: 32 | C32: 36 | D32: 40 | E32: 44 | F32: 49 | G32: 55 | H32: 63 | I32: 68 | J32: 74 | K32: 81 | L32: 91 | M32: 104 | N32: 124 | O32: 150 | P32: 186 | Q32: 237
A33: Fine Agg | B33: 823 | C33: 772 | D33: 731 | E33: 697 | F33: 666 | G33: 629 | H33: 591 | I33: 569 | J33: 548 | K33: 527 | L33: 499 | M33: 467 | N33: 425 | O33: 379 | P33: 325 | Q33: 256
A34: Coarse Agg | B34: 1291 | C34: 1322 | D34: 1342 | E34: 1356 | F34: 1365 | G34: 1370 | H34: 1369 | I34: 1364 | J34: 1356 | K34: 1344 | L34: 1323 | M34: 1289 | N34: 1229 | O34: 1144 | P34: 1020 | Q34: 832
A35: Plasticiser dosage | B35: 0 | C35: 0 | D35: 0 | E35: 0 | F35: 0 | G35: 0 | H35: 0 | I35: 0 | J35: 0 | K35: 0 | L35: 0 | M35: 0 | N35: 0 | O35: 0 | P35: 0 | Q35: 0
A36: Concrete | B36: =B30+B31+B32+B33+B34+B35 -> 2399 | C36: =C30+C31+C32+C33+C34+C35 -> 2399 | D36: 2399 | E36: 2399 | F36: 2400 | G36: 2399 | H36: 2400 | I36: 2400 | J36: 2400 | K36: 2399 | L36: 2400 | M36: 2400 | N36: 2399 | O36: 2399 | P36: 2399 | Q36: 2399
A37: ECO2 / m3 | B37: =(B30*'c design-col'!$K$6)+(B31*'c design-col'!$K$7)+B32*'c design-col'!$K$8+B33*'c design-col'!$K$9+B34*'c design-col'!$K$10+B35*'c design-col'!$K$11 -> 132.6210314 | C37: =(C30*'c design-col'!$K$6)+(C31*'c design-col'!$K$7)+C32*'c design-col'!$K$8+C33*'c design-col'!$K$9+C34*'c design-col'!$K$10+C35*'c design-col'!$K$11 -> 147.1517042 | D37: =(D30*'c design-col'!$K$6)+(D31*'c design-col'!$K$7)+D32*'c design-col'!$K$8+D33*'c design-col'!$K$9+D34*'c design-col'!$K$10+D35*'c design-col'!$K$11 -> 162.4479958 | E37: =(E30*'c design-col'!$K$6)+(E31*'c design-col'!$K$7)+E32*'c design-col'!$K$8+E33*'c design-col'!$K$9+E34*'c design-col'!$K$10+E35*'c design-col'!$K$11 -> 176.7994692 | F37: =(F30*'c design-col'!$K$6)+(F31*'c design-col'!$K$7)+F32*'c design-col'!$K$8+F33*'c design-col'!$K$9+F34*'c design-col'!$K$10+F35*'c design-col'!$K$11 -> 192.8883797 | G37: =(G30*'c design-col'!$K$6)+(G31*'c design-col'!$K$7)+G32*'c design-col'!$K$8+G33*'c design-col'!$K$9+G34*'c design-col'!$K$10+G35*'c design-col'!$K$11 -> 215.1261915 | H37: =(H30*'c design-col'!$K$6)+(H31*'c design-col'!$K$7)+H32*'c design-col'!$K$8+H33*'c design-col'!$K$9+H34*'c design-col'!$K$10+H35*'c design-col'!$K$11 -> 243.5257566 | I37: =(I30*'c design-col'!$K$6)+(I31*'c design-col'!$K$7)+I32*'c design-col'!$K$8+I33*'c design-col'!$K$9+I34*'c design-col'!$K$10+I35*'c design-col'!$K$11 -> 262.9910655 | J37: =(J30*'c design-col'!$K$6)+(J31*'c design-col'!$K$7)+J32*'c design-col'!$K$8+J33*'c design-col'!$K$9+J34*'c design-col'!$K$10+J35*'c design-col'!$K$11 -> 283.331011 | K37: =(K30*'c design-col'!$K$6)+(K31*'c design-col'!$K$7)+K32*'c design-col'!$K$8+K33*'c design-col'!$K$9+K34*'c design-col'!$K$10+K35*'c design-col'!$K$11 -> 305.414312 | L37: =(L30*'c design-col'!$K$6)+(L31*'c design-col'!$K$7)+L32*'c design-col'!$K$8+L33*'c design-col'!$K$9+L34*'c design-col'!$K$10+L35*'c design-col'!$K$11 -> 340.7050029 | M37: =(M30*'c design-col'!$K$6)+(M31*'c design-col'!$K$7)+M32*'c design-col'!$K$8+M33*'c design-col'!$K$9+M34*'c design-col'!$K$10+M35*'c design-col'!$K$11 -> 387.3908421 | N37: =(N30*'c design-col'!$K$6)+(N31*'c design-col'!$K$7)+N32*'c design-col'!$K$8+N33*'c design-col'!$K$9+N34*'c design-col'!$K$10+N35*'c design-col'!$K$11 -> 458.6571205 | O37: =(O30*'c design-col'!$K$6)+(O31*'c design-col'!$K$7)+O32*'c design-col'!$K$8+O33*'c design-col'!$K$9+O34*'c design-col'!$K$10+O35*'c design-col'!$K$11 -> 550.968028 | P37: =(P30*'c design-col'!$K$6)+(P31*'c design-col'!$K$7)+P32*'c design-col'!$K$8+P33*'c design-col'!$K$9+P34*'c design-col'!$K$10+P35*'c design-col'!$K$11 -> 675.73286 | Q37: =(Q30*'c design-col'!$K$6)+(Q31*'c design-col'!$K$7)+Q32*'c design-col'!$K$8+Q33*'c design-col'!$K$9+Q34*'c design-col'!$K$10+Q35*'c design-col'!$K$11 -> 856.61396
A38: ECO2/tonne | B38: =B37/B36 -> 0.05528179716 | C38: =C37/C36 -> 0.06133876789 | D38: =D37/D36 -> 0.06771487946 | E38: =E37/E36 -> 0.07369715264 | F38: =F37/F36 -> 0.08037015823 | G38: =G37/G36 -> 0.089673277 | H38: =H37/H36 -> 0.1014690653 | I38: =I37/I36 -> 0.1095796106 | J38: =J37/J36 -> 0.1180545879 | K38: =K37/K36 -> 0.1273090087 | L38: =L37/L36 -> 0.1419604179 | M38: =M37/M36 -> 0.1614128509 | N38: =N37/N36 -> 0.1911867947 | O38: =O37/O36 -> 0.2296657057 | P38: =P37/P36 -> 0.281672722 | Q38: =Q37/Q36 -> 0.357071263
A39: ECO2 / m3 / Mpa | B39: =B37/B29 -> 16.57762892 | C39: =C37/C29 -> 12.26264201 | D39: 10.15299974 | E39: 8.839973459 | F39: 7.71553519 | G39: 7.170873051 | H39: 6.95787876 | I39: 6.574776638 | J39: 6.29624469 | K39: 6.108286239 | L39: 6.194636417 | M39: 6.456514034 | N39: 6.552244579 | O39: 6.88710035 | P39: 7.508142889 | Q39: 8.5661396
A40: ECO2 / tonne / Mpa | B40: =B38/B29 -> 0.006910224646 | C40: =C38/C29 -> 0.005111563991 | D40: 0.004232179966 | E40: 0.003684857632 | F40: 0.003214806329 | G40: 0.002989109233 | H40: 0.00289911615 | I40: 0.002739490266 | J40: 0.002623435287 | K40: 0.002546180175 | L40: 0.002581098507 | M40: 0.002690214181 | N40: 0.002731239924 | O40: 0.002870821321 | P40: 0.003129696911 | Q40: 0.00357071263
A42: 20% PFA, SP
A43: 0-10 | B43: 8 | C43: 12 | D43: 16 | E43: 20 | F43: 25 | G43: 30 | H43: 35 | I43: 40 | J43: 45 | K43: 50 | L43: 55 | M43: 60 | N43: 70 | O43: 80 | P43: 90 | Q43: 100
A44: Water content | B44: 112.5 | C44: 112.5 | D44: 112.5 | E44: 112.5 | F44: 112.5 | G44: 112.5 | H44: 112.5 | I44: 112.5 | J44: 112.5 | K44: 112.5 | L44: 112.5 | M44: 112.5 | N44: 112.5 | O44: 112.5 | P44: 112.5 | Q44: 112.5
A45: Cement content | B45: 115 | C45: 130 | D45: 145 | E45: 160 | F45: 175 | G45: 198 | H45: 227 | I45: 246 | J45: 267 | K45: 290 | L45: 326 | M45: 373 | N45: 446 | O45: 541 | P45: 669 | Q45: 854
A46: PFA content | B46: 29 | C46: 32 | D46: 36 | E46: 40 | F46: 44 | G46: 50 | H46: 57 | I46: 62 | J46: 67 | K46: 73 | L46: 81 | M46: 93 | N46: 112 | O46: 135 | P46: 167 | Q46: 214
A47: Fine Agg | B47: 840 | C47: 789 | D47: 748 | E47: 713 | F47: 683 | G47: 646 | H47: 608 | I47: 587 | J47: 566 | K47: 546 | L47: 519 | M47: 488 | N47: 448 | O47: 405 | P47: 354 | Q47: 290
A48: Coarse Agg | B48: 1318 | C48: 1350 | D48: 1372 | E48: 1388 | F48: 1399 | G48: 1408 | H48: 1410 | I48: 1407 | J48: 1401 | K48: 1392 | L48: 1375 | M48: 1347 | N48: 1295 | O48: 1221 | P48: 1111 | Q48: 943
A49: Plasticiser dosage | B49: 0.6 | C49: 0.6 | D49: 0.7 | E49: 0.8 | F49: 0.9 | G49: 1 | H49: 1.1 | I49: 1.2 | J49: 1.3 | K49: 1.5 | L49: 1.6 | M49: 1.9 | N49: 2.2 | O49: 2.7 | P49: 3.3 | Q49: 4.3
A50: Concrete | B50: =B44+B45+B46+B47+B48+B49 -> 2415.1 | C50: =C44+C45+C46+C47+C48+C49 -> 2414.1 | D50: 2414.2 | E50: 2414.3 | F50: 2414.4 | G50: 2415.5 | H50: 2415.6 | I50: 2415.7 | J50: 2414.8 | K50: 2415 | L50: 2415.1 | M50: 2415.4 | N50: 2415.7 | O50: 2417.2 | P50: 2416.8 | Q50: 2417.8
A51: ECO2 / m3 | B51: =(B44*'c design-col'!$K$6)+(B45*'c design-col'!$K$7)+B46*'c design-col'!$K$8+B47*'c design-col'!$K$9+B48*'c design-col'!$K$10+B49*'c design-col'!$K$11 -> 121.4233715 | C51: =(C44*'c design-col'!$K$6)+(C45*'c design-col'!$K$7)+C46*'c design-col'!$K$8+C47*'c design-col'!$K$9+C48*'c design-col'!$K$10+C49*'c design-col'!$K$11 -> 135.0560139 | D51: =(D44*'c design-col'!$K$6)+(D45*'c design-col'!$K$7)+D46*'c design-col'!$K$8+D47*'c design-col'!$K$9+D48*'c design-col'!$K$10+D49*'c design-col'!$K$11 -> 148.6102455 | E51: =(E44*'c design-col'!$K$6)+(E45*'c design-col'!$K$7)+E46*'c design-col'!$K$8+E47*'c design-col'!$K$9+E48*'c design-col'!$K$10+E49*'c design-col'!$K$11 -> 162.1012302 | F51: =(F44*'c design-col'!$K$6)+(F45*'c design-col'!$K$7)+F46*'c design-col'!$K$8+F47*'c design-col'!$K$9+F48*'c design-col'!$K$10+F49*'c design-col'!$K$11 -> 175.5395092 | G51: =(G44*'c design-col'!$K$6)+(G45*'c design-col'!$K$7)+G46*'c design-col'!$K$8+G47*'c design-col'!$K$9+G48*'c design-col'!$K$10+G49*'c design-col'!$K$11 -> 196.0609661 | H51: =(H44*'c design-col'!$K$6)+(H45*'c design-col'!$K$7)+H46*'c design-col'!$K$8+H47*'c design-col'!$K$9+H48*'c design-col'!$K$10+H49*'c design-col'!$K$11 -> 221.8204408 | I51: =(I44*'c design-col'!$K$6)+(I45*'c design-col'!$K$7)+I46*'c design-col'!$K$8+I47*'c design-col'!$K$9+I48*'c design-col'!$K$10+I49*'c design-col'!$K$11 -> 238.6621181 | J51: =(J44*'c design-col'!$K$6)+(J45*'c design-col'!$K$7)+J46*'c design-col'!$K$8+J47*'c design-col'!$K$9+J48*'c design-col'!$K$10+J49*'c design-col'!$K$11 -> 257.2330035 | K51: =(K44*'c design-col'!$K$6)+(K45*'c design-col'!$K$7)+K46*'c design-col'!$K$8+K47*'c design-col'!$K$9+K48*'c design-col'!$K$10+K49*'c design-col'!$K$11 -> 277.5624089 | L51: =(L44*'c design-col'!$K$6)+(L45*'c design-col'!$K$7)+L46*'c design-col'!$K$8+L47*'c design-col'!$K$9+L48*'c design-col'!$K$10+L49*'c design-col'!$K$11 -> 309.3172906 | M51: =(M44*'c design-col'!$K$6)+(M45*'c design-col'!$K$7)+M46*'c design-col'!$K$8+M47*'c design-col'!$K$9+M48*'c design-col'!$K$10+M49*'c design-col'!$K$11 -> 350.7522609 | N51: =(N44*'c design-col'!$K$6)+(N45*'c design-col'!$K$7)+N46*'c design-col'!$K$8+N47*'c design-col'!$K$9+N48*'c design-col'!$K$10+N49*'c design-col'!$K$11 -> 415.0279214 | O51: =(O44*'c design-col'!$K$6)+(O45*'c design-col'!$K$7)+O46*'c design-col'!$K$8+O47*'c design-col'!$K$9+O48*'c design-col'!$K$10+O49*'c design-col'!$K$11 -> 498.5673153 | P51: =(P44*'c design-col'!$K$6)+(P45*'c design-col'!$K$7)+P46*'c design-col'!$K$8+P47*'c design-col'!$K$9+P48*'c design-col'!$K$10+P49*'c design-col'!$K$11 -> 611.0366605 | Q51: =(Q44*'c design-col'!$K$6)+(Q45*'c design-col'!$K$7)+Q46*'c design-col'!$K$8+Q47*'c design-col'!$K$9+Q48*'c design-col'!$K$10+Q49*'c design-col'!$K$11 -> 773.5168339
A52: ECO2/tonne | B52: =B51/B50 -> 0.05027674691 | C52: =C51/C50 -> 0.05594466423 | D52: =D51/D50 -> 0.061556725 | E52: =E51/E50 -> 0.0671421241 | F52: =F51/F50 -> 0.07270523079 | G52: =G51/G50 -> 0.08116786011 | H52: =H51/H50 -> 0.0918282997 | I52: =I51/I50 -> 0.09879625705 | J52: =J51/J50 -> 0.1065235231 | K52: =K51/K50 -> 0.1149326745 | L52: =L51/L50 -> 0.1280763905 | M52: =M51/M50 -> 0.1452149793 | N52: =N51/N50 -> 0.1718044134 | O52: =O51/O50 -> 0.2062581976 | P52: =P51/P50 -> 0.2528288069 | Q52: =Q51/Q50 -> 0.3199258971
A53: ECO2 / m3 / Mpa | B53: =B51/B43 -> 15.17792143 | C53: =C51/C43 -> 11.25466783 | D53: 9.288140343 | E53: 8.10506151 | F53: 7.021580369 | G53: 6.535365536 | H53: 6.337726879 | I53: 5.966552954 | J53: 5.716288968 | K53: 5.551248179 | L53: 5.623950739 | M53: 5.845871016 | N53: 5.928970306 | O53: 6.232091441 | P53: 6.789296228 | Q53: 7.735168339
A54: ECO2 / tonne / Mpa | B54: =B52/B43 -> 0.006284593364 | C54: =C52/C43 -> 0.004662055353 | D54: 0.003847295312 | E54: 0.003357106205 | F54: 0.002908209232 | G54: 0.002705595337 | H54: 0.002623665706 | I54: 0.002469906426 | J54: 0.002367189402 | K54: 0.00229865349 | L54: 0.002328661645 | M54: 0.002420249655 | N54: 0.002454348763 | O54: 0.00257822747 | P54: 0.002809208966 | Q54: 0.003199258971
A56: 40% PFA, No SP
A57: 0-10 | B57: 8 | C57: 12 | D57: 16 | E57: 20 | F57: 25 | G57: 30 | H57: 35 | I57: 40 | J57: 45 | K57: 50 | L57: 55 | M57: 60 | N57: 70 | O57: 80 | P57: 90 | Q57: 100
A58: Water content | B58: 115 | C58: 115 | D58: 115 | E58: 115 | F58: 115 | G58: 115 | H58: 115 | I58: 115 | J58: 115 | K58: 115 | L58: 115 | M58: 115 | N58: 115 | O58: 115 | P58: 115 | Q58: 115
A59: Cement content | B59: 105 | C59: 119 | D59: 132 | E59: 146 | F59: 160 | G59: 181 | H59: 208 | I59: 226 | J59: 245 | K59: 266 | L59: 298 | M59: 342 | N59: 409 | O59: 495 | P59: 613 | Q59: 782
A60: PFA content | B60: 70 | C60: 79 | D60: 88 | E60: 97 | F60: 107 | G60: 121 | H60: 138 | I60: 150 | J60: 163 | K60: 177 | L60: 199 | M60: 228 | N60: 272 | O60: 330 | P60: 408 | Q60: 522
A61: Fine Agg | B61: 825 | C61: 774 | D61: 732 | E61: 697 | F61: 665 | G61: 627 | H61: 588 | I61: 565 | J61: 543 | K61: 522 | L61: 493 | M61: 459 | N61: 415 | O61: 366 | P61: 308 | Q61: 233
A62: Coarse Agg | B62: 1295 | C62: 1324 | D62: 1343 | E62: 1356 | F62: 1363 | G62: 1367 | H62: 1362 | I62: 1355 | J62: 1345 | K62: 1331 | L62: 1306 | M62: 1267 | N62: 1200 | O62: 1105 | P62: 967 | Q62: 759
A63: Plasticiser dosage
A64: Concrete | B64: =B58+B59+B60+B61+B62 -> 2410 | C64: =C58+C59+C60+C61+C62 -> 2411 | D64: 2410 | E64: 2411 | F64: 2410 | G64: 2411 | H64: 2411 | I64: 2411 | J64: 2411 | K64: 2411 | L64: 2411 | M64: 2411 | N64: 2411 | O64: 2411 | P64: 2411 | Q64: 2411
A65: ECO2 / m3 | B65: =(B58*'c design-col'!$K$6)+(B59*'c design-col'!$K$7)+B60*'c design-col'!$K$8+B61*'c design-col'!$K$9+B62*'c design-col'!$K$10+B63*'c design-col'!$K$11 -> 113.363758 | C65: =(C58*'c design-col'!$K$6)+(C59*'c design-col'!$K$7)+C60*'c design-col'!$K$8+C61*'c design-col'!$K$9+C62*'c design-col'!$K$10+C63*'c design-col'!$K$11 -> 126.2359597 | D65: =(D58*'c design-col'!$K$6)+(D59*'c design-col'!$K$7)+D60*'c design-col'!$K$8+D61*'c design-col'!$K$9+D62*'c design-col'!$K$10+D63*'c design-col'!$K$11 -> 138.1165558 | E65: =(E58*'c design-col'!$K$6)+(E59*'c design-col'!$K$7)+E60*'c design-col'!$K$8+E61*'c design-col'!$K$9+E62*'c design-col'!$K$10+E63*'c design-col'!$K$11 -> 150.8200993 | F65: =(F58*'c design-col'!$K$6)+(F59*'c design-col'!$K$7)+F60*'c design-col'!$K$8+F61*'c design-col'!$K$9+F62*'c design-col'!$K$10+F63*'c design-col'!$K$11 -> 163.4804616 | G65: =(G58*'c design-col'!$K$6)+(G59*'c design-col'!$K$7)+G60*'c design-col'!$K$8+G61*'c design-col'!$K$9+G62*'c design-col'!$K$10+G63*'c design-col'!$K$11 -> 182.3835778 | H65: =(H58*'c design-col'!$K$6)+(H59*'c design-col'!$K$7)+H60*'c design-col'!$K$8+H61*'c design-col'!$K$9+H62*'c design-col'!$K$10+H63*'c design-col'!$K$11 -> 206.5530065 | I65: =(I58*'c design-col'!$K$6)+(I59*'c design-col'!$K$7)+I60*'c design-col'!$K$8+I61*'c design-col'!$K$9+I62*'c design-col'!$K$10+I63*'c design-col'!$K$11 -> 222.6437672 | J65: =(J58*'c design-col'!$K$6)+(J59*'c design-col'!$K$7)+J60*'c design-col'!$K$8+J61*'c design-col'!$K$9+J62*'c design-col'!$K$10+J63*'c design-col'!$K$11 -> 239.6091645 | K65: =(K58*'c design-col'!$K$6)+(K59*'c design-col'!$K$7)+K60*'c design-col'!$K$8+K61*'c design-col'!$K$9+K62*'c design-col'!$K$10+K63*'c design-col'!$K$11 -> 258.3202286 | L65: =(L58*'c design-col'!$K$6)+(L59*'c design-col'!$K$7)+L60*'c design-col'!$K$8+L61*'c design-col'!$K$9+L62*'c design-col'!$K$10+L63*'c design-col'!$K$11 -> 286.8101345 | M65: =(M58*'c design-col'!$K$6)+(M59*'c design-col'!$K$7)+M60*'c design-col'!$K$8+M61*'c design-col'!$K$9+M62*'c design-col'!$K$10+M63*'c design-col'!$K$11 -> 325.9041417 | N65: =(N58*'c design-col'!$K$6)+(N59*'c design-col'!$K$7)+N60*'c design-col'!$K$8+N61*'c design-col'!$K$9+N62*'c design-col'!$K$10+N63*'c design-col'!$K$11 -> 385.3494685 | O65: =(O58*'c design-col'!$K$6)+(O59*'c design-col'!$K$7)+O60*'c design-col'!$K$8+O61*'c design-col'!$K$9+O62*'c design-col'!$K$10+O63*'c design-col'!$K$11 -> 461.5951406 | P65: =(P58*'c design-col'!$K$6)+(P59*'c design-col'!$K$7)+P60*'c design-col'!$K$8+P61*'c design-col'!$K$9+P62*'c design-col'!$K$10+P63*'c design-col'!$K$11 -> 566.091601 | Q65: =(Q58*'c design-col'!$K$6)+(Q59*'c design-col'!$K$7)+Q60*'c design-col'!$K$8+Q61*'c design-col'!$K$9+Q62*'c design-col'!$K$10+Q63*'c design-col'!$K$11 -> 715.6991131
A66: ECO2/tonne | B66: =B65/B64 -> 0.04703890372 | C66: =C65/C64 -> 0.05235834083 | D66: =D65/D64 -> 0.05730977418 | E66: =E65/E64 -> 0.06255499763 | F66: =F65/F64 -> 0.06783421644 | G66: =G65/G64 -> 0.07564644453 | H66: =H65/H64 -> 0.08567109354 | I66: =I65/I64 -> 0.09234498847 | J66: =J65/J64 -> 0.09938165262 | K66: =K65/K64 -> 0.1071423594 | L66: =L65/L64 -> 0.118958994 | M66: =M65/M64 -> 0.1351738456 | N66: =N65/N64 -> 0.1598297256 | O66: =O65/O64 -> 0.191453812 | P66: =P65/P64 -> 0.234795355 | Q66: =Q65/Q64 -> 0.2968474132
A67: ECO2 / m3 / Mpa | B67: =B65/B57 -> 14.17046975 | C67: =C65/C57 -> 10.51966331 | D67: 8.632284736 | E67: 7.541004964 | F67: 6.539218464 | G67: 6.079452592 | H67: 5.901514472 | I67: 5.56609418 | J67: 5.324648099 | K67: 5.166404572 | L67: 5.214729719 | M67: 5.431735696 | N67: 5.504992408 | O67: 5.769939258 | P67: 6.289906678 | Q67: 7.156991131
A68: ECO2 / tonne / Mpa | B68: =B66/B57 -> 0.005879862965 | C68: =C66/C57 -> 0.004363195069 | D68: 0.003581860886 | E68: 0.003127749882 | F68: 0.002713368657 | G68: 0.002521548151 | H68: 0.00244774553 | I68: 0.002308624712 | J68: 0.002208481169 | K68: 0.002142847189 | L68: 0.0021628908 | M68: 0.002252897427 | N68: 0.002283281795 | O68: 0.002393172649 | P68: 0.002608837278 | Q68: 0.002968474132
A70: 40% PFA, SP
A71: 0-10 | B71: 8 | C71: 12 | D71: 16 | E71: 20 | F71: 25 | G71: 30 | H71: 35 | I71: 40 | J71: 45 | K71: 50 | L71: 55 | M71: 60 | N71: 70 | O71: 80 | P71: 90 | Q71: 100
A72: Water content | B72: 103.5 | C72: 103.5 | D72: 103.5 | E72: 103.5 | F72: 103.5 | G72: 103.5 | H72: 103.5 | I72: 103.5 | J72: 103.5 | K72: 103.5 | L72: 103.5 | M72: 103.5 | N72: 103.5 | O72: 103.5 | P72: 103.5 | Q72: 103.5
A73: Cement content | B73: 95 | C73: 107 | D73: 119 | E73: 132 | F73: 144 | G73: 163 | H73: 187 | I73: 203 | J73: 220 | K73: 239 | L73: 269 | M73: 308 | N73: 368 | O73: 446 | P73: 551 | Q73: 704
A74: PFA content | B74: 63 | C74: 71 | D74: 79 | E74: 88 | F74: 96 | G74: 109 | H74: 125 | I74: 135 | J74: 147 | K74: 159 | L74: 179 | M74: 205 | N74: 245 | O74: 297 | P74: 368 | Q74: 469
A75: Fine Agg | B75: 842 | C75: 790 | D75: 749 | E75: 713 | F75: 682 | G75: 644 | H75: 606 | I75: 583 | J75: 562 | K75: 541 | L75: 513 | M75: 481 | N75: 439 | O75: 393 | P75: 339 | Q75: 270
A76: Coarse Agg | B76: 1321 | C76: 1352 | D76: 1373 | E76: 1388 | F76: 1398 | G76: 1404 | H76: 1403 | I76: 1399 | J76: 1391 | K76: 1381 | L76: 1360 | M76: 1327 | N76: 1269 | O76: 1185 | P76: 1063 | Q76: 877
A77: Plasticiser dosage | B77: 0.6 | C77: 0.7 | D77: 0.8 | E77: 0.9 | F77: 1 | G77: 1.1 | H77: 1.2 | I77: 1.4 | J77: 1.5 | K77: 1.6 | L77: 1.8 | M77: 2.1 | N77: 2.5 | O77: 3 | P77: 3.7 | Q77: 4.7
A78: Concrete | B78: =B72+B73+B74+B75+B76+B77 -> 2425.1 | C78: =C72+C73+C74+C75+C76 -> 2423.5 | D78: 2423.5 | E78: 2424.5 | F78: 2423.5 | G78: 2423.5 | H78: 2424.5 | I78: 2423.5 | J78: 2423.5 | K78: 2423.5 | L78: 2424.5 | M78: 2424.5 | N78: 2424.5 | O78: 2424.5 | P78: 2424.5 | Q78: 2423.5
A79: ECO2 / m3 | B79: =(B72*'c design-col'!$K$6)+(B73*'c design-col'!$K$7)+B74*'c design-col'!$K$8+B75*'c design-col'!$K$9+B76*'c design-col'!$K$10+B77*'c design-col'!$K$11 -> 104.6978941 | C79: =(C72*'c design-col'!$K$6)+(C73*'c design-col'!$K$7)+C74*'c design-col'!$K$8+C75*'c design-col'!$K$9+C76*'c design-col'!$K$10+C77*'c design-col'!$K$11 -> 115.7987244 | D79: =(D72*'c design-col'!$K$6)+(D73*'c design-col'!$K$7)+D74*'c design-col'!$K$8+D75*'c design-col'!$K$9+D76*'c design-col'!$K$10+D77*'c design-col'!$K$11 -> 126.7964547 | E79: =(E72*'c design-col'!$K$6)+(E73*'c design-col'!$K$7)+E74*'c design-col'!$K$8+E75*'c design-col'!$K$9+E76*'c design-col'!$K$10+E77*'c design-col'!$K$11 -> 138.6395095 | F79: =(F72*'c design-col'!$K$6)+(F73*'c design-col'!$K$7)+F74*'c design-col'!$K$8+F75*'c design-col'!$K$9+F76*'c design-col'!$K$10+F77*'c design-col'!$K$11 -> 149.5189758 | G79: =(G72*'c design-col'!$K$6)+(G73*'c design-col'!$K$7)+G74*'c design-col'!$K$8+G75*'c design-col'!$K$9+G76*'c design-col'!$K$10+G77*'c design-col'!$K$11 -> 166.6530318 | H79: =(H72*'c design-col'!$K$6)+(H73*'c design-col'!$K$7)+H74*'c design-col'!$K$8+H75*'c design-col'!$K$9+H76*'c design-col'!$K$10+H77*'c design-col'!$K$11 -> 188.1975342 | I79: =(I72*'c design-col'!$K$6)+(I73*'c design-col'!$K$7)+I74*'c design-col'!$K$8+I75*'c design-col'!$K$9+I76*'c design-col'!$K$10+I77*'c design-col'!$K$11 -> 202.5050879 | J79: =(J72*'c design-col'!$K$6)+(J73*'c design-col'!$K$7)+J74*'c design-col'!$K$8+J75*'c design-col'!$K$9+J76*'c design-col'!$K$10+J77*'c design-col'!$K$11 -> 217.7037366 | K79: =(K72*'c design-col'!$K$6)+(K73*'c design-col'!$K$7)+K74*'c design-col'!$K$8+K75*'c design-col'!$K$9+K76*'c design-col'!$K$10+K77*'c design-col'!$K$11 -> 234.6444458 | L79: =(L72*'c design-col'!$K$6)+(L73*'c design-col'!$K$7)+L74*'c design-col'!$K$8+L75*'c design-col'!$K$9+L76*'c design-col'!$K$10+L77*'c design-col'!$K$11 -> 261.3663088 | M79: =(M72*'c design-col'!$K$6)+(M73*'c design-col'!$K$7)+M74*'c design-col'!$K$8+M75*'c design-col'!$K$9+M76*'c design-col'!$K$10+M77*'c design-col'!$K$11 -> 296.0416415 | N79: =(N72*'c design-col'!$K$6)+(N73*'c design-col'!$K$7)+N74*'c design-col'!$K$8+N75*'c design-col'!$K$9+N76*'c design-col'!$K$10+N77*'c design-col'!$K$11 -> 349.3120863 | O79: =(O72*'c design-col'!$K$6)+(O73*'c design-col'!$K$7)+O74*'c design-col'!$K$8+O75*'c design-col'!$K$9+O76*'c design-col'!$K$10+O77*'c design-col'!$K$11 -> 418.4730106 | P79: =(P72*'c design-col'!$K$6)+(P73*'c design-col'!$K$7)+P74*'c design-col'!$K$8+P75*'c design-col'!$K$9+P76*'c design-col'!$K$10+P77*'c design-col'!$K$11 -> 511.5048842 | Q79: =(Q72*'c design-col'!$K$6)+(Q73*'c design-col'!$K$7)+Q74*'c design-col'!$K$8+Q75*'c design-col'!$K$9+Q76*'c design-col'!$K$10+Q77*'c design-col'!$K$11 -> 646.9159009
A80: ECO2/tonne | B80: =B79/B78 -> 0.04317260902 | C80: =C79/C78 -> 0.04778160692 | D80: =D79/D78 -> 0.05231956041 | E80: =E79/E78 -> 0.05718272201 | F80: =F79/F78 -> 0.06169547175 | G80: =G79/G78 -> 0.06876543505 | H80: =H79/H78 -> 0.07762323541 | I80: =I79/I78 -> 0.0835589387 | J80: =J79/J78 -> 0.08983030186 | K80: =K79/K78 -> 0.09682048517 | L80: =L79/L78 -> 0.1078021484 | M80: =M79/M78 -> 0.1221042035 | N80: =N79/N78 -> 0.1440759275 | O80: =O79/O78 -> 0.172601778 | P80: =P79/P78 -> 0.2109733488 | Q80: =Q79/Q78 -> 0.2669345578
A81: ECO2 / m3 / Mpa | B81: =B79/B71 -> 13.08723677 | C81: =C79/C71 -> 9.649893698 | D81: 7.924778416 | E81: 6.931975476 | F81: 5.980759032 | G81: 5.555101061 | H81: 5.377072407 | I81: 5.062627199 | J81: 4.837860813 | K81: 4.692888916 | L81: 4.752114705 | M81: 4.934027358 | N81: 4.990172662 | O81: 5.230912633 | P81: 5.683387602 | Q81: 6.469159009
A82: ECO2 / tonne / Mpa | B82: =B80/B71 -> 0.005396576128 | C82: =C80/C71 -> 0.003981800577 | D82: 0.003269972526 | E82: 0.002859136101 | F82: 0.00246781887 | G82: 0.002292181168 | H82: 0.002217806726 | I82: 0.002088973468 | J82: 0.00199622893 | K82: 0.001936409703 | L82: 0.001960039062 | M82: 0.002035070059 | N82: 0.002058227536 | O82: 0.002157522224 | P82: 0.00234414832 | Q82: 0.002669345578
A84: 0% PFA, No SP
A85: 10-30 | B85: 8 | C85: 12 | D85: 16 | E85: 20 | F85: 25 | G85: 30 | H85: 35 | I85: 40 | J85: 45 | K85: 50 | L85: 55 | M85: 60 | N85: 70 | O85: 80 | P85: 90 | Q85: 100
A86: Water content | B86: 160 | C86: 160 | D86: 160 | E86: 160 | F86: 160 | G86: 160 | H86: 160 | I86: 160 | J86: 160 | K86: 160 | L86: 160 | M86: 160 | N86: 160 | O86: 160 | P86: 160 | Q86: 160
A87: Cement content | B87: 176 | C87: 199 | D87: 221 | E87: 244 | F87: 268 | G87: 303 | H87: 347 | I87: 376 | J87: 409 | K87: 444 | L87: 498 | M87: 571 | N87: 682 | O87: 827 | P87: 1023 | Q87: 1306
A88: ECO2 / m3 | B88: 0 | C88: 0 | D88: 0 | E88: 0 | F88: 0 | G88: 0 | H88: 0 | I88: 0 | J88: 0 | K88: 0 | L88: 0 | M88: 0 | N88: 0 | O88: 0 | P88: 0 | Q88: 0
A89: ECO2/tonne | B89: 835 | C89: 783 | D89: 741 | E89: 706 | F89: 674 | G89: 635 | H89: 595 | I89: 572 | J89: 550 | K89: 528 | L89: 498 | M89: 463 | N89: 417 | O89: 366 | P89: 305 | Q89: 225
A90: ECO2 / m3 / Mpa | B90: 1188 | C90: 1217 | D90: 1237 | E90: 1250 | F90: 1258 | G90: 1261 | H90: 1257 | I90: 1250 | J90: 1241 | K90: 1227 | L90: 1203 | M90: 1165 | N90: 1100 | O90: 1006 | P90: 871 | Q90: 668
A91: ECO2 / tonne / Mpa | B91: 0 | C91: 0 | D91: 0 | E91: 0 | F91: 0 | G91: 0 | H91: 0 | I91: 0 | J91: 0 | K91: 0 | L91: 0 | M91: 0 | N91: 0 | O91: 0 | P91: 0 | Q91: 0
A92: Concrete | B92: =SUM(B86:B91) -> 2359 | C92: 2359 | D92: 2359 | E92: 2360 | F92: 2360 | G92: 2359 | H92: 2359 | I92: 2358 | J92: 2360 | K92: 2359 | L92: 2359 | M92: 2359 | N92: 2359 | O92: 2359 | P92: 2359 | Q92: 2359
A93: ECO2 / m3 | B93: =(B86*'c design-col'!$K$6)+(B87*'c design-col'!$K$7)+B88*'c design-col'!$K$8+B89*'c design-col'!$K$9+B90*'c design-col'!$K$10+B91*'c design-col'!$K$11 -> 172.922331 | C93: =(C86*'c design-col'!$K$6)+(C87*'c design-col'!$K$7)+C88*'c design-col'!$K$8+C89*'c design-col'!$K$9+C90*'c design-col'!$K$10+C91*'c design-col'!$K$11 -> 193.5041675 | D93: =(D86*'c design-col'!$K$6)+(D87*'c design-col'!$K$7)+D88*'c design-col'!$K$8+D89*'c design-col'!$K$9+D90*'c design-col'!$K$10+D91*'c design-col'!$K$11 -> 213.1095622 | E93: =(E86*'c design-col'!$K$6)+(E87*'c design-col'!$K$7)+E88*'c design-col'!$K$8+E89*'c design-col'!$K$9+E90*'c design-col'!$K$10+E91*'c design-col'!$K$11 -> 233.5250518 | F93: =(F86*'c design-col'!$K$6)+(F87*'c design-col'!$K$7)+F88*'c design-col'!$K$8+F89*'c design-col'!$K$9+F90*'c design-col'!$K$10+F91*'c design-col'!$K$11 -> 254.7670957 | G93: =(G86*'c design-col'!$K$6)+(G87*'c design-col'!$K$7)+G88*'c design-col'!$K$8+G89*'c design-col'!$K$9+G90*'c design-col'!$K$10+G91*'c design-col'!$K$11 -> 285.6514084 | H93: =(H86*'c design-col'!$K$6)+(H87*'c design-col'!$K$7)+H88*'c design-col'!$K$8+H89*'c design-col'!$K$9+H90*'c design-col'!$K$10+H91*'c design-col'!$K$11 -> 324.3983876 | I93: =(I86*'c design-col'!$K$6)+(I87*'c design-col'!$K$7)+I88*'c design-col'!$K$8+I89*'c design-col'!$K$9+I90*'c design-col'!$K$10+I91*'c design-col'!$K$11 -> 349.8878602 | J93: =(J86*'c design-col'!$K$6)+(J87*'c design-col'!$K$7)+J88*'c design-col'!$K$8+J89*'c design-col'!$K$9+J90*'c design-col'!$K$10+J91*'c design-col'!$K$11 -> 378.8894707 | K93: =(K86*'c design-col'!$K$6)+(K87*'c design-col'!$K$7)+K88*'c design-col'!$K$8+K89*'c design-col'!$K$9+K90*'c design-col'!$K$10+K91*'c design-col'!$K$11 -> 409.594584 | L93: =(L86*'c design-col'!$K$6)+(L87*'c design-col'!$K$7)+L88*'c design-col'!$K$8+L89*'c design-col'!$K$9+L90*'c design-col'!$K$10+L91*'c design-col'!$K$11 -> 456.9464548 | M93: =(M86*'c design-col'!$K$6)+(M87*'c design-col'!$K$7)+M88*'c design-col'!$K$8+M89*'c design-col'!$K$9+M90*'c design-col'!$K$10+M91*'c design-col'!$K$11 -> 520.9006073 | N93: =(N86*'c design-col'!$K$6)+(N87*'c design-col'!$K$7)+N88*'c design-col'!$K$8+N89*'c design-col'!$K$9+N90*'c design-col'!$K$10+N91*'c design-col'!$K$11 -> 618.0698639 | O93: =(O86*'c design-col'!$K$6)+(O87*'c design-col'!$K$7)+O88*'c design-col'!$K$8+O89*'c design-col'!$K$9+O90*'c design-col'!$K$10+O91*'c design-col'!$K$11 -> 744.9068568 | P93: =(P86*'c design-col'!$K$6)+(P87*'c design-col'!$K$7)+P88*'c design-col'!$K$8+P89*'c design-col'!$K$9+P90*'c design-col'!$K$10+P91*'c design-col'!$K$11 -> 916.2718068 | Q93: =(Q86*'c design-col'!$K$6)+(Q87*'c design-col'!$K$7)+Q88*'c design-col'!$K$8+Q89*'c design-col'!$K$9+Q90*'c design-col'!$K$10+Q91*'c design-col'!$K$11 -> 1163.616675
A94: ECO2/tonne | B94: =B93/B92 -> 0.07330323486 | C94: =C93/C92 -> 0.08202804895 | D94: =D93/D92 -> 0.09033894115 | E94: =E93/E92 -> 0.09895129313 | F94: =F93/F92 -> 0.1079521592 | G94: =G93/G92 -> 0.1210900417 | H94: =H93/H92 -> 0.1375152131 | I94: =I93/I92 -> 0.1483833165 | J94: =J93/J92 -> 0.1605463859 | K94: =K93/K92 -> 0.1736305994 | L94: =L93/L92 -> 0.1937034569 | M94: =M93/M92 -> 0.2208141616 | N94: =N93/N92 -> 0.2620050292 | O94: =O93/O92 -> 0.3157723005 | P94: =P93/P92 -> 0.3884153484 | Q94: =Q93/Q92 -> 0.4932669247
A95: ECO2 / m3 / Mpa | B95: =B93/B85 -> 21.61529138 | C95: =C93/C85 -> 16.12534729 | D95: 13.31934764 | E95: 11.67625259 | F95: 10.19068383 | G95: 9.521713614 | H95: 9.26852536 | I95: 8.747196505 | J95: 8.419766015 | K95: 8.191891679 | L95: 8.30811736 | M95: 8.681676788 | N95: 8.829569485 | O95: 9.31133571 | P95: 10.18079785 | Q95: 11.63616675
A96: ECO2 / tonne / Mpa | B96: =B94/B85 -> 0.009162904357 | C96: =C94/C85 -> 0.006835670745 | D96: 0.005646183822 | E96: 0.004947564657 | F96: 0.004318086368 | G96: 0.004036334724 | H96: 0.003929006087 | I96: 0.003709582911 | J96: 0.003567697464 | K96: 0.003472611988 | L96: 0.003521881035 | M96: 0.003680236027 | N96: 0.003742928989 | O96: 0.003947153756 | P96: 0.004315726093 | Q96: 0.004932669247
A98: 0% PFA, SP
A99: 10-30 | B99: 8 | C99: 12 | D99: 16 | E99: 20 | F99: 25 | G99: 30 | H99: 35 | I99: 40 | J99: 45 | K99: 50 | L99: 55 | M99: 60 | N99: 70 | O99: 80 | P99: 90 | Q99: 100
A100: Water content | B100: 144 | C100: 144 | D100: 144 | E100: 144 | F100: 144 | G100: 144 | H100: 144 | I100: 144 | J100: 144 | K100: 144 | L100: 144 | M100: 144 | N100: 144 | O100: 144 | P100: 144 | Q100: 144
A101: Cement content | B101: 158 | C101: 179 | D101: 199 | E101: 220 | F101: 241 | G101: 273 | H101: 312 | I101: 339 | J101: 368 | K101: 399 | L101: 448 | M101: 514 | N101: 614 | O101: 744 | P101: 921 | Q101: 1176
A102: PFA content | B102: 0 | C102: 0 | D102: 0 | E102: 0 | F102: 0 | G102: 0 | H102: 0 | I102: 0 | J102: 0 | K102: 0 | L102: 0 | M102: 0 | N102: 0 | O102: 0 | P102: 0 | Q102: 0
A103: Fine Agg | B103: 857 | C103: 805 | D103: 762 | E103: 727 | F103: 695 | G103: 657 | H103: 618 | I103: 595 | J103: 573 | K103: 552 | L103: 523 | M103: 489 | N103: 446 | O103: 397 | P103: 340 | Q103: 267
A104: Coarse Agg | B104: 1219 | C104: 1250 | D104: 1272 | E104: 1287 | F104: 1297 | G104: 1304 | H104: 1304 | I104: 1300 | J104: 1293 | K104: 1282 | L104: 1262 | M104: 1231 | N104: 1174 | O104: 1092 | P104: 973 | Q104: 791
A105: Plasticiser dosage | B105: 0.6 | C105: 0.7 | D105: 0.8 | E105: 0.9 | F105: 1 | G105: 1.1 | H105: 1.2 | I105: 1.4 | J105: 1.5 | K105: 1.6 | L105: 1.8 | M105: 2.1 | N105: 2.5 | O105: 3 | P105: 3.7 | Q105: 4.7
A106: Concrete | B106: =B100+B101+B102+B103+B104+B105 -> 2378.6 | C106: 2378.7 | D106: 2377.8 | E106: 2378.9 | F106: 2378 | G106: 2379.1 | H106: 2379.2 | I106: 2379.4 | J106: 2379.5 | K106: 2378.6 | L106: 2378.8 | M106: 2380.1 | N106: 2380.5 | O106: 2380 | P106: 2381.7 | Q106: 2382.7
A107: ECO2 / m3 | B107: =(B100*'c design-col'!$K$6)+(B101*'c design-col'!$K$7)+B102*'c design-col'!$K$8+B103*'c design-col'!$K$9+B104*'c design-col'!$K$10+B105*'c design-col'!$K$11 -> 157.4457242 | C107: =(C100*'c design-col'!$K$6)+(C101*'c design-col'!$K$7)+C102*'c design-col'!$K$8+C103*'c design-col'!$K$9+C104*'c design-col'!$K$10+C105*'c design-col'!$K$11 -> 176.2855006 | D107: =(D100*'c design-col'!$K$6)+(D101*'c design-col'!$K$7)+D102*'c design-col'!$K$8+D103*'c design-col'!$K$9+D104*'c design-col'!$K$10+D105*'c design-col'!$K$11 -> 194.1465237 | E107: =(E100*'c design-col'!$K$6)+(E101*'c design-col'!$K$7)+E102*'c design-col'!$K$8+E103*'c design-col'!$K$9+E104*'c design-col'!$K$10+E105*'c design-col'!$K$11 -> 212.8199532 | F107: =(F100*'c design-col'!$K$6)+(F101*'c design-col'!$K$7)+F102*'c design-col'!$K$8+F103*'c design-col'!$K$9+F104*'c design-col'!$K$10+F105*'c design-col'!$K$11 -> 231.4360542 | G107: =(G100*'c design-col'!$K$6)+(G101*'c design-col'!$K$7)+G102*'c design-col'!$K$8+G103*'c design-col'!$K$9+G104*'c design-col'!$K$10+G105*'c design-col'!$K$11 -> 259.7224405 | H107: =(H100*'c design-col'!$K$6)+(H101*'c design-col'!$K$7)+H102*'c design-col'!$K$8+H103*'c design-col'!$K$9+H104*'c design-col'!$K$10+H105*'c design-col'!$K$11 -> 294.1037275 | I107: =(I100*'c design-col'!$K$6)+(I101*'c design-col'!$K$7)+I102*'c design-col'!$K$8+I103*'c design-col'!$K$9+I104*'c design-col'!$K$10+I105*'c design-col'!$K$11 -> 317.8639931 | J107: =(J100*'c design-col'!$K$6)+(J101*'c design-col'!$K$7)+J102*'c design-col'!$K$8+J103*'c design-col'!$K$9+J104*'c design-col'!$K$10+J105*'c design-col'!$K$11 -> 343.3557777 | K107: =(K100*'c design-col'!$K$6)+(K101*'c design-col'!$K$7)+K102*'c design-col'!$K$8+K103*'c design-col'!$K$9+K104*'c design-col'!$K$10+K105*'c design-col'!$K$11 -> 370.5662292 | L107: =(L100*'c design-col'!$K$6)+(L101*'c design-col'!$K$7)+L102*'c design-col'!$K$8+L103*'c design-col'!$K$9+L104*'c design-col'!$K$10+L105*'c design-col'!$K$11 -> 413.5524084 | M107: =(M100*'c design-col'!$K$6)+(M101*'c design-col'!$K$7)+M102*'c design-col'!$K$8+M103*'c design-col'!$K$9+M104*'c design-col'!$K$10+M105*'c design-col'!$K$11 -> 471.4116617 | N107: =(N100*'c design-col'!$K$6)+(N101*'c design-col'!$K$7)+N102*'c design-col'!$K$8+N103*'c design-col'!$K$9+N104*'c design-col'!$K$10+N105*'c design-col'!$K$11 -> 558.9679636 | O107: =(O100*'c design-col'!$K$6)+(O101*'c design-col'!$K$7)+O102*'c design-col'!$K$8+O103*'c design-col'!$K$9+O104*'c design-col'!$K$10+O105*'c design-col'!$K$11 -> 672.7055696 | P107: =(P100*'c design-col'!$K$6)+(P101*'c design-col'!$K$7)+P102*'c design-col'!$K$8+P103*'c design-col'!$K$9+P104*'c design-col'!$K$10+P105*'c design-col'!$K$11 -> 827.4916354 | Q107: =(Q100*'c design-col'!$K$6)+(Q101*'c design-col'!$K$7)+Q102*'c design-col'!$K$8+Q103*'c design-col'!$K$9+Q104*'c design-col'!$K$10+Q105*'c design-col'!$K$11 -> 1050.373872
A108: ECO2/tonne | B108: =B107/B106 -> 0.06619260246 | C108: =C107/C106 -> 0.07411001831 | D108: =D107/D106 -> 0.08164964409 | E108: =E107/E106 -> 0.08946149617 | F108: =F107/F106 -> 0.09732382429 | G108: =G107/G106 -> 0.109168358 | H108: =H107/H106 -> 0.1236145459 | I108: =I107/I106 -> 0.1335899778 | J108: =J107/J106 -> 0.1442974481 | K108: =K107/K106 -> 0.1557917385 | L108: =L107/L106 -> 0.1738491712 | M108: =M107/M106 -> 0.1980638047 | N108: =N107/N106 -> 0.2348111588 | O108: =O107/O106 -> 0.282649399 | P108: =P107/P106 -> 0.3474373915 | Q108: =Q107/Q106 -> 0.4408334547
A109: ECO2 / m3 / Mpa | B109: =B107/B99 -> 19.68071553 | C109: =C107/C99 -> 14.69045838 | D109: 12.13415773 | E109: 10.64099766 | F109: 9.257442166 | G109: 8.657414683 | H109: 8.402963644 | I109: 7.946599829 | J109: 7.630128393 | K109: 7.411324583 | L109: 7.519134698 | M109: 7.856861028 | N109: 7.985256623 | O109: 8.40881962 | P109: 9.194351504 | Q109: 10.50373872
A110: ECO2 / tonne / Mpa | B110: =B108/B99 -> 0.008274075308 | C110: =C108/C99 -> 0.006175834859 | D110: 0.005103102756 | E110: 0.004473074809 | F110: 0.003892952972 | G110: 0.003638945266 | H110: 0.003531844168 | I110: 0.003339749445 | J110: 0.003206609957 | K110: 0.00311583477 | L110: 0.003160894021 | M110: 0.003301063412 | N110: 0.003354445126 | O110: 0.003533117487 | P110: 0.003860415461 | Q110: 0.004408334547
A112: 20% PFA, No SP
A113: 10-30 | B113: 8 | C113: 12 | D113: 16 | E113: 20 | F113: 25 | G113: 30 | H113: 35 | I113: 40 | J113: 45 | K113: 50 | L113: 55 | M113: 60 | N113: 70 | O113: 80 | P113: 90 | Q113: 100
A114: Water content | B114: 150 | C114: 150 | D114: 150 | E114: 150 | F114: 150 | G114: 150 | H114: 150 | I114: 150 | J114: 150 | K114: 150 | L114: 150 | M114: 150 | N114: 150 | O114: 150 | P114: 150 | Q114: 150
A115: Cement content | B115: 153 | C115: 173 | D115: 193 | E115: 213 | F115: 234 | G115: 264 | H115: 302 | I115: 328 | J115: 356 | K115: 387 | L115: 435 | M115: 498 | N115: 595 | O115: 721 | P115: 892 | Q115: 1139
A116: PFA content | B116: 38 | C116: 43 | D116: 48 | E116: 53 | F116: 58 | G116: 66 | H116: 76 | I116: 82 | J116: 89 | K116: 97 | L116: 109 | M116: 124 | N116: 149 | O116: 180 | P116: 223 | Q116: 285
A117: Fine Agg | B117: 837 | C117: 785 | D117: 742 | E117: 705 | F117: 673 | G117: 633 | H117: 592 | I117: 568 | J117: 545 | K117: 523 | L117: 491 | M117: 455 | N117: 406 | O117: 352 | P117: 287 | Q117: 201
A118: Coarse Agg | B118: 1192 | C118: 1220 | D118: 1238 | E118: 1249 | F118: 1255 | G118: 1257 | H118: 1251 | I118: 1242 | J118: 1230 | K118: 1214 | L118: 1186 | M118: 1144 | N118: 1071 | O118: 967 | P118: 819 | Q118: 596
A119: Plasticiser dosage
A120: Concrete | B120: =B114+B115+B116+B117+B118 -> 2370 | C120: 2371 | D120: 2371 | E120: 2370 | F120: 2370 | G120: 2370 | H120: 2371 | I120: 2370 | J120: 2370 | K120: 2371 | L120: 2371 | M120: 2371 | N120: 2371 | O120: 2370 | P120: 2371 | Q120: 2371
A121: ECO2 / m3 | B121: =(B114*'c design-col'!$K$6)+(B115*'c design-col'!$K$7)+B116*'c design-col'!$K$8+B117*'c design-col'!$K$9+B118*'c design-col'!$K$10+B119*'c design-col'!$K$11 -> 153.6650576 | C121: =(C114*'c design-col'!$K$6)+(C115*'c design-col'!$K$7)+C116*'c design-col'!$K$8+C117*'c design-col'!$K$9+C118*'c design-col'!$K$10+C119*'c design-col'!$K$11 -> 171.7173927 | D121: =(D114*'c design-col'!$K$6)+(D115*'c design-col'!$K$7)+D116*'c design-col'!$K$8+D117*'c design-col'!$K$9+D118*'c design-col'!$K$10+D119*'c design-col'!$K$11 -> 189.662005 | E121: =(E114*'c design-col'!$K$6)+(E115*'c design-col'!$K$7)+E116*'c design-col'!$K$8+E117*'c design-col'!$K$9+E118*'c design-col'!$K$10+E119*'c design-col'!$K$11 -> 207.5305179 | F121: =(F114*'c design-col'!$K$6)+(F115*'c design-col'!$K$7)+F116*'c design-col'!$K$8+F117*'c design-col'!$K$9+F118*'c design-col'!$K$10+F119*'c design-col'!$K$11 -> 226.2302079 | G121: =(G114*'c design-col'!$K$6)+(G115*'c design-col'!$K$7)+G116*'c design-col'!$K$8+G117*'c design-col'!$K$9+G118*'c design-col'!$K$10+G119*'c design-col'!$K$11 -> 252.895942 | H121: =(H114*'c design-col'!$K$6)+(H115*'c design-col'!$K$7)+H116*'c design-col'!$K$8+H117*'c design-col'!$K$9+H118*'c design-col'!$K$10+H119*'c design-col'!$K$11 -> 286.5816072 | I121: =(I114*'c design-col'!$K$6)+(I115*'c design-col'!$K$7)+I116*'c design-col'!$K$8+I117*'c design-col'!$K$9+I118*'c design-col'!$K$10+I119*'c design-col'!$K$11 -> 309.5534145 | J121: =(J114*'c design-col'!$K$6)+(J115*'c design-col'!$K$7)+J116*'c design-col'!$K$8+J117*'c design-col'!$K$9+J118*'c design-col'!$K$10+J119*'c design-col'!$K$11 -> 334.2837412 | K121: =(K114*'c design-col'!$K$6)+(K115*'c design-col'!$K$7)+K116*'c design-col'!$K$8+K117*'c design-col'!$K$9+K118*'c design-col'!$K$10+K119*'c design-col'!$K$11 -> 361.6436177 | L121: =(L114*'c design-col'!$K$6)+(L115*'c design-col'!$K$7)+L116*'c design-col'!$K$8+L117*'c design-col'!$K$9+L118*'c design-col'!$K$10+L119*'c design-col'!$K$11 -> 403.9601579 | M121: =(M114*'c design-col'!$K$6)+(M115*'c design-col'!$K$7)+M116*'c design-col'!$K$8+M117*'c design-col'!$K$9+M118*'c design-col'!$K$10+M119*'c design-col'!$K$11 -> 459.4267595 | N121: =(N114*'c design-col'!$K$6)+(N115*'c design-col'!$K$7)+N116*'c design-col'!$K$8+N117*'c design-col'!$K$9+N118*'c design-col'!$K$10+N119*'c design-col'!$K$11 -> 544.7869005 | O121: =(O114*'c design-col'!$K$6)+(O115*'c design-col'!$K$7)+O116*'c design-col'!$K$8+O117*'c design-col'!$K$9+O118*'c design-col'!$K$10+O119*'c design-col'!$K$11 -> 655.531658 | P121: =(P114*'c design-col'!$K$6)+(P115*'c design-col'!$K$7)+P116*'c design-col'!$K$8+P117*'c design-col'!$K$9+P118*'c design-col'!$K$10+P119*'c design-col'!$K$11 -> 805.784206 | Q121: =(Q114*'c design-col'!$K$6)+(Q115*'c design-col'!$K$7)+Q116*'c design-col'!$K$8+Q117*'c design-col'!$K$9+Q118*'c design-col'!$K$10+Q119*'c design-col'!$K$11 -> 1022.71237
A122: ECO2/tonne | B122: =B121/B120 -> 0.06483757705 | C122: =C121/C120 -> 0.07242403743 | D122: =D121/D120 -> 0.07999241038 | E122: =E121/E120 -> 0.08756561935 | F122: =F121/F120 -> 0.09545578392 | G122: =G121/G120 -> 0.1067071485 | H122: =H121/H120 -> 0.1208695096 | I122: =I121/I120 -> 0.130613255 | J122: =J121/J120 -> 0.1410479921 | K122: =K121/K120 -> 0.152527886 | L122: =L121/L120 -> 0.1703754356 | M122: =M121/M120 -> 0.1937691942 | N122: =N121/N120 -> 0.2297709407 | O122: =O121/O120 -> 0.2765956363 | P122: =P121/P120 -> 0.3398499393 | Q122: =Q121/Q120 -> 0.4313422056
A123: ECO2 / m3 / Mpa | B123: =B121/B113 -> 19.2081322 | C123: =C121/C113 -> 14.30978273 | D123: 11.85387531 | E123: 10.37652589 | F123: 9.049208315 | G123: 8.429864735 | H123: 8.18804592 | I123: 7.738835362 | J123: 7.428527582 | K123: 7.232872354 | L123: 7.344730144 | M123: 7.657112659 | N123: 7.782670007 | O123: 8.194145725 | P123: 8.953157844 | Q123: 10.2271237
A124: ECO2 / tonne / Mpa | B124: =B122/B113 -> 0.008104697131 | C124: =C122/C113 -> 0.006035336452 | D124: 0.004999525649 | E124: 0.004378280967 | F124: 0.003818231357 | G124: 0.003556904951 | H124: 0.003453414559 | I124: 0.003265331376 | J124: 0.003134399824 | K124: 0.00305055772 | L124: 0.003097735193 | M124: 0.00322948657 | N124: 0.003282442011 | O124: 0.003457445454 | P124: 0.003776110436 | Q124: 0.004313422056
A126: 20% PFA, SP
A127: 10-30 | B127: 8 | C127: 12 | D127: 16 | E127: 20 | F127: 25 | G127: 30 | H127: 35 | I127: 40 | J127: 45 | K127: 50 | L127: 55 | M127: 60 | N127: 70 | O127: 80 | P127: 90 | Q127: 100
A128: Water content | B128: 135 | C128: 135 | D128: 135 | E128: 135 | F128: 135 | G128: 135 | H128: 135 | I128: 135 | J128: 135 | K128: 135 | L128: 135 | M128: 135 | N128: 135 | O128: 135 | P128: 135 | Q128: 135
A129: Cement content | B129: 138 | C129: 156 | D129: 174 | E129: 192 | F129: 210 | G129: 238 | H129: 272 | I129: 295 | J129: 321 | K129: 348 | L129: 391 | M129: 448 | N129: 535 | O129: 649 | P129: 803 | Q129: 1025
A130: PFA content | B130: 34 | C130: 39 | D130: 43 | E130: 48 | F130: 53 | G130: 59 | H130: 68 | I130: 74 | J130: 80 | K130: 87 | L130: 98 | M130: 112 | N130: 134 | O130: 162 | P130: 201 | Q130: 256
A131: Fine Agg | B131: 859 | C131: 806 | D131: 763 | E131: 727 | F131: 695 | G131: 655 | H131: 615 | I131: 591 | J131: 569 | K131: 547 | L131: 516 | M131: 482 | N131: 436 | O131: 385 | P131: 324 | Q131: 245
A132: Coarse Agg | B132: 1222 | C132: 1252 | D132: 1273 | E132: 1287 | F132: 1295 | G132: 1301 | H132: 1298 | I132: 1292 | J132: 1283 | K132: 1271 | L132: 1248 | M132: 1211 | N132: 1148 | O132: 1057 | P132: 925 | Q132: 726
A133: Plasticiser dosage | B133: 0.7 | C133: 0.8 | D133: 0.9 | E133: 1 | F133: 1.1 | G133: 1.2 | H133: 1.4 | I133: 1.5 | J133: 1.6 | K133: 1.7 | L133: 2 | M133: 2.2 | N133: 2.7 | O133: 3.2 | P133: 4 | Q133: 5.1
A134: Concrete | B134: =SUM(B128:B133) -> 2388.7 | C134: 2388.8 | D134: 2388.9 | E134: 2390 | F134: 2389.1 | G134: 2389.2 | H134: 2389.4 | I134: 2388.5 | J134: 2389.6 | K134: 2389.7 | L134: 2390 | M134: 2390.2 | N134: 2390.7 | O134: 2391.2 | P134: 2392 | Q134: 2392.1
A135: ECO2 / m3 | B135: =(B128*'c design-col'!$K$6)+(B129*'c design-col'!$K$7)+B130*'c design-col'!$K$8+B131*'c design-col'!$K$9+B132*'c design-col'!$K$10+B133*'c design-col'!$K$11 -> 140.7202474 | C135: =(C128*'c design-col'!$K$6)+(C129*'c design-col'!$K$7)+C130*'c design-col'!$K$8+C131*'c design-col'!$K$9+C132*'c design-col'!$K$10+C133*'c design-col'!$K$11 -> 157.028211 | D135: =(D128*'c design-col'!$K$6)+(D129*'c design-col'!$K$7)+D130*'c design-col'!$K$8+D131*'c design-col'!$K$9+D132*'c design-col'!$K$10+D133*'c design-col'!$K$11 -> 173.2166158 | E135: =(E128*'c design-col'!$K$6)+(E129*'c design-col'!$K$7)+E130*'c design-col'!$K$8+E131*'c design-col'!$K$9+E132*'c design-col'!$K$10+E133*'c design-col'!$K$11 -> 189.3582326 | F135: =(F128*'c design-col'!$K$6)+(F129*'c design-col'!$K$7)+F130*'c design-col'!$K$8+F131*'c design-col'!$K$9+F132*'c design-col'!$K$10+F133*'c design-col'!$K$11 -> 205.4319796 | G135: =(G128*'c design-col'!$K$6)+(G129*'c design-col'!$K$7)+G130*'c design-col'!$K$8+G131*'c design-col'!$K$9+G132*'c design-col'!$K$10+G133*'c design-col'!$K$11 -> 230.3273588 | H135: =(H128*'c design-col'!$K$6)+(H129*'c design-col'!$K$7)+H130*'c design-col'!$K$8+H131*'c design-col'!$K$9+H132*'c design-col'!$K$10+H133*'c design-col'!$K$11 -> 260.4913627 | I135: =(I128*'c design-col'!$K$6)+(I129*'c design-col'!$K$7)+I130*'c design-col'!$K$8+I131*'c design-col'!$K$9+I132*'c design-col'!$K$10+I133*'c design-col'!$K$11 -> 280.8500795 | J135: =(J128*'c design-col'!$K$6)+(J129*'c design-col'!$K$7)+J130*'c design-col'!$K$8+J131*'c design-col'!$K$9+J132*'c design-col'!$K$10+J133*'c design-col'!$K$11 -> 303.8265102 | K135: =(K128*'c design-col'!$K$6)+(K129*'c design-col'!$K$7)+K130*'c design-col'!$K$8+K131*'c design-col'!$K$9+K132*'c design-col'!$K$10+K133*'c design-col'!$K$11 -> 327.675266 | L135: =(L128*'c design-col'!$K$6)+(L129*'c design-col'!$K$7)+L130*'c design-col'!$K$8+L131*'c design-col'!$K$9+L132*'c design-col'!$K$10+L133*'c design-col'!$K$11 -> 365.6119677 | M135: =(M128*'c design-col'!$K$6)+(M129*'c design-col'!$K$7)+M130*'c design-col'!$K$8+M131*'c design-col'!$K$9+M132*'c design-col'!$K$10+M133*'c design-col'!$K$11 -> 415.8171588 | N135: =(N128*'c design-col'!$K$6)+(N129*'c design-col'!$K$7)+N130*'c design-col'!$K$8+N131*'c design-col'!$K$9+N132*'c design-col'!$K$10+N133*'c design-col'!$K$11 -> 492.3929337 | O135: =(O128*'c design-col'!$K$6)+(O129*'c design-col'!$K$7)+O130*'c design-col'!$K$8+O131*'c design-col'!$K$9+O132*'c design-col'!$K$10+O133*'c design-col'!$K$11 -> 592.624117 | P135: =(P128*'c design-col'!$K$6)+(P129*'c design-col'!$K$7)+P130*'c design-col'!$K$8+P131*'c design-col'!$K$9+P132*'c design-col'!$K$10+P133*'c design-col'!$K$11 -> 727.9575471 | Q135: =(Q128*'c design-col'!$K$6)+(Q129*'c design-col'!$K$7)+Q130*'c design-col'!$K$8+Q131*'c design-col'!$K$9+Q132*'c design-col'!$K$10+Q133*'c design-col'!$K$11 -> 922.9242862
A136: ECO2/tonne | B136: =B135/B134 -> 0.05891080814 | C136: =C135/C134 -> 0.06573518545 | D136: =D135/D134 -> 0.07250894377 | E136: =E135/E134 -> 0.07922938601 | F136: =F135/F134 -> 0.08598718329 | G136: =G135/G134 -> 0.09640354882 | H136: =H135/H134 -> 0.1090195709 | I136: =I135/I134 -> 0.1175842912 | J136: =J135/J134 -> 0.1271453424 | K136: =K135/K134 -> 0.1371198335 | L136: =L135/L134 -> 0.1529757187 | M136: =M135/M134 -> 0.1739675169 | N136: =N135/N134 -> 0.2059618244 | O136: =O135/O134 -> 0.2478354454 | P136: =P135/P134 -> 0.3043300782 | Q136: =Q135/Q134 -> 0.3858217826
A137: ECO2 / m3 / Mpa | B137: =B135/B127 -> 17.59003093 | C137: =C135/C127 -> 13.08568425 | D137: 10.82603849 | E137: 9.467911628 | F137: 8.217279184 | G137: 7.677578628 | H137: 7.442610362 | I137: 7.021251988 | J137: 6.751700227 | K137: 6.55350532 | L137: 6.647490321 | M137: 6.93028598 | N137: 7.034184767 | O137: 7.407801463 | P137: 8.08841719 | Q137: 9.229242862
A138: ECO2 / tonne / Mpa | B138: =B136/B127 -> 0.007363851018 | C138: =C136/C127 -> 0.005477932121 | D138: 0.004531808986 | E138: 0.0039614693 | F138: 0.003439487332 | G138: 0.003213451627 | H138: 0.003114844882 | I138: 0.00293960728 | J138: 0.002825452053 | K138: 0.002742396669 | L138: 0.002781376704 | M138: 0.002899458614 | N138: 0.002942311778 | O138: 0.003097943067 | P138: 0.003381445314 | Q138: 0.003858217826
A140: 40% PFA, No SP
A141: 10-30 | B141: 8 | C141: 12 | D141: 16 | E141: 20 | F141: 25 | G141: 30 | H141: 35 | I141: 40 | J141: 45 | K141: 50 | L141: 55 | M141: 60 | N141: 70 | O141: 80 | P141: 90 | Q141: 100
A142: Water content | B142: 140 | C142: 140 | D142: 140 | E142: 140 | F142: 140 | G142: 140 | H142: 140 | I142: 140 | J142: 140 | K142: 140 | L142: 140 | M142: 140 | N142: 140 | O142: 140 | P142: 140 | Q142: 140
A143: Cement content | B143: 128 | C143: 145 | D143: 161 | E143: 178 | F143: 195 | G143: 221 | H143: 253 | I143: 275 | J143: 298 | K143: 324 | L143: 363 | M143: 416 | N143: 497 | O143: 603 | P143: 746 | Q143: 953
A144: PFA content | B144: 85 | C144: 96 | D144: 107 | E144: 119 | F144: 130 | G144: 147 | H144: 169 | I144: 183 | J144: 199 | K144: 216 | L144: 242 | M144: 278 | N144: 332 | O144: 402 | P144: 497 | Q144: 635
A145: Fine Agg | B145: 837 | C145: 783 | D145: 740 | E145: 702 | F145: 669 | G145: 628 | H145: 585 | I145: 560 | J145: 536 | K145: 512 | L145: 479 | M145: 440 | N145: 389 | O145: 330 | P145: 259 | Q145: 165
A146: Coarse Agg | B146: 1191 | C146: 1218 | D146: 1234 | E146: 1243 | F146: 1248 | G146: 1246 | H146: 1236 | I146: 1224 | J146: 1209 | K146: 1191 | L146: 1157 | M146: 1108 | N146: 1024 | O146: 907 | P146: 740 | Q146: 489
A147: Plasticiser dosage
A148: Concrete | B148: =B142+B143+B144+B145+B146 -> 2381 | C148: 2382 | D148: 2382 | E148: 2382 | F148: 2382 | G148: 2382 | H148: 2383 | I148: 2382 | J148: 2382 | K148: 2383 | L148: 2381 | M148: 2382 | N148: 2382 | O148: 2382 | P148: 2382 | Q148: 2382
A149: ECO2 / m3 | B149: =(B142*'c design-col'!$K$6)+(B143*'c design-col'!$K$7)+B144*'c design-col'!$K$8+B145*'c design-col'!$K$9+B146*'c design-col'!$K$10+B147*'c design-col'!$K$11 -> 132.8141325 | C149: =(C142*'c design-col'!$K$6)+(C143*'c design-col'!$K$7)+C144*'c design-col'!$K$8+C145*'c design-col'!$K$9+C146*'c design-col'!$K$10+C147*'c design-col'!$K$11 -> 148.3593435 | D149: =(D142*'c design-col'!$K$6)+(D143*'c design-col'!$K$7)+D144*'c design-col'!$K$8+D145*'c design-col'!$K$9+D146*'c design-col'!$K$10+D147*'c design-col'!$K$11 -> 162.9047189 | E149: =(E142*'c design-col'!$K$6)+(E143*'c design-col'!$K$7)+E144*'c design-col'!$K$8+E145*'c design-col'!$K$9+E146*'c design-col'!$K$10+E147*'c design-col'!$K$11 -> 178.2825664 | F149: =(F142*'c design-col'!$K$6)+(F143*'c design-col'!$K$7)+F144*'c design-col'!$K$8+F145*'c design-col'!$K$9+F146*'c design-col'!$K$10+F147*'c design-col'!$K$11 -> 193.5935608 | G149: =(G142*'c design-col'!$K$6)+(G143*'c design-col'!$K$7)+G144*'c design-col'!$K$8+G145*'c design-col'!$K$9+G146*'c design-col'!$K$10+G147*'c design-col'!$K$11 -> 216.9130416 | H149: =(H142*'c design-col'!$K$6)+(H143*'c design-col'!$K$7)+H144*'c design-col'!$K$8+H145*'c design-col'!$K$9+H146*'c design-col'!$K$10+H147*'c design-col'!$K$11 -> 245.5633761 | I149: =(I142*'c design-col'!$K$6)+(I143*'c design-col'!$K$7)+I144*'c design-col'!$K$8+I145*'c design-col'!$K$9+I146*'c design-col'!$K$10+I147*'c design-col'!$K$11 -> 265.1747825 | J149: =(J142*'c design-col'!$K$6)+(J143*'c design-col'!$K$7)+J144*'c design-col'!$K$8+J145*'c design-col'!$K$9+J146*'c design-col'!$K$10+J147*'c design-col'!$K$11 -> 285.6878255 | K149: =(K142*'c design-col'!$K$6)+(K143*'c design-col'!$K$7)+K144*'c design-col'!$K$8+K145*'c design-col'!$K$9+K146*'c design-col'!$K$10+K147*'c design-col'!$K$11 -> 308.8409594 | L149: =(L142*'c design-col'!$K$6)+(L143*'c design-col'!$K$7)+L144*'c design-col'!$K$8+L145*'c design-col'!$K$9+L146*'c design-col'!$K$10+L147*'c design-col'!$K$11 -> 343.5011265 | M149: =(M142*'c design-col'!$K$6)+(M143*'c design-col'!$K$7)+M144*'c design-col'!$K$8+M145*'c design-col'!$K$9+M146*'c design-col'!$K$10+M147*'c design-col'!$K$11 -> 390.5989966 | N149: =(N142*'c design-col'!$K$6)+(N143*'c design-col'!$K$7)+N144*'c design-col'!$K$8+N145*'c design-col'!$K$9+N146*'c design-col'!$K$10+N147*'c design-col'!$K$11 -> 462.4540098 | O149: =(O142*'c design-col'!$K$6)+(O143*'c design-col'!$K$7)+O144*'c design-col'!$K$8+O145*'c design-col'!$K$9+O146*'c design-col'!$K$10+O147*'c design-col'!$K$11 -> 556.3954684 | P149: =(P142*'c design-col'!$K$6)+(P143*'c design-col'!$K$7)+P144*'c design-col'!$K$8+P145*'c design-col'!$K$9+P146*'c design-col'!$K$10+P147*'c design-col'!$K$11 -> 683.0452272 | Q149: =(Q142*'c design-col'!$K$6)+(Q143*'c design-col'!$K$7)+Q144*'c design-col'!$K$8+Q145*'c design-col'!$K$9+Q146*'c design-col'!$K$10+Q147*'c design-col'!$K$11 -> 866.2917106
A150: ECO2/tonne | B150: =B149/B148 -> 0.05578082004 | C150: =C149/C148 -> 0.0622835195 | D150: =D149/D148 -> 0.06838989041 | E150: =E149/E148 -> 0.07484574578 | F150: =F149/F148 -> 0.08127353519 | G150: =G149/G148 -> 0.09106340956 | H150: =H149/H148 -> 0.1030479967 | I150: =I149/I148 -> 0.1113244259 | J150: =J149/J148 -> 0.1199361148 | K150: =K149/K148 -> 0.1296017455 | L150: =L149/L148 -> 0.1442675878 | M150: =M149/M148 -> 0.1639794276 | N150: =N149/N148 -> 0.1941452602 | O150: =O149/O148 -> 0.2335833201 | P150: =P149/P148 -> 0.2867528242 | Q150: =Q149/Q148 -> 0.3636824981
A151: ECO2 / m3 / Mpa | B151: =B149/B141 -> 16.60176656 | C151: =C149/C141 -> 12.36327862 | D151: 10.18154493 | E151: 8.914128322 | F151: 7.743742433 | G151: 7.230434719 | H151: 7.016096459 | I151: 6.629369562 | J151: 6.348618345 | K151: 6.176819189 | L151: 6.245475028 | M151: 6.509983277 | N151: 6.606485855 | O151: 6.954943355 | P151: 7.589391413 | Q151: 8.662917106
A152: ECO2 / tonne / Mpa | B152: =B150/B141 -> 0.006972602505 | C152: =C150/C141 -> 0.005190293292 | D152: 0.00427436815 | E152: 0.003742287289 | F152: 0.003250941408 | G152: 0.003035446985 | H152: 0.002944228476 | I152: 0.002783110648 | J152: 0.002665246996 | K152: 0.002592034909 | L152: 0.002623047051 | M152: 0.002732990461 | N152: 0.002773503717 | O152: 0.002919791501 | P152: 0.003186142491 | Q152: 0.003636824981
A154: 40% PFA, SP
A155: 10-30 | B155: 8 | C155: 12 | D155: 16 | E155: 20 | F155: 25 | G155: 30 | H155: 35 | I155: 40 | J155: 45 | K155: 50 | L155: 55 | M155: 60 | N155: 70 | O155: 80 | P155: 90 | Q155: 100
A156: Water content | B156: 126 | C156: 126 | D156: 126 | E156: 126 | F156: 126 | G156: 126 | H156: 126 | I156: 126 | J156: 126 | K156: 126 | L156: 126 | M156: 126 | N156: 126 | O156: 126 | P156: 126 | Q156: 126
A157: Cement content | B157: 115 | C157: 130 | D157: 145 | E157: 160 | F157: 176 | G157: 199 | H157: 227 | I157: 247 | J157: 268 | K157: 291 | L157: 327 | M157: 375 | N157: 448 | O157: 542 | P157: 671 | Q157: 857
A158: PFA content | B158: 77 | C158: 87 | D158: 97 | E158: 107 | F158: 117 | G158: 133 | H158: 152 | I158: 165 | J158: 179 | K158: 194 | L158: 218 | M158: 250 | N158: 298 | O158: 362 | P158: 447 | Q158: 572
A159: Fine Agg | B159: 858 | C159: 805 | D159: 761 | E159: 724 | F159: 691 | G159: 650 | H159: 608 | I159: 584 | J159: 561 | K159: 538 | L159: 506 | M159: 469 | N159: 420 | O159: 365 | P159: 299 | Q159: 213
A160: Coarse Agg | B160: 1221 | C160: 1250 | D160: 1269 | E160: 1282 | F160: 1288 | G160: 1291 | H160: 1285 | I160: 1276 | J160: 1265 | K160: 1249 | L160: 1221 | M160: 1179 | N160: 1106 | O160: 1003 | P160: 854 | Q160: 631
A161: Plasticiser dosage | B161: 0.8 | C161: 0.9 | D161: 1 | E161: 1.1 | F161: 1.2 | G161: 1.3 | H161: 1.5 | I161: 1.6 | J161: 1.8 | K161: 1.9 | L161: 2.2 | M161: 2.5 | N161: 3 | O161: 3.6 | P161: 4.5 | Q161: 5.7
A162: Concrete | B162: =B156+B157+B158+B159+B160+B161 -> 2397.8 | C162: 2398.9 | D162: 2399 | E162: 2400.1 | F162: 2399.2 | G162: 2400.3 | H162: 2399.5 | I162: 2399.6 | J162: 2400.8 | K162: 2399.9 | L162: 2400.2 | M162: 2401.5 | N162: 2401 | O162: 2401.6 | P162: 2401.5 | Q162: 2404.7
A163: ECO2 / m3 | B163: =(B156*'c design-col'!$K$6)+(B157*'c design-col'!$K$7)+B158*'c design-col'!$K$8+B159*'c design-col'!$K$9+B160*'c design-col'!$K$10+B161*'c design-col'!$K$11 -> 121.5277772 | C163: =(C156*'c design-col'!$K$6)+(C157*'c design-col'!$K$7)+C158*'c design-col'!$K$8+C159*'c design-col'!$K$9+C160*'c design-col'!$K$10+C161*'c design-col'!$K$11 -> 135.3062395 | D163: =(D156*'c design-col'!$K$6)+(D157*'c design-col'!$K$7)+D158*'c design-col'!$K$8+D159*'c design-col'!$K$9+D160*'c design-col'!$K$10+D161*'c design-col'!$K$11 -> 148.9769789 | E163: =(E156*'c design-col'!$K$6)+(E157*'c design-col'!$K$7)+E158*'c design-col'!$K$8+E159*'c design-col'!$K$9+E160*'c design-col'!$K$10+E161*'c design-col'!$K$11 -> 162.586783 | F163: =(F156*'c design-col'!$K$6)+(F157*'c design-col'!$K$7)+F158*'c design-col'!$K$8+F159*'c design-col'!$K$9+F160*'c design-col'!$K$10+F161*'c design-col'!$K$11 -> 176.9997476 | G163: =(G156*'c design-col'!$K$6)+(G157*'c design-col'!$K$7)+G158*'c design-col'!$K$8+G159*'c design-col'!$K$9+G160*'c design-col'!$K$10+G161*'c design-col'!$K$11 -> 197.7048431 | H163: =(H156*'c design-col'!$K$6)+(H157*'c design-col'!$K$7)+H158*'c design-col'!$K$8+H159*'c design-col'!$K$9+H160*'c design-col'!$K$10+H161*'c design-col'!$K$11 -> 222.7923688 | I163: =(I156*'c design-col'!$K$6)+(I157*'c design-col'!$K$7)+I158*'c design-col'!$K$8+I159*'c design-col'!$K$9+I160*'c design-col'!$K$10+I161*'c design-col'!$K$11 -> 240.6498792 | J163: =(J156*'c design-col'!$K$6)+(J157*'c design-col'!$K$7)+J158*'c design-col'!$K$8+J159*'c design-col'!$K$9+J160*'c design-col'!$K$10+J161*'c design-col'!$K$11 -> 259.3948793 | K163: =(K156*'c design-col'!$K$6)+(K157*'c design-col'!$K$7)+K158*'c design-col'!$K$8+K159*'c design-col'!$K$9+K160*'c design-col'!$K$10+K161*'c design-col'!$K$11 -> 279.8703817 | L163: =(L156*'c design-col'!$K$6)+(L157*'c design-col'!$K$7)+L158*'c design-col'!$K$8+L159*'c design-col'!$K$9+L160*'c design-col'!$K$10+L161*'c design-col'!$K$11 -> 311.9043286 | M163: =(M156*'c design-col'!$K$6)+(M157*'c design-col'!$K$7)+M158*'c design-col'!$K$8+M159*'c design-col'!$K$9+M160*'c design-col'!$K$10+M161*'c design-col'!$K$11 -> 354.5693768 | N163: =(N156*'c design-col'!$K$6)+(N157*'c design-col'!$K$7)+N158*'c design-col'!$K$8+N159*'c design-col'!$K$9+N160*'c design-col'!$K$10+N161*'c design-col'!$K$11 -> 419.3373308 | O163: =(O156*'c design-col'!$K$6)+(O157*'c design-col'!$K$7)+O158*'c design-col'!$K$8+O159*'c design-col'!$K$9+O160*'c design-col'!$K$10+O161*'c design-col'!$K$11 -> 502.6993798 | P163: =(P156*'c design-col'!$K$6)+(P157*'c design-col'!$K$7)+P158*'c design-col'!$K$8+P159*'c design-col'!$K$9+P160*'c design-col'!$K$10+P161*'c design-col'!$K$11 -> 616.9476866 | Q163: =(Q156*'c design-col'!$K$6)+(Q157*'c design-col'!$K$7)+Q158*'c design-col'!$K$8+Q159*'c design-col'!$K$9+Q160*'c design-col'!$K$10+Q161*'c design-col'!$K$11 -> 781.6599995
A164: ECO2/tonne | B164: =B163/B162 -> 0.05068303328 | C164: =C163/C162 -> 0.05640345137 | D164: =D163/D162 -> 0.06209961606 | E164: =E163/E162 -> 0.06774167033 | F164: =F163/F162 -> 0.07377448632 | G164: =G163/G162 -> 0.08236672211 | H164: =H163/H162 -> 0.09284949733 | I164: =I163/I162 -> 0.1002874976 | J164: =J163/J162 -> 0.1080451846 | K164: =K163/K162 -> 0.1166175181 | L164: =L163/L162 -> 0.1299493078 | M164: =M163/M162 -> 0.1476449623 | N164: =N163/N162 -> 0.1746511166 | O164: =O163/O162 -> 0.2093185292 | P164: =P163/P162 -> 0.256900973 | Q164: =Q163/Q162 -> 0.3250551002
A165: ECO2 / m3 / Mpa | B165: =B163/B155 -> 15.19097215 | C165: =C163/C155 -> 11.27551996 | D165: 9.311061183 | E165: 8.129339149 | F165: 7.079989903 | G165: 6.590161436 | H165: 6.365496253 | I165: 6.016246981 | J165: 5.764330651 | K165: 5.597407633 | L165: 5.670987793 | M165: 5.909489614 | N165: 5.990533298 | O165: 6.283742248 | P165: 6.854974296 | Q165: 7.816599995
A166: ECO2 / tonne / Mpa | B166: =B164/B155 -> 0.00633537916 | C166: =C164/C155 -> 0.004700287614 | D166: 0.003881226004 | E166: 0.003387083517 | F166: 0.002950979453 | G166: 0.002745557404 | H166: 0.002652842781 | I166: 0.00250718744 | J166: 0.002401004103 | K166: 0.002332350362 | L166: 0.002362714688 | M166: 0.002460749371 | N166: 0.002495015951 | O166: 0.002616481615 | P166: 0.002854455255 | Q166: 0.003250551002
A168: 0% PFA, No SP
A169: 30-60 | B169: 8 | C169: 12 | D169: 16 | E169: 20 | F169: 25 | G169: 30 | H169: 35 | I169: 40 | J169: 45 | K169: 50 | L169: 55 | M169: 60 | N169: 70 | O169: 80 | P169: 90 | Q169: 100
A170: Water content | B170: 180 | C170: 180 | D170: 180 | E170: 180 | F170: 180 | G170: 180 | H170: 180 | I170: 180 | J170: 180 | K170: 180 | L170: 180 | M170: 180 | N170: 180 | O170: 180 | P170: 180 | Q170: 180
A171: Cement content | B171: 198 | C171: 223 | D171: 249 | E171: 275 | F171: 301 | G171: 341 | H171: 390 | I171: 424 | J171: 460 | K171: 499 | L171: 561 | M171: 642 | N171: 767 | O171: 930 | P171: 1151 | Q171: 1470
A172: PFA content | B172: 0 | C172: 0 | D172: 0 | E172: 0 | F172: 0 | G172: 0 | H172: 0 | I172: 0 | J172: 0 | K172: 0 | L172: 0 | M172: 0 | N172: 0 | O172: 0 | P172: 0 | Q172: 0
A173: Fine Agg | B173: 860 | C173: 809 | D173: 767 | E173: 731 | F173: 699 | G173: 659 | H173: 618 | I173: 594 | J173: 570 | K173: 547 | L173: 514 | M173: 475 | N173: 424 | O173: 364 | P173: 251 | Q173: 194
A174: Coarse Agg | B174: 1098 | C174: 1124 | D174: 1141 | E174: 1151 | F174: 1156 | G174: 1156 | H174: 1148 | I174: 1139 | J174: 1126 | K174: 1110 | L174: 1082 | M174: 1039 | N174: 965 | O174: 862 | P174: 714 | Q174: 492
A175: Plasticiser dosage | B175: 0 | C175: 0 | D175: 0 | E175: 0 | F175: 0 | G175: 0 | H175: 0 | I175: 0 | J175: 0 | K175: 0 | L175: 0 | M175: 0 | N175: 0 | O175: 0 | P175: 0 | Q175: 0
A176: Concrete | B176: =SUM(B170:B175) -> 2336 | C176: 2336 | D176: 2337 | E176: 2337 | F176: 2336 | G176: 2336 | H176: 2336 | I176: 2337 | J176: 2336 | K176: 2336 | L176: 2337 | M176: 2336 | N176: 2336 | O176: 2336 | P176: 2296 | Q176: 2336
A177: ECO2 / m3 | B177: =(B170*'c design-col'!$K$6)+(B171*'c design-col'!$K$7)+B172*'c design-col'!$K$8+B173*'c design-col'!$K$9+B174*'c design-col'!$K$10+B175*'c design-col'!$K$11 -> 191.2888078 | C177: =(C170*'c design-col'!$K$6)+(C171*'c design-col'!$K$7)+C172*'c design-col'!$K$8+C173*'c design-col'!$K$9+C174*'c design-col'!$K$10+C175*'c design-col'!$K$11 -> 213.6021637 | D177: =(D170*'c design-col'!$K$6)+(D171*'c design-col'!$K$7)+D172*'c design-col'!$K$8+D173*'c design-col'!$K$9+D174*'c design-col'!$K$10+D175*'c design-col'!$K$11 -> 236.7045323 | E177: =(E170*'c design-col'!$K$6)+(E171*'c design-col'!$K$7)+E172*'c design-col'!$K$8+E173*'c design-col'!$K$9+E174*'c design-col'!$K$10+E175*'c design-col'!$K$11 -> 259.7308014 | F177: =(F170*'c design-col'!$K$6)+(F171*'c design-col'!$K$7)+F172*'c design-col'!$K$8+F173*'c design-col'!$K$9+F174*'c design-col'!$K$10+F175*'c design-col'!$K$11 -> 282.7020533 | G177: =(G170*'c design-col'!$K$6)+(G171*'c design-col'!$K$7)+G172*'c design-col'!$K$8+G173*'c design-col'!$K$9+G174*'c design-col'!$K$10+G175*'c design-col'!$K$11 -> 317.9649113 | H177: =(H170*'c design-col'!$K$6)+(H171*'c design-col'!$K$7)+H172*'c design-col'!$K$8+H173*'c design-col'!$K$9+H174*'c design-col'!$K$10+H175*'c design-col'!$K$11 -> 361.0775831 | I177: =(I170*'c design-col'!$K$6)+(I171*'c design-col'!$K$7)+I172*'c design-col'!$K$8+I173*'c design-col'!$K$9+I174*'c design-col'!$K$10+I175*'c design-col'!$K$11 -> 390.9584536 | J177: =(J170*'c design-col'!$K$6)+(J171*'c design-col'!$K$7)+J172*'c design-col'!$K$8+J173*'c design-col'!$K$9+J174*'c design-col'!$K$10+J175*'c design-col'!$K$11 -> 422.5556795 | K177: =(K170*'c design-col'!$K$6)+(K171*'c design-col'!$K$7)+K172*'c design-col'!$K$8+K173*'c design-col'!$K$9+K174*'c design-col'!$K$10+K175*'c design-col'!$K$11 -> 456.7683078 | L177: =(L170*'c design-col'!$K$6)+(L171*'c design-col'!$K$7)+L172*'c design-col'!$K$8+L173*'c design-col'!$K$9+L174*'c design-col'!$K$10+L175*'c design-col'!$K$11 -> 511.1328971 | M177: =(M170*'c design-col'!$K$6)+(M171*'c design-col'!$K$7)+M172*'c design-col'!$K$8+M173*'c design-col'!$K$9+M174*'c design-col'!$K$10+M175*'c design-col'!$K$11 -> 582.084604 | N177: =(N170*'c design-col'!$K$6)+(N171*'c design-col'!$K$7)+N172*'c design-col'!$K$8+N173*'c design-col'!$K$9+N174*'c design-col'!$K$10+N175*'c design-col'!$K$11 -> 691.5009907 | O177: =(O170*'c design-col'!$K$6)+(O171*'c design-col'!$K$7)+O172*'c design-col'!$K$8+O173*'c design-col'!$K$9+O174*'c design-col'!$K$10+O175*'c design-col'!$K$11 -> 834.1113994 | P177: =(P170*'c design-col'!$K$6)+(P171*'c design-col'!$K$7)+P172*'c design-col'!$K$8+P173*'c design-col'!$K$9+P174*'c design-col'!$K$10+P175*'c design-col'!$K$11 -> 1027.286143 | Q177: =(Q170*'c design-col'!$K$6)+(Q171*'c design-col'!$K$7)+Q172*'c design-col'!$K$8+Q173*'c design-col'!$K$9+Q174*'c design-col'!$K$10+Q175*'c design-col'!$K$11 -> 1306.25976
A178: ECO2/tonne | B178: =B177/B176 -> 0.08188733211 | C178: =C177/C176 -> 0.09143928242 | D178: =D177/D176 -> 0.1012856364 | E178: =E177/E176 -> 0.1111385543 | F178: =F177/F176 -> 0.1210197146 | G178: =G177/G176 -> 0.1361151161 | H178: =H177/H176 -> 0.1545708832 | I178: =I177/I176 -> 0.1672907375 | J178: =J177/J176 -> 0.1808885614 | K178: =K177/K176 -> 0.1955343783 | L178: =L177/L176 -> 0.2187132636 | M178: =M177/M176 -> 0.2491800531 | N178: =N177/N176 -> 0.2960192597 | O178: =O177/O176 -> 0.357068236 | P178: =P177/P176 -> 0.4474242782 | Q178: =Q177/Q176 -> 0.559186541
A179: ECO2 / m3 / Mpa | B179: =B177/B169 -> 23.91110098 | C179: =C177/C169 -> 17.80018031 | D179: 14.79403327 | E179: 12.98654007 | F179: 11.30808213 | G179: 10.59883038 | H179: 10.31650238 | I179: 9.77396134 | J179: 9.390126211 | K179: 9.135366155 | L179: 9.293325402 | M179: 9.701410066 | N179: 9.878585581 | O179: 10.42639249 | P179: 11.41429047 | Q179: 13.0625976
A180: ECO2 / tonne / Mpa | B180: =B178/B169 -> 0.01023591651 | C180: =C178/C169 -> 0.007619940201 | D180: 0.006330352275 | E180: 0.005556927714 | F180: 0.004840788584 | G180: 0.004537170537 | H180: 0.004416310948 | I180: 0.004182268438 | J180: 0.004019745809 | K180: 0.003910687566 | L180: 0.003976604793 | M180: 0.004153000884 | N180: 0.004228846567 | O180: 0.00446335295 | P180: 0.004971380869 | Q180: 0.00559186541
A182: 0% PFA, SP
A183: 30-60 | B183: 8 | C183: 12 | D183: 16 | E183: 20 | F183: 25 | G183: 30 | H183: 35 | I183: 40 | J183: 45 | K183: 50 | L183: 55 | M183: 60 | N183: 70 | O183: 80 | P183: 90 | Q183: 100
A184: Water content | B184: 162 | C184: 162 | D184: 162 | E184: 162 | F184: 162 | G184: 162 | H184: 162 | I184: 162 | J184: 162 | K184: 162 | L184: 162 | M184: 162 | N184: 162 | O184: 162 | P184: 162 | Q184: 162
A185: Cement content | B185: 178 | C185: 201 | D185: 224 | E185: 247 | F185: 271 | G185: 307 | H185: 351 | I185: 381 | J185: 414 | K185: 449 | L185: 505 | M185: 578 | N185: 691 | O185: 837 | P185: 1036 | Q185: 1323
A186: PFA content | B186: 0 | C186: 0 | D186: 0 | E186: 0 | F186: 0 | G186: 0 | H186: 0 | I186: 0 | J186: 0 | K186: 0 | L186: 0 | M186: 0 | N186: 0 | O186: 0 | P186: 0 | Q186: 0
A187: Fine Agg | B187: 886 | C187: 834 | D187: 792 | E187: 757 | F187: 725 | G187: 686 | H187: 645 | I187: 622 | J187: 592 | K187: 576 | L187: 545 | M187: 508 | N187: 459 | O187: 403 | P187: 336 | Q187: 247
A188: Coarse Agg | B188: 1131 | C188: 1160 | D188: 1179 | E188: 1191 | F188: 1198 | G188: 1202 | H188: 1198 | I188: 1192 | J188: 1182 | K188: 1170 | L188: 1146 | M188: 1109 | N188: 1045 | O188: 955 | P188: 824 | Q188: 626
A189: Plasticiser dosage | B189: 0.7 | C189: 0.8 | D189: 0.9 | E189: 1 | F189: 1.1 | G189: 1.2 | H189: 1.4 | I189: 1.5 | J189: 1.7 | K189: 1.8 | L189: 2 | M189: 2.3 | N189: 2.8 | O189: 3.3 | P189: 4.1 | Q189: 5.3
A190: Concrete | B190: =B184+B185+B186+B187+B188+B189 -> 2357.7 | C190: 2357.8 | D190: 2357.9 | E190: 2358 | F190: 2357.1 | G190: 2358.2 | H190: 2357.4 | I190: 2358.5 | J190: 2351.7 | K190: 2358.8 | L190: 2360 | M190: 2359.3 | N190: 2359.8 | O190: 2360.3 | P190: 2362.1 | Q190: 2363.3
A191: ECO2 / m3 | B191: =(B184*'c design-col'!$K$6)+(B185*'c design-col'!$K$7)+B186*'c design-col'!$K$8+B187*'c design-col'!$K$9+B188*'c design-col'!$K$10+B189*'c design-col'!$K$11 -> 174.0773867 | C191: =(C184*'c design-col'!$K$6)+(C185*'c design-col'!$K$7)+C186*'c design-col'!$K$8+C187*'c design-col'!$K$9+C188*'c design-col'!$K$10+C189*'c design-col'!$K$11 -> 194.6592237 | D191: =(D184*'c design-col'!$K$6)+(D185*'c design-col'!$K$7)+D186*'c design-col'!$K$8+D187*'c design-col'!$K$9+D188*'c design-col'!$K$10+D189*'c design-col'!$K$11 -> 215.1356492 | E191: =(E184*'c design-col'!$K$6)+(E185*'c design-col'!$K$7)+E186*'c design-col'!$K$8+E187*'c design-col'!$K$9+E188*'c design-col'!$K$10+E189*'c design-col'!$K$11 -> 235.5382868 | F191: =(F184*'c design-col'!$K$6)+(F185*'c design-col'!$K$7)+F186*'c design-col'!$K$8+F187*'c design-col'!$K$9+F188*'c design-col'!$K$10+F189*'c design-col'!$K$11 -> 256.7674786 | G191: =(G184*'c design-col'!$K$6)+(G185*'c design-col'!$K$7)+G186*'c design-col'!$K$8+G187*'c design-col'!$K$9+G188*'c design-col'!$K$10+G189*'c design-col'!$K$11 -> 288.5485273 | H191: =(H184*'c design-col'!$K$6)+(H185*'c design-col'!$K$7)+H186*'c design-col'!$K$8+H187*'c design-col'!$K$9+H188*'c design-col'!$K$10+H189*'c design-col'!$K$11 -> 327.2931961 | I191: =(I184*'c design-col'!$K$6)+(I185*'c design-col'!$K$7)+I186*'c design-col'!$K$8+I187*'c design-col'!$K$9+I188*'c design-col'!$K$10+I189*'c design-col'!$K$11 -> 353.6794047 | J191: =(J184*'c design-col'!$K$6)+(J185*'c design-col'!$K$7)+J186*'c design-col'!$K$8+J187*'c design-col'!$K$9+J188*'c design-col'!$K$10+J189*'c design-col'!$K$11 -> 382.649672 | K191: =(K184*'c design-col'!$K$6)+(K185*'c design-col'!$K$7)+K186*'c design-col'!$K$8+K187*'c design-col'!$K$9+K188*'c design-col'!$K$10+K189*'c design-col'!$K$11 -> 413.3943597 | L191: =(L184*'c design-col'!$K$6)+(L185*'c design-col'!$K$7)+L186*'c design-col'!$K$8+L187*'c design-col'!$K$9+L188*'c design-col'!$K$10+L189*'c design-col'!$K$11 -> 462.511686 | M191: =(M184*'c design-col'!$K$6)+(M185*'c design-col'!$K$7)+M186*'c design-col'!$K$8+M187*'c design-col'!$K$9+M188*'c design-col'!$K$10+M189*'c design-col'!$K$11 -> 526.4740696 | N191: =(N184*'c design-col'!$K$6)+(N185*'c design-col'!$K$7)+N186*'c design-col'!$K$8+N187*'c design-col'!$K$9+N188*'c design-col'!$K$10+N189*'c design-col'!$K$11 -> 625.417013 | O191: =(O184*'c design-col'!$K$6)+(O185*'c design-col'!$K$7)+O186*'c design-col'!$K$8+O187*'c design-col'!$K$9+O188*'c design-col'!$K$10+O189*'c design-col'!$K$11 -> 753.1777445 | P191: =(P184*'c design-col'!$K$6)+(P185*'c design-col'!$K$7)+P186*'c design-col'!$K$8+P187*'c design-col'!$K$9+P188*'c design-col'!$K$10+P189*'c design-col'!$K$11 -> 927.231889 | Q191: =(Q184*'c design-col'!$K$6)+(Q185*'c design-col'!$K$7)+Q186*'c design-col'!$K$8+Q187*'c design-col'!$K$9+Q188*'c design-col'!$K$10+Q189*'c design-col'!$K$11 -> 1178.155755
A192: ECO2/tonne | B192: =B191/B190 -> 0.07383356098 | C192: =C191/C190 -> 0.08255968431 | D192: =D191/D190 -> 0.09124036185 | E192: =E191/E190 -> 0.0998890105 | F192: =F191/F190 -> 0.1089336382 | G192: =G191/G190 -> 0.1223596503 | H192: =H191/H190 -> 0.1388365131 | I192: =I191/I190 -> 0.1499594678 | J192: =J191/J190 -> 0.1627119411 | K192: =K191/K190 -> 0.1752562149 | L192: =L191/L190 -> 0.195979528 | M192: =M191/M190 -> 0.223148421 | N192: =N191/N190 -> 0.265029669 | O192: =O191/O190 -> 0.3191025482 | P192: =P191/P190 -> 0.3925455692 | Q192: =Q191/Q190 -> 0.4985214552
A193: ECO2 / m3 / Mpa | B193: =B191/B183 -> 21.75967334 | C193: =C191/C183 -> 16.22160197 | D193: 13.44597808 | E193: 11.77691434 | F193: 10.27069914 | G193: 9.618284243 | H193: 9.351234174 | I193: 8.841985117 | J193: 8.503326044 | K193: 8.267887194 | L193: 8.409303381 | M193: 8.774567827 | N193: 8.934528757 | O193: 9.414721806 | P193: 10.30257654 | Q193: 11.78155755
A194: ECO2 / tonne / Mpa | B194: =B192/B183 -> 0.009229195122 | C194: =C192/C183 -> 0.006879973692 | D194: 0.005702522616 | E194: 0.004994450525 | F194: 0.004357345528 | G194: 0.00407865501 | H194: 0.003966757519 | I194: 0.003748986694 | J194: 0.003615820914 | K194: 0.003505124298 | L194: 0.003563264145 | M194: 0.00371914035 | N194: 0.003786138129 | O194: 0.003988781852 | P194: 0.004361617435 | Q194: 0.004985214552
A196: 20% PFA, No SP
A197: 30-60 | B197: 8 | C197: 12 | D197: 16 | E197: 20 | F197: 25 | G197: 30 | H197: 35 | I197: 40 | J197: 45 | K197: 50 | L197: 55 | M197: 60 | N197: 70 | O197: 80 | P197: 90 | Q197: 100
A198: Water content | B198: 170 | C198: 170 | D198: 170 | E198: 170 | F198: 170 | G198: 170 | H198: 170 | I198: 170 | J198: 170 | K198: 170 | L198: 170 | M198: 170 | N198: 170 | O198: 170 | P198: 170 | Q198: 170
A199: Cement content | B199: 174 | C199: 196 | D199: 219 | E199: 241 | F199: 265 | G199: 299 | H199: 343 | I199: 372 | J199: 404 | K199: 439 | L199: 493 | M199: 564 | N199: 674 | O199: 817 | P199: 1011 | Q199: 1291
A200: PFA content | B200: 43 | C200: 49 | D200: 55 | E200: 60 | F200: 66 | G200: 75 | H200: 86 | I200: 93 | J200: 101 | K200: 110 | L200: 123 | M200: 141 | N200: 169 | O200: 204 | P200: 253 | Q200: 323
A201: Fine Agg | B201: 861 | C201: 809 | D201: 766 | E201: 729 | F201: 696 | G201: 655 | H201: 612 | I201: 587 | J201: 562 | K201: 538 | L201: 503 | M201: 464 | N201: 407 | O201: 343 | P201: 265 | Q201: 159
A202: Coarse Agg | B202: 1100 | C202: 1124 | D202: 1139 | E202: 1147 | F202: 1151 | G202: 1148 | H202: 1137 | I202: 1126 | J202: 1110 | K202: 1092 | L202: 1059 | M202: 1010 | N202: 928 | O202: 813 | P202: 649 | Q202: 404
A203: Plasticiser dosage
A204: Concrete | B204: =B198+B199+B200+B201+B202 -> 2348 | C204: 2348 | D204: 2349 | E204: 2347 | F204: 2348 | G204: 2347 | H204: 2348 | I204: 2348 | J204: 2347 | K204: 2349 | L204: 2348 | M204: 2349 | N204: 2348 | O204: 2347 | P204: 2348 | Q204: 2347
A205: ECO2 / m3 | B205: =(B198*'c design-col'!$K$6)+(B199*'c design-col'!$K$7)+B200*'c design-col'!$K$8+B201*'c design-col'!$K$9+B202*'c design-col'!$K$10+B203*'c design-col'!$K$11 -> 171.2546349 | C205: =(C198*'c design-col'!$K$6)+(C199*'c design-col'!$K$7)+C200*'c design-col'!$K$8+C201*'c design-col'!$K$9+C202*'c design-col'!$K$10+C203*'c design-col'!$K$11 -> 191.0503254 | D205: =(D198*'c design-col'!$K$6)+(D199*'c design-col'!$K$7)+D200*'c design-col'!$K$8+D201*'c design-col'!$K$9+D202*'c design-col'!$K$10+D203*'c design-col'!$K$11 -> 211.6350286 | E205: =(E198*'c design-col'!$K$6)+(E199*'c design-col'!$K$7)+E200*'c design-col'!$K$8+E201*'c design-col'!$K$9+E202*'c design-col'!$K$10+E203*'c design-col'!$K$11 -> 231.2327495 | F205: =(F198*'c design-col'!$K$6)+(F199*'c design-col'!$K$7)+F200*'c design-col'!$K$8+F201*'c design-col'!$K$9+F202*'c design-col'!$K$10+F203*'c design-col'!$K$11 -> 252.5830716 | G205: =(G198*'c design-col'!$K$6)+(G199*'c design-col'!$K$7)+G200*'c design-col'!$K$8+G201*'c design-col'!$K$9+G202*'c design-col'!$K$10+G203*'c design-col'!$K$11 -> 282.7447629 | H205: =(H198*'c design-col'!$K$6)+(H199*'c design-col'!$K$7)+H200*'c design-col'!$K$8+H201*'c design-col'!$K$9+H202*'c design-col'!$K$10+H203*'c design-col'!$K$11 -> 321.6918396 | I205: =(I198*'c design-col'!$K$6)+(I199*'c design-col'!$K$7)+I200*'c design-col'!$K$8+I201*'c design-col'!$K$9+I202*'c design-col'!$K$10+I203*'c design-col'!$K$11 -> 347.314279 | J205: =(J198*'c design-col'!$K$6)+(J199*'c design-col'!$K$7)+J200*'c design-col'!$K$8+J201*'c design-col'!$K$9+J202*'c design-col'!$K$10+J203*'c design-col'!$K$11 -> 375.551104 | K205: =(K198*'c design-col'!$K$6)+(K199*'c design-col'!$K$7)+K200*'c design-col'!$K$8+K201*'c design-col'!$K$9+K202*'c design-col'!$K$10+K203*'c design-col'!$K$11 -> 406.443184 | L205: =(L198*'c design-col'!$K$6)+(L199*'c design-col'!$K$7)+L200*'c design-col'!$K$8+L201*'c design-col'!$K$9+L202*'c design-col'!$K$10+L203*'c design-col'!$K$11 -> 454.0188243 | M205: =(M198*'c design-col'!$K$6)+(M199*'c design-col'!$K$7)+M200*'c design-col'!$K$8+M201*'c design-col'!$K$9+M202*'c design-col'!$K$10+M203*'c design-col'!$K$11 -> 516.5405866 | N205: =(N198*'c design-col'!$K$6)+(N199*'c design-col'!$K$7)+N200*'c design-col'!$K$8+N201*'c design-col'!$K$9+N202*'c design-col'!$K$10+N203*'c design-col'!$K$11 -> 613.3380404 | O205: =(O198*'c design-col'!$K$6)+(O199*'c design-col'!$K$7)+O200*'c design-col'!$K$8+O201*'c design-col'!$K$9+O202*'c design-col'!$K$10+O203*'c design-col'!$K$11 -> 739.0523142 | P205: =(P198*'c design-col'!$K$6)+(P199*'c design-col'!$K$7)+P200*'c design-col'!$K$8+P201*'c design-col'!$K$9+P202*'c design-col'!$K$10+P203*'c design-col'!$K$11 -> 909.5604785 | Q205: =(Q198*'c design-col'!$K$6)+(Q199*'c design-col'!$K$7)+Q200*'c design-col'!$K$8+Q201*'c design-col'!$K$9+Q202*'c design-col'!$K$10+Q203*'c design-col'!$K$11 -> 1155.543792
A206: ECO2/tonne | B206: =B205/B204 -> 0.07293638622 | C206: =C205/C204 -> 0.08136725955 | D206: =D205/D204 -> 0.09009579763 | E206: =E205/E204 -> 0.09852268832 | F206: =F205/F204 -> 0.1075737102 | G206: =G205/G204 -> 0.1204707128 | H206: =H205/H204 -> 0.137006746 | I206: =I205/I204 -> 0.1479191989 | J206: =J205/J204 -> 0.1600132527 | K206: =K205/K204 -> 0.1730281754 | L206: =L205/L204 -> 0.1933640649 | M206: =M205/M204 -> 0.2198980786 | N206: =N205/N204 -> 0.2612172233 | O206: =O205/O204 -> 0.3148923367 | P206: =P205/P204 -> 0.3873766944 | Q206: =Q205/Q204 -> 0.4923492935
A207: ECO2 / m3 / Mpa | B207: =B205/B197 -> 21.40682936 | C207: =C205/C197 -> 15.92086045 | D207: 13.22718929 | E207: 11.56163747 | F207: 10.10332286 | G207: 9.424825431 | H207: 9.191195418 | I207: 8.682856974 | J207: 8.345580089 | K207: 8.128863681 | L207: 8.254887715 | M207: 8.609009777 | N207: 8.761972006 | O207: 9.238153927 | P207: 10.10622754 | Q207: 11.55543792
A208: ECO2 / tonne / Mpa | B208: =B206/B197 -> 0.009117048278 | C208: =C206/C197 -> 0.006780604963 | D208: 0.005630987352 | E208: 0.004926134416 | F208: 0.004302948409 | G208: 0.004015690426 | H208: 0.003914478457 | I208: 0.003697979972 | J208: 0.003555850059 | K208: 0.003460563508 | L208: 0.00351571027 | M208: 0.003664967977 | N208: 0.003731674619 | O208: 0.003936154208 | P208: 0.004304185494 | Q208: 0.004923492935
A210: 20% PFA, SP
A211: 30-60 | B211: 8 | C211: 12 | D211: 16 | E211: 20 | F211: 25 | G211: 30 | H211: 35 | I211: 40 | J211: 45 | K211: 50 | L211: 55 | M211: 60 | N211: 70 | O211: 80 | P211: 90 | Q211: 100
A212: Water content | B212: 153 | C212: 153 | D212: 153 | E212: 153 | F212: 153 | G212: 153 | H212: 153 | I212: 153 | J212: 153 | K212: 153 | L212: 153 | M212: 153 | N212: 153 | O212: 153 | P212: 153 | Q212: 153
A213: Cement content | B213: 156 | C213: 177 | D213: 197 | E213: 217 | F213: 238 | G213: 269 | H213: 308 | I213: 335 | J213: 364 | K213: 395 | L213: 443 | M213: 508 | N213: 607 | O213: 735 | P213: 910 | Q213: 1162
A214: PFA content | B214: 39 | C214: 44 | D214: 49 | E214: 54 | F214: 60 | G214: 67 | H214: 77 | I214: 84 | J214: 91 | K214: 99 | L214: 111 | M214: 127 | N214: 152 | O214: 184 | P214: 227 | Q214: 291
... 112 more rows

Sheet Sheet2 (4)
A1: 0% PFA, No SP
A2: 0-10 | B2: 8 | C2: 12 | D2: 16 | E2: 20 | F2: 25 | G2: 30 | H2: 35 | I2: 40 | J2: 45 | K2: 50 | L2: 55 | M2: 60 | N2: 70 | O2: 80 | P2: 90 | Q2: 100
A3: Water content | B3: 135 | C3: 135 | D3: 135 | E3: 135 | F3: 135 | G3: 135 | H3: 135 | I3: 135 | J3: 135 | K3: 135 | L3: 135 | M3: 135 | N3: 135 | O3: 135 | P3: 135 | Q3: 135
A4: Cement content | B4: 148 | C4: 167 | D4: 187 | E4: 206 | F4: 226 | G4: 256 | H4: 292 | I4: 318 | J4: 345 | K4: 374 | L4: 420 | M4: 482 | N4: 576 | O4: 697 | P4: 863 | Q4: 1102
A5: PFA content | B5: 0 | C5: 0 | D5: 0 | E5: 0 | F5: 0 | G5: 0 | H5: 0 | I5: 0 | J5: 0 | K5: 0 | L5: 0 | M5: 0 | N5: 0 | O5: 0 | P5: 0 | Q5: 0
A6: Fine Agg | B6: 819 | C6: 796 | D6: 729 | E6: 695 | F6: 665 | G6: 628 | H6: 591 | I6: 569 | J6: 549 | K6: 529 | L6: 502 | M6: 471 | N6: 431 | O6: 387 | P6: 336 | Q6: 270
A7: Coarse Agg | B7: 1285 | C7: 1316 | D7: 1337 | E7: 1352 | F7: 1362 | G7: 1369 | H7: 1369 | I7: 1366 | J7: 1359 | K7: 1349 | L7: 1330 | M7: 1300 | N7: 1246 | O7: 1168 | P7: 1054 | Q7: 880
A8: Plasticiser dosage | B8: 0 | C8: 0 | D8: 0 | E8: 0 | F8: 0 | G8: 0 | H8: 0 | I8: 0 | J8: 0 | K8: 0 | L8: 0 | M8: 0 | N8: 0 | O8: 0 | P8: 0 | Q8: 0
A9: Concrete | B9: =SUM(B3:B8) -> 2387 | C9: =SUM(C3:C8) -> 2414 | D9: 2388 | E9: 2388 | F9: 2388 | G9: 2388 | H9: 2387 | I9: 2388 | J9: 2388 | K9: 2387 | L9: =SUM(L3:L8) -> 2387 | M9: =SUM(M3:M8) -> 2388 | N9: 2388 | O9: 2387 | P9: 2388 | Q9: 2387
A10: ECO2 / m3 | B10: =(B3*'c design-col'!$K$6)+(B4*'c design-col'!$K$7)+B5*'c design-col'!$K$8+B6*'c design-col'!$K$9+B7*'c design-col'!$K$10+B8*'c design-col'!$K$11 -> 149.358328 | C10: =(C3*'c design-col'!$K$6)+(C4*'c design-col'!$K$7)+C5*'c design-col'!$K$8+C6*'c design-col'!$K$9+C7*'c design-col'!$K$10+C8*'c design-col'!$K$11 -> 166.4973701 | D10: =(D3*'c design-col'!$K$6)+(D4*'c design-col'!$K$7)+D5*'c design-col'!$K$8+D6*'c design-col'!$K$9+D7*'c design-col'!$K$10+D8*'c design-col'!$K$11 -> 184.2900654 | E10: =(E3*'c design-col'!$K$6)+(E4*'c design-col'!$K$7)+E5*'c design-col'!$K$8+E6*'c design-col'!$K$9+E7*'c design-col'!$K$10+E8*'c design-col'!$K$11 -> 201.19804 | F10: =(F3*'c design-col'!$K$6)+(F4*'c design-col'!$K$7)+F5*'c design-col'!$K$8+F6*'c design-col'!$K$9+F7*'c design-col'!$K$10+F8*'c design-col'!$K$11 -> 218.9348804 | G10: =(G3*'c design-col'!$K$6)+(G4*'c design-col'!$K$7)+G5*'c design-col'!$K$8+G6*'c design-col'!$K$9+G7*'c design-col'!$K$10+G8*'c design-col'!$K$11 -> 245.4558119 | H10: =(H3*'c design-col'!$K$6)+(H4*'c design-col'!$K$7)+H5*'c design-col'!$K$8+H6*'c design-col'!$K$9+H7*'c design-col'!$K$10+H8*'c design-col'!$K$11 -> 277.1900726 | I10: =(I3*'c design-col'!$K$6)+(I4*'c design-col'!$K$7)+I5*'c design-col'!$K$8+I6*'c design-col'!$K$9+I7*'c design-col'!$K$10+I8*'c design-col'!$K$11 -> 300.0816183 | J10: =(J3*'c design-col'!$K$6)+(J4*'c design-col'!$K$7)+J5*'c design-col'!$K$8+J6*'c design-col'!$K$9+J7*'c design-col'!$K$10+J8*'c design-col'!$K$11 -> 323.8102595 | K10: =(K3*'c design-col'!$K$6)+(K4*'c design-col'!$K$7)+K5*'c design-col'!$K$8+K6*'c design-col'!$K$9+K7*'c design-col'!$K$10+K8*'c design-col'!$K$11 -> 349.2681086 | L10: =(L3*'c design-col'!$K$6)+(L4*'c design-col'!$K$7)+L5*'c design-col'!$K$8+L6*'c design-col'!$K$9+L7*'c design-col'!$K$10+L8*'c design-col'!$K$11 -> 389.6201136 | M10: =(M3*'c design-col'!$K$6)+(M4*'c design-col'!$K$7)+M5*'c design-col'!$K$8+M6*'c design-col'!$K$9+M7*'c design-col'!$K$10+M8*'c design-col'!$K$11 -> 443.9636207 | N10: =(N3*'c design-col'!$K$6)+(N4*'c design-col'!$K$7)+N5*'c design-col'!$K$8+N6*'c design-col'!$K$9+N7*'c design-col'!$K$10+N8*'c design-col'!$K$11 -> 526.2621153 | O10: =(O3*'c design-col'!$K$6)+(O4*'c design-col'!$K$7)+O5*'c design-col'!$K$8+O6*'c design-col'!$K$9+O7*'c design-col'!$K$10+O8*'c design-col'!$K$11 -> 632.1077402 | P10: =(P3*'c design-col'!$K$6)+(P4*'c design-col'!$K$7)+P5*'c design-col'!$K$8+P6*'c design-col'!$K$9+P7*'c design-col'!$K$10+P8*'c design-col'!$K$11 -> 777.2492221 | Q10: =(Q3*'c design-col'!$K$6)+(Q4*'c design-col'!$K$7)+Q5*'c design-col'!$K$8+Q6*'c design-col'!$K$9+Q7*'c design-col'!$K$10+Q8*'c design-col'!$K$11 -> 986.1083284
A11: ECO2/tonne | B11: =B10/B9 -> 0.062571566 | C11: =C10/C9 -> 0.06897157006 | D11: 0.07717339421 | E11: 0.0842537856 | F11: 0.09168127321 | G11: 0.1027871909 | H11: 0.1161248733 | I11: 0.1256623192 | J11: 0.1355989361 | K11: 0.1463209504 | L11: 0.163225854 | M11: 0.185914414 | N11: 0.2203777702 | O11: 0.2648126268 | P11: 0.3254812488 | Q11: 0.4131161828
A12: ECO2 / m3 / Mpa | B12: =B10/B2 -> 18.66979101 | C12: =C10/C2 -> 13.87478084 | D12: 11.51812909 | E12: 10.059902 | F12: 8.757395217 | G12: 8.181860396 | H12: 7.91971636 | I12: 7.502040458 | J12: 7.195783544 | K12: 6.985362173 | L12: 7.084002066 | M12: 7.399393678 | N12: 7.518030218 | O12: 7.901346752 | P12: 8.636102468 | Q12: 9.861083284
A13: ECO2 / tonne / Mpa | B13: =B11/B2 -> 0.00782144575 | C13: =C11/C2 -> 0.005747630838 | D13: 0.004823337138 | E13: 0.00421268928 | F13: 0.003667250928 | G13: 0.003426239697 | H13: 0.003317853523 | I13: 0.003141557981 | J13: 0.003013309692 | K13: 0.002926419008 | L13: 0.002967742801 | M13: 0.003098573567 | N13: 0.00314825386 | O13: 0.003310157835 | P13: 0.00361645832 | Q13: 0.004131161828
A15: 0% PFA, SP
A16: 0-10 | B16: 8 | C16: 12 | D16: 16 | E16: 20 | F16: 25 | G16: 30 | H16: 35 | I16: 40 | J16: 45 | K16: 50 | L16: 55 | M16: 60 | N16: 70 | O16: 80 | P16: 90 | Q16: 100
A17: Water content | B17: 121.5 | C17: 121.5 | D17: 121.5 | E17: 121.5 | F17: 121.5 | G17: 121.5 | H17: 121.5 | I17: 121.5 | J17: 121.5 | K17: 121.5 | L17: 121.5 | M17: 121.5 | N17: 121.5 | O17: 121.5 | P17: 121.5 | Q17: 121.5
A18: Cement content | B18: 133 | C18: 151 | D18: 168 | E18: 185 | F18: 203 | G18: 230 | H18: 263 | I18: 286 | J18: 310 | K18: 337 | L18: 378 | M18: 434 | N18: 518 | O18: 628 | P18: 777 | Q18: 999
A19: PFA content | B19: 0 | C19: 0 | D19: 0 | E19: 0 | F19: 0 | G19: 0 | H19: 0 | I19: 0 | J19: 0 | K19: 0 | L19: 0 | M19: 0 | N19: 0 | O19: 0 | P19: 0 | Q19: 0
A20: Fine Agg | B20: 836 | C20: 786 | D20: 746 | E20: 712 | F20: 682 | G20: 645 | H20: 608 | I20: 587 | J20: 567 | K20: 548 | L20: 521 | M20: 492 | N20: 453 | O20: 412 | P20: 364 | Q20: 302
A21: Coarse Agg | B21: 1312 | C21: 1345 | D21: 1368 | E21: 1385 | F21: 1397 | G21: 1407 | H21: 1410 | I21: 1409 | J21: 1404 | K21: 1397 | L21: 1382 | M21: 1357 | N21: 1311 | O21: 1242 | P21: 1141 | Q21: 987
A22: Plasticiser dosage | B22: 0.5 | C22: 0.6 | D22: 0.7 | E22: 0.7 | F22: 0.8 | G22: 0.9 | H22: 1.1 | I22: 1.1 | J22: 1.2 | K22: 1.3 | L22: 1.5 | M22: 1.7 | N22: 2.1 | O22: 2.5 | P22: 3.1 | Q22: 4
A23: Concrete | B23: =B17+B18+B20+B21+B22 -> 2403 | C23: =C17+C18+C20+C21+C22 -> 2404.1 | D23: 2404.2 | E23: 2404.2 | F23: 2404.3 | G23: 2404.4 | H23: 2403.6 | I23: 2404.6 | J23: 2403.7 | K23: 2404.8 | L23: 2404 | M23: 2406.2 | N23: 2405.6 | O23: 2406 | P23: 2406.6 | Q23: 2413.5
A24: ECO2 / m3 | B24: =(B17*'c design-col'!$K$6)+(B18*'c design-col'!$K$7)+B19*'c design-col'!$K$8+B20*'c design-col'!$K$9+B21*'c design-col'!$K$10+B22*'c design-col'!$K$11 -> 136.4729018 | C24: =(C17*'c design-col'!$K$6)+(C18*'c design-col'!$K$7)+C19*'c design-col'!$K$8+C20*'c design-col'!$K$9+C21*'c design-col'!$K$10+C22*'c design-col'!$K$11 -> 152.6913575 | D24: =(D17*'c design-col'!$K$6)+(D18*'c design-col'!$K$7)+D19*'c design-col'!$K$8+D20*'c design-col'!$K$9+D21*'c design-col'!$K$10+D22*'c design-col'!$K$11 -> 167.9205189 | E24: =(E17*'c design-col'!$K$6)+(E18*'c design-col'!$K$7)+E19*'c design-col'!$K$8+E20*'c design-col'!$K$9+E21*'c design-col'!$K$10+E22*'c design-col'!$K$11 -> 183.086433 | F24: =(F17*'c design-col'!$K$6)+(F18*'c design-col'!$K$7)+F19*'c design-col'!$K$8+F20*'c design-col'!$K$9+F21*'c design-col'!$K$10+F22*'c design-col'!$K$11 -> 199.0812133 | G24: =(G17*'c design-col'!$K$6)+(G18*'c design-col'!$K$7)+G19*'c design-col'!$K$8+G20*'c design-col'!$K$9+G21*'c design-col'!$K$10+G22*'c design-col'!$K$11 -> 222.9890543 | H24: =(H17*'c design-col'!$K$6)+(H18*'c design-col'!$K$7)+H19*'c design-col'!$K$8+H20*'c design-col'!$K$9+H21*'c design-col'!$K$10+H22*'c design-col'!$K$11 -> 252.1102252 | I24: =(I17*'c design-col'!$K$6)+(I18*'c design-col'!$K$7)+I19*'c design-col'!$K$8+I20*'c design-col'!$K$9+I21*'c design-col'!$K$10+I22*'c design-col'!$K$11 -> 272.3781388 | J24: =(J17*'c design-col'!$K$6)+(J18*'c design-col'!$K$7)+J19*'c design-col'!$K$8+J20*'c design-col'!$K$9+J21*'c design-col'!$K$10+J22*'c design-col'!$K$11 -> 293.480837 | K24: =(K17*'c design-col'!$K$6)+(K18*'c design-col'!$K$7)+K19*'c design-col'!$K$8+K20*'c design-col'!$K$9+K21*'c design-col'!$K$10+K22*'c design-col'!$K$11 -> 317.2117901 | L24: =(L17*'c design-col'!$K$6)+(L18*'c design-col'!$K$7)+L19*'c design-col'!$K$8+L20*'c design-col'!$K$9+L21*'c design-col'!$K$10+L22*'c design-col'!$K$11 -> 353.195792 | M24: =(M17*'c design-col'!$K$6)+(M18*'c design-col'!$K$7)+M19*'c design-col'!$K$8+M20*'c design-col'!$K$9+M21*'c design-col'!$K$10+M22*'c design-col'!$K$11 -> 402.3048885 | N24: =(N17*'c design-col'!$K$6)+(N18*'c design-col'!$K$7)+N19*'c design-col'!$K$8+N20*'c design-col'!$K$9+N21*'c design-col'!$K$10+N22*'c design-col'!$K$11 -> 475.8696884 | O24: =(O17*'c design-col'!$K$6)+(O18*'c design-col'!$K$7)+O19*'c design-col'!$K$8+O20*'c design-col'!$K$9+O21*'c design-col'!$K$10+O22*'c design-col'!$K$11 -> 572.1152112 | P24: =(P17*'c design-col'!$K$6)+(P18*'c design-col'!$K$7)+P19*'c design-col'!$K$8+P20*'c design-col'!$K$9+P21*'c design-col'!$K$10+P22*'c design-col'!$K$11 -> 702.4047049 | Q24: =(Q17*'c design-col'!$K$6)+(Q18*'c design-col'!$K$7)+Q19*'c design-col'!$K$8+Q20*'c design-col'!$K$9+Q21*'c design-col'!$K$10+Q22*'c design-col'!$K$11 -> 896.5041043
A25: ECO2/tonne | B25: =B24/B23 -> 0.05679271818 | C25: =C24/C23 -> 0.06351289776 | D25: 0.06984465474 | E25: 0.07615274643 | F25: 0.08280215167 | G25: 0.09274207882 | H25: 0.1048885943 | I25: 0.1132737831 | J25: 0.1220954516 | K25: 0.1319077637 | L25: 0.1469200466 | M25: 0.1671951162 | N25: 0.1978174628 | O25: 0.2377868708 | P25: 0.2918659956 | Q25: 0.3714539483
A26: ECO2 / m3 / Mpa | B26: =B24/B16 -> 17.05911272 | C26: =C24/C16 -> 12.72427979 | D26: 10.49503243 | E26: 9.154321648 | F26: 7.96324853 | G26: 7.432968478 | H26: 7.20314929 | I26: 6.80945347 | J26: 6.521796377 | K26: 6.344235801 | L26: 6.421741672 | M26: 6.705081475 | N26: 6.798138406 | O26: 7.151440139 | P26: 7.804496722 | Q26: 8.965041043
A27: ECO2 / tonne / Mpa | B27: =B25/B16 -> 0.007099089773 | C27: =C25/C16 -> 0.00529274148 | D27: 0.004365290921 | E27: 0.003807637321 | F27: 0.003312086067 | G27: 0.003091402627 | H27: 0.002996816979 | I27: 0.002831844577 | J27: 0.002713232257 | K27: 0.002638155273 | L27: 0.002671273574 | M27: 0.00278658527 | N27: 0.002825963754 | O27: 0.002972335885 | P27: 0.003242955506 | Q27: 0.003714539483
A28: 20% PFA, No SP
A29: 0-10 | B29: 8 | C29: 12 | D29: 16 | E29: 20 | F29: 25 | G29: 30 | H29: 35 | I29: 40 | J29: 45 | K29: 50 | L29: 55 | M29: 60 | N29: 70 | O29: 80 | P29: 90 | Q29: 100
A30: Water content | B30: 125 | C30: 125 | D30: 125 | E30: 125 | F30: 125 | G30: 125 | H30: 125 | I30: 125 | J30: 125 | K30: 125 | L30: 125 | M30: 125 | N30: 125 | O30: 125 | P30: 125 | Q30: 125
A31: Cement content | B31: 128 | C31: 144 | D31: 161 | E31: 177 | F31: 195 | G31: 220 | H31: 252 | I31: 274 | J31: 297 | K31: 322 | L31: 362 | M31: 415 | N31: 496 | O31: 601 | P31: 743 | Q31: 949
A32: PFA content | B32: 32 | C32: 36 | D32: 40 | E32: 44 | F32: 49 | G32: 55 | H32: 63 | I32: 68 | J32: 74 | K32: 81 | L32: 91 | M32: 104 | N32: 124 | O32: 150 | P32: 186 | Q32: 237
A33: Fine Agg | B33: 823 | C33: 772 | D33: 731 | E33: 697 | F33: 666 | G33: 629 | H33: 591 | I33: 569 | J33: 548 | K33: 527 | L33: 499 | M33: 467 | N33: 425 | O33: 379 | P33: 325 | Q33: 256
A34: Coarse Agg | B34: 1291 | C34: 1322 | D34: 1342 | E34: 1356 | F34: 1365 | G34: 1370 | H34: 1369 | I34: 1364 | J34: 1356 | K34: 1344 | L34: 1323 | M34: 1289 | N34: 1229 | O34: 1144 | P34: 1020 | Q34: 832
A35: Plasticiser dosage | B35: 0 | C35: 0 | D35: 0 | E35: 0 | F35: 0 | G35: 0 | H35: 0 | I35: 0 | J35: 0 | K35: 0 | L35: 0 | M35: 0 | N35: 0 | O35: 0 | P35: 0 | Q35: 0
A36: Concrete | B36: =B30+B31+B32+B33+B34+B35 -> 2399 | C36: =C30+C31+C32+C33+C34+C35 -> 2399 | D36: 2399 | E36: 2399 | F36: 2400 | G36: 2399 | H36: 2400 | I36: 2400 | J36: 2400 | K36: 2399 | L36: 2400 | M36: 2400 | N36: 2399 | O36: 2399 | P36: 2399 | Q36: 2399
A37: ECO2 / m3 | B37: =(B30*'c design-col'!$K$6)+(B31*'c design-col'!$K$7)+B32*'c design-col'!$K$8+B33*'c design-col'!$K$9+B34*'c design-col'!$K$10+B35*'c design-col'!$K$11 -> 132.6210314 | C37: =(C30*'c design-col'!$K$6)+(C31*'c design-col'!$K$7)+C32*'c design-col'!$K$8+C33*'c design-col'!$K$9+C34*'c design-col'!$K$10+C35*'c design-col'!$K$11 -> 147.1517042 | D37: =(D30*'c design-col'!$K$6)+(D31*'c design-col'!$K$7)+D32*'c design-col'!$K$8+D33*'c design-col'!$K$9+D34*'c design-col'!$K$10+D35*'c design-col'!$K$11 -> 162.4479958 | E37: =(E30*'c design-col'!$K$6)+(E31*'c design-col'!$K$7)+E32*'c design-col'!$K$8+E33*'c design-col'!$K$9+E34*'c design-col'!$K$10+E35*'c design-col'!$K$11 -> 176.7994692 | F37: =(F30*'c design-col'!$K$6)+(F31*'c design-col'!$K$7)+F32*'c design-col'!$K$8+F33*'c design-col'!$K$9+F34*'c design-col'!$K$10+F35*'c design-col'!$K$11 -> 192.8883797 | G37: =(G30*'c design-col'!$K$6)+(G31*'c design-col'!$K$7)+G32*'c design-col'!$K$8+G33*'c design-col'!$K$9+G34*'c design-col'!$K$10+G35*'c design-col'!$K$11 -> 215.1261915 | H37: =(H30*'c design-col'!$K$6)+(H31*'c design-col'!$K$7)+H32*'c design-col'!$K$8+H33*'c design-col'!$K$9+H34*'c design-col'!$K$10+H35*'c design-col'!$K$11 -> 243.5257566 | I37: =(I30*'c design-col'!$K$6)+(I31*'c design-col'!$K$7)+I32*'c design-col'!$K$8+I33*'c design-col'!$K$9+I34*'c design-col'!$K$10+I35*'c design-col'!$K$11 -> 262.9910655 | J37: =(J30*'c design-col'!$K$6)+(J31*'c design-col'!$K$7)+J32*'c design-col'!$K$8+J33*'c design-col'!$K$9+J34*'c design-col'!$K$10+J35*'c design-col'!$K$11 -> 283.331011 | K37: =(K30*'c design-col'!$K$6)+(K31*'c design-col'!$K$7)+K32*'c design-col'!$K$8+K33*'c design-col'!$K$9+K34*'c design-col'!$K$10+K35*'c design-col'!$K$11 -> 305.414312 | L37: =(L30*'c design-col'!$K$6)+(L31*'c design-col'!$K$7)+L32*'c design-col'!$K$8+L33*'c design-col'!$K$9+L34*'c design-col'!$K$10+L35*'c design-col'!$K$11 -> 340.7050029 | M37: =(M30*'c design-col'!$K$6)+(M31*'c design-col'!$K$7)+M32*'c design-col'!$K$8+M33*'c design-col'!$K$9+M34*'c design-col'!$K$10+M35*'c design-col'!$K$11 -> 387.3908421 | N37: =(N30*'c design-col'!$K$6)+(N31*'c design-col'!$K$7)+N32*'c design-col'!$K$8+N33*'c design-col'!$K$9+N34*'c design-col'!$K$10+N35*'c design-col'!$K$11 -> 458.6571205 | O37: =(O30*'c design-col'!$K$6)+(O31*'c design-col'!$K$7)+O32*'c design-col'!$K$8+O33*'c design-col'!$K$9+O34*'c design-col'!$K$10+O35*'c design-col'!$K$11 -> 550.968028 | P37: =(P30*'c design-col'!$K$6)+(P31*'c design-col'!$K$7)+P32*'c design-col'!$K$8+P33*'c design-col'!$K$9+P34*'c design-col'!$K$10+P35*'c design-col'!$K$11 -> 675.73286 | Q37: =(Q30*'c design-col'!$K$6)+(Q31*'c design-col'!$K$7)+Q32*'c design-col'!$K$8+Q33*'c design-col'!$K$9+Q34*'c design-col'!$K$10+Q35*'c design-col'!$K$11 -> 856.61396
A38: ECO2/tonne | B38: =B37/B36 -> 0.05528179716 | C38: =C37/C36 -> 0.06133876789 | D38: 0.06771487946 | E38: 0.07369715264 | F38: 0.08037015823 | G38: 0.089673277 | H38: 0.1014690653 | I38: 0.1095796106 | J38: 0.1180545879 | K38: 0.1273090087 | L38: 0.1419604179 | M38: 0.1614128509 | N38: 0.1911867947 | O38: 0.2296657057 | P38: 0.281672722 | Q38: 0.357071263
A39: ECO2 / m3 / Mpa | B39: =B37/B29 -> 16.57762892 | C39: =C37/C29 -> 12.26264201 | D39: 10.15299974 | E39: 8.839973459 | F39: 7.71553519 | G39: 7.170873051 | H39: 6.95787876 | I39: 6.574776638 | J39: 6.29624469 | K39: 6.108286239 | L39: 6.194636417 | M39: 6.456514034 | N39: 6.552244579 | O39: 6.88710035 | P39: 7.508142889 | Q39: 8.5661396
A40: ECO2 / tonne / Mpa | B40: =B38/B29 -> 0.006910224646 | C40: =C38/C29 -> 0.005111563991 | D40: 0.004232179966 | E40: 0.003684857632 | F40: 0.003214806329 | G40: 0.002989109233 | H40: 0.00289911615 | I40: 0.002739490266 | J40: 0.002623435287 | K40: 0.002546180175 | L40: 0.002581098507 | M40: 0.002690214181 | N40: 0.002731239924 | O40: 0.002870821321 | P40: 0.003129696911 | Q40: 0.00357071263
A42: 20% PFA, SP
A43: 0-10 | B43: 8 | C43: 12 | D43: 16 | E43: 20 | F43: 25 | G43: 30 | H43: 35 | I43: 40 | J43: 45 | K43: 50 | L43: 55 | M43: 60 | N43: 70 | O43: 80 | P43: 90 | Q43: 100
A44: Water content | B44: 112.5 | C44: 112.5 | D44: 112.5 | E44: 112.5 | F44: 112.5 | G44: 112.5 | H44: 112.5 | I44: 112.5 | J44: 112.5 | K44: 112.5 | L44: 112.5 | M44: 112.5 | N44: 112.5 | O44: 112.5 | P44: 112.5 | Q44: 112.5
A45: Cement content | B45: 115 | C45: 130 | D45: 145 | E45: 160 | F45: 175 | G45: 198 | H45: 227 | I45: 246 | J45: 267 | K45: 290 | L45: 326 | M45: 373 | N45: 446 | O45: 541 | P45: 669 | Q45: 854
A46: PFA content | B46: 29 | C46: 32 | D46: 36 | E46: 40 | F46: 44 | G46: 50 | H46: 57 | I46: 62 | J46: 67 | K46: 73 | L46: 81 | M46: 93 | N46: 112 | O46: 135 | P46: 167 | Q46: 214
A47: Fine Agg | B47: 840 | C47: 789 | D47: 748 | E47: 713 | F47: 683 | G47: 646 | H47: 608 | I47: 587 | J47: 566 | K47: 546 | L47: 519 | M47: 488 | N47: 448 | O47: 405 | P47: 354 | Q47: 290
A48: Coarse Agg | B48: 1318 | C48: 1350 | D48: 1372 | E48: 1388 | F48: 1399 | G48: 1408 | H48: 1410 | I48: 1407 | J48: 1401 | K48: 1392 | L48: 1375 | M48: 1347 | N48: 1295 | O48: 1221 | P48: 1111 | Q48: 943
A49: Plasticiser dosage | B49: 0.6 | C49: 0.6 | D49: 0.7 | E49: 0.8 | F49: 0.9 | G49: 1 | H49: 1.1 | I49: 1.2 | J49: 1.3 | K49: 1.5 | L49: 1.6 | M49: 1.9 | N49: 2.2 | O49: 2.7 | P49: 3.3 | Q49: 4.3
A50: Concrete | B50: =B44+B45+B46+B47+B48+B49 -> 2415.1 | C50: =C44+C45+C46+C47+C48+C49 -> 2414.1 | D50: 2414.2 | E50: 2414.3 | F50: 2414.4 | G50: 2415.5 | H50: 2415.6 | I50: 2415.7 | J50: 2414.8 | K50: 2415 | L50: 2415.1 | M50: 2415.4 | N50: 2415.7 | O50: 2417.2 | P50: 2416.8 | Q50: 2417.8
A51: ECO2 / m3 | B51: =(B44*'c design-col'!$K$6)+(B45*'c design-col'!$K$7)+B46*'c design-col'!$K$8+B47*'c design-col'!$K$9+B48*'c design-col'!$K$10+B49*'c design-col'!$K$11 -> 121.4233715 | C51: =(C44*'c design-col'!$K$6)+(C45*'c design-col'!$K$7)+C46*'c design-col'!$K$8+C47*'c design-col'!$K$9+C48*'c design-col'!$K$10+C49*'c design-col'!$K$11 -> 135.0560139 | D51: =(D44*'c design-col'!$K$6)+(D45*'c design-col'!$K$7)+D46*'c design-col'!$K$8+D47*'c design-col'!$K$9+D48*'c design-col'!$K$10+D49*'c design-col'!$K$11 -> 148.6102455 | E51: =(E44*'c design-col'!$K$6)+(E45*'c design-col'!$K$7)+E46*'c design-col'!$K$8+E47*'c design-col'!$K$9+E48*'c design-col'!$K$10+E49*'c design-col'!$K$11 -> 162.1012302 | F51: =(F44*'c design-col'!$K$6)+(F45*'c design-col'!$K$7)+F46*'c design-col'!$K$8+F47*'c design-col'!$K$9+F48*'c design-col'!$K$10+F49*'c design-col'!$K$11 -> 175.5395092 | G51: =(G44*'c design-col'!$K$6)+(G45*'c design-col'!$K$7)+G46*'c design-col'!$K$8+G47*'c design-col'!$K$9+G48*'c design-col'!$K$10+G49*'c design-col'!$K$11 -> 196.0609661 | H51: =(H44*'c design-col'!$K$6)+(H45*'c design-col'!$K$7)+H46*'c design-col'!$K$8+H47*'c design-col'!$K$9+H48*'c design-col'!$K$10+H49*'c design-col'!$K$11 -> 221.8204408 | I51: =(I44*'c design-col'!$K$6)+(I45*'c design-col'!$K$7)+I46*'c design-col'!$K$8+I47*'c design-col'!$K$9+I48*'c design-col'!$K$10+I49*'c design-col'!$K$11 -> 238.6621181 | J51: =(J44*'c design-col'!$K$6)+(J45*'c design-col'!$K$7)+J46*'c design-col'!$K$8+J47*'c design-col'!$K$9+J48*'c design-col'!$K$10+J49*'c design-col'!$K$11 -> 257.2330035 | K51: =(K44*'c design-col'!$K$6)+(K45*'c design-col'!$K$7)+K46*'c design-col'!$K$8+K47*'c design-col'!$K$9+K48*'c design-col'!$K$10+K49*'c design-col'!$K$11 -> 277.5624089 | L51: =(L44*'c design-col'!$K$6)+(L45*'c design-col'!$K$7)+L46*'c design-col'!$K$8+L47*'c design-col'!$K$9+L48*'c design-col'!$K$10+L49*'c design-col'!$K$11 -> 309.3172906 | M51: =(M44*'c design-col'!$K$6)+(M45*'c design-col'!$K$7)+M46*'c design-col'!$K$8+M47*'c design-col'!$K$9+M48*'c design-col'!$K$10+M49*'c design-col'!$K$11 -> 350.7522609 | N51: =(N44*'c design-col'!$K$6)+(N45*'c design-col'!$K$7)+N46*'c design-col'!$K$8+N47*'c design-col'!$K$9+N48*'c design-col'!$K$10+N49*'c design-col'!$K$11 -> 415.0279214 | O51: =(O44*'c design-col'!$K$6)+(O45*'c design-col'!$K$7)+O46*'c design-col'!$K$8+O47*'c design-col'!$K$9+O48*'c design-col'!$K$10+O49*'c design-col'!$K$11 -> 498.5673153 | P51: =(P44*'c design-col'!$K$6)+(P45*'c design-col'!$K$7)+P46*'c design-col'!$K$8+P47*'c design-col'!$K$9+P48*'c design-col'!$K$10+P49*'c design-col'!$K$11 -> 611.0366605 | Q51: =(Q44*'c design-col'!$K$6)+(Q45*'c design-col'!$K$7)+Q46*'c design-col'!$K$8+Q47*'c design-col'!$K$9+Q48*'c design-col'!$K$10+Q49*'c design-col'!$K$11 -> 773.5168339
A52: ECO2/tonne | B52: =B51/B50 -> 0.05027674691 | C52: =C51/C50 -> 0.05594466423 | D52: 0.061556725 | E52: 0.0671421241 | F52: 0.07270523079 | G52: 0.08116786011 | H52: 0.0918282997 | I52: 0.09879625705 | J52: 0.1065235231 | K52: 0.1149326745 | L52: 0.1280763905 | M52: 0.1452149793 | N52: 0.1718044134 | O52: 0.2062581976 | P52: 0.2528288069 | Q52: 0.3199258971
A53: ECO2 / m3 / Mpa | B53: =B51/B43 -> 15.17792143 | C53: =C51/C43 -> 11.25466783 | D53: 9.288140343 | E53: 8.10506151 | F53: 7.021580369 | G53: 6.535365536 | H53: 6.337726879 | I53: 5.966552954 | J53: 5.716288968 | K53: 5.551248179 | L53: 5.623950739 | M53: 5.845871016 | N53: 5.928970306 | O53: 6.232091441 | P53: 6.789296228 | Q53: 7.735168339
A54: ECO2 / tonne / Mpa | B54: =B52/B43 -> 0.006284593364 | C54: =C52/C43 -> 0.004662055353 | D54: 0.003847295312 | E54: 0.003357106205 | F54: 0.002908209232 | G54: 0.002705595337 | H54: 0.002623665706 | I54: 0.002469906426 | J54: 0.002367189402 | K54: 0.00229865349 | L54: 0.002328661645 | M54: 0.002420249655 | N54: 0.002454348763 | O54: 0.00257822747 | P54: 0.002809208966 | Q54: 0.003199258971
B55: =(B263-B52)/B263 -> 0.428402134 | C55: =(C263-C52)/C263 -> 0.433329565 | D55: 0.4356277132 | E55: 0.4393861964 | F55: 0.4538586276 | G55: 0.4484513801 | H55: 0.4510496029 | I55: 0.4550809755 | J55: 0.4557842071 | K55: 0.458745762 | L55: 0.4605143718 | M55: 0.4640352569 | N55: 0.4665431945 | O55: 0.4688923273 | P55: 0.4720687149 | Q55: 0.4746957837 | R55: =AVERAGE(B55:Q55) -> 0.4541541133
A56: 40% PFA, No SP
A57: 0-10 | B57: 8 | C57: 12 | D57: 16 | E57: 20 | F57: 25 | G57: 30 | H57: 35 | I57: 40 | J57: 45 | K57: 50 | L57: 55 | M57: 60 | N57: 70 | O57: 80 | P57: 90 | Q57: 100
A58: Water content | B58: 115 | C58: 115 | D58: 115 | E58: 115 | F58: 115 | G58: 115 | H58: 115 | I58: 115 | J58: 115 | K58: 115 | L58: 115 | M58: 115 | N58: 115 | O58: 115 | P58: 115 | Q58: 115
A59: Cement content | B59: 105 | C59: 119 | D59: 132 | E59: 146 | F59: 160 | G59: 181 | H59: 208 | I59: 226 | J59: 245 | K59: 266 | L59: 298 | M59: 342 | N59: 409 | O59: 495 | P59: 613 | Q59: 782
A60: PFA content | B60: 70 | C60: 79 | D60: 88 | E60: 97 | F60: 107 | G60: 121 | H60: 138 | I60: 150 | J60: 163 | K60: 177 | L60: 199 | M60: 228 | N60: 272 | O60: 330 | P60: 408 | Q60: 522
A61: Fine Agg | B61: 825 | C61: 774 | D61: 732 | E61: 697 | F61: 665 | G61: 627 | H61: 588 | I61: 565 | J61: 543 | K61: 522 | L61: 493 | M61: 459 | N61: 415 | O61: 366 | P61: 308 | Q61: 233
A62: Coarse Agg | B62: 1295 | C62: 1324 | D62: 1343 | E62: 1356 | F62: 1363 | G62: 1367 | H62: 1362 | I62: 1355 | J62: 1345 | K62: 1331 | L62: 1306 | M62: 1267 | N62: 1200 | O62: 1105 | P62: 967 | Q62: 759
A63: Plasticiser dosage
A64: Concrete | B64: =B58+B59+B60+B61+B62 -> 2410 | C64: =C58+C59+C60+C61+C62 -> 2411 | D64: 2410 | E64: 2411 | F64: 2410 | G64: 2411 | H64: 2411 | I64: 2411 | J64: 2411 | K64: 2411 | L64: 2411 | M64: 2411 | N64: 2411 | O64: 2411 | P64: 2411 | Q64: 2411
A65: ECO2 / m3 | B65: =(B58*'c design-col'!$K$6)+(B59*'c design-col'!$K$7)+B60*'c design-col'!$K$8+B61*'c design-col'!$K$9+B62*'c design-col'!$K$10+B63*'c design-col'!$K$11 -> 113.363758 | C65: =(C58*'c design-col'!$K$6)+(C59*'c design-col'!$K$7)+C60*'c design-col'!$K$8+C61*'c design-col'!$K$9+C62*'c design-col'!$K$10+C63*'c design-col'!$K$11 -> 126.2359597 | D65: =(D58*'c design-col'!$K$6)+(D59*'c design-col'!$K$7)+D60*'c design-col'!$K$8+D61*'c design-col'!$K$9+D62*'c design-col'!$K$10+D63*'c design-col'!$K$11 -> 138.1165558 | E65: =(E58*'c design-col'!$K$6)+(E59*'c design-col'!$K$7)+E60*'c design-col'!$K$8+E61*'c design-col'!$K$9+E62*'c design-col'!$K$10+E63*'c design-col'!$K$11 -> 150.8200993 | F65: =(F58*'c design-col'!$K$6)+(F59*'c design-col'!$K$7)+F60*'c design-col'!$K$8+F61*'c design-col'!$K$9+F62*'c design-col'!$K$10+F63*'c design-col'!$K$11 -> 163.4804616 | G65: =(G58*'c design-col'!$K$6)+(G59*'c design-col'!$K$7)+G60*'c design-col'!$K$8+G61*'c design-col'!$K$9+G62*'c design-col'!$K$10+G63*'c design-col'!$K$11 -> 182.3835778 | H65: =(H58*'c design-col'!$K$6)+(H59*'c design-col'!$K$7)+H60*'c design-col'!$K$8+H61*'c design-col'!$K$9+H62*'c design-col'!$K$10+H63*'c design-col'!$K$11 -> 206.5530065 | I65: =(I58*'c design-col'!$K$6)+(I59*'c design-col'!$K$7)+I60*'c design-col'!$K$8+I61*'c design-col'!$K$9+I62*'c design-col'!$K$10+I63*'c design-col'!$K$11 -> 222.6437672 | J65: =(J58*'c design-col'!$K$6)+(J59*'c design-col'!$K$7)+J60*'c design-col'!$K$8+J61*'c design-col'!$K$9+J62*'c design-col'!$K$10+J63*'c design-col'!$K$11 -> 239.6091645 | K65: =(K58*'c design-col'!$K$6)+(K59*'c design-col'!$K$7)+K60*'c design-col'!$K$8+K61*'c design-col'!$K$9+K62*'c design-col'!$K$10+K63*'c design-col'!$K$11 -> 258.3202286 | L65: =(L58*'c design-col'!$K$6)+(L59*'c design-col'!$K$7)+L60*'c design-col'!$K$8+L61*'c design-col'!$K$9+L62*'c design-col'!$K$10+L63*'c design-col'!$K$11 -> 286.8101345 | M65: =(M58*'c design-col'!$K$6)+(M59*'c design-col'!$K$7)+M60*'c design-col'!$K$8+M61*'c design-col'!$K$9+M62*'c design-col'!$K$10+M63*'c design-col'!$K$11 -> 325.9041417 | N65: =(N58*'c design-col'!$K$6)+(N59*'c design-col'!$K$7)+N60*'c design-col'!$K$8+N61*'c design-col'!$K$9+N62*'c design-col'!$K$10+N63*'c design-col'!$K$11 -> 385.3494685 | O65: =(O58*'c design-col'!$K$6)+(O59*'c design-col'!$K$7)+O60*'c design-col'!$K$8+O61*'c design-col'!$K$9+O62*'c design-col'!$K$10+O63*'c design-col'!$K$11 -> 461.5951406 | P65: =(P58*'c design-col'!$K$6)+(P59*'c design-col'!$K$7)+P60*'c design-col'!$K$8+P61*'c design-col'!$K$9+P62*'c design-col'!$K$10+P63*'c design-col'!$K$11 -> 566.091601 | Q65: =(Q58*'c design-col'!$K$6)+(Q59*'c design-col'!$K$7)+Q60*'c design-col'!$K$8+Q61*'c design-col'!$K$9+Q62*'c design-col'!$K$10+Q63*'c design-col'!$K$11 -> 715.6991131
A66: ECO2/tonne | B66: =B65/B64 -> 0.04703890372 | C66: =C65/C64 -> 0.05235834083 | D66: 0.05730977418 | E66: 0.06255499763 | F66: 0.06783421644 | G66: 0.07564644453 | H66: 0.08567109354 | I66: 0.09234498847 | J66: 0.09938165262 | K66: 0.1071423594 | L66: 0.118958994 | M66: 0.1351738456 | N66: 0.1598297256 | O66: 0.191453812 | P66: 0.234795355 | Q66: 0.2968474132
A67: ECO2 / m3 / Mpa | B67: =B65/B57 -> 14.17046975 | C67: =C65/C57 -> 10.51966331 | D67: 8.632284736 | E67: 7.541004964 | F67: 6.539218464 | G67: 6.079452592 | H67: 5.901514472 | I67: 5.56609418 | J67: 5.324648099 | K67: 5.166404572 | L67: 5.214729719 | M67: 5.431735696 | N67: 5.504992408 | O67: 5.769939258 | P67: 6.289906678 | Q67: 7.156991131
A68: ECO2 / tonne / Mpa | B68: =B66/B57 -> 0.005879862965 | C68: =C66/C57 -> 0.004363195069 | D68: 0.003581860886 | E68: 0.003127749882 | F68: 0.002713368657 | G68: 0.002521548151 | H68: 0.00244774553 | I68: 0.002308624712 | J68: 0.002208481169 | K68: 0.002142847189 | L68: 0.0021628908 | M68: 0.002252897427 | N68: 0.002283281795 | O68: 0.002393172649 | P68: 0.002608837278 | Q68: 0.002968474132
A70: 40% PFA, SP
A71: 0-10 | B71: 8 | C71: 12 | D71: 16 | E71: 20 | F71: 25 | G71: 30 | H71: 35 | I71: 40 | J71: 45 | K71: 50 | L71: 55 | M71: 60 | N71: 70 | O71: 80 | P71: 90 | Q71: 100
A72: Water content | B72: 103.5 | C72: 103.5 | D72: 103.5 | E72: 103.5 | F72: 103.5 | G72: 103.5 | H72: 103.5 | I72: 103.5 | J72: 103.5 | K72: 103.5 | L72: 103.5 | M72: 103.5 | N72: 103.5 | O72: 103.5 | P72: 103.5 | Q72: 103.5
A73: Cement content | B73: 95 | C73: 107 | D73: 119 | E73: 132 | F73: 144 | G73: 163 | H73: 187 | I73: 203 | J73: 220 | K73: 239 | L73: 269 | M73: 308 | N73: 368 | O73: 446 | P73: 551 | Q73: 704
A74: PFA content | B74: 63 | C74: 71 | D74: 79 | E74: 88 | F74: 96 | G74: 109 | H74: 125 | I74: 135 | J74: 147 | K74: 159 | L74: 179 | M74: 205 | N74: 245 | O74: 297 | P74: 368 | Q74: 469
A75: Fine Agg | B75: 842 | C75: 790 | D75: 749 | E75: 713 | F75: 682 | G75: 644 | H75: 606 | I75: 583 | J75: 562 | K75: 541 | L75: 513 | M75: 481 | N75: 439 | O75: 393 | P75: 339 | Q75: 270
A76: Coarse Agg | B76: 1321 | C76: 1352 | D76: 1373 | E76: 1388 | F76: 1398 | G76: 1404 | H76: 1403 | I76: 1399 | J76: 1391 | K76: 1381 | L76: 1360 | M76: 1327 | N76: 1269 | O76: 1185 | P76: 1063 | Q76: 877
A77: Plasticiser dosage | B77: 0.6 | C77: 0.7 | D77: 0.8 | E77: 0.9 | F77: 1 | G77: 1.1 | H77: 1.2 | I77: 1.4 | J77: 1.5 | K77: 1.6 | L77: 1.8 | M77: 2.1 | N77: 2.5 | O77: 3 | P77: 3.7 | Q77: 4.7
A78: Concrete | B78: =B72+B73+B74+B75+B76+B77 -> 2425.1 | C78: =C72+C73+C74+C75+C76 -> 2423.5 | D78: 2423.5 | E78: 2424.5 | F78: 2423.5 | G78: 2423.5 | H78: 2424.5 | I78: 2423.5 | J78: 2423.5 | K78: 2423.5 | L78: 2424.5 | M78: 2424.5 | N78: 2424.5 | O78: 2424.5 | P78: 2424.5 | Q78: 2423.5
A79: ECO2 / m3 | B79: =(B72*'c design-col'!$K$6)+(B73*'c design-col'!$K$7)+B74*'c design-col'!$K$8+B75*'c design-col'!$K$9+B76*'c design-col'!$K$10+B77*'c design-col'!$K$11 -> 104.6978941 | C79: =(C72*'c design-col'!$K$6)+(C73*'c design-col'!$K$7)+C74*'c design-col'!$K$8+C75*'c design-col'!$K$9+C76*'c design-col'!$K$10+C77*'c design-col'!$K$11 -> 115.7987244 | D79: =(D72*'c design-col'!$K$6)+(D73*'c design-col'!$K$7)+D74*'c design-col'!$K$8+D75*'c design-col'!$K$9+D76*'c design-col'!$K$10+D77*'c design-col'!$K$11 -> 126.7964547 | E79: =(E72*'c design-col'!$K$6)+(E73*'c design-col'!$K$7)+E74*'c design-col'!$K$8+E75*'c design-col'!$K$9+E76*'c design-col'!$K$10+E77*'c design-col'!$K$11 -> 138.6395095 | F79: =(F72*'c design-col'!$K$6)+(F73*'c design-col'!$K$7)+F74*'c design-col'!$K$8+F75*'c design-col'!$K$9+F76*'c design-col'!$K$10+F77*'c design-col'!$K$11 -> 149.5189758 | G79: =(G72*'c design-col'!$K$6)+(G73*'c design-col'!$K$7)+G74*'c design-col'!$K$8+G75*'c design-col'!$K$9+G76*'c design-col'!$K$10+G77*'c design-col'!$K$11 -> 166.6530318 | H79: =(H72*'c design-col'!$K$6)+(H73*'c design-col'!$K$7)+H74*'c design-col'!$K$8+H75*'c design-col'!$K$9+H76*'c design-col'!$K$10+H77*'c design-col'!$K$11 -> 188.1975342 | I79: =(I72*'c design-col'!$K$6)+(I73*'c design-col'!$K$7)+I74*'c design-col'!$K$8+I75*'c design-col'!$K$9+I76*'c design-col'!$K$10+I77*'c design-col'!$K$11 -> 202.5050879 | J79: =(J72*'c design-col'!$K$6)+(J73*'c design-col'!$K$7)+J74*'c design-col'!$K$8+J75*'c design-col'!$K$9+J76*'c design-col'!$K$10+J77*'c design-col'!$K$11 -> 217.7037366 | K79: =(K72*'c design-col'!$K$6)+(K73*'c design-col'!$K$7)+K74*'c design-col'!$K$8+K75*'c design-col'!$K$9+K76*'c design-col'!$K$10+K77*'c design-col'!$K$11 -> 234.6444458 | L79: =(L72*'c design-col'!$K$6)+(L73*'c design-col'!$K$7)+L74*'c design-col'!$K$8+L75*'c design-col'!$K$9+L76*'c design-col'!$K$10+L77*'c design-col'!$K$11 -> 261.3663088 | M79: =(M72*'c design-col'!$K$6)+(M73*'c design-col'!$K$7)+M74*'c design-col'!$K$8+M75*'c design-col'!$K$9+M76*'c design-col'!$K$10+M77*'c design-col'!$K$11 -> 296.0416415 | N79: =(N72*'c design-col'!$K$6)+(N73*'c design-col'!$K$7)+N74*'c design-col'!$K$8+N75*'c design-col'!$K$9+N76*'c design-col'!$K$10+N77*'c design-col'!$K$11 -> 349.3120863 | O79: =(O72*'c design-col'!$K$6)+(O73*'c design-col'!$K$7)+O74*'c design-col'!$K$8+O75*'c design-col'!$K$9+O76*'c design-col'!$K$10+O77*'c design-col'!$K$11 -> 418.4730106 | P79: =(P72*'c design-col'!$K$6)+(P73*'c design-col'!$K$7)+P74*'c design-col'!$K$8+P75*'c design-col'!$K$9+P76*'c design-col'!$K$10+P77*'c design-col'!$K$11 -> 511.5048842 | Q79: =(Q72*'c design-col'!$K$6)+(Q73*'c design-col'!$K$7)+Q74*'c design-col'!$K$8+Q75*'c design-col'!$K$9+Q76*'c design-col'!$K$10+Q77*'c design-col'!$K$11 -> 646.9159009
A80: ECO2/tonne | B80: =B79/B78 -> 0.04317260902 | C80: =C79/C78 -> 0.04778160692 | D80: 0.05231956041 | E80: 0.05718272201 | F80: 0.06169547175 | G80: 0.06876543505 | H80: 0.07762323541 | I80: 0.0835589387 | J80: 0.08983030186 | K80: 0.09682048517 | L80: 0.1078021484 | M80: 0.1221042035 | N80: 0.1440759275 | O80: 0.172601778 | P80: 0.2109733488 | Q80: 0.2669345578
A81: ECO2 / m3 / Mpa | B81: =B79/B71 -> 13.08723677 | C81: =C79/C71 -> 9.649893698 | D81: 7.924778416 | E81: 6.931975476 | F81: 5.980759032 | G81: 5.555101061 | H81: 5.377072407 | I81: 5.062627199 | J81: 4.837860813 | K81: 4.692888916 | L81: 4.752114705 | M81: 4.934027358 | N81: 4.990172662 | O81: 5.230912633 | P81: 5.683387602 | Q81: 6.469159009
A82: ECO2 / tonne / Mpa | B82: =B80/B71 -> 0.005396576128 | C82: =C80/C71 -> 0.003981800577 | D82: 0.003269972526 | E82: 0.002859136101 | F82: 0.00246781887 | G82: 0.002292181168 | H82: 0.002217806726 | I82: 0.002088973468 | J82: 0.00199622893 | K82: 0.001936409703 | L82: 0.001960039062 | M82: 0.002035070059 | N82: 0.002058227536 | O82: 0.002157522224 | P82: 0.00234414832 | Q82: 0.002669345578
A84: 0% PFA, No SP
A85: 10-30 | B85: 8 | C85: 12 | D85: 16 | E85: 20 | F85: 25 | G85: 30 | H85: 35 | I85: 40 | J85: 45 | K85: 50 | L85: 55 | M85: 60 | N85: 70 | O85: 80 | P85: 90 | Q85: 100
A86: Water content | B86: 160 | C86: 160 | D86: 160 | E86: 160 | F86: 160 | G86: 160 | H86: 160 | I86: 160 | J86: 160 | K86: 160 | L86: 160 | M86: 160 | N86: 160 | O86: 160 | P86: 160 | Q86: 160
A87: Cement content | B87: 176 | C87: 199 | D87: 221 | E87: 244 | F87: 268 | G87: 303 | H87: 347 | I87: 376 | J87: 409 | K87: 444 | L87: 498 | M87: 571 | N87: 682 | O87: 827 | P87: 1023 | Q87: 1306
A88: ECO2 / m3 | B88: 0 | C88: 0 | D88: 0 | E88: 0 | F88: 0 | G88: 0 | H88: 0 | I88: 0 | J88: 0 | K88: 0 | L88: 0 | M88: 0 | N88: 0 | O88: 0 | P88: 0 | Q88: 0
A89: ECO2/tonne | B89: 835 | C89: 783 | D89: 741 | E89: 706 | F89: 674 | G89: 635 | H89: 595 | I89: 572 | J89: 550 | K89: 528 | L89: 498 | M89: 463 | N89: 417 | O89: 366 | P89: 305 | Q89: 225
A90: ECO2 / m3 / Mpa | B90: 1188 | C90: 1217 | D90: 1237 | E90: 1250 | F90: 1258 | G90: 1261 | H90: 1257 | I90: 1250 | J90: 1241 | K90: 1227 | L90: 1203 | M90: 1165 | N90: 1100 | O90: 1006 | P90: 871 | Q90: 668
A91: ECO2 / tonne / Mpa | B91: 0 | C91: 0 | D91: 0 | E91: 0 | F91: 0 | G91: 0 | H91: 0 | I91: 0 | J91: 0 | K91: 0 | L91: 0 | M91: 0 | N91: 0 | O91: 0 | P91: 0 | Q91: 0
A92: Concrete | B92: =SUM(B86:B91) -> 2359 | C92: 2359 | D92: 2359 | E92: 2360 | F92: 2360 | G92: 2359 | H92: 2359 | I92: 2358 | J92: 2360 | K92: 2359 | L92: 2359 | M92: 2359 | N92: 2359 | O92: 2359 | P92: 2359 | Q92: 2359
A93: ECO2 / m3 | B93: =(B86*'c design-col'!$K$6)+(B87*'c design-col'!$K$7)+B88*'c design-col'!$K$8+B89*'c design-col'!$K$9+B90*'c design-col'!$K$10+B91*'c design-col'!$K$11 -> 172.922331 | C93: =(C86*'c design-col'!$K$6)+(C87*'c design-col'!$K$7)+C88*'c design-col'!$K$8+C89*'c design-col'!$K$9+C90*'c design-col'!$K$10+C91*'c design-col'!$K$11 -> 193.5041675 | D93: =(D86*'c design-col'!$K$6)+(D87*'c design-col'!$K$7)+D88*'c design-col'!$K$8+D89*'c design-col'!$K$9+D90*'c design-col'!$K$10+D91*'c design-col'!$K$11 -> 213.1095622 | E93: =(E86*'c design-col'!$K$6)+(E87*'c design-col'!$K$7)+E88*'c design-col'!$K$8+E89*'c design-col'!$K$9+E90*'c design-col'!$K$10+E91*'c design-col'!$K$11 -> 233.5250518 | F93: =(F86*'c design-col'!$K$6)+(F87*'c design-col'!$K$7)+F88*'c design-col'!$K$8+F89*'c design-col'!$K$9+F90*'c design-col'!$K$10+F91*'c design-col'!$K$11 -> 254.7670957 | G93: =(G86*'c design-col'!$K$6)+(G87*'c design-col'!$K$7)+G88*'c design-col'!$K$8+G89*'c design-col'!$K$9+G90*'c design-col'!$K$10+G91*'c design-col'!$K$11 -> 285.6514084 | H93: =(H86*'c design-col'!$K$6)+(H87*'c design-col'!$K$7)+H88*'c design-col'!$K$8+H89*'c design-col'!$K$9+H90*'c design-col'!$K$10+H91*'c design-col'!$K$11 -> 324.3983876 | I93: =(I86*'c design-col'!$K$6)+(I87*'c design-col'!$K$7)+I88*'c design-col'!$K$8+I89*'c design-col'!$K$9+I90*'c design-col'!$K$10+I91*'c design-col'!$K$11 -> 349.8878602 | J93: =(J86*'c design-col'!$K$6)+(J87*'c design-col'!$K$7)+J88*'c design-col'!$K$8+J89*'c design-col'!$K$9+J90*'c design-col'!$K$10+J91*'c design-col'!$K$11 -> 378.8894707 | K93: =(K86*'c design-col'!$K$6)+(K87*'c design-col'!$K$7)+K88*'c design-col'!$K$8+K89*'c design-col'!$K$9+K90*'c design-col'!$K$10+K91*'c design-col'!$K$11 -> 409.594584 | L93: =(L86*'c design-col'!$K$6)+(L87*'c design-col'!$K$7)+L88*'c design-col'!$K$8+L89*'c design-col'!$K$9+L90*'c design-col'!$K$10+L91*'c design-col'!$K$11 -> 456.9464548 | M93: =(M86*'c design-col'!$K$6)+(M87*'c design-col'!$K$7)+M88*'c design-col'!$K$8+M89*'c design-col'!$K$9+M90*'c design-col'!$K$10+M91*'c design-col'!$K$11 -> 520.9006073 | N93: =(N86*'c design-col'!$K$6)+(N87*'c design-col'!$K$7)+N88*'c design-col'!$K$8+N89*'c design-col'!$K$9+N90*'c design-col'!$K$10+N91*'c design-col'!$K$11 -> 618.0698639 | O93: =(O86*'c design-col'!$K$6)+(O87*'c design-col'!$K$7)+O88*'c design-col'!$K$8+O89*'c design-col'!$K$9+O90*'c design-col'!$K$10+O91*'c design-col'!$K$11 -> 744.9068568 | P93: =(P86*'c design-col'!$K$6)+(P87*'c design-col'!$K$7)+P88*'c design-col'!$K$8+P89*'c design-col'!$K$9+P90*'c design-col'!$K$10+P91*'c design-col'!$K$11 -> 916.2718068 | Q93: =(Q86*'c design-col'!$K$6)+(Q87*'c design-col'!$K$7)+Q88*'c design-col'!$K$8+Q89*'c design-col'!$K$9+Q90*'c design-col'!$K$10+Q91*'c design-col'!$K$11 -> 1163.616675
A94: ECO2/tonne | B94: =B93/B92 -> 0.07330323486 | C94: =C93/C92 -> 0.08202804895 | D94: 0.09033894115 | E94: 0.09895129313 | F94: 0.1079521592 | G94: 0.1210900417 | H94: 0.1375152131 | I94: 0.1483833165 | J94: 0.1605463859 | K94: 0.1736305994 | L94: 0.1937034569 | M94: 0.2208141616 | N94: 0.2620050292 | O94: 0.3157723005 | P94: 0.3884153484 | Q94: 0.4932669247
A95: ECO2 / m3 / Mpa | B95: =B93/B85 -> 21.61529138 | C95: =C93/C85 -> 16.12534729 | D95: 13.31934764 | E95: 11.67625259 | F95: 10.19068383 | G95: 9.521713614 | H95: 9.26852536 | I95: 8.747196505 | J95: 8.419766015 | K95: 8.191891679 | L95: 8.30811736 | M95: 8.681676788 | N95: 8.829569485 | O95: 9.31133571 | P95: 10.18079785 | Q95: 11.63616675
A96: ECO2 / tonne / Mpa | B96: =B94/B85 -> 0.009162904357 | C96: =C94/C85 -> 0.006835670745 | D96: 0.005646183822 | E96: 0.004947564657 | F96: 0.004318086368 | G96: 0.004036334724 | H96: 0.003929006087 | I96: 0.003709582911 | J96: 0.003567697464 | K96: 0.003472611988 | L96: 0.003521881035 | M96: 0.003680236027 | N96: 0.003742928989 | O96: 0.003947153756 | P96: 0.004315726093 | Q96: 0.004932669247
A98: 0% PFA, SP
A99: 10-30 | B99: 8 | C99: 12 | D99: 16 | E99: 20 | F99: 25 | G99: 30 | H99: 35 | I99: 40 | J99: 45 | K99: 50 | L99: 55 | M99: 60 | N99: 70 | O99: 80 | P99: 90 | Q99: 100
A100: Water content | B100: 144 | C100: 144 | D100: 144 | E100: 144 | F100: 144 | G100: 144 | H100: 144 | I100: 144 | J100: 144 | K100: 144 | L100: 144 | M100: 144 | N100: 144 | O100: 144 | P100: 144 | Q100: 144
A101: Cement content | B101: 158 | C101: 179 | D101: 199 | E101: 220 | F101: 241 | G101: 273 | H101: 312 | I101: 339 | J101: 368 | K101: 399 | L101: 448 | M101: 514 | N101: 614 | O101: 744 | P101: 921 | Q101: 1176
A102: PFA content | B102: 0 | C102: 0 | D102: 0 | E102: 0 | F102: 0 | G102: 0 | H102: 0 | I102: 0 | J102: 0 | K102: 0 | L102: 0 | M102: 0 | N102: 0 | O102: 0 | P102: 0 | Q102: 0
A103: Fine Agg | B103: 857 | C103: 805 | D103: 762 | E103: 727 | F103: 695 | G103: 657 | H103: 618 | I103: 595 | J103: 573 | K103: 552 | L103: 523 | M103: 489 | N103: 446 | O103: 397 | P103: 340 | Q103: 267
A104: Coarse Agg | B104: 1219 | C104: 1250 | D104: 1272 | E104: 1287 | F104: 1297 | G104: 1304 | H104: 1304 | I104: 1300 | J104: 1293 | K104: 1282 | L104: 1262 | M104: 1231 | N104: 1174 | O104: 1092 | P104: 973 | Q104: 791
A105: Plasticiser dosage | B105: 0.6 | C105: 0.7 | D105: 0.8 | E105: 0.9 | F105: 1 | G105: 1.1 | H105: 1.2 | I105: 1.4 | J105: 1.5 | K105: 1.6 | L105: 1.8 | M105: 2.1 | N105: 2.5 | O105: 3 | P105: 3.7 | Q105: 4.7
A106: Concrete | B106: =B100+B101+B102+B103+B104+B105 -> 2378.6 | C106: 2378.7 | D106: 2377.8 | E106: 2378.9 | F106: 2378 | G106: 2379.1 | H106: 2379.2 | I106: 2379.4 | J106: 2379.5 | K106: 2378.6 | L106: 2378.8 | M106: 2380.1 | N106: 2380.5 | O106: 2380 | P106: 2381.7 | Q106: 2382.7
A107: ECO2 / m3 | B107: =(B100*'c design-col'!$K$6)+(B101*'c design-col'!$K$7)+B102*'c design-col'!$K$8+B103*'c design-col'!$K$9+B104*'c design-col'!$K$10+B105*'c design-col'!$K$11 -> 157.4457242 | C107: =(C100*'c design-col'!$K$6)+(C101*'c design-col'!$K$7)+C102*'c design-col'!$K$8+C103*'c design-col'!$K$9+C104*'c design-col'!$K$10+C105*'c design-col'!$K$11 -> 176.2855006 | D107: =(D100*'c design-col'!$K$6)+(D101*'c design-col'!$K$7)+D102*'c design-col'!$K$8+D103*'c design-col'!$K$9+D104*'c design-col'!$K$10+D105*'c design-col'!$K$11 -> 194.1465237 | E107: =(E100*'c design-col'!$K$6)+(E101*'c design-col'!$K$7)+E102*'c design-col'!$K$8+E103*'c design-col'!$K$9+E104*'c design-col'!$K$10+E105*'c design-col'!$K$11 -> 212.8199532 | F107: =(F100*'c design-col'!$K$6)+(F101*'c design-col'!$K$7)+F102*'c design-col'!$K$8+F103*'c design-col'!$K$9+F104*'c design-col'!$K$10+F105*'c design-col'!$K$11 -> 231.4360542 | G107: =(G100*'c design-col'!$K$6)+(G101*'c design-col'!$K$7)+G102*'c design-col'!$K$8+G103*'c design-col'!$K$9+G104*'c design-col'!$K$10+G105*'c design-col'!$K$11 -> 259.7224405 | H107: =(H100*'c design-col'!$K$6)+(H101*'c design-col'!$K$7)+H102*'c design-col'!$K$8+H103*'c design-col'!$K$9+H104*'c design-col'!$K$10+H105*'c design-col'!$K$11 -> 294.1037275 | I107: =(I100*'c design-col'!$K$6)+(I101*'c design-col'!$K$7)+I102*'c design-col'!$K$8+I103*'c design-col'!$K$9+I104*'c design-col'!$K$10+I105*'c design-col'!$K$11 -> 317.8639931 | J107: =(J100*'c design-col'!$K$6)+(J101*'c design-col'!$K$7)+J102*'c design-col'!$K$8+J103*'c design-col'!$K$9+J104*'c design-col'!$K$10+J105*'c design-col'!$K$11 -> 343.3557777 | K107: =(K100*'c design-col'!$K$6)+(K101*'c design-col'!$K$7)+K102*'c design-col'!$K$8+K103*'c design-col'!$K$9+K104*'c design-col'!$K$10+K105*'c design-col'!$K$11 -> 370.5662292 | L107: =(L100*'c design-col'!$K$6)+(L101*'c design-col'!$K$7)+L102*'c design-col'!$K$8+L103*'c design-col'!$K$9+L104*'c design-col'!$K$10+L105*'c design-col'!$K$11 -> 413.5524084 | M107: =(M100*'c design-col'!$K$6)+(M101*'c design-col'!$K$7)+M102*'c design-col'!$K$8+M103*'c design-col'!$K$9+M104*'c design-col'!$K$10+M105*'c design-col'!$K$11 -> 471.4116617 | N107: =(N100*'c design-col'!$K$6)+(N101*'c design-col'!$K$7)+N102*'c design-col'!$K$8+N103*'c design-col'!$K$9+N104*'c design-col'!$K$10+N105*'c design-col'!$K$11 -> 558.9679636 | O107: =(O100*'c design-col'!$K$6)+(O101*'c design-col'!$K$7)+O102*'c design-col'!$K$8+O103*'c design-col'!$K$9+O104*'c design-col'!$K$10+O105*'c design-col'!$K$11 -> 672.7055696 | P107: =(P100*'c design-col'!$K$6)+(P101*'c design-col'!$K$7)+P102*'c design-col'!$K$8+P103*'c design-col'!$K$9+P104*'c design-col'!$K$10+P105*'c design-col'!$K$11 -> 827.4916354 | Q107: =(Q100*'c design-col'!$K$6)+(Q101*'c design-col'!$K$7)+Q102*'c design-col'!$K$8+Q103*'c design-col'!$K$9+Q104*'c design-col'!$K$10+Q105*'c design-col'!$K$11 -> 1050.373872
A108: ECO2/tonne | B108: =B107/B106 -> 0.06619260246 | C108: =C107/C106 -> 0.07411001831 | D108: 0.08164964409 | E108: 0.08946149617 | F108: 0.09732382429 | G108: 0.109168358 | H108: 0.1236145459 | I108: 0.1335899778 | J108: 0.1442974481 | K108: 0.1557917385 | L108: 0.1738491712 | M108: 0.1980638047 | N108: 0.2348111588 | O108: 0.282649399 | P108: 0.3474373915 | Q108: 0.4408334547
A109: ECO2 / m3 / Mpa | B109: =B107/B99 -> 19.68071553 | C109: =C107/C99 -> 14.69045838 | D109: 12.13415773 | E109: 10.64099766 | F109: 9.257442166 | G109: 8.657414683 | H109: 8.402963644 | I109: 7.946599829 | J109: 7.630128393 | K109: 7.411324583 | L109: 7.519134698 | M109: 7.856861028 | N109: 7.985256623 | O109: 8.40881962 | P109: 9.194351504 | Q109: 10.50373872
A110: ECO2 / tonne / Mpa | B110: =B108/B99 -> 0.008274075308 | C110: =C108/C99 -> 0.006175834859 | D110: 0.005103102756 | E110: 0.004473074809 | F110: 0.003892952972 | G110: 0.003638945266 | H110: 0.003531844168 | I110: 0.003339749445 | J110: 0.003206609957 | K110: 0.00311583477 | L110: 0.003160894021 | M110: 0.003301063412 | N110: 0.003354445126 | O110: 0.003533117487 | P110: 0.003860415461 | Q110: 0.004408334547
A112: 20% PFA, No SP
A113: 10-30 | B113: 8 | C113: 12 | D113: 16 | E113: 20 | F113: 25 | G113: 30 | H113: 35 | I113: 40 | J113: 45 | K113: 50 | L113: 55 | M113: 60 | N113: 70 | O113: 80 | P113: 90 | Q113: 100
A114: Water content | B114: 150 | C114: 150 | D114: 150 | E114: 150 | F114: 150 | G114: 150 | H114: 150 | I114: 150 | J114: 150 | K114: 150 | L114: 150 | M114: 150 | N114: 150 | O114: 150 | P114: 150 | Q114: 150
A115: Cement content | B115: 153 | C115: 173 | D115: 193 | E115: 213 | F115: 234 | G115: 264 | H115: 302 | I115: 328 | J115: 356 | K115: 387 | L115: 435 | M115: 498 | N115: 595 | O115: 721 | P115: 892 | Q115: 1139
A116: PFA content | B116: 38 | C116: 43 | D116: 48 | E116: 53 | F116: 58 | G116: 66 | H116: 76 | I116: 82 | J116: 89 | K116: 97 | L116: 109 | M116: 124 | N116: 149 | O116: 180 | P116: 223 | Q116: 285
A117: Fine Agg | B117: 837 | C117: 785 | D117: 742 | E117: 705 | F117: 673 | G117: 633 | H117: 592 | I117: 568 | J117: 545 | K117: 523 | L117: 491 | M117: 455 | N117: 406 | O117: 352 | P117: 287 | Q117: 201
A118: Coarse Agg | B118: 1192 | C118: 1220 | D118: 1238 | E118: 1249 | F118: 1255 | G118: 1257 | H118: 1251 | I118: 1242 | J118: 1230 | K118: 1214 | L118: 1186 | M118: 1144 | N118: 1071 | O118: 967 | P118: 819 | Q118: 596
A119: Plasticiser dosage
A120: Concrete | B120: =B114+B115+B116+B117+B118 -> 2370 | C120: 2371 | D120: 2371 | E120: 2370 | F120: 2370 | G120: 2370 | H120: 2371 | I120: 2370 | J120: 2370 | K120: 2371 | L120: 2371 | M120: 2371 | N120: 2371 | O120: 2370 | P120: 2371 | Q120: 2371
A121: ECO2 / m3 | B121: =(B114*'c design-col'!$K$6)+(B115*'c design-col'!$K$7)+B116*'c design-col'!$K$8+B117*'c design-col'!$K$9+B118*'c design-col'!$K$10+B119*'c design-col'!$K$11 -> 153.6650576 | C121: =(C114*'c design-col'!$K$6)+(C115*'c design-col'!$K$7)+C116*'c design-col'!$K$8+C117*'c design-col'!$K$9+C118*'c design-col'!$K$10+C119*'c design-col'!$K$11 -> 171.7173927 | D121: =(D114*'c design-col'!$K$6)+(D115*'c design-col'!$K$7)+D116*'c design-col'!$K$8+D117*'c design-col'!$K$9+D118*'c design-col'!$K$10+D119*'c design-col'!$K$11 -> 189.662005 | E121: =(E114*'c design-col'!$K$6)+(E115*'c design-col'!$K$7)+E116*'c design-col'!$K$8+E117*'c design-col'!$K$9+E118*'c design-col'!$K$10+E119*'c design-col'!$K$11 -> 207.5305179 | F121: =(F114*'c design-col'!$K$6)+(F115*'c design-col'!$K$7)+F116*'c design-col'!$K$8+F117*'c design-col'!$K$9+F118*'c design-col'!$K$10+F119*'c design-col'!$K$11 -> 226.2302079 | G121: =(G114*'c design-col'!$K$6)+(G115*'c design-col'!$K$7)+G116*'c design-col'!$K$8+G117*'c design-col'!$K$9+G118*'c design-col'!$K$10+G119*'c design-col'!$K$11 -> 252.895942 | H121: =(H114*'c design-col'!$K$6)+(H115*'c design-col'!$K$7)+H116*'c design-col'!$K$8+H117*'c design-col'!$K$9+H118*'c design-col'!$K$10+H119*'c design-col'!$K$11 -> 286.5816072 | I121: =(I114*'c design-col'!$K$6)+(I115*'c design-col'!$K$7)+I116*'c design-col'!$K$8+I117*'c design-col'!$K$9+I118*'c design-col'!$K$10+I119*'c design-col'!$K$11 -> 309.5534145 | J121: =(J114*'c design-col'!$K$6)+(J115*'c design-col'!$K$7)+J116*'c design-col'!$K$8+J117*'c design-col'!$K$9+J118*'c design-col'!$K$10+J119*'c design-col'!$K$11 -> 334.2837412 | K121: =(K114*'c design-col'!$K$6)+(K115*'c design-col'!$K$7)+K116*'c design-col'!$K$8+K117*'c design-col'!$K$9+K118*'c design-col'!$K$10+K119*'c design-col'!$K$11 -> 361.6436177 | L121: =(L114*'c design-col'!$K$6)+(L115*'c design-col'!$K$7)+L116*'c design-col'!$K$8+L117*'c design-col'!$K$9+L118*'c design-col'!$K$10+L119*'c design-col'!$K$11 -> 403.9601579 | M121: =(M114*'c design-col'!$K$6)+(M115*'c design-col'!$K$7)+M116*'c design-col'!$K$8+M117*'c design-col'!$K$9+M118*'c design-col'!$K$10+M119*'c design-col'!$K$11 -> 459.4267595 | N121: =(N114*'c design-col'!$K$6)+(N115*'c design-col'!$K$7)+N116*'c design-col'!$K$8+N117*'c design-col'!$K$9+N118*'c design-col'!$K$10+N119*'c design-col'!$K$11 -> 544.7869005 | O121: =(O114*'c design-col'!$K$6)+(O115*'c design-col'!$K$7)+O116*'c design-col'!$K$8+O117*'c design-col'!$K$9+O118*'c design-col'!$K$10+O119*'c design-col'!$K$11 -> 655.531658 | P121: =(P114*'c design-col'!$K$6)+(P115*'c design-col'!$K$7)+P116*'c design-col'!$K$8+P117*'c design-col'!$K$9+P118*'c design-col'!$K$10+P119*'c design-col'!$K$11 -> 805.784206 | Q121: =(Q114*'c design-col'!$K$6)+(Q115*'c design-col'!$K$7)+Q116*'c design-col'!$K$8+Q117*'c design-col'!$K$9+Q118*'c design-col'!$K$10+Q119*'c design-col'!$K$11 -> 1022.71237
A122: ECO2/tonne | B122: =B121/B120 -> 0.06483757705 | C122: =C121/C120 -> 0.07242403743 | D122: 0.07999241038 | E122: 0.08756561935 | F122: 0.09545578392 | G122: 0.1067071485 | H122: 0.1208695096 | I122: 0.130613255 | J122: 0.1410479921 | K122: 0.152527886 | L122: 0.1703754356 | M122: 0.1937691942 | N122: 0.2297709407 | O122: 0.2765956363 | P122: 0.3398499393 | Q122: 0.4313422056
A123: ECO2 / m3 / Mpa | B123: =B121/B113 -> 19.2081322 | C123: =C121/C113 -> 14.30978273 | D123: 11.85387531 | E123: 10.37652589 | F123: 9.049208315 | G123: 8.429864735 | H123: 8.18804592 | I123: 7.738835362 | J123: 7.428527582 | K123: 7.232872354 | L123: 7.344730144 | M123: 7.657112659 | N123: 7.782670007 | O123: 8.194145725 | P123: 8.953157844 | Q123: 10.2271237
A124: ECO2 / tonne / Mpa | B124: =B122/B113 -> 0.008104697131 | C124: =C122/C113 -> 0.006035336452 | D124: 0.004999525649 | E124: 0.004378280967 | F124: 0.003818231357 | G124: 0.003556904951 | H124: 0.003453414559 | I124: 0.003265331376 | J124: 0.003134399824 | K124: 0.00305055772 | L124: 0.003097735193 | M124: 0.00322948657 | N124: 0.003282442011 | O124: 0.003457445454 | P124: 0.003776110436 | Q124: 0.004313422056
A126: 20% PFA, SP
A127: 10-30 | B127: 8 | C127: 12 | D127: 16 | E127: 20 | F127: 25 | G127: 30 | H127: 35 | I127: 40 | J127: 45 | K127: 50 | L127: 55 | M127: 60 | N127: 70 | O127: 80 | P127: 90 | Q127: 100
A128: Water content | B128: 135 | C128: 135 | D128: 135 | E128: 135 | F128: 135 | G128: 135 | H128: 135 | I128: 135 | J128: 135 | K128: 135 | L128: 135 | M128: 135 | N128: 135 | O128: 135 | P128: 135 | Q128: 135
A129: Cement content | B129: 138 | C129: 156 | D129: 174 | E129: 192 | F129: 210 | G129: 238 | H129: 272 | I129: 295 | J129: 321 | K129: 348 | L129: 391 | M129: 448 | N129: 535 | O129: 649 | P129: 803 | Q129: 1025
A130: PFA content | B130: 34 | C130: 39 | D130: 43 | E130: 48 | F130: 53 | G130: 59 | H130: 68 | I130: 74 | J130: 80 | K130: 87 | L130: 98 | M130: 112 | N130: 134 | O130: 162 | P130: 201 | Q130: 256
A131: Fine Agg | B131: 859 | C131: 806 | D131: 763 | E131: 727 | F131: 695 | G131: 655 | H131: 615 | I131: 591 | J131: 569 | K131: 547 | L131: 516 | M131: 482 | N131: 436 | O131: 385 | P131: 324 | Q131: 245
A132: Coarse Agg | B132: 1222 | C132: 1252 | D132: 1273 | E132: 1287 | F132: 1295 | G132: 1301 | H132: 1298 | I132: 1292 | J132: 1283 | K132: 1271 | L132: 1248 | M132: 1211 | N132: 1148 | O132: 1057 | P132: 925 | Q132: 726
A133: Plasticiser dosage | B133: 0.7 | C133: 0.8 | D133: 0.9 | E133: 1 | F133: 1.1 | G133: 1.2 | H133: 1.4 | I133: 1.5 | J133: 1.6 | K133: 1.7 | L133: 2 | M133: 2.2 | N133: 2.7 | O133: 3.2 | P133: 4 | Q133: 5.1
A134: Concrete | B134: =SUM(B128:B133) -> 2388.7 | C134: 2388.8 | D134: 2388.9 | E134: 2390 | F134: 2389.1 | G134: 2389.2 | H134: 2389.4 | I134: 2388.5 | J134: 2389.6 | K134: 2389.7 | L134: 2390 | M134: 2390.2 | N134: 2390.7 | O134: 2391.2 | P134: 2392 | Q134: 2392.1
A135: ECO2 / m3 | B135: =(B128*'c design-col'!$K$6)+(B129*'c design-col'!$K$7)+B130*'c design-col'!$K$8+B131*'c design-col'!$K$9+B132*'c design-col'!$K$10+B133*'c design-col'!$K$11 -> 140.7202474 | C135: =(C128*'c design-col'!$K$6)+(C129*'c design-col'!$K$7)+C130*'c design-col'!$K$8+C131*'c design-col'!$K$9+C132*'c design-col'!$K$10+C133*'c design-col'!$K$11 -> 157.028211 | D135: =(D128*'c design-col'!$K$6)+(D129*'c design-col'!$K$7)+D130*'c design-col'!$K$8+D131*'c design-col'!$K$9+D132*'c design-col'!$K$10+D133*'c design-col'!$K$11 -> 173.2166158 | E135: =(E128*'c design-col'!$K$6)+(E129*'c design-col'!$K$7)+E130*'c design-col'!$K$8+E131*'c design-col'!$K$9+E132*'c design-col'!$K$10+E133*'c design-col'!$K$11 -> 189.3582326 | F135: =(F128*'c design-col'!$K$6)+(F129*'c design-col'!$K$7)+F130*'c design-col'!$K$8+F131*'c design-col'!$K$9+F132*'c design-col'!$K$10+F133*'c design-col'!$K$11 -> 205.4319796 | G135: =(G128*'c design-col'!$K$6)+(G129*'c design-col'!$K$7)+G130*'c design-col'!$K$8+G131*'c design-col'!$K$9+G132*'c design-col'!$K$10+G133*'c design-col'!$K$11 -> 230.3273588 | H135: =(H128*'c design-col'!$K$6)+(H129*'c design-col'!$K$7)+H130*'c design-col'!$K$8+H131*'c design-col'!$K$9+H132*'c design-col'!$K$10+H133*'c design-col'!$K$11 -> 260.4913627 | I135: =(I128*'c design-col'!$K$6)+(I129*'c design-col'!$K$7)+I130*'c design-col'!$K$8+I131*'c design-col'!$K$9+I132*'c design-col'!$K$10+I133*'c design-col'!$K$11 -> 280.8500795 | J135: =(J128*'c design-col'!$K$6)+(J129*'c design-col'!$K$7)+J130*'c design-col'!$K$8+J131*'c design-col'!$K$9+J132*'c design-col'!$K$10+J133*'c design-col'!$K$11 -> 303.8265102 | K135: =(K128*'c design-col'!$K$6)+(K129*'c design-col'!$K$7)+K130*'c design-col'!$K$8+K131*'c design-col'!$K$9+K132*'c design-col'!$K$10+K133*'c design-col'!$K$11 -> 327.675266 | L135: =(L128*'c design-col'!$K$6)+(L129*'c design-col'!$K$7)+L130*'c design-col'!$K$8+L131*'c design-col'!$K$9+L132*'c design-col'!$K$10+L133*'c design-col'!$K$11 -> 365.6119677 | M135: =(M128*'c design-col'!$K$6)+(M129*'c design-col'!$K$7)+M130*'c design-col'!$K$8+M131*'c design-col'!$K$9+M132*'c design-col'!$K$10+M133*'c design-col'!$K$11 -> 415.8171588 | N135: =(N128*'c design-col'!$K$6)+(N129*'c design-col'!$K$7)+N130*'c design-col'!$K$8+N131*'c design-col'!$K$9+N132*'c design-col'!$K$10+N133*'c design-col'!$K$11 -> 492.3929337 | O135: =(O128*'c design-col'!$K$6)+(O129*'c design-col'!$K$7)+O130*'c design-col'!$K$8+O131*'c design-col'!$K$9+O132*'c design-col'!$K$10+O133*'c design-col'!$K$11 -> 592.624117 | P135: =(P128*'c design-col'!$K$6)+(P129*'c design-col'!$K$7)+P130*'c design-col'!$K$8+P131*'c design-col'!$K$9+P132*'c design-col'!$K$10+P133*'c design-col'!$K$11 -> 727.9575471 | Q135: =(Q128*'c design-col'!$K$6)+(Q129*'c design-col'!$K$7)+Q130*'c design-col'!$K$8+Q131*'c design-col'!$K$9+Q132*'c design-col'!$K$10+Q133*'c design-col'!$K$11 -> 922.9242862
A136: ECO2/tonne | B136: =B135/B134 -> 0.05891080814 | C136: =C135/C134 -> 0.06573518545 | D136: 0.07250894377 | E136: 0.07922938601 | F136: 0.08598718329 | G136: 0.09640354882 | H136: 0.1090195709 | I136: 0.1175842912 | J136: 0.1271453424 | K136: 0.1371198335 | L136: 0.1529757187 | M136: 0.1739675169 | N136: 0.2059618244 | O136: 0.2478354454 | P136: 0.3043300782 | Q136: 0.3858217826
A137: ECO2 / m3 / Mpa | B137: =B135/B127 -> 17.59003093 | C137: =C135/C127 -> 13.08568425 | D137: 10.82603849 | E137: 9.467911628 | F137: 8.217279184 | G137: 7.677578628 | H137: 7.442610362 | I137: 7.021251988 | J137: 6.751700227 | K137: 6.55350532 | L137: 6.647490321 | M137: 6.93028598 | N137: 7.034184767 | O137: 7.407801463 | P137: 8.08841719 | Q137: 9.229242862
A138: ECO2 / tonne / Mpa | B138: =B136/B127 -> 0.007363851018 | C138: =C136/C127 -> 0.005477932121 | D138: 0.004531808986 | E138: 0.0039614693 | F138: 0.003439487332 | G138: 0.003213451627 | H138: 0.003114844882 | I138: 0.00293960728 | J138: 0.002825452053 | K138: 0.002742396669 | L138: 0.002781376704 | M138: 0.002899458614 | N138: 0.002942311778 | O138: 0.003097943067 | P138: 0.003381445314 | Q138: 0.003858217826
A140: 40% PFA, No SP
A141: 10-30 | B141: 8 | C141: 12 | D141: 16 | E141: 20 | F141: 25 | G141: 30 | H141: 35 | I141: 40 | J141: 45 | K141: 50 | L141: 55 | M141: 60 | N141: 70 | O141: 80 | P141: 90 | Q141: 100
A142: Water content | B142: 140 | C142: 140 | D142: 140 | E142: 140 | F142: 140 | G142: 140 | H142: 140 | I142: 140 | J142: 140 | K142: 140 | L142: 140 | M142: 140 | N142: 140 | O142: 140 | P142: 140 | Q142: 140
A143: Cement content | B143: 128 | C143: 145 | D143: 161 | E143: 178 | F143: 195 | G143: 221 | H143: 253 | I143: 275 | J143: 298 | K143: 324 | L143: 363 | M143: 416 | N143: 497 | O143: 603 | P143: 746 | Q143: 953
A144: PFA content | B144: 85 | C144: 96 | D144: 107 | E144: 119 | F144: 130 | G144: 147 | H144: 169 | I144: 183 | J144: 199 | K144: 216 | L144: 242 | M144: 278 | N144: 332 | O144: 402 | P144: 497 | Q144: 635
A145: Fine Agg | B145: 837 | C145: 783 | D145: 740 | E145: 702 | F145: 669 | G145: 628 | H145: 585 | I145: 560 | J145: 536 | K145: 512 | L145: 479 | M145: 440 | N145: 389 | O145: 330 | P145: 259 | Q145: 165
A146: Coarse Agg | B146: 1191 | C146: 1218 | D146: 1234 | E146: 1243 | F146: 1248 | G146: 1246 | H146: 1236 | I146: 1224 | J146: 1209 | K146: 1191 | L146: 1157 | M146: 1108 | N146: 1024 | O146: 907 | P146: 740 | Q146: 489
A147: Plasticiser dosage
A148: Concrete | B148: =B142+B143+B144+B145+B146 -> 2381 | C148: 2382 | D148: 2382 | E148: 2382 | F148: 2382 | G148: 2382 | H148: 2383 | I148: 2382 | J148: 2382 | K148: 2383 | L148: 2381 | M148: 2382 | N148: 2382 | O148: 2382 | P148: 2382 | Q148: 2382
A149: ECO2 / m3 | B149: =(B142*'c design-col'!$K$6)+(B143*'c design-col'!$K$7)+B144*'c design-col'!$K$8+B145*'c design-col'!$K$9+B146*'c design-col'!$K$10+B147*'c design-col'!$K$11 -> 132.8141325 | C149: =(C142*'c design-col'!$K$6)+(C143*'c design-col'!$K$7)+C144*'c design-col'!$K$8+C145*'c design-col'!$K$9+C146*'c design-col'!$K$10+C147*'c design-col'!$K$11 -> 148.3593435 | D149: =(D142*'c design-col'!$K$6)+(D143*'c design-col'!$K$7)+D144*'c design-col'!$K$8+D145*'c design-col'!$K$9+D146*'c design-col'!$K$10+D147*'c design-col'!$K$11 -> 162.9047189 | E149: =(E142*'c design-col'!$K$6)+(E143*'c design-col'!$K$7)+E144*'c design-col'!$K$8+E145*'c design-col'!$K$9+E146*'c design-col'!$K$10+E147*'c design-col'!$K$11 -> 178.2825664 | F149: =(F142*'c design-col'!$K$6)+(F143*'c design-col'!$K$7)+F144*'c design-col'!$K$8+F145*'c design-col'!$K$9+F146*'c design-col'!$K$10+F147*'c design-col'!$K$11 -> 193.5935608 | G149: =(G142*'c design-col'!$K$6)+(G143*'c design-col'!$K$7)+G144*'c design-col'!$K$8+G145*'c design-col'!$K$9+G146*'c design-col'!$K$10+G147*'c design-col'!$K$11 -> 216.9130416 | H149: =(H142*'c design-col'!$K$6)+(H143*'c design-col'!$K$7)+H144*'c design-col'!$K$8+H145*'c design-col'!$K$9+H146*'c design-col'!$K$10+H147*'c design-col'!$K$11 -> 245.5633761 | I149: =(I142*'c design-col'!$K$6)+(I143*'c design-col'!$K$7)+I144*'c design-col'!$K$8+I145*'c design-col'!$K$9+I146*'c design-col'!$K$10+I147*'c design-col'!$K$11 -> 265.1747825 | J149: =(J142*'c design-col'!$K$6)+(J143*'c design-col'!$K$7)+J144*'c design-col'!$K$8+J145*'c design-col'!$K$9+J146*'c design-col'!$K$10+J147*'c design-col'!$K$11 -> 285.6878255 | K149: =(K142*'c design-col'!$K$6)+(K143*'c design-col'!$K$7)+K144*'c design-col'!$K$8+K145*'c design-col'!$K$9+K146*'c design-col'!$K$10+K147*'c design-col'!$K$11 -> 308.8409594 | L149: =(L142*'c design-col'!$K$6)+(L143*'c design-col'!$K$7)+L144*'c design-col'!$K$8+L145*'c design-col'!$K$9+L146*'c design-col'!$K$10+L147*'c design-col'!$K$11 -> 343.5011265 | M149: =(M142*'c design-col'!$K$6)+(M143*'c design-col'!$K$7)+M144*'c design-col'!$K$8+M145*'c design-col'!$K$9+M146*'c design-col'!$K$10+M147*'c design-col'!$K$11 -> 390.5989966 | N149: =(N142*'c design-col'!$K$6)+(N143*'c design-col'!$K$7)+N144*'c design-col'!$K$8+N145*'c design-col'!$K$9+N146*'c design-col'!$K$10+N147*'c design-col'!$K$11 -> 462.4540098 | O149: =(O142*'c design-col'!$K$6)+(O143*'c design-col'!$K$7)+O144*'c design-col'!$K$8+O145*'c design-col'!$K$9+O146*'c design-col'!$K$10+O147*'c design-col'!$K$11 -> 556.3954684 | P149: =(P142*'c design-col'!$K$6)+(P143*'c design-col'!$K$7)+P144*'c design-col'!$K$8+P145*'c design-col'!$K$9+P146*'c design-col'!$K$10+P147*'c design-col'!$K$11 -> 683.0452272 | Q149: =(Q142*'c design-col'!$K$6)+(Q143*'c design-col'!$K$7)+Q144*'c design-col'!$K$8+Q145*'c design-col'!$K$9+Q146*'c design-col'!$K$10+Q147*'c design-col'!$K$11 -> 866.2917106
A150: ECO2/tonne | B150: =B149/B148 -> 0.05578082004 | C150: =C149/C148 -> 0.0622835195 | D150: 0.06838989041 | E150: 0.07484574578 | F150: 0.08127353519 | G150: 0.09106340956 | H150: 0.1030479967 | I150: 0.1113244259 | J150: 0.1199361148 | K150: 0.1296017455 | L150: 0.1442675878 | M150: 0.1639794276 | N150: 0.1941452602 | O150: 0.2335833201 | P150: 0.2867528242 | Q150: 0.3636824981
A151: ECO2 / m3 / Mpa | B151: =B149/B141 -> 16.60176656 | C151: =C149/C141 -> 12.36327862 | D151: 10.18154493 | E151: 8.914128322 | F151: 7.743742433 | G151: 7.230434719 | H151: 7.016096459 | I151: 6.629369562 | J151: 6.348618345 | K151: 6.176819189 | L151: 6.245475028 | M151: 6.509983277 | N151: 6.606485855 | O151: 6.954943355 | P151: 7.589391413 | Q151: 8.662917106
A152: ECO2 / tonne / Mpa | B152: =B150/B141 -> 0.006972602505 | C152: =C150/C141 -> 0.005190293292 | D152: 0.00427436815 | E152: 0.003742287289 | F152: 0.003250941408 | G152: 0.003035446985 | H152: 0.002944228476 | I152: 0.002783110648 | J152: 0.002665246996 | K152: 0.002592034909 | L152: 0.002623047051 | M152: 0.002732990461 | N152: 0.002773503717 | O152: 0.002919791501 | P152: 0.003186142491 | Q152: 0.003636824981
A154: 40% PFA, SP
A155: 10-30 | B155: 8 | C155: 12 | D155: 16 | E155: 20 | F155: 25 | G155: 30 | H155: 35 | I155: 40 | J155: 45 | K155: 50 | L155: 55 | M155: 60 | N155: 70 | O155: 80 | P155: 90 | Q155: 100
A156: Water content | B156: 126 | C156: 126 | D156: 126 | E156: 126 | F156: 126 | G156: 126 | H156: 126 | I156: 126 | J156: 126 | K156: 126 | L156: 126 | M156: 126 | N156: 126 | O156: 126 | P156: 126 | Q156: 126
A157: Cement content | B157: 115 | C157: 130 | D157: 145 | E157: 160 | F157: 176 | G157: 199 | H157: 227 | I157: 247 | J157: 268 | K157: 291 | L157: 327 | M157: 375 | N157: 448 | O157: 542 | P157: 671 | Q157: 857
A158: PFA content | B158: 77 | C158: 87 | D158: 97 | E158: 107 | F158: 117 | G158: 133 | H158: 152 | I158: 165 | J158: 179 | K158: 194 | L158: 218 | M158: 250 | N158: 298 | O158: 362 | P158: 447 | Q158: 572
A159: Fine Agg | B159: 858 | C159: 805 | D159: 761 | E159: 724 | F159: 691 | G159: 650 | H159: 608 | I159: 584 | J159: 561 | K159: 538 | L159: 506 | M159: 469 | N159: 420 | O159: 365 | P159: 299 | Q159: 213
A160: Coarse Agg | B160: 1221 | C160: 1250 | D160: 1269 | E160: 1282 | F160: 1288 | G160: 1291 | H160: 1285 | I160: 1276 | J160: 1265 | K160: 1249 | L160: 1221 | M160: 1179 | N160: 1106 | O160: 1003 | P160: 854 | Q160: 631
A161: Plasticiser dosage | B161: 0.8 | C161: 0.9 | D161: 1 | E161: 1.1 | F161: 1.2 | G161: 1.3 | H161: 1.5 | I161: 1.6 | J161: 1.8 | K161: 1.9 | L161: 2.2 | M161: 2.5 | N161: 3 | O161: 3.6 | P161: 4.5 | Q161: 5.7
A162: Concrete | B162: =B156+B157+B158+B159+B160+B161 -> 2397.8 | C162: 2398.9 | D162: 2399 | E162: 2400.1 | F162: 2399.2 | G162: 2400.3 | H162: 2399.5 | I162: 2399.6 | J162: 2400.8 | K162: 2399.9 | L162: 2400.2 | M162: 2401.5 | N162: 2401 | O162: 2401.6 | P162: 2401.5 | Q162: 2404.7
A163: ECO2 / m3 | B163: =(B156*'c design-col'!$K$6)+(B157*'c design-col'!$K$7)+B158*'c design-col'!$K$8+B159*'c design-col'!$K$9+B160*'c design-col'!$K$10+B161*'c design-col'!$K$11 -> 121.5277772 | C163: =(C156*'c design-col'!$K$6)+(C157*'c design-col'!$K$7)+C158*'c design-col'!$K$8+C159*'c design-col'!$K$9+C160*'c design-col'!$K$10+C161*'c design-col'!$K$11 -> 135.3062395 | D163: =(D156*'c design-col'!$K$6)+(D157*'c design-col'!$K$7)+D158*'c design-col'!$K$8+D159*'c design-col'!$K$9+D160*'c design-col'!$K$10+D161*'c design-col'!$K$11 -> 148.9769789 | E163: =(E156*'c design-col'!$K$6)+(E157*'c design-col'!$K$7)+E158*'c design-col'!$K$8+E159*'c design-col'!$K$9+E160*'c design-col'!$K$10+E161*'c design-col'!$K$11 -> 162.586783 | F163: =(F156*'c design-col'!$K$6)+(F157*'c design-col'!$K$7)+F158*'c design-col'!$K$8+F159*'c design-col'!$K$9+F160*'c design-col'!$K$10+F161*'c design-col'!$K$11 -> 176.9997476 | G163: =(G156*'c design-col'!$K$6)+(G157*'c design-col'!$K$7)+G158*'c design-col'!$K$8+G159*'c design-col'!$K$9+G160*'c design-col'!$K$10+G161*'c design-col'!$K$11 -> 197.7048431 | H163: =(H156*'c design-col'!$K$6)+(H157*'c design-col'!$K$7)+H158*'c design-col'!$K$8+H159*'c design-col'!$K$9+H160*'c design-col'!$K$10+H161*'c design-col'!$K$11 -> 222.7923688 | I163: =(I156*'c design-col'!$K$6)+(I157*'c design-col'!$K$7)+I158*'c design-col'!$K$8+I159*'c design-col'!$K$9+I160*'c design-col'!$K$10+I161*'c design-col'!$K$11 -> 240.6498792 | J163: =(J156*'c design-col'!$K$6)+(J157*'c design-col'!$K$7)+J158*'c design-col'!$K$8+J159*'c design-col'!$K$9+J160*'c design-col'!$K$10+J161*'c design-col'!$K$11 -> 259.3948793 | K163: =(K156*'c design-col'!$K$6)+(K157*'c design-col'!$K$7)+K158*'c design-col'!$K$8+K159*'c design-col'!$K$9+K160*'c design-col'!$K$10+K161*'c design-col'!$K$11 -> 279.8703817 | L163: =(L156*'c design-col'!$K$6)+(L157*'c design-col'!$K$7)+L158*'c design-col'!$K$8+L159*'c design-col'!$K$9+L160*'c design-col'!$K$10+L161*'c design-col'!$K$11 -> 311.9043286 | M163: =(M156*'c design-col'!$K$6)+(M157*'c design-col'!$K$7)+M158*'c design-col'!$K$8+M159*'c design-col'!$K$9+M160*'c design-col'!$K$10+M161*'c design-col'!$K$11 -> 354.5693768 | N163: =(N156*'c design-col'!$K$6)+(N157*'c design-col'!$K$7)+N158*'c design-col'!$K$8+N159*'c design-col'!$K$9+N160*'c design-col'!$K$10+N161*'c design-col'!$K$11 -> 419.3373308 | O163: =(O156*'c design-col'!$K$6)+(O157*'c design-col'!$K$7)+O158*'c design-col'!$K$8+O159*'c design-col'!$K$9+O160*'c design-col'!$K$10+O161*'c design-col'!$K$11 -> 502.6993798 | P163: =(P156*'c design-col'!$K$6)+(P157*'c design-col'!$K$7)+P158*'c design-col'!$K$8+P159*'c design-col'!$K$9+P160*'c design-col'!$K$10+P161*'c design-col'!$K$11 -> 616.9476866 | Q163: =(Q156*'c design-col'!$K$6)+(Q157*'c design-col'!$K$7)+Q158*'c design-col'!$K$8+Q159*'c design-col'!$K$9+Q160*'c design-col'!$K$10+Q161*'c design-col'!$K$11 -> 781.6599995
A164: ECO2/tonne | B164: =B163/B162 -> 0.05068303328 | C164: =C163/C162 -> 0.05640345137 | D164: 0.06209961606 | E164: 0.06774167033 | F164: 0.07377448632 | G164: 0.08236672211 | H164: 0.09284949733 | I164: 0.1002874976 | J164: 0.1080451846 | K164: 0.1166175181 | L164: 0.1299493078 | M164: 0.1476449623 | N164: 0.1746511166 | O164: 0.2093185292 | P164: 0.256900973 | Q164: 0.3250551002
A165: ECO2 / m3 / Mpa | B165: =B163/B155 -> 15.19097215 | C165: =C163/C155 -> 11.27551996 | D165: 9.311061183 | E165: 8.129339149 | F165: 7.079989903 | G165: 6.590161436 | H165: 6.365496253 | I165: 6.016246981 | J165: 5.764330651 | K165: 5.597407633 | L165: 5.670987793 | M165: 5.909489614 | N165: 5.990533298 | O165: 6.283742248 | P165: 6.854974296 | Q165: 7.816599995
A166: ECO2 / tonne / Mpa | B166: =B164/B155 -> 0.00633537916 | C166: =C164/C155 -> 0.004700287614 | D166: 0.003881226004 | E166: 0.003387083517 | F166: 0.002950979453 | G166: 0.002745557404 | H166: 0.002652842781 | I166: 0.00250718744 | J166: 0.002401004103 | K166: 0.002332350362 | L166: 0.002362714688 | M166: 0.002460749371 | N166: 0.002495015951 | O166: 0.002616481615 | P166: 0.002854455255 | Q166: 0.003250551002
A168: 0% PFA, No SP
A169: 30-60 | B169: 8 | C169: 12 | D169: 16 | E169: 20 | F169: 25 | G169: 30 | H169: 35 | I169: 40 | J169: 45 | K169: 50 | L169: 55 | M169: 60 | N169: 70 | O169: 80 | P169: 90 | Q169: 100
A170: Water content | B170: 180 | C170: 180 | D170: 180 | E170: 180 | F170: 180 | G170: 180 | H170: 180 | I170: 180 | J170: 180 | K170: 180 | L170: 180 | M170: 180 | N170: 180 | O170: 180 | P170: 180 | Q170: 180
A171: Cement content | B171: 198 | C171: 223 | D171: 249 | E171: 275 | F171: 301 | G171: 341 | H171: 390 | I171: 424 | J171: 460 | K171: 499 | L171: 561 | M171: 642 | N171: 767 | O171: 930 | P171: 1151 | Q171: 1470
A172: PFA content | B172: 0 | C172: 0 | D172: 0 | E172: 0 | F172: 0 | G172: 0 | H172: 0 | I172: 0 | J172: 0 | K172: 0 | L172: 0 | M172: 0 | N172: 0 | O172: 0 | P172: 0 | Q172: 0
A173: Fine Agg | B173: 860 | C173: 809 | D173: 767 | E173: 731 | F173: 699 | G173: 659 | H173: 618 | I173: 594 | J173: 570 | K173: 547 | L173: 514 | M173: 475 | N173: 424 | O173: 364 | P173: 251 | Q173: 194
A174: Coarse Agg | B174: 1098 | C174: 1124 | D174: 1141 | E174: 1151 | F174: 1156 | G174: 1156 | H174: 1148 | I174: 1139 | J174: 1126 | K174: 1110 | L174: 1082 | M174: 1039 | N174: 965 | O174: 862 | P174: 714 | Q174: 492
A175: Plasticiser dosage | B175: 0 | C175: 0 | D175: 0 | E175: 0 | F175: 0 | G175: 0 | H175: 0 | I175: 0 | J175: 0 | K175: 0 | L175: 0 | M175: 0 | N175: 0 | O175: 0 | P175: 0 | Q175: 0
A176: Concrete | B176: =SUM(B170:B175) -> 2336 | C176: 2336 | D176: 2337 | E176: 2337 | F176: 2336 | G176: 2336 | H176: 2336 | I176: 2337 | J176: 2336 | K176: 2336 | L176: 2337 | M176: 2336 | N176: 2336 | O176: 2336 | P176: 2296 | Q176: 2336
A177: ECO2 / m3 | B177: =(B170*'c design-col'!$K$6)+(B171*'c design-col'!$K$7)+B172*'c design-col'!$K$8+B173*'c design-col'!$K$9+B174*'c design-col'!$K$10+B175*'c design-col'!$K$11 -> 191.2888078 | C177: =(C170*'c design-col'!$K$6)+(C171*'c design-col'!$K$7)+C172*'c design-col'!$K$8+C173*'c design-col'!$K$9+C174*'c design-col'!$K$10+C175*'c design-col'!$K$11 -> 213.6021637 | D177: =(D170*'c design-col'!$K$6)+(D171*'c design-col'!$K$7)+D172*'c design-col'!$K$8+D173*'c design-col'!$K$9+D174*'c design-col'!$K$10+D175*'c design-col'!$K$11 -> 236.7045323 | E177: =(E170*'c design-col'!$K$6)+(E171*'c design-col'!$K$7)+E172*'c design-col'!$K$8+E173*'c design-col'!$K$9+E174*'c design-col'!$K$10+E175*'c design-col'!$K$11 -> 259.7308014 | F177: =(F170*'c design-col'!$K$6)+(F171*'c design-col'!$K$7)+F172*'c design-col'!$K$8+F173*'c design-col'!$K$9+F174*'c design-col'!$K$10+F175*'c design-col'!$K$11 -> 282.7020533 | G177: =(G170*'c design-col'!$K$6)+(G171*'c design-col'!$K$7)+G172*'c design-col'!$K$8+G173*'c design-col'!$K$9+G174*'c design-col'!$K$10+G175*'c design-col'!$K$11 -> 317.9649113 | H177: =(H170*'c design-col'!$K$6)+(H171*'c design-col'!$K$7)+H172*'c design-col'!$K$8+H173*'c design-col'!$K$9+H174*'c design-col'!$K$10+H175*'c design-col'!$K$11 -> 361.0775831 | I177: =(I170*'c design-col'!$K$6)+(I171*'c design-col'!$K$7)+I172*'c design-col'!$K$8+I173*'c design-col'!$K$9+I174*'c design-col'!$K$10+I175*'c design-col'!$K$11 -> 390.9584536 | J177: =(J170*'c design-col'!$K$6)+(J171*'c design-col'!$K$7)+J172*'c design-col'!$K$8+J173*'c design-col'!$K$9+J174*'c design-col'!$K$10+J175*'c design-col'!$K$11 -> 422.5556795 | K177: =(K170*'c design-col'!$K$6)+(K171*'c design-col'!$K$7)+K172*'c design-col'!$K$8+K173*'c design-col'!$K$9+K174*'c design-col'!$K$10+K175*'c design-col'!$K$11 -> 456.7683078 | L177: =(L170*'c design-col'!$K$6)+(L171*'c design-col'!$K$7)+L172*'c design-col'!$K$8+L173*'c design-col'!$K$9+L174*'c design-col'!$K$10+L175*'c design-col'!$K$11 -> 511.1328971 | M177: =(M170*'c design-col'!$K$6)+(M171*'c design-col'!$K$7)+M172*'c design-col'!$K$8+M173*'c design-col'!$K$9+M174*'c design-col'!$K$10+M175*'c design-col'!$K$11 -> 582.084604 | N177: =(N170*'c design-col'!$K$6)+(N171*'c design-col'!$K$7)+N172*'c design-col'!$K$8+N173*'c design-col'!$K$9+N174*'c design-col'!$K$10+N175*'c design-col'!$K$11 -> 691.5009907 | O177: =(O170*'c design-col'!$K$6)+(O171*'c design-col'!$K$7)+O172*'c design-col'!$K$8+O173*'c design-col'!$K$9+O174*'c design-col'!$K$10+O175*'c design-col'!$K$11 -> 834.1113994 | P177: =(P170*'c design-col'!$K$6)+(P171*'c design-col'!$K$7)+P172*'c design-col'!$K$8+P173*'c design-col'!$K$9+P174*'c design-col'!$K$10+P175*'c design-col'!$K$11 -> 1027.286143 | Q177: =(Q170*'c design-col'!$K$6)+(Q171*'c design-col'!$K$7)+Q172*'c design-col'!$K$8+Q173*'c design-col'!$K$9+Q174*'c design-col'!$K$10+Q175*'c design-col'!$K$11 -> 1306.25976
A178: ECO2/tonne | B178: =B177/B176 -> 0.08188733211 | C178: =C177/C176 -> 0.09143928242 | D178: 0.1012856364 | E178: 0.1111385543 | F178: 0.1210197146 | G178: 0.1361151161 | H178: 0.1545708832 | I178: 0.1672907375 | J178: 0.1808885614 | K178: 0.1955343783 | L178: 0.2187132636 | M178: 0.2491800531 | N178: 0.2960192597 | O178: 0.357068236 | P178: 0.4474242782 | Q178: 0.559186541
A179: ECO2 / m3 / Mpa | B179: =B177/B169 -> 23.91110098 | C179: =C177/C169 -> 17.80018031 | D179: 14.79403327 | E179: 12.98654007 | F179: 11.30808213 | G179: 10.59883038 | H179: 10.31650238 | I179: 9.77396134 | J179: 9.390126211 | K179: 9.135366155 | L179: 9.293325402 | M179: 9.701410066 | N179: 9.878585581 | O179: 10.42639249 | P179: 11.41429047 | Q179: 13.0625976
A180: ECO2 / tonne / Mpa | B180: =B178/B169 -> 0.01023591651 | C180: =C178/C169 -> 0.007619940201 | D180: 0.006330352275 | E180: 0.005556927714 | F180: 0.004840788584 | G180: 0.004537170537 | H180: 0.004416310948 | I180: 0.004182268438 | J180: 0.004019745809 | K180: 0.003910687566 | L180: 0.003976604793 | M180: 0.004153000884 | N180: 0.004228846567 | O180: 0.00446335295 | P180: 0.004971380869 | Q180: 0.00559186541
A182: 0% PFA, SP
A183: 30-60 | B183: 8 | C183: 12 | D183: 16 | E183: 20 | F183: 25 | G183: 30 | H183: 35 | I183: 40 | J183: 45 | K183: 50 | L183: 55 | M183: 60 | N183: 70 | O183: 80 | P183: 90 | Q183: 100
A184: Water content | B184: 162 | C184: 162 | D184: 162 | E184: 162 | F184: 162 | G184: 162 | H184: 162 | I184: 162 | J184: 162 | K184: 162 | L184: 162 | M184: 162 | N184: 162 | O184: 162 | P184: 162 | Q184: 162
A185: Cement content | B185: 178 | C185: 201 | D185: 224 | E185: 247 | F185: 271 | G185: 307 | H185: 351 | I185: 381 | J185: 414 | K185: 449 | L185: 505 | M185: 578 | N185: 691 | O185: 837 | P185: 1036 | Q185: 1323
A186: PFA content | B186: 0 | C186: 0 | D186: 0 | E186: 0 | F186: 0 | G186: 0 | H186: 0 | I186: 0 | J186: 0 | K186: 0 | L186: 0 | M186: 0 | N186: 0 | O186: 0 | P186: 0 | Q186: 0
A187: Fine Agg | B187: 886 | C187: 834 | D187: 792 | E187: 757 | F187: 725 | G187: 686 | H187: 645 | I187: 622 | J187: 592 | K187: 576 | L187: 545 | M187: 508 | N187: 459 | O187: 403 | P187: 336 | Q187: 247
A188: Coarse Agg | B188: 1131 | C188: 1160 | D188: 1179 | E188: 1191 | F188: 1198 | G188: 1202 | H188: 1198 | I188: 1192 | J188: 1182 | K188: 1170 | L188: 1146 | M188: 1109 | N188: 1045 | O188: 955 | P188: 824 | Q188: 626
A189: Plasticiser dosage | B189: 0.7 | C189: 0.8 | D189: 0.9 | E189: 1 | F189: 1.1 | G189: 1.2 | H189: 1.4 | I189: 1.5 | J189: 1.7 | K189: 1.8 | L189: 2 | M189: 2.3 | N189: 2.8 | O189: 3.3 | P189: 4.1 | Q189: 5.3
A190: Concrete | B190: =B184+B185+B186+B187+B188+B189 -> 2357.7 | C190: 2357.8 | D190: 2357.9 | E190: 2358 | F190: 2357.1 | G190: 2358.2 | H190: 2357.4 | I190: 2358.5 | J190: 2351.7 | K190: 2358.8 | L190: 2360 | M190: 2359.3 | N190: 2359.8 | O190: 2360.3 | P190: 2362.1 | Q190: 2363.3
A191: ECO2 / m3 | B191: =(B184*'c design-col'!$K$6)+(B185*'c design-col'!$K$7)+B186*'c design-col'!$K$8+B187*'c design-col'!$K$9+B188*'c design-col'!$K$10+B189*'c design-col'!$K$11 -> 174.0773867 | C191: =(C184*'c design-col'!$K$6)+(C185*'c design-col'!$K$7)+C186*'c design-col'!$K$8+C187*'c design-col'!$K$9+C188*'c design-col'!$K$10+C189*'c design-col'!$K$11 -> 194.6592237 | D191: =(D184*'c design-col'!$K$6)+(D185*'c design-col'!$K$7)+D186*'c design-col'!$K$8+D187*'c design-col'!$K$9+D188*'c design-col'!$K$10+D189*'c design-col'!$K$11 -> 215.1356492 | E191: =(E184*'c design-col'!$K$6)+(E185*'c design-col'!$K$7)+E186*'c design-col'!$K$8+E187*'c design-col'!$K$9+E188*'c design-col'!$K$10+E189*'c design-col'!$K$11 -> 235.5382868 | F191: =(F184*'c design-col'!$K$6)+(F185*'c design-col'!$K$7)+F186*'c design-col'!$K$8+F187*'c design-col'!$K$9+F188*'c design-col'!$K$10+F189*'c design-col'!$K$11 -> 256.7674786 | G191: =(G184*'c design-col'!$K$6)+(G185*'c design-col'!$K$7)+G186*'c design-col'!$K$8+G187*'c design-col'!$K$9+G188*'c design-col'!$K$10+G189*'c design-col'!$K$11 -> 288.5485273 | H191: =(H184*'c design-col'!$K$6)+(H185*'c design-col'!$K$7)+H186*'c design-col'!$K$8+H187*'c design-col'!$K$9+H188*'c design-col'!$K$10+H189*'c design-col'!$K$11 -> 327.2931961 | I191: =(I184*'c design-col'!$K$6)+(I185*'c design-col'!$K$7)+I186*'c design-col'!$K$8+I187*'c design-col'!$K$9+I188*'c design-col'!$K$10+I189*'c design-col'!$K$11 -> 353.6794047 | J191: =(J184*'c design-col'!$K$6)+(J185*'c design-col'!$K$7)+J186*'c design-col'!$K$8+J187*'c design-col'!$K$9+J188*'c design-col'!$K$10+J189*'c design-col'!$K$11 -> 382.649672 | K191: =(K184*'c design-col'!$K$6)+(K185*'c design-col'!$K$7)+K186*'c design-col'!$K$8+K187*'c design-col'!$K$9+K188*'c design-col'!$K$10+K189*'c design-col'!$K$11 -> 413.3943597 | L191: =(L184*'c design-col'!$K$6)+(L185*'c design-col'!$K$7)+L186*'c design-col'!$K$8+L187*'c design-col'!$K$9+L188*'c design-col'!$K$10+L189*'c design-col'!$K$11 -> 462.511686 | M191: =(M184*'c design-col'!$K$6)+(M185*'c design-col'!$K$7)+M186*'c design-col'!$K$8+M187*'c design-col'!$K$9+M188*'c design-col'!$K$10+M189*'c design-col'!$K$11 -> 526.4740696 | N191: =(N184*'c design-col'!$K$6)+(N185*'c design-col'!$K$7)+N186*'c design-col'!$K$8+N187*'c design-col'!$K$9+N188*'c design-col'!$K$10+N189*'c design-col'!$K$11 -> 625.417013 | O191: =(O184*'c design-col'!$K$6)+(O185*'c design-col'!$K$7)+O186*'c design-col'!$K$8+O187*'c design-col'!$K$9+O188*'c design-col'!$K$10+O189*'c design-col'!$K$11 -> 753.1777445 | P191: =(P184*'c design-col'!$K$6)+(P185*'c design-col'!$K$7)+P186*'c design-col'!$K$8+P187*'c design-col'!$K$9+P188*'c design-col'!$K$10+P189*'c design-col'!$K$11 -> 927.231889 | Q191: =(Q184*'c design-col'!$K$6)+(Q185*'c design-col'!$K$7)+Q186*'c design-col'!$K$8+Q187*'c design-col'!$K$9+Q188*'c design-col'!$K$10+Q189*'c design-col'!$K$11 -> 1178.155755
A192: ECO2/tonne | B192: =B191/B190 -> 0.07383356098 | C192: =C191/C190 -> 0.08255968431 | D192: 0.09124036185 | E192: 0.0998890105 | F192: 0.1089336382 | G192: 0.1223596503 | H192: 0.1388365131 | I192: 0.1499594678 | J192: 0.1627119411 | K192: 0.1752562149 | L192: 0.195979528 | M192: 0.223148421 | N192: 0.265029669 | O192: 0.3191025482 | P192: 0.3925455692 | Q192: 0.4985214552
A193: ECO2 / m3 / Mpa | B193: =B191/B183 -> 21.75967334 | C193: =C191/C183 -> 16.22160197 | D193: 13.44597808 | E193: 11.77691434 | F193: 10.27069914 | G193: 9.618284243 | H193: 9.351234174 | I193: 8.841985117 | J193: 8.503326044 | K193: 8.267887194 | L193: 8.409303381 | M193: 8.774567827 | N193: 8.934528757 | O193: 9.414721806 | P193: 10.30257654 | Q193: 11.78155755
A194: ECO2 / tonne / Mpa | B194: =B192/B183 -> 0.009229195122 | C194: =C192/C183 -> 0.006879973692 | D194: 0.005702522616 | E194: 0.004994450525 | F194: 0.004357345528 | G194: 0.00407865501 | H194: 0.003966757519 | I194: 0.003748986694 | J194: 0.003615820914 | K194: 0.003505124298 | L194: 0.003563264145 | M194: 0.00371914035 | N194: 0.003786138129 | O194: 0.003988781852 | P194: 0.004361617435 | Q194: 0.004985214552
A196: 20% PFA, No SP
A197: 30-60 | B197: 8 | C197: 12 | D197: 16 | E197: 20 | F197: 25 | G197: 30 | H197: 35 | I197: 40 | J197: 45 | K197: 50 | L197: 55 | M197: 60 | N197: 70 | O197: 80 | P197: 90 | Q197: 100
A198: Water content | B198: 170 | C198: 170 | D198: 170 | E198: 170 | F198: 170 | G198: 170 | H198: 170 | I198: 170 | J198: 170 | K198: 170 | L198: 170 | M198: 170 | N198: 170 | O198: 170 | P198: 170 | Q198: 170
A199: Cement content | B199: 174 | C199: 196 | D199: 219 | E199: 241 | F199: 265 | G199: 299 | H199: 343 | I199: 372 | J199: 404 | K199: 439 | L199: 493 | M199: 564 | N199: 674 | O199: 817 | P199: 1011 | Q199: 1291
A200: PFA content | B200: 43 | C200: 49 | D200: 55 | E200: 60 | F200: 66 | G200: 75 | H200: 86 | I200: 93 | J200: 101 | K200: 110 | L200: 123 | M200: 141 | N200: 169 | O200: 204 | P200: 253 | Q200: 323
A201: Fine Agg | B201: 861 | C201: 809 | D201: 766 | E201: 729 | F201: 696 | G201: 655 | H201: 612 | I201: 587 | J201: 562 | K201: 538 | L201: 503 | M201: 464 | N201: 407 | O201: 343 | P201: 265 | Q201: 159
A202: Coarse Agg | B202: 1100 | C202: 1124 | D202: 1139 | E202: 1147 | F202: 1151 | G202: 1148 | H202: 1137 | I202: 1126 | J202: 1110 | K202: 1092 | L202: 1059 | M202: 1010 | N202: 928 | O202: 813 | P202: 649 | Q202: 404
A203: Plasticiser dosage
A204: Concrete | B204: =B198+B199+B200+B201+B202 -> 2348 | C204: 2348 | D204: 2349 | E204: 2347 | F204: 2348 | G204: 2347 | H204: 2348 | I204: 2348 | J204: 2347 | K204: 2349 | L204: 2348 | M204: 2349 | N204: 2348 | O204: 2347 | P204: 2348 | Q204: 2347
A205: ECO2 / m3 | B205: =(B198*'c design-col'!$K$6)+(B199*'c design-col'!$K$7)+B200*'c design-col'!$K$8+B201*'c design-col'!$K$9+B202*'c design-col'!$K$10+B203*'c design-col'!$K$11 -> 171.2546349 | C205: =(C198*'c design-col'!$K$6)+(C199*'c design-col'!$K$7)+C200*'c design-col'!$K$8+C201*'c design-col'!$K$9+C202*'c design-col'!$K$10+C203*'c design-col'!$K$11 -> 191.0503254 | D205: =(D198*'c design-col'!$K$6)+(D199*'c design-col'!$K$7)+D200*'c design-col'!$K$8+D201*'c design-col'!$K$9+D202*'c design-col'!$K$10+D203*'c design-col'!$K$11 -> 211.6350286 | E205: =(E198*'c design-col'!$K$6)+(E199*'c design-col'!$K$7)+E200*'c design-col'!$K$8+E201*'c design-col'!$K$9+E202*'c design-col'!$K$10+E203*'c design-col'!$K$11 -> 231.2327495 | F205: =(F198*'c design-col'!$K$6)+(F199*'c design-col'!$K$7)+F200*'c design-col'!$K$8+F201*'c design-col'!$K$9+F202*'c design-col'!$K$10+F203*'c design-col'!$K$11 -> 252.5830716 | G205: =(G198*'c design-col'!$K$6)+(G199*'c design-col'!$K$7)+G200*'c design-col'!$K$8+G201*'c design-col'!$K$9+G202*'c design-col'!$K$10+G203*'c design-col'!$K$11 -> 282.7447629 | H205: =(H198*'c design-col'!$K$6)+(H199*'c design-col'!$K$7)+H200*'c design-col'!$K$8+H201*'c design-col'!$K$9+H202*'c design-col'!$K$10+H203*'c design-col'!$K$11 -> 321.6918396 | I205: =(I198*'c design-col'!$K$6)+(I199*'c design-col'!$K$7)+I200*'c design-col'!$K$8+I201*'c design-col'!$K$9+I202*'c design-col'!$K$10+I203*'c design-col'!$K$11 -> 347.314279 | J205: =(J198*'c design-col'!$K$6)+(J199*'c design-col'!$K$7)+J200*'c design-col'!$K$8+J201*'c design-col'!$K$9+J202*'c design-col'!$K$10+J203*'c design-col'!$K$11 -> 375.551104 | K205: =(K198*'c design-col'!$K$6)+(K199*'c design-col'!$K$7)+K200*'c design-col'!$K$8+K201*'c design-col'!$K$9+K202*'c design-col'!$K$10+K203*'c design-col'!$K$11 -> 406.443184 | L205: =(L198*'c design-col'!$K$6)+(L199*'c design-col'!$K$7)+L200*'c design-col'!$K$8+L201*'c design-col'!$K$9+L202*'c design-col'!$K$10+L203*'c design-col'!$K$11 -> 454.0188243 | M205: =(M198*'c design-col'!$K$6)+(M199*'c design-col'!$K$7)+M200*'c design-col'!$K$8+M201*'c design-col'!$K$9+M202*'c design-col'!$K$10+M203*'c design-col'!$K$11 -> 516.5405866 | N205: =(N198*'c design-col'!$K$6)+(N199*'c design-col'!$K$7)+N200*'c design-col'!$K$8+N201*'c design-col'!$K$9+N202*'c design-col'!$K$10+N203*'c design-col'!$K$11 -> 613.3380404 | O205: =(O198*'c design-col'!$K$6)+(O199*'c design-col'!$K$7)+O200*'c design-col'!$K$8+O201*'c design-col'!$K$9+O202*'c design-col'!$K$10+O203*'c design-col'!$K$11 -> 739.0523142 | P205: =(P198*'c design-col'!$K$6)+(P199*'c design-col'!$K$7)+P200*'c design-col'!$K$8+P201*'c design-col'!$K$9+P202*'c design-col'!$K$10+P203*'c design-col'!$K$11 -> 909.5604785 | Q205: =(Q198*'c design-col'!$K$6)+(Q199*'c design-col'!$K$7)+Q200*'c design-col'!$K$8+Q201*'c design-col'!$K$9+Q202*'c design-col'!$K$10+Q203*'c design-col'!$K$11 -> 1155.543792
A206: ECO2/tonne | B206: =B205/B204 -> 0.07293638622 | C206: =C205/C204 -> 0.08136725955 | D206: 0.09009579763 | E206: 0.09852268832 | F206: 0.1075737102 | G206: 0.1204707128 | H206: 0.137006746 | I206: 0.1479191989 | J206: 0.1600132527 | K206: 0.1730281754 | L206: 0.1933640649 | M206: 0.2198980786 | N206: 0.2612172233 | O206: 0.3148923367 | P206: 0.3873766944 | Q206: 0.4923492935
A207: ECO2 / m3 / Mpa | B207: =B205/B197 -> 21.40682936 | C207: =C205/C197 -> 15.92086045 | D207: 13.22718929 | E207: 11.56163747 | F207: 10.10332286 | G207: 9.424825431 | H207: 9.191195418 | I207: 8.682856974 | J207: 8.345580089 | K207: 8.128863681 | L207: 8.254887715 | M207: 8.609009777 | N207: 8.761972006 | O207: 9.238153927 | P207: 10.10622754 | Q207: 11.55543792
A208: ECO2 / tonne / Mpa | B208: =B206/B197 -> 0.009117048278 | C208: =C206/C197 -> 0.006780604963 | D208: 0.005630987352 | E208: 0.004926134416 | F208: 0.004302948409 | G208: 0.004015690426 | H208: 0.003914478457 | I208: 0.003697979972 | J208: 0.003555850059 | K208: 0.003460563508 | L208: 0.00351571027 | M208: 0.003664967977 | N208: 0.003731674619 | O208: 0.003936154208 | P208: 0.004304185494 | Q208: 0.004923492935
A210: 20% PFA, SP
A211: 30-60 | B211: 8 | C211: 12 | D211: 16 | E211: 20 | F211: 25 | G211: 30 | H211: 35 | I211: 40 | J211: 45 | K211: 50 | L211: 55 | M211: 60 | N211: 70 | O211: 80 | P211: 90 | Q211: 100
A212: Water content | B212: 153 | C212: 153 | D212: 153 | E212: 153 | F212: 153 | G212: 153 | H212: 153 | I212: 153 | J212: 153 | K212: 153 | L212: 153 | M212: 153 | N212: 153 | O212: 153 | P212: 153 | Q212: 153
A213: Cement content | B213: 156 | C213: 177 | D213: 197 | E213: 217 | F213: 238 | G213: 269 | H213: 308 | I213: 335 | J213: 364 | K213: 395 | L213: 443 | M213: 508 | N213: 607 | O213: 735 | P213: 910 | Q213: 1162
... 113 more rows

Sheet 52.5 (40% PFA + SP)
A2: 0-10 | B2: 8 | C2: 12 | D2: 16 | E2: 20 | F2: 25 | G2: 30 | H2: 35 | I2: 40 | J2: 45 | K2: 50 | L2: 55 | M2: 60 | N2: 70 | O2: 80 | P2: 90 | Q2: 100
A3: Water content | B3: 103.5 | C3: 103.5 | D3: 103.5 | E3: 103.5 | F3: 103.5 | G3: 103.5 | H3: 103.5 | I3: 103.5 | J3: 103.5 | K3: 103.5 | L3: 103.5 | M3: 103.5 | N3: 103.5 | O3: 103.5 | P3: 103.5 | Q3: 103.5
A4: Cement content | B4: 95 | C4: 107 | D4: 119 | E4: 132 | F4: 144 | G4: 163 | H4: 187 | I4: 203 | J4: 220 | K4: 239 | L4: 269 | M4: 308 | N4: 368 | O4: 446 | P4: 551 | Q4: 704
A5: PFA content | B5: 63 | C5: 71 | D5: 79 | E5: 88 | F5: 96 | G5: 109 | H5: 125 | I5: 135 | J5: 147 | K5: 159 | L5: 179 | M5: 205 | N5: 245 | O5: 297 | P5: 368 | Q5: 469
A6: Fine Agg | B6: 842 | C6: 790 | D6: 749 | E6: 713 | F6: 682 | G6: 644 | H6: 606 | I6: 583 | J6: 562 | K6: 541 | L6: 513 | M6: 481 | N6: 439 | O6: 393 | P6: 339 | Q6: 270
A7: Coarse Agg | B7: 1321 | C7: 1352 | D7: 1373 | E7: 1388 | F7: 1398 | G7: 1404 | H7: 1403 | I7: 1399 | J7: 1391 | K7: 1381 | L7: 1360 | M7: 1327 | N7: 1269 | O7: 1185 | P7: 1063 | Q7: 877
A8: Plasticiser dosage | B8: 0.6 | C8: 0.7 | D8: 0.8 | E8: 0.9 | F8: 1 | G8: 1.1 | H8: 1.2 | I8: 1.4 | J8: 1.5 | K8: 1.6 | L8: 1.8 | M8: 2.1 | N8: 2.5 | O8: 3 | P8: 3.7 | Q8: 4.7
A9: Concrete | B9: =B3+B4+B5+B6+B7+B8 -> 2425.1 | C9: =C3+C4+C5+C6+C7 -> 2423.5 | D9: 2423.5 | E9: 2424.5 | F9: 2423.5 | G9: 2423.5 | H9: 2424.5 | I9: 2423.5 | J9: 2423.5 | K9: 2423.5 | L9: 2424.5 | M9: 2424.5 | N9: 2424.5 | O9: 2424.5 | P9: 2424.5 | Q9: 2423.5
A10: ECO2 | B10: =(B3*'c design-col'!$K$6)+(B4*'c design-col'!$K$7)+B5*'c design-col'!$K$8+B6*'c design-col'!$K$9+B7*'c design-col'!$K$10+B8*'c design-col'!$K$11 -> 104.6978941 | C10: =(C3*'c design-col'!$K$6)+(C4*'c design-col'!$K$7)+C5*'c design-col'!$K$8+C6*'c design-col'!$K$9+C7*'c design-col'!$K$10+C8*'c design-col'!$K$11 -> 115.7987244 | D10: =(D3*'c design-col'!$K$6)+(D4*'c design-col'!$K$7)+D5*'c design-col'!$K$8+D6*'c design-col'!$K$9+D7*'c design-col'!$K$10+D8*'c design-col'!$K$11 -> 126.7964547 | E10: =(E3*'c design-col'!$K$6)+(E4*'c design-col'!$K$7)+E5*'c design-col'!$K$8+E6*'c design-col'!$K$9+E7*'c design-col'!$K$10+E8*'c design-col'!$K$11 -> 138.6395095 | F10: =(F3*'c design-col'!$K$6)+(F4*'c design-col'!$K$7)+F5*'c design-col'!$K$8+F6*'c design-col'!$K$9+F7*'c design-col'!$K$10+F8*'c design-col'!$K$11 -> 149.5189758 | G10: =(G3*'c design-col'!$K$6)+(G4*'c design-col'!$K$7)+G5*'c design-col'!$K$8+G6*'c design-col'!$K$9+G7*'c design-col'!$K$10+G8*'c design-col'!$K$11 -> 166.6530318 | H10: =(H3*'c design-col'!$K$6)+(H4*'c design-col'!$K$7)+H5*'c design-col'!$K$8+H6*'c design-col'!$K$9+H7*'c design-col'!$K$10+H8*'c design-col'!$K$11 -> 188.1975342 | I10: =(I3*'c design-col'!$K$6)+(I4*'c design-col'!$K$7)+I5*'c design-col'!$K$8+I6*'c design-col'!$K$9+I7*'c design-col'!$K$10+I8*'c design-col'!$K$11 -> 202.5050879 | J10: =(J3*'c design-col'!$K$6)+(J4*'c design-col'!$K$7)+J5*'c design-col'!$K$8+J6*'c design-col'!$K$9+J7*'c design-col'!$K$10+J8*'c design-col'!$K$11 -> 217.7037366 | K10: =(K3*'c design-col'!$K$6)+(K4*'c design-col'!$K$7)+K5*'c design-col'!$K$8+K6*'c design-col'!$K$9+K7*'c design-col'!$K$10+K8*'c design-col'!$K$11 -> 234.6444458 | L10: =(L3*'c design-col'!$K$6)+(L4*'c design-col'!$K$7)+L5*'c design-col'!$K$8+L6*'c design-col'!$K$9+L7*'c design-col'!$K$10+L8*'c design-col'!$K$11 -> 261.3663088 | M10: =(M3*'c design-col'!$K$6)+(M4*'c design-col'!$K$7)+M5*'c design-col'!$K$8+M6*'c design-col'!$K$9+M7*'c design-col'!$K$10+M8*'c design-col'!$K$11 -> 296.0416415 | N10: =(N3*'c design-col'!$K$6)+(N4*'c design-col'!$K$7)+N5*'c design-col'!$K$8+N6*'c design-col'!$K$9+N7*'c design-col'!$K$10+N8*'c design-col'!$K$11 -> 349.3120863 | O10: =(O3*'c design-col'!$K$6)+(O4*'c design-col'!$K$7)+O5*'c design-col'!$K$8+O6*'c design-col'!$K$9+O7*'c design-col'!$K$10+O8*'c design-col'!$K$11 -> 418.4730106 | P10: =(P3*'c design-col'!$K$6)+(P4*'c design-col'!$K$7)+P5*'c design-col'!$K$8+P6*'c design-col'!$K$9+P7*'c design-col'!$K$10+P8*'c design-col'!$K$11 -> 511.5048842 | Q10: =(Q3*'c design-col'!$K$6)+(Q4*'c design-col'!$K$7)+Q5*'c design-col'!$K$8+Q6*'c design-col'!$K$9+Q7*'c design-col'!$K$10+Q8*'c design-col'!$K$11 -> 646.9159009
A11: ECO2/Mpa | B11: =B10/B2 -> 13.08723677 | C11: =C10/C2 -> 9.649893698 | D11: 7.924778416 | E11: 6.931975476 | F11: 5.980759032 | G11: 5.555101061 | H11: 5.377072407 | I11: 5.062627199 | J11: 4.837860813 | K11: 4.692888916 | L11: 4.752114705 | M11: 4.934027358 | N11: 4.990172662 | O11: 5.230912633 | P11: 5.683387602 | Q11: 6.469159009
A15: 10--30 | B15: 8 | C15: 12 | D15: 16 | E15: 20 | F15: 25 | G15: 30 | H15: 35 | I15: 40 | J15: 45 | K15: 50 | L15: 55 | M15: 60 | N15: 70 | O15: 80 | P15: 90 | Q15: 100
A16: Water content | B16: 126 | C16: 126 | D16: 126 | E16: 126 | F16: 126 | G16: 126 | H16: 126 | I16: 126 | J16: 126 | K16: 126 | L16: 126 | M16: 126 | N16: 126 | O16: 126 | P16: 126 | Q16: 126
A17: Cement content | B17: 115 | C17: 130 | D17: 145 | E17: 160 | F17: 176 | G17: 199 | H17: 227 | I17: 247 | J17: 268 | K17: 291 | L17: 327 | M17: 375 | N17: 448 | O17: 542 | P17: 671 | Q17: 857
A18: PFA content | B18: 77 | C18: 87 | D18: 97 | E18: 107 | F18: 117 | G18: 133 | H18: 152 | I18: 165 | J18: 179 | K18: 194 | L18: 218 | M18: 250 | N18: 298 | O18: 362 | P18: 447 | Q18: 572
A19: Fine Agg | B19: 858 | C19: 805 | D19: 761 | E19: 724 | F19: 691 | G19: 650 | H19: 608 | I19: 584 | J19: 561 | K19: 538 | L19: 506 | M19: 469 | N19: 420 | O19: 365 | P19: 299 | Q19: 213
A20: Coarse Agg | B20: 1221 | C20: 1250 | D20: 1269 | E20: 1282 | F20: 1288 | G20: 1291 | H20: 1285 | I20: 1276 | J20: 1265 | K20: 1249 | L20: 1221 | M20: 1179 | N20: 1106 | O20: 1003 | P20: 854 | Q20: 631
A21: Plasticiser dosage | B21: 0.8 | C21: 0.9 | D21: 1 | E21: 1.1 | F21: 1.2 | G21: 1.3 | H21: 1.5 | I21: 1.6 | J21: 1.8 | K21: 1.9 | L21: 2.2 | M21: 2.5 | N21: 3 | O21: 3.6 | P21: 4.5 | Q21: 5.7
A22: Concrete | B22: =B16+B17+B18+B19+B20+B21 -> 2397.8 | C22: =C16+C17+C18+C19+C20+C21 -> 2398.9 | D22: 2399 | E22: 2400.1 | F22: 2399.2 | G22: 2400.3 | H22: 2399.5 | I22: 2399.6 | J22: 2400.8 | K22: 2399.9 | L22: 2400.2 | M22: 2401.5 | N22: 2401 | O22: 2401.6 | P22: 2401.5 | Q22: 2404.7
